Workbook

Sheet 2017Block Grant-legalmax.xlsm
D1: Col 1 | E1: Col 2 | F1: Col 3 | G1: Col 4 | H1: Col 5 | I1: Col 6 | K1: Col 7 | N1: Col 8 | O1: Col 9 | P1: Col 10 | Q1: Col 11 | R1: Col 12 | S1: Col 12 (a) | U1: Col 13 | V1: Col 14 | W1: Col 15 | X1: Col 16 | Y1: Col 17 | Z1: Col 18 | AA1: Col 19 | AB1: Col 20 | AC1: Sequence Number | AD1: Audit | AE1: Republished | AG1: Col 21 | AH1: Col 22 | AJ1: Col 23 | AK1: Col 24 | AL1: Col 25 | AM1: Col 26 | AN1: Col 27 | AO1: Col 28 | AQ1: Line 1 | AS1: Line 2 | AZ1: Line 3 | BA1: Line 4 | BC1: Line 5 | BD1: Line 6
B2: 2017-07-14 | J2: N/A | O2: Block Grant | P2: Block Grant | R2: Block Grant | S2: Cost of Living | T2: Block Grant | W2: Local Effort | X2: Local Effort | Y2: Local Effort | Z2: Local Effort | AA2: Local Effort | AB2: Local Effort | AF2: (info only) | AI2: (info only) | AQ2: Table I - Adjusted General State Aid Calculation | BE2: Table II - General State Aid Over-Proration FTE Calculation | BK2: Virtual State Aid | BR2: New Fac State Aid | BT2: Special Levies - Lookup on Form 151 | CG2: Federal Impact Aid | CI2: C06 Ln 30 | CJ2: C06 Ln 40 | CK2: C06 Ln 45 | CL2: Sequence Number | CM2: Audit | CN2: Republished
D3: 2014-15 | E3: 2016-17 | F3: 2016-17 | G3: 2016-17 | H3: Federal | I3: 2016-17 | J3: 2016-17 | K3: 2015-06-30 | N3: 2016-17 | O3: 2016-17 | P3: 2016-17 | Q3: 2016-17 | R3: 2016-17 | S3: 2016-17 | T3: 2016-17 | U3: 2016-17 | V3: 2016-06-30 | W3: 2016-17 | X3: 2016-17 | Y3: 2016-17 | Z3: 2016-17 | AA3: 2016-17 | AB3: 2016-17 | AF3: 2016-17 | AG3: 2016-17 | AH3: 2016-17 | AJ3: 2016-17 | AK3: 2014-15 | AL3: 2016-17 | AM3: 2016-17 | AN3: 2016-17 | AO3: 2016-17 | AR3: Virtual | AT3: Special Levies | BA3: To Fund | BB3: New Facilities | BT3: (info only)
D4: Adjusted | G4: Special | H4: Impact | I4: Total | J4: Gen State Aid | K4: Unencumbered | L4: 2015-16 | M4: 2014-15 | N4: Total | U4: State Aid | V4: Unencumbered | W4: Mineral | X4: Federal | AB4: Interest | AF4: Computed | AG4: Computed | AH4: Adopted | AI4: Legal General | AJ4: Legal | AK4: LOB Base | AL4: LOB | AM4: Computed | AN4: Adopted | AO4: Legal | AQ4: 2014-15 | AR4: 2014-15 | AS4: 2014-15 | AT4: 2014-15 | AU4: 2014-15 | AV4: 2014-15 | AW4: 2014-15 | AX4: 2014-15 | AY4: 2014-15 | AZ4: 2014-15 | BA4: Extraordinary | BB4: 2014-15 | BC4: 2014-15 | BD4: 2014-15 | BE4: 2014-15 | BF4: 2015-16 | BG4: 2016-17 | BH4: Declining | BI4: 2016-17 | BJ4: 2016-17 | BK4: 2016-17 | BL4: 2016-17 | BM4: 2016-17 | BN4: 2016-17 | BO4: 2016-17 | BP4: 2016-17 | BQ4: 2016-17 | BR4: 2016-17 | BS4: 2016-17 | BT4: 2014-15 | BU4: 2016-17 | BV4: 2016-17 | BW4: 2016-17 | BX4: 2016-17 | BY4: 2014-15 | BZ4: 2016-17 | CA4: 2016-17 | CB4: 2016-17 | CC4: 2014-15 | CD4: 2016-17 | CE4: 2016-17 | CF4: 2016-17 | CG4: 2016-17 | CH4: 2014-15 | CI4: 2016-17 | CJ4: 2016-17 | CK4: 2016-17
D5: General State Aid | E5: Virtual | F5: New Facilities | G5: Levies | H5: Aid | I5: Adjusted | J5: OverProration | K5: Cash | L5: Virtual | M5: Budget | N5: Budget | O5: General | P5: ExtraOrdinary | Q5: Special Ed | R5: KPERS | S5: KPERS | T5: Capital Outlay | U5: Flow-Thru | V5: Cash | W5: Production | X5: Impact | Y5: Pupil | Z5: Authorized | AA5: Misc | AB5: on Idle | AF5: Gen Fund | AG5: Gen Fund | AH5: General | AI5: Fund | AJ5: General | AK5: General | AL5: Percent | AM5: LOB | AN5: LOB | AO5: LOB | AQ5: General | AR5: Virtual | AS5: Virtual Aid | AT5: COL | AU5: COL Aid | AV5: Decl Enrol | AW5: Decl Enrol Aid | AX5: Ancillary | AY5: Ancillary Aid | AZ5: Total Special | BA5: Need State Aid | BB5: New Fac | BC5: New Fac Aid | BD5: Adj General | BE5: FTE Enroll. | BF5: FTE Enroll. | BG5: FTE Enroll. | BH5: Enrollment | BI5: 4yr At Risk | BJ5: Adjusted | BK5: Virtual FTE | BL5: Virtual FT Aid | BM5: Virtual FTE | BN5: Virtual PT Aid | BO5: Virtual Credits | BP5: Virtual Credits Aid | BQ5: Total Virtual | BR5: New Fac | BS5: New Fac Aid | BT5: Cost of Living | BU5: Cost of Living | BV5: Cost of Living | BW5: Cost of Living | BX5: Cost of Living | BY5: Decl Enroll | BZ5: Decl Enroll | CA5: Decl Enroll | CB5: Decl Enroll | CC5: Ancillary | CD5: Ancillary | CE5: Ancillary | CF5: Ancillary | CG5: Federal | CH5: Federal | CI5: Tuition | CJ5: Tuition | CK5: Tuition
A6: USD # | B6: County | C6: District Name | D6: (Table I) | E6: State Aid | F6: State Aid | G6: State Aid | H6: Difference | I6: Enrollment | J6: 0 | K6: Balance | L6: Credits | M6: Reduction | N6: Reduction | O6: State Aid | P6: Need State Aid | Q6: State Aid | R6: State Aid | S6: State Aid | T6: State Aid | U6: General Fund | V6: Balance | W6: Tax | X6: Aid | Y6: Tuition | Z6: Transfers | AA6: Revenue | AB6: Funds | AF6: (excl COL) | AG6: (incl COL) | AH6: Fund | AI6: (before red) | AJ6: Fund | AK6: Fund | AL6: Authorized | AM6: Budget | AN6: Budget | AO6: Budget | AQ6: State Aid | AR6: WTD FTE | AS6: 3852 | AT6: WTD FTE | AU6: 3852 | AV6: WTD FTE | AW6: 3852 | AX6: WTD FTE | AY6: 3852 | AZ6: Levy Aid | BA6: 0.004 | BB6: WTD FTE | BC6: 3852 | BD6: State Aid | BE6: (excl 4yr AR) | BF6: (excl 4yr AR) | BG6: (excl 4yr AR) | BH6: Provision | BI6: FTE Enroll. | BJ6: Enrollment | BK6: (Full-Time) | BL6: 5000 | BM6: (Part-Time) | BN6: 1700 | BO6: (19yrs +) | BP6: 933 | BQ6: State Aid | BR6: WTD FTE | BS6: 3852 | BT6: Tax Appeal | BU6: Percent | BV6: Computed | BW6: USD Amt Used | BX6: Max Authority | BY6: Tax Appeal | BZ6: Tax Appeal | CA6: USD Amt Used | CB6: Max Authority | CC6: Tax Appeal | CD6: Tax Appeal | CE6: USD Amt Used | CF6: Max Authority | CG6: Impact Aid | CH6: Impact Aid | CI6: Individual | CJ6: In State | CK6: Out of State | CO6: USD #
A7: Total | C7: STATE TOTALS | D7: =SUM(D8:D293) -> 2510657670 | E7: =SUM(E8:E293) -> 30585447 | F7: 13158048 | G7: 51303853 | H7: 1936313 | I7: =SUM(I8:I293) -> 457947.4 | J7: 0 | K7: =SUM(K8:K293) -> 527262 | L7: =SUM(L8:L293) -> -313265 | M7: =SUM(M8:M293) -> -154163 | N7: =SUM(N8:N293) -> -467428 | O7: =SUM(O8:O293) -> 2606646641 | P7: =SUM(P8:P293) -> 0 | Q7: =SUM(Q8:Q293) -> 425819859 | R7: =SUM(R8:R293) -> 253501811 | S7: 253501811 | T7: =SUM(T8:T293) -> 0 | U7: =SUM(U8:U293) -> 3285968311 | V7: =SUM(V8:V293) -> 6592409 | W7: =SUM(W8:W293) -> 1428788 | X7: =SUM(X8:X293) -> 15291007 | Y7: =SUM(Y8:Y293) -> 205761 | Z7: =SUM(Z8:Z293) -> 14587318 | AA7: =SUM(AA8:AA293) -> 5553427 | AB7: =SUM(AB8:AB293) -> 4023817 | AF7: 3295585440 | AG7: =SUM(AG8:AG293) -> 3333650838 | AH7: =SUM(AH8:AH293) -> 3487517425 | AI7: 3333583692 | AJ7: =SUM(AJ8:AJ293) -> 3333583692 | AK7: =SUM(AK8:AK293) -> 3473306047 | AL7: =SUM(AL8:AL293) -> 86.76 | AM7: =SUM(AM8:AM293) -> 1071118210 | AN7: =SUM(AN8:AN293) -> 1067746822 | AO7: =SUM(AO8:AO293) -> 1067698181 | AQ7: =SUM(AQ8:AQ293) -> 2598865739 | AR7: 6608.4 | AS7: 25455559 | AT7: 5213.6 | AU7: 20082788 | AV7: 952.9 | AW7: 3670571 | AX7: 5657.1 | AY7: 21791149 | AZ7: 45544508 | BA7: 10111460 | BB7: 1842.3 | BC7: 7096542 | BD7: 2510657670 | BE7: =SUM(BE8:BE293) -> 453447.1 | BF7: 450671.4 | BG7: 449594.7 | BH7: 454523.9 | BI7: 3423.5 | BJ7: 457947.4 | BK7: 4954 | BL7: =SUM(BL8:BL293) -> 24770000 | BM7: 917 | BN7: =SUM(BN8:BN293) -> 1558900 | BO7: 4562.2 | BP7: =SUM(BP8:BP293) -> 4256547 | BQ7: 30585447 | BR7: 3415.9 | BS7: 13158048 | BT7: =SUM(BT8:BT293) -> 20405207 | BU7: =SUM(BU8:BU293) -> 0.458 | BV7: =SUM(BV8:BV293) -> 29449197 | BW7: =SUM(BW8:BW293) -> 24440283 | BX7: =SUM(BX8:BX293) -> 23478080 | BY7: =SUM(BY8:BY293) -> 3670673 | BZ7: =SUM(BZ8:BZ293) -> 3670673 | CA7: =SUM(CA8:CA293) -> 3670673 | CB7: 3670673 | CC7: =SUM(CC8:CC293) -> 21791313 | CD7: =SUM(CD8:CD293) -> 24176759 | CE7: =SUM(CE8:CE293) -> 24155100 | CF7: 24155100 | CG7: 15160378 | CH7: 17040514 | CI7: =SUM(CI8:CI293) -> 284919 | CJ7: 0 | CK7: 0
A8: 101 | B8: Neosho | C8: Erie-Galesburg | D8: =BD8 -> 3725709 | E8: =BQ8 -> 0 | F8: =BS8 -> 0 | G8: =BX8+CB8+CF8 -> 0 | H8: =IF((CH8-CG8)<0,0,CH8-CG8) -> 0 | I8: =BJ8 -> 513.5 | J8: =I8*$J$6 -> 0 | K8: 0 | L8: =Weightings!K5 -> -3732 | M8: 0 | N8: =L8+M8 -> -3732 | O8: =SUM(D8+E8+F8+G8+H8+J8+N8)-K8 -> 3721977 | P8: 0 | Q8: 590432 | R8: 252707 | S8: =R8 -> 252707 | U8: =O8+P8+Q8+R8 -> 4565116 | V8: 3000 | W8: 0 | X8: 0 | Y8: 0 | Z8: 0 | AA8: 0 | AB8: 0 | AC8: ='2017legmax.xls'!AV5 -> 3 | AD8: ='2017legmax.xls'!AW5 -> A | AE8: ='2017legmax.xls'!AX5 ->  | AF8: =D8+E8+F8-K8+CB8+CF8+H8+J8+N8+P8+Q8+S8+T8+V8+W8+X8+Y8+AA8+AB8 -> 4568116 | AG8: =AF8+BX8-S8+R8+Z8 -> 4568116 | AH8: =IF(Weightings!G5>0,Weightings!G5,'Preliminary SO66'!AB2) -> 4738042 | AI8: =MIN(AG8,AH8) -> 4568116 | AJ8: =MIN(AG8,AH8) -> 4568116 | AK8: 5131367 | AL8: ='2017legmax.xls'!BM5 -> 0.3 | AM8: =AK8*AL8 -> 1539410 | AN8: 1539410 | AO8: =MIN(AM8,AN8) -> 1539410 | AQ8: 3769177 | AR8: 7.4 | AS8: =AR8*$AS$6 -> 28505 | AT8: 0 | AU8: =AT8*$AU$6 -> 0 | AV8: 0 | AW8: =AV8*$AW$6 -> 0 | AX8: 0 | AY8: =AX8*$AY$6 -> 0 | AZ8: =AU8+AW8+AY8 -> 0 | BA8: =SUM(AQ8-AS8-AZ8)*$BA$6 -> 14963 | BB8: 0 | BC8: =BB8*$BC$6 -> 0 | BD8: =AQ8-AS8-AZ8-BA8-BC8 -> 3725709 | BE8: ='2017legmax.xls'!F5 -> 522.5 | BF8: ='2017legmax.xls'!I5 -> 503 | BG8: ='2017legmax.xls'!K5 -> 497 | BH8: =MAX(BG8,BF8, AVERAGE(BE8,BF8,BG8)) -> 507.5 | BI8: ='2017legmax.xls'!O5 -> 6 | BJ8: =BH8+BI8 -> 513.5 | BK8: =IF(ISNA(VLOOKUP($CO8,'Audit Values'!$A$2:$AF$318,2,FALSE)),'Preliminary SO66'!T2,VLOOKUP($CO8,'Audit Values'!$A$2:$AF$318,20,FALSE)) -> 0 | BL8: =BK8*$BL$6 -> 0 | BM8: =IF(ISNA(VLOOKUP($CO8,'Audit Values'!$A$2:$AF$318,2,FALSE)),'Preliminary SO66'!U2,VLOOKUP($CO8,'Audit Values'!$A$2:$AF$318,21,FALSE)) -> 0 | BN8: =BM8*$BN$6 -> 0 | BO8: 0 | BP8: =BO8*$BP$6 -> 0 | BQ8: =BL8+BN8+BP8 -> 0 | BR8: ='2017legmax.xls'!AH5 -> 0 | BS8: =BR8*$BS$6 -> 0 | BT8: 0 | BU8: ='2017legmax.xls'!CJ5 -> 0 | BV8: =AF8*BU8 -> 0 | BW8: ='2017legmax.xls'!CI5 -> 0 | BX8: =MIN(BV8,BW8) -> 0 | BY8: 0 | BZ8: 0 | CA8: 0 | CB8: =IF(CA8>MAX(BY8,BZ8), MAX(BY8,BZ8),CA8) -> 0 | CC8: 0 | CD8: 0 | CE8: 0 | CF8: =IF(CE8>MAX(CC8,CD8),MAX(CC8,CD8),CE8) -> 0 | CG8: =X8 -> 0 | CH8: 0 | CI8: 0 | CJ8: 0 | CK8: 0 | CO8: D0101
A9: 102 | B9: Gray | C9: Cimmaron-Ensign | D9: =BD9 -> 4170170 | E9: =BQ9 -> 0 | F9: =BS9 -> 0 | G9: 0 | H9: =IF((CH9-CG9)<0,0,CH9-CG9) -> 0 | I9: =BJ9 -> 626.2 | J9: =I9*$J$6 -> 0 | K9: 22 | L9: =Weightings!K6 -> 0 | M9: 0 | N9: =L9+M9 -> 0 | O9: =SUM(D9+E9+F9+G9+H9+J9)-K9+N9 -> 4170148 | P9: 0 | Q9: 473011 | R9: 323024 | S9: =R9 -> 323024 | U9: =O9+P9+Q9+R9+T9 -> 4966183 | V9: 3688 | W9: 0 | X9: 0 | Y9: 0 | Z9: 0 | AA9: 0 | AB9: 0 | AC9: ='2017legmax.xls'!AV6 -> 7 | AD9: ='2017legmax.xls'!AW6 -> A | AE9: ='2017legmax.xls'!AX6 ->  | AF9: =D9+E9+F9-K9+CB9+CF9+H9+J9+N9+P9+Q9+S9+T9+V9+W9+X9+Y9+AA9+AB9 -> 4969871 | AG9: =AF9+BX9-S9+R9+Z9 -> 4969871 | AH9: =IF(Weightings!G6>0,Weightings!G6,'Preliminary SO66'!AB3) -> 5193101 | AI9: 4969871 | AJ9: =MIN(AG9,AH9) -> 4969871 | AK9: 5571673 | AL9: ='2017legmax.xls'!BM6 -> 0.3 | AM9: =AK9*AL9 -> 1671502 | AN9: 1671502 | AO9: =MIN(AM9,AN9) -> 1671502 | AQ9: 4356561 | AR9: 9 | AS9: =AR9*$AS$6 -> 34668 | AT9: 0 | AU9: =AT9*$AU$6 -> 0 | AV9: 0 | AW9: =AV9*$AW$6 -> 0 | AX9: 0 | AY9: =AX9*$AY$6 -> 0 | AZ9: =AU9+AW9+AY9 -> 0 | BA9: =SUM(AQ9-AS9-AZ9)*$BA$6 -> 17288 | BB9: 34.9 | BC9: =BB9*$BC$6 -> 134435 | BD9: =AQ9-AS9-AZ9-BA9-BC9 -> 4170170 | BE9: ='2017legmax.xls'!F6 -> 626.7 | BF9: ='2017legmax.xls'!I6 -> 619 | BG9: ='2017legmax.xls'!K6 -> 622.5 | BH9: =MAX(BG9,BF9, AVERAGE(BE9,BF9,BG9)) -> 622.7 | BI9: ='2017legmax.xls'!O6 -> 3.5 | BJ9: =BH9+BI9 -> 626.2 | BK9: =IF(ISNA(VLOOKUP($CO9,'Audit Values'!$A$2:$AF$318,2,FALSE)),'Preliminary SO66'!T3,VLOOKUP($CO9,'Audit Values'!$A$2:$AF$318,20,FALSE)) -> 0 | BL9: =BK9*$BL$6 -> 0 | BM9: =IF(ISNA(VLOOKUP($CO9,'Audit Values'!$A$2:$AF$318,2,FALSE)),'Preliminary SO66'!U3,VLOOKUP($CO9,'Audit Values'!$A$2:$AF$318,21,FALSE)) -> 0 | BN9: =BM9*$BN$6 -> 0 | BO9: 0 | BP9: =BO9*$BP$6 -> 0 | BQ9: =BL9+BN9+BP9 -> 0 | BR9: ='2017legmax.xls'!AH6 -> 0 | BS9: =BR9*$BS$6 -> 0 | BT9: 0 | BU9: ='2017legmax.xls'!CJ6 -> 0 | BV9: 0 | BW9: ='2017legmax.xls'!CI6 -> 0 | BX9: =MIN(BV9,BW9) -> 0 | BY9: 0 | BZ9: 0 | CA9: 0 | CB9: =IF(CA9>MAX(BY9,BZ9), MAX(BY9,BZ9),CA9) -> 0 | CC9: 0 | CD9: 0 | CE9: 0 | CF9: =IF(CE9>MAX(CC9,CD9),MAX(CC9,CD9),CE9) -> 0 | CG9: =X9 -> 0 | CH9: 0 | CI9: 0 | CJ9: 0 | CK9: 0 | CO9: D0102
A10: 103 | B10: Cheyenne | C10: Cheylin | D10: 1230408 | E10: 0 | F10: 0 | G10: 0 | H10: 0 | I10: 133.5 | J10: 0 | K10: 0 | L10: =Weightings!K7 -> 0 | M10: 0 | N10: 0 | O10: 1230408 | P10: 0 | Q10: 122525 | R10: 74192 | S10: 74192 | U10: 1427125 | V10: 0 | W10: 11954 | X10: 0 | Y10: 0 | Z10: 0 | AA10: 0 | AB10: 0 | AC10: ='2017legmax.xls'!AV7 -> 12 | AD10: ='2017legmax.xls'!AW7 -> A | AE10: ='2017legmax.xls'!AX7 ->  | AF10: 1439079 | AG10: 1439079 | AH10: =IF(Weightings!G7>0,Weightings!G7,'Preliminary SO66'!AB4) -> 1513838 | AI10: 1439079 | AJ10: 1439079 | AK10: 1733468 | AL10: ='2017legmax.xls'!BM7 -> 0.3 | AM10: 520040 | AN10: 520040 | AO10: 520040 | AQ10: 1235349 | AR10: 0 | AS10: 0 | AT10: 0 | AU10: 0 | AV10: 0 | AW10: 0 | AX10: 0 | AY10: 0 | AZ10: 0 | BA10: 4941 | BB10: 0 | BC10: 0 | BD10: 1230408 | BE10: ='2017legmax.xls'!F7 -> 137 | BF10: ='2017legmax.xls'!I7 -> 133.5 | BG10: ='2017legmax.xls'!K7 -> 122.5 | BH10: 133.5 | BI10: ='2017legmax.xls'!O7 -> 0 | BJ10: 133.5 | BK10: =IF(ISNA(VLOOKUP($CO10,'Audit Values'!$A$2:$AF$318,2,FALSE)),'Preliminary SO66'!T4,VLOOKUP($CO10,'Audit Values'!$A$2:$AF$318,20,FALSE)) -> 0 | BL10: 0 | BM10: =IF(ISNA(VLOOKUP($CO10,'Audit Values'!$A$2:$AF$318,2,FALSE)),'Preliminary SO66'!U4,VLOOKUP($CO10,'Audit Values'!$A$2:$AF$318,21,FALSE)) -> 0 | BN10: 0 | BO10: 0 | BP10: 0 | BQ10: 0 | BR10: ='2017legmax.xls'!AH7 -> 0 | BS10: 0 | BT10: 0 | BU10: ='2017legmax.xls'!CJ7 -> 0 | BV10: 0 | BW10: ='2017legmax.xls'!CI7 -> 0 | BX10: 0 | BY10: 0 | BZ10: 0 | CA10: 0 | CB10: 0 | CC10: 0 | CD10: 0 | CE10: 0 | CF10: 0 | CG10: 0 | CH10: 0 | CI10: 0 | CJ10: 0 | CK10: 0 | CO10: D0103
A11: 105 | B11: Rawlins | C11: Rawlins County | D11: 2259170 | E11: 0 | F11: 0 | G11: 0 | H11: 0 | I11: 333.4 | J11: 0 | K11: 0 | L11: =Weightings!K8 -> 0 | M11: 0 | N11: 0 | O11: 2259170 | P11: 0 | Q11: 275568 | R11: 177548 | S11: 177548 | U11: 2712286 | V11: 0 | W11: 8029 | X11: 0 | Y11: 0 | Z11: 0 | AA11: 0 | AB11: 398 | AC11: ='2017legmax.xls'!AV8 -> 3 | AD11: ='2017legmax.xls'!AW8 -> A | AE11: ='2017legmax.xls'!AX8 ->  | AF11: 2720713 | AG11: 2720713 | AH11: =IF(Weightings!G8>0,Weightings!G8,'Preliminary SO66'!AB5) -> 2799576 | AI11: 2720713 | AJ11: 2720713 | AK11: 3077442 | AL11: ='2017legmax.xls'!BM8 -> 0.3 | AM11: 923233 | AN11: 923233 | AO11: 923233 | AQ11: =2233071+35172 -> 2268243 | AR11: 0 | AS11: 0 | AT11: 0 | AU11: 0 | AV11: 0 | AW11: 0 | AX11: 0 | AY11: 0 | AZ11: 0 | BA11: 9073 | BB11: 0 | BC11: 0 | BD11: 2259170 | BE11: ='2017legmax.xls'!F8 -> 323.5 | BF11: ='2017legmax.xls'!I8 -> 333.4 | BG11: ='2017legmax.xls'!K8 -> 320.5 | BH11: 333.4 | BI11: ='2017legmax.xls'!O8 -> 0 | BJ11: 333.4 | BK11: =IF(ISNA(VLOOKUP($CO11,'Audit Values'!$A$2:$AF$318,2,FALSE)),'Preliminary SO66'!T5,VLOOKUP($CO11,'Audit Values'!$A$2:$AF$318,20,FALSE)) -> 0 | BL11: 0 | BM11: =IF(ISNA(VLOOKUP($CO11,'Audit Values'!$A$2:$AF$318,2,FALSE)),'Preliminary SO66'!U5,VLOOKUP($CO11,'Audit Values'!$A$2:$AF$318,21,FALSE)) -> 0 | BN11: 0 | BO11: 0 | BP11: 0 | BQ11: 0 | BR11: ='2017legmax.xls'!AH8 -> 0 | BS11: 0 | BT11: 0 | BU11: ='2017legmax.xls'!CJ8 -> 0 | BV11: 0 | BW11: ='2017legmax.xls'!CI8 -> 0 | BX11: 0 | BY11: 0 | BZ11: 0 | CA11: 0 | CB11: 0 | CC11: 0 | CD11: 0 | CE11: 0 | CF11: 0 | CG11: 0 | CH11: 0 | CI11: 0 | CJ11: 0 | CK11: 0 | CO11: D0105
A12: 106 | B12: Ness | C12: Western Plains | D12: 1176530 | E12: 0 | F12: 0 | G12: 0 | H12: 0 | I12: 107.4 | J12: 0 | K12: 8209 | L12: =Weightings!K9 -> 0 | M12: 0 | N12: 0 | O12: 1168321 | P12: 0 | Q12: 84954 | R12: 85167 | S12: 85167 | U12: 1338442 | V12: 11 | W12: 23604 | X12: 0 | Y12: 0 | Z12: 0 | AA12: 10043 | AB12: 2910 | AC12: ='2017legmax.xls'!AV9 -> 12 | AD12: ='2017legmax.xls'!AW9 -> A | AE12: ='2017legmax.xls'!AX9 ->  | AF12: 1375010 | AG12: 1375010 | AH12: =IF(Weightings!G9>0,Weightings!G9,'Preliminary SO66'!AB6) -> 1485997 | AI12: 1375010 | AJ12: 1375010 | AK12: 1613735 | AL12: ='2017legmax.xls'!BM9 -> 0.3 | AM12: 484121 | AN12: 484121 | AO12: 484121 | AQ12: 1181255 | AR12: 0 | AS12: 0 | AT12: 0 | AU12: 0 | AV12: 0 | AW12: 0 | AX12: 0 | AY12: 0 | AZ12: 0 | BA12: 4725 | BB12: 0 | BC12: 0 | BD12: 1176530 | BE12: ='2017legmax.xls'!F9 -> 118 | BF12: ='2017legmax.xls'!I9 -> 104 | BG12: ='2017legmax.xls'!K9 -> 100.3 | BH12: 107.4 | BI12: ='2017legmax.xls'!O9 -> 0 | BJ12: 107.4 | BK12: =IF(ISNA(VLOOKUP($CO12,'Audit Values'!$A$2:$AF$318,2,FALSE)),'Preliminary SO66'!T6,VLOOKUP($CO12,'Audit Values'!$A$2:$AF$318,20,FALSE)) -> 0 | BL12: 0 | BM12: =IF(ISNA(VLOOKUP($CO12,'Audit Values'!$A$2:$AF$318,2,FALSE)),'Preliminary SO66'!U6,VLOOKUP($CO12,'Audit Values'!$A$2:$AF$318,21,FALSE)) -> 0 | BN12: 0 | BO12: 0 | BP12: 0 | BQ12: 0 | BR12: ='2017legmax.xls'!AH9 -> 0 | BS12: 0 | BT12: 0 | BU12: ='2017legmax.xls'!CJ9 -> 0 | BV12: 0 | BW12: ='2017legmax.xls'!CI9 -> 0 | BX12: 0 | BY12: 0 | BZ12: 0 | CA12: 0 | CB12: 0 | CC12: 0 | CD12: 0 | CE12: 0 | CF12: 0 | CG12: 0 | CH12: 0 | CI12: 0 | CJ12: 0 | CK12: 0 | CO12: D0106
A13: 107 | B13: Jewell | C13: Rock Hills | D13: 2165516 | E13: 0 | F13: 0 | G13: 0 | H13: 13257 | I13: 289 | J13: 0 | K13: 0 | L13: =Weightings!K10 -> 0 | M13: 0 | N13: 0 | O13: 2178773 | P13: 0 | Q13: 329559 | R13: 173221 | S13: 173221 | U13: 2681553 | V13: 1845 | W13: 0 | X13: 0 | Y13: 0 | Z13: 0 | AA13: 497 | AB13: 21150 | AC13: ='2017legmax.xls'!AV10 -> 12 | AD13: ='2017legmax.xls'!AW10 -> A | AE13: ='2017legmax.xls'!AX10 ->  | AF13: 2705045 | AG13: 2705045 | AH13: =IF(Weightings!G10>0,Weightings!G10,'Preliminary SO66'!AB7) -> 2901404 | AI13: 2705045 | AJ13: 2705045 | AK13: 2941701 | AL13: ='2017legmax.xls'!BM10 -> 0.238 | AM13: 700125 | AN13: 700125 | AO13: 700125 | AQ13: 2174213 | AR13: 0 | AS13: 0 | AT13: 0 | AU13: 0 | AV13: 0 | AW13: 0 | AX13: 0 | AY13: 0 | AZ13: 0 | BA13: 8697 | BB13: 0 | BC13: 0 | BD13: 2165516 | BE13: ='2017legmax.xls'!F10 -> 274.5 | BF13: ='2017legmax.xls'!I10 -> 269.5 | BG13: ='2017legmax.xls'!K10 -> 282.5 | BH13: 282.5 | BI13: ='2017legmax.xls'!O10 -> 6.5 | BJ13: 289 | BK13: =IF(ISNA(VLOOKUP($CO13,'Audit Values'!$A$2:$AF$318,2,FALSE)),'Preliminary SO66'!T7,VLOOKUP($CO13,'Audit Values'!$A$2:$AF$318,20,FALSE)) -> 0 | BL13: 0 | BM13: =IF(ISNA(VLOOKUP($CO13,'Audit Values'!$A$2:$AF$318,2,FALSE)),'Preliminary SO66'!U7,VLOOKUP($CO13,'Audit Values'!$A$2:$AF$318,21,FALSE)) -> 0 | BN13: 0 | BO13: 0 | BP13: 0 | BQ13: 0 | BR13: ='2017legmax.xls'!AH10 -> 0 | BS13: 0 | BT13: 0 | BU13: ='2017legmax.xls'!CJ10 -> 0 | BV13: 0 | BW13: ='2017legmax.xls'!CI10 -> 0 | BX13: 0 | BY13: 0 | BZ13: 0 | CA13: 0 | CB13: 0 | CC13: 0 | CD13: 0 | CE13: 0 | CF13: 0 | CG13: 0 | CH13: =13256+1 -> 13257 | CI13: 0 | CJ13: 0 | CK13: 0 | CO13: D0107
A14: 108 | B14: Washington | C14: Washington Co. Schools | D14: 2399315 | E14: 0 | F14: 0 | G14: 0 | H14: 0 | I14: 337 | J14: 0 | K14: 0 | L14: =Weightings!K11 -> 0 | M14: 0 | N14: 0 | O14: 2399315 | P14: 0 | Q14: 318923 | R14: 146917 | S14: 146917 | U14: 2865155 | V14: 412 | W14: 0 | X14: 0 | Y14: 0 | Z14: 0 | AA14: 33300 | AB14: 6035 | AC14: ='2017legmax.xls'!AV11 -> 4 | AD14: ='2017legmax.xls'!AW11 -> A | AE14: ='2017legmax.xls'!AX11 ->  | AF14: 2904902 | AG14: 2904902 | AH14: =IF(Weightings!G11>0,Weightings!G11,'Preliminary SO66'!AB8) -> 3055371 | AI14: 2904902 | AJ14: 2904902 | AK14: 3356377 | AL14: ='2017legmax.xls'!BM11 -> 0.3 | AM14: 1006913 | AN14: 1006913 | AO14: 1006913 | AQ14: 2413188 | AR14: 1.1 | AS14: 4237 | AT14: 0 | AU14: 0 | AV14: 0 | AW14: 0 | AX14: 0 | AY14: 0 | AZ14: 0 | BA14: 9636 | BB14: 0 | BC14: 0 | BD14: 2399315 | BE14: ='2017legmax.xls'!F11 -> 343 | BF14: ='2017legmax.xls'!I11 -> 337 | BG14: ='2017legmax.xls'!K11 -> 323 | BH14: 337 | BI14: ='2017legmax.xls'!O11 -> 0 | BJ14: 337 | BK14: =IF(ISNA(VLOOKUP($CO14,'Audit Values'!$A$2:$AF$318,2,FALSE)),'Preliminary SO66'!T8,VLOOKUP($CO14,'Audit Values'!$A$2:$AF$318,20,FALSE)) -> 0 | BL14: 0 | BM14: =IF(ISNA(VLOOKUP($CO14,'Audit Values'!$A$2:$AF$318,2,FALSE)),'Preliminary SO66'!U8,VLOOKUP($CO14,'Audit Values'!$A$2:$AF$318,21,FALSE)) -> 0 | BN14: 0 | BO14: 0 | BP14: 0 | BQ14: 0 | BR14: ='2017legmax.xls'!AH11 -> 0 | BS14: 0 | BT14: 0 | BU14: ='2017legmax.xls'!CJ11 -> 0 | BV14: 0 | BW14: ='2017legmax.xls'!CI11 -> 0 | BX14: 0 | BY14: 0 | BZ14: 0 | CA14: 0 | CB14: 0 | CC14: 0 | CD14: 0 | CE14: 0 | CF14: 0 | CG14: 0 | CH14: 0 | CI14: 0 | CJ14: 0 | CK14: 0 | CO14: D0108
A15: 109 | B15: Republic | C15: Republic County | D15: 3188195 | E15: 5000 | F15: 0 | G15: 0 | H15: 0 | I15: 497.1 | J15: 0 | K15: 0 | L15: =Weightings!K12 -> 0 | M15: 0 | N15: 0 | O15: 3193195 | P15: 0 | Q15: 424499 | R15: 223528 | S15: 223528 | U15: 3841222 | V15: 0 | W15: 0 | X15: 0 | Y15: 0 | Z15: 5000 | AA15: 5220 | AB15: 8300 | AC15: ='2017legmax.xls'!AV12 -> 16 | AD15: ='2017legmax.xls'!AW12 -> A | AE15: ='2017legmax.xls'!AX12 -> R | AF15: 3854742 | AG15: 3859742 | AH15: =IF(Weightings!G12>0,Weightings!G12,'Preliminary SO66'!AB9) -> 4015778 | AI15: 3859742 | AJ15: 3859742 | AK15: 4341960 | AL15: ='2017legmax.xls'!BM12 -> 0.3 | AM15: 1302588 | AN15: 1302588 | AO15: 1302588 | AQ15: 3216407 | AR15: 4 | AS15: 15408 | AT15: 0 | AU15: 0 | AV15: 0 | AW15: 0 | AX15: 0 | AY15: 0 | AZ15: 0 | BA15: 12804 | BB15: 0 | BC15: 0 | BD15: 3188195 | BE15: ='2017legmax.xls'!F12 -> 466.5 | BF15: ='2017legmax.xls'!I12 -> 466 | BG15: ='2017legmax.xls'!K12 -> 497.1 | BH15: 497.1 | BI15: ='2017legmax.xls'!O12 -> 0 | BJ15: 497.1 | BK15: =IF(ISNA(VLOOKUP($CO15,'Audit Values'!$A$2:$AF$318,2,FALSE)),'Preliminary SO66'!T9,VLOOKUP($CO15,'Audit Values'!$A$2:$AF$318,20,FALSE)) -> 1 | BL15: 5000 | BM15: =IF(ISNA(VLOOKUP($CO15,'Audit Values'!$A$2:$AF$318,2,FALSE)),'Preliminary SO66'!U9,VLOOKUP($CO15,'Audit Values'!$A$2:$AF$318,21,FALSE)) -> 0 | BN15: 0 | BO15: 0 | BP15: 0 | BQ15: 5000 | BR15: ='2017legmax.xls'!AH12 -> 0 | BS15: 0 | BT15: 0 | BU15: ='2017legmax.xls'!CJ12 -> 0 | BV15: 0 | BW15: ='2017legmax.xls'!CI12 -> 0 | BX15: 0 | BY15: 0 | BZ15: 0 | CA15: 0 | CB15: 0 | CC15: 0 | CD15: 0 | CE15: 0 | CF15: 0 | CG15: 0 | CH15: 0 | CI15: 0 | CJ15: 0 | CK15: 0 | CO15: D0109
A16: 110 | B16: Phillips | C16: Thunder Ridge Schools | D16: 1679220 | E16: 0 | F16: 0 | G16: 0 | H16: 186224 | I16: 216.5 | J16: 0 | K16: 0 | L16: =Weightings!K13 -> 0 | M16: 0 | N16: 0 | O16: 1865444 | P16: 0 | Q16: 260586 | R16: 118730 | S16: 118730 | U16: 2244760 | V16: 0 | W16: 0 | X16: 37245 | Y16: 0 | Z16: 0 | AA16: 549 | AB16: 19653 | AC16: ='2017legmax.xls'!AV13 -> 3 | AD16: ='2017legmax.xls'!AW13 -> A | AE16: ='2017legmax.xls'!AX13 ->  | AF16: 2302207 | AG16: 2302207 | AH16: =IF(Weightings!G13>0,Weightings!G13,'Preliminary SO66'!AB10) -> 2349291 | AI16: 2302207 | AJ16: 2302207 | AK16: 2559624 | AL16: ='2017legmax.xls'!BM13 -> 0.3 | AM16: 767887 | AN16: 767887 | AO16: 767887 | AQ16: 1685964 | AR16: 0 | AS16: 0 | AT16: 0 | AU16: 0 | AV16: 0 | AW16: 0 | AX16: 0 | AY16: 0 | AZ16: 0 | BA16: 6744 | BB16: 0 | BC16: 0 | BD16: 1679220 | BE16: ='2017legmax.xls'!F13 -> 217 | BF16: ='2017legmax.xls'!I13 -> 214 | BG16: ='2017legmax.xls'!K13 -> 205 | BH16: 214 | BI16: ='2017legmax.xls'!O13 -> 2.5 | BJ16: 216.5 | BK16: =IF(ISNA(VLOOKUP($CO16,'Audit Values'!$A$2:$AF$318,2,FALSE)),'Preliminary SO66'!T10,VLOOKUP($CO16,'Audit Values'!$A$2:$AF$318,20,FALSE)) -> 0 | BL16: 0 | BM16: =IF(ISNA(VLOOKUP($CO16,'Audit Values'!$A$2:$AF$318,2,FALSE)),'Preliminary SO66'!U10,VLOOKUP($CO16,'Audit Values'!$A$2:$AF$318,21,FALSE)) -> 0 | BN16: 0 | BO16: 0 | BP16: 0 | BQ16: 0 | BR16: ='2017legmax.xls'!AH13 -> 0 | BS16: 0 | BT16: 0 | BU16: ='2017legmax.xls'!CJ13 -> 0 | BV16: 0 | BW16: ='2017legmax.xls'!CI13 -> 0 | BX16: 0 | BY16: 0 | BZ16: 0 | CA16: 0 | CB16: 0 | CC16: 0 | CD16: 0 | CE16: 0 | CF16: 0 | CG16: 37245 | CH16: 223469 | CI16: 0 | CJ16: 0 | CK16: 0 | CO16: D0110
A17: 111 | B17: Doniphan | C17: Doniphan West Schools | D17: 2390377 | E17: 0 | F17: 0 | G17: 0 | H17: 0 | I17: 315 | J17: 0 | K17: 0 | L17: =Weightings!K14 -> 0 | M17: 0 | N17: 0 | O17: 2390377 | P17: 0 | Q17: 265802 | R17: 194715 | S17: 194715 | U17: 2850894 | V17: 0 | W17: 0 | X17: 0 | Y17: 0 | Z17: 0 | AA17: 0 | AB17: 0 | AC17: ='2017legmax.xls'!AV14 -> 12 | AD17: ='2017legmax.xls'!AW14 -> A | AE17: ='2017legmax.xls'!AX14 ->  | AF17: 2850894 | AG17: 2850894 | AH17: =IF(Weightings!G14>0,Weightings!G14,'Preliminary SO66'!AB11) -> 3075499 | AI17: 2850894 | AJ17: 2850894 | AK17: 3352491 | AL17: ='2017legmax.xls'!BM14 -> 0.3 | AM17: 1005747 | AN17: 1005747 | AO17: 1005747 | AQ17: 2399977 | AR17: 0 | AS17: 0 | AT17: 0 | AU17: 0 | AV17: 0 | AW17: 0 | AX17: 0 | AY17: 0 | AZ17: 0 | BA17: 9600 | BB17: 0 | BC17: 0 | BD17: 2390377 | BE17: ='2017legmax.xls'!F14 -> 313 | BF17: ='2017legmax.xls'!I14 -> 309 | BG17: ='2017legmax.xls'!K14 -> 304.5 | BH17: 309 | BI17: ='2017legmax.xls'!O14 -> 6 | BJ17: 315 | BK17: =IF(ISNA(VLOOKUP($CO17,'Audit Values'!$A$2:$AF$318,2,FALSE)),'Preliminary SO66'!T11,VLOOKUP($CO17,'Audit Values'!$A$2:$AF$318,20,FALSE)) -> 0 | BL17: 0 | BM17: =IF(ISNA(VLOOKUP($CO17,'Audit Values'!$A$2:$AF$318,2,FALSE)),'Preliminary SO66'!U11,VLOOKUP($CO17,'Audit Values'!$A$2:$AF$318,21,FALSE)) -> 0 | BN17: 0 | BO17: 0 | BP17: 0 | BQ17: 0 | BR17: ='2017legmax.xls'!AH14 -> 0 | BS17: 0 | BT17: 0 | BU17: ='2017legmax.xls'!CJ14 -> 0 | BV17: 0 | BW17: ='2017legmax.xls'!CI14 -> 0 | BX17: 0 | BY17: 0 | BZ17: 0 | CA17: 0 | CB17: 0 | CC17: 0 | CD17: 0 | CE17: 0 | CF17: 0 | CG17: 0 | CH17: 0 | CI17: 0 | CJ17: 0 | CK17: 0 | CO17: D0111
A18: 112 | B18: Ellsworth | C18: Central Plains | D18: 3099666 | E18: 163269 | F18: 0 | G18: 0 | H18: 0 | I18: 474.9 | J18: 0 | K18: 0 | L18: =Weightings!K15 -> -15628 | M18: 0 | N18: -15628 | O18: 3247307 | P18: 0 | Q18: 375620 | R18: 303583 | S18: 303583 | U18: 3926510 | V18: 0 | W18: 11954 | X18: 0 | Y18: 0 | Z18: 18000 | AA18: 0 | AB18: 11039 | AC18: ='2017legmax.xls'!AV15 -> 12 | AD18: ='2017legmax.xls'!AW15 -> A | AE18: ='2017legmax.xls'!AX15 ->  | AF18: 3949503 | AG18: 3967503 | AH18: =IF(Weightings!G15>0,Weightings!G15,'Preliminary SO66'!AB12) -> 4255982 | AI18: 3967503 | AJ18: 3967503 | AK18: 4349367 | AL18: ='2017legmax.xls'!BM15 -> 0.3 | AM18: 1304810 | AN18: 1304810 | AO18: 1304810 | AQ18: 3341308 | AR18: 59.5 | AS18: 229194 | AT18: 0 | AU18: 0 | AV18: 0 | AW18: 0 | AX18: 0 | AY18: 0 | AZ18: 0 | BA18: 12448 | BB18: 0 | BC18: 0 | BD18: 3099666 | BE18: ='2017legmax.xls'!F15 -> 430 | BF18: ='2017legmax.xls'!I15 -> 443.5 | BG18: ='2017legmax.xls'!K15 -> 468.9 | BH18: 468.9 | BI18: ='2017legmax.xls'!O15 -> 6 | BJ18: 474.9 | BK18: =IF(ISNA(VLOOKUP($CO18,'Audit Values'!$A$2:$AF$318,2,FALSE)),'Preliminary SO66'!T12,VLOOKUP($CO18,'Audit Values'!$A$2:$AF$318,20,FALSE)) -> 25 | BL18: 125000 | BM18: =IF(ISNA(VLOOKUP($CO18,'Audit Values'!$A$2:$AF$318,2,FALSE)),'Preliminary SO66'!U12,VLOOKUP($CO18,'Audit Values'!$A$2:$AF$318,21,FALSE)) -> 4.4 | BN18: 7480 | BO18: 33 | BP18: 30789 | BQ18: 163269 | BR18: ='2017legmax.xls'!AH15 -> 0 | BS18: 0 | BT18: 0 | BU18: ='2017legmax.xls'!CJ15 -> 0 | BV18: 0 | BW18: ='2017legmax.xls'!CI15 -> 0 | BX18: 0 | BY18: 0 | BZ18: 0 | CA18: 0 | CB18: 0 | CC18: 0 | CD18: 0 | CE18: 0 | CF18: 0 | CG18: 0 | CH18: 0 | CI18: 0 | CJ18: 0 | CK18: 0 | CO18: D0112
A19: 113 | B19: Nemaha | C19: Prairie Hills | D19: 6146381 | E19: 0 | F19: 0 | G19: 0 | H19: 0 | I19: 1109.7 | J19: 0 | K19: 0 | L19: =Weightings!K16 -> 0 | M19: 0 | N19: 0 | O19: 6146381 | P19: 0 | Q19: 854906 | R19: 539117 | S19: 539117 | U19: 7540404 | V19: 3462 | W19: 1226 | X19: 0 | Y19: 0 | Z19: 0 | AA19: 0 | AB19: 19677 | AC19: ='2017legmax.xls'!AV16 -> 4 | AD19: ='2017legmax.xls'!AW16 -> A | AE19: ='2017legmax.xls'!AX16 ->  | AF19: 7564769 | AG19: 7564769 | AH19: =IF(Weightings!G16>0,Weightings!G16,'Preliminary SO66'!AB13) -> 7826772 | AI19: 7564769 | AJ19: 7564769 | AK19: 8296018 | AL19: ='2017legmax.xls'!BM16 -> 0.3 | AM19: 2488805 | AN19: 2488805 | AO19: 2488805 | AQ19: 6171065 | AR19: 0 | AS19: 0 | AT19: 0 | AU19: 0 | AV19: 0 | AW19: 0 | AX19: 0 | AY19: 0 | AZ19: 0 | BA19: 24684 | BB19: 0 | BC19: 0 | BD19: 6146381 | BE19: ='2017legmax.xls'!F16 -> 1078.9 | BF19: ='2017legmax.xls'!I16 -> 1099.2 | BG19: ='2017legmax.xls'!K16 -> 1053.3 | BH19: 1099.2 | BI19: ='2017legmax.xls'!O16 -> 10.5 | BJ19: 1109.7 | BK19: =IF(ISNA(VLOOKUP($CO19,'Audit Values'!$A$2:$AF$318,2,FALSE)),'Preliminary SO66'!T13,VLOOKUP($CO19,'Audit Values'!$A$2:$AF$318,20,FALSE)) -> 0 | BL19: 0 | BM19: =IF(ISNA(VLOOKUP($CO19,'Audit Values'!$A$2:$AF$318,2,FALSE)),'Preliminary SO66'!U13,VLOOKUP($CO19,'Audit Values'!$A$2:$AF$318,21,FALSE)) -> 0 | BN19: 0 | BO19: 0 | BP19: 0 | BQ19: 0 | BR19: ='2017legmax.xls'!AH16 -> 0 | BS19: 0 | BT19: 0 | BU19: ='2017legmax.xls'!CJ16 -> 0 | BV19: 0 | BW19: ='2017legmax.xls'!CI16 -> 0 | BX19: 0 | BY19: 0 | BZ19: 0 | CA19: 0 | CB19: 0 | CC19: 0 | CD19: 0 | CE19: 0 | CF19: 0 | CG19: 0 | CH19: 0 | CI19: 0 | CJ19: 0 | CK19: 0 | CO19: D0113
A20: 114 | B20: Doniphan | C20: Riverside | D20: 4423510 | E20: 49548 | F20: 0 | G20: 0 | H20: 0 | I20: 608.2 | J20: 0 | K20: 80 | L20: =Weightings!K17 -> -1866 | M20: 0 | N20: -1866 | O20: 4471112 | P20: 0 | Q20: 593030 | R20: 332995 | S20: 332995 | U20: 5397137 | V20: 0 | W20: 0 | X20: 0 | Y20: 0 | Z20: 0 | AA20: 0 | AB20: 0 | AC20: ='2017legmax.xls'!AV17 -> 12 | AD20: ='2017legmax.xls'!AW17 -> A | AE20: ='2017legmax.xls'!AX17 ->  | AF20: 5397137 | AG20: 5397137 | AH20: =IF(Weightings!G17>0,Weightings!G17,'Preliminary SO66'!AB14) -> 5879639 | AI20: 5397137 | AJ20: 5397137 | AK20: 5823772 | AL20: ='2017legmax.xls'!BM17 -> 0.3 | AM20: 1747132 | AN20: 1747132 | AO20: 1747132 | AQ20: 4441275 | AR20: 0 | AS20: 0 | AT20: 0 | AU20: 0 | AV20: 0 | AW20: 0 | AX20: 0 | AY20: 0 | AZ20: 0 | BA20: 17765 | BB20: 0 | BC20: 0 | BD20: 4423510 | BE20: ='2017legmax.xls'!F17 -> 635.6 | BF20: ='2017legmax.xls'!I17 -> 594.8 | BG20: ='2017legmax.xls'!K17 -> 570.2 | BH20: 600.2 | BI20: ='2017legmax.xls'!O17 -> 8 | BJ20: 608.2 | BK20: =IF(ISNA(VLOOKUP($CO20,'Audit Values'!$A$2:$AF$318,2,FALSE)),'Preliminary SO66'!T14,VLOOKUP($CO20,'Audit Values'!$A$2:$AF$318,20,FALSE)) -> 8 | BL20: 40000 | BM20: =IF(ISNA(VLOOKUP($CO20,'Audit Values'!$A$2:$AF$318,2,FALSE)),'Preliminary SO66'!U14,VLOOKUP($CO20,'Audit Values'!$A$2:$AF$318,21,FALSE)) -> 1.5 | BN20: 2550 | BO20: 7.5 | BP20: 6998 | BQ20: 49548 | BR20: ='2017legmax.xls'!AH17 -> 0 | BS20: 0 | BT20: 0 | BU20: ='2017legmax.xls'!CJ17 -> 0 | BV20: 0 | BW20: ='2017legmax.xls'!CI17 -> 0 | BX20: 0 | BY20: 0 | BZ20: 0 | CA20: 0 | CB20: 0 | CC20: 0 | CD20: 0 | CE20: 0 | CF20: 0 | CG20: 0 | CH20: 0 | CI20: 0 | CJ20: 0 | CK20: 0 | CO20: D0114
A21: 115 | B21: Nemaha | C21: Nemaha Central | D21: 3521209 | E21: 0 | F21: 0 | G21: 0 | H21: 0 | I21: 574.3 | J21: 0 | K21: 0 | L21: =Weightings!K18 -> 0 | M21: 0 | N21: 0 | O21: 3521209 | P21: 0 | Q21: 385432 | R21: 358738 | S21: 358738 | U21: 4265379 | V21: 0 | W21: 0 | X21: 0 | Y21: 0 | Z21: 20000 | AA21: 5764 | AB21: 7080 | AC21: ='2017legmax.xls'!AV18 -> 12 | AD21: ='2017legmax.xls'!AW18 -> A | AE21: ='2017legmax.xls'!AX18 ->  | AF21: 4278223 | AG21: 4298223 | AH21: =IF(Weightings!G18>0,Weightings!G18,'Preliminary SO66'!AB15) -> 4665545 | AI21: 4298223 | AJ21: 4298223 | AK21: 4693665 | AL21: ='2017legmax.xls'!BM18 -> 0.3 | AM21: 1408100 | AN21: 1170000 | AO21: 1170000 | AQ21: 3535350 | AR21: 0 | AS21: 0 | AT21: 0 | AU21: 0 | AV21: 0 | AW21: 0 | AX21: 0 | AY21: 0 | AZ21: 0 | BA21: 14141 | BB21: 0 | BC21: 0 | BD21: 3521209 | BE21: ='2017legmax.xls'!F18 -> 537.9 | BF21: ='2017legmax.xls'!I18 -> 565.3 | BG21: ='2017legmax.xls'!K18 -> 549.8 | BH21: 565.3 | BI21: ='2017legmax.xls'!O18 -> 9 | BJ21: 574.3 | BK21: =IF(ISNA(VLOOKUP($CO21,'Audit Values'!$A$2:$AF$318,2,FALSE)),'Preliminary SO66'!T15,VLOOKUP($CO21,'Audit Values'!$A$2:$AF$318,20,FALSE)) -> 0 | BL21: 0 | BM21: =IF(ISNA(VLOOKUP($CO21,'Audit Values'!$A$2:$AF$318,2,FALSE)),'Preliminary SO66'!U15,VLOOKUP($CO21,'Audit Values'!$A$2:$AF$318,21,FALSE)) -> 0 | BN21: 0 | BO21: 0 | BP21: 0 | BQ21: 0 | BR21: ='2017legmax.xls'!AH18 -> 0 | BS21: 0 | BT21: 0 | BU21: ='2017legmax.xls'!CJ18 -> 0 | BV21: 0 | BW21: ='2017legmax.xls'!CI18 -> 0 | BX21: 0 | BY21: 0 | BZ21: 0 | CA21: 0 | CB21: 0 | CC21: 0 | CD21: 0 | CE21: 0 | CF21: 0 | CG21: 0 | CH21: 0 | CI21: 0 | CJ21: 0 | CK21: 0 | CO21: D0115
A22: 200 | B22: Greeley | C22: Greeley County Schools | D22: 1942101 | E22: 0 | F22: 0 | G22: 0 | H22: 0 | I22: 244 | J22: 0 | K22: 9 | L22: =Weightings!K19 -> 0 | M22: 0 | N22: 0 | O22: 1942092 | P22: 0 | Q22: 143327 | R22: 142427 | S22: 142427 | U22: 2227846 | V22: 12 | W22: 6396 | X22: 0 | Y22: 0 | Z22: 0 | AA22: 0 | AB22: 2390 | AC22: ='2017legmax.xls'!AV19 -> 12 | AD22: ='2017legmax.xls'!AW19 -> A | AE22: ='2017legmax.xls'!AX19 ->  | AF22: 2236644 | AG22: 2236644 | AH22: =IF(Weightings!G19>0,Weightings!G19,'Preliminary SO66'!AB16) -> 2307474 | AI22: 2236644 | AJ22: 2236644 | AK22: 2457547 | AL22: ='2017legmax.xls'!BM19 -> 0.3 | AM22: 737264 | AN22: 737264 | AO22: 737264 | AQ22: 1949901 | AR22: 0 | AS22: 0 | AT22: 0 | AU22: 0 | AV22: 0 | AW22: 0 | AX22: 0 | AY22: 0 | AZ22: 0 | BA22: 7800 | BB22: 0 | BC22: 0 | BD22: 1942101 | BE22: ='2017legmax.xls'!F19 -> 241.4 | BF22: ='2017legmax.xls'!I19 -> 241.5 | BG22: ='2017legmax.xls'!K19 -> 234.8 | BH22: 241.5 | BI22: ='2017legmax.xls'!O19 -> 2.5 | BJ22: 244 | BK22: =IF(ISNA(VLOOKUP($CO22,'Audit Values'!$A$2:$AF$318,2,FALSE)),'Preliminary SO66'!T16,VLOOKUP($CO22,'Audit Values'!$A$2:$AF$318,20,FALSE)) -> 0 | BL22: 0 | BM22: =IF(ISNA(VLOOKUP($CO22,'Audit Values'!$A$2:$AF$318,2,FALSE)),'Preliminary SO66'!U16,VLOOKUP($CO22,'Audit Values'!$A$2:$AF$318,21,FALSE)) -> 0 | BN22: 0 | BO22: 0 | BP22: 0 | BQ22: 0 | BR22: ='2017legmax.xls'!AH19 -> 0 | BS22: 0 | BT22: 0 | BU22: ='2017legmax.xls'!CJ19 -> 0 | BV22: 0 | BW22: ='2017legmax.xls'!CI19 -> 0 | BX22: 0 | BY22: 0 | BZ22: 0 | CA22: 0 | CB22: 0 | CC22: 0 | CD22: 0 | CE22: 0 | CF22: 0 | CG22: 0 | CH22: 0 | CI22: 0 | CJ22: 0 | CK22: 0 | CO22: D0200
A23: 202 | B23: Wyandotte | C23: Turner-Kansas City | D23: 22966575 | E23: 139950 | F23: 475337 | G23: 0 | H23: 0 | I23: 3952.7 | J23: 0 | K23: 0 | L23: =Weightings!K20 -> -5365 | M23: 0 | N23: -5365 | O23: 23576497 | P23: 0 | Q23: 2830707 | R23: 2092370 | S23: 2092370 | U23: 28499574 | V23: 30189 | W23: 0 | X23: 0 | Y23: 0 | Z23: 0 | AA23: 0 | AB23: 133297 | AC23: ='2017legmax.xls'!AV20 -> 11 | AD23: ='2017legmax.xls'!AW20 -> A | AE23: ='2017legmax.xls'!AX20 ->  | AF23: 28663060 | AG23: 28663060 | AH23: =IF(Weightings!G20>0,Weightings!G20,'Preliminary SO66'!AB17) -> 30021387 | AI23: 28663060 | AJ23: 28663060 | AK23: 30178043 | AL23: ='2017legmax.xls'!BM20 -> 0.3 | AM23: 9053413 | AN23: 9053413 | AO23: 9053413 | AQ23: 23058810 | AR23: 0 | AS23: 0 | AT23: 0 | AU23: 0 | AV23: 0 | AW23: 0 | AX23: 0 | AY23: 0 | AZ23: 0 | BA23: 92235 | BB23: 0 | BC23: 0 | BD23: 22966575 | BE23: ='2017legmax.xls'!F20 -> 3888.6 | BF23: ='2017legmax.xls'!I20 -> 3871.2 | BG23: ='2017legmax.xls'!K20 -> 3764.4 | BH23: 3871.2 | BI23: ='2017legmax.xls'!O20 -> 81.5 | BJ23: 3952.7 | BK23: =IF(ISNA(VLOOKUP($CO23,'Audit Values'!$A$2:$AF$318,2,FALSE)),'Preliminary SO66'!T17,VLOOKUP($CO23,'Audit Values'!$A$2:$AF$318,20,FALSE)) -> 0 | BL23: 0 | BM23: =IF(ISNA(VLOOKUP($CO23,'Audit Values'!$A$2:$AF$318,2,FALSE)),'Preliminary SO66'!U17,VLOOKUP($CO23,'Audit Values'!$A$2:$AF$318,21,FALSE)) -> 0 | BN23: 0 | BO23: 150 | BP23: 139950 | BQ23: 139950 | BR23: ='2017legmax.xls'!AH20 -> 123.4 | BS23: 475337 | BT23: 0 | BU23: ='2017legmax.xls'!CJ20 -> 0 | BV23: 0 | BW23: ='2017legmax.xls'!CI20 -> 0 | BX23: 0 | BY23: 0 | BZ23: 0 | CA23: 0 | CB23: 0 | CC23: 0 | CD23: 0 | CE23: 0 | CF23: 0 | CG23: 0 | CH23: 0 | CI23: 0 | CJ23: 0 | CK23: 0 | CO23: D0202
A24: 203 | B24: Wyandotte | C24: Piper-Kansas City | D24: 8735772 | E24: 0 | F24: 0 | G24: 0 | H24: 0 | I24: 2075.4 | J24: 0 | K24: 0 | L24: =Weightings!K21 -> -2333 | M24: 0 | N24: -2333 | O24: 8733439 | P24: 0 | Q24: 2314371 | R24: 779825 | S24: 779825 | U24: 11827635 | V24: 0 | W24: 0 | X24: 0 | Y24: 0 | Z24: 0 | AA24: 0 | AB24: 0 | AC24: ='2017legmax.xls'!AV21 -> 10 | AD24: ='2017legmax.xls'!AW21 -> A | AE24: ='2017legmax.xls'!AX21 ->  | AF24: 11827635 | AG24: 11827635 | AH24: =IF(Weightings!G21>0,Weightings!G21,'Preliminary SO66'!AB18) -> 12747250 | AI24: 11827635 | AJ24: 11827635 | AK24: 12019524 | AL24: ='2017legmax.xls'!BM21 -> 0.31 | AM24: 3726052 | AN24: 3726052 | AO24: 3726052 | AQ24: 8787033 | AR24: 4.2 | AS24: 16178 | AT24: 0 | AU24: 0 | AV24: 0 | AW24: 0 | AX24: 0 | AY24: 0 | AZ24: 0 | BA24: 35083 | BB24: 0 | BC24: 0 | BD24: 8735772 | BE24: ='2017legmax.xls'!F21 -> 1889.5 | BF24: ='2017legmax.xls'!I21 -> 1955 | BG24: ='2017legmax.xls'!K21 -> 2071.4 | BH24: 2071.4 | BI24: ='2017legmax.xls'!O21 -> 4 | BJ24: 2075.4 | BK24: =IF(ISNA(VLOOKUP($CO24,'Audit Values'!$A$2:$AF$318,2,FALSE)),'Preliminary SO66'!T18,VLOOKUP($CO24,'Audit Values'!$A$2:$AF$318,20,FALSE)) -> 0 | BL24: 0 | BM24: =IF(ISNA(VLOOKUP($CO24,'Audit Values'!$A$2:$AF$318,2,FALSE)),'Preliminary SO66'!U18,VLOOKUP($CO24,'Audit Values'!$A$2:$AF$318,21,FALSE)) -> 0 | BN24: 0 | BO24: 0 | BP24: 0 | BQ24: 0 | BR24: ='2017legmax.xls'!AH21 -> 0 | BS24: 0 | BT24: 0 | BU24: ='2017legmax.xls'!CJ21 -> 0.0307 | BV24: 363108 | BW24: ='2017legmax.xls'!CI21 -> 0 | BX24: 0 | BY24: 0 | BZ24: 0 | CA24: 0 | CB24: 0 | CC24: 0 | CD24: 0 | CE24: 0 | CF24: 0 | CG24: 0 | CH24: 0 | CI24: 0 | CJ24: 0 | CK24: 0 | CO24: D0203
A25: 204 | B25: Wyandotte | C25: Bonner Springs | D25: 13151164 | E25: 207189 | F25: 0 | G25: 0 | H25: 0 | I25: 2581 | J25: 0 | K25: 0 | L25: =Weightings!K22 -> -4199 | M25: 0 | N25: -4199 | O25: 13354154 | P25: 0 | Q25: 3108721 | R25: 1427810 | S25: 1427810 | U25: 17890685 | V25: 1891 | W25: 0 | X25: 0 | Y25: 0 | Z25: 0 | AA25: 100 | AB25: 9946 | AC25: ='2017legmax.xls'!AV22 -> 18 | AD25: ='2017legmax.xls'!AW22 -> A | AE25: ='2017legmax.xls'!AX22 ->  | AF25: 17902622 | AG25: 17902622 | AH25: =IF(Weightings!G22>0,Weightings!G22,'Preliminary SO66'!AB19) -> 19089013 | AI25: 17902622 | AJ25: 17902622 | AK25: 18087128 | AL25: ='2017legmax.xls'!BM22 -> 0.3 | AM25: 5426138 | AN25: 5426138 | AO25: 5426138 | AQ25: 13203980 | AR25: 0 | AS25: 0 | AT25: 0 | AU25: 0 | AV25: 0 | AW25: 0 | AX25: 0 | AY25: 0 | AZ25: 0 | BA25: 52816 | BB25: 0 | BC25: 0 | BD25: 13151164 | BE25: ='2017legmax.xls'!F22 -> 2507.1 | BF25: ='2017legmax.xls'!I22 -> 2570.5 | BG25: ='2017legmax.xls'!K22 -> 2532.5 | BH25: 2570.5 | BI25: ='2017legmax.xls'!O22 -> 10.5 | BJ25: 2581 | BK25: =IF(ISNA(VLOOKUP($CO25,'Audit Values'!$A$2:$AF$318,2,FALSE)),'Preliminary SO66'!T19,VLOOKUP($CO25,'Audit Values'!$A$2:$AF$318,20,FALSE)) -> 35 | BL25: 175000 | BM25: =IF(ISNA(VLOOKUP($CO25,'Audit Values'!$A$2:$AF$318,2,FALSE)),'Preliminary SO66'!U19,VLOOKUP($CO25,'Audit Values'!$A$2:$AF$318,21,FALSE)) -> 0 | BN25: 0 | BO25: 34.5 | BP25: 32189 | BQ25: 207189 | BR25: ='2017legmax.xls'!AH22 -> 0 | BS25: 0 | BT25: 0 | BU25: ='2017legmax.xls'!CJ22 -> 0 | BV25: 0 | BW25: ='2017legmax.xls'!CI22 -> 0 | BX25: 0 | BY25: 0 | BZ25: 0 | CA25: 0 | CB25: 0 | CC25: 0 | CD25: 0 | CE25: 0 | CF25: 0 | CG25: 0 | CH25: 0 | CI25: 0 | CJ25: 0 | CK25: 0 | CO25: D0204
A26: 205 | B26: Butler | C26: Bluestem | D26: 3591043 | E26: 0 | F26: 0 | G26: 0 | H26: 0 | I26: 489.2 | J26: 0 | K26: 4 | L26: =Weightings!K23 -> -1400 | M26: 0 | N26: -1400 | O26: 3589639 | P26: 0 | Q26: 496512 | R26: 264443 | S26: 264443 | U26: 4350594 | V26: 0 | W26: 1009 | X26: 0 | Y26: 0 | Z26: 0 | AA26: 0 | AB26: 2974 | AC26: ='2017legmax.xls'!AV23 -> 6 | AD26: ='2017legmax.xls'!AW23 -> A | AE26: ='2017legmax.xls'!AX23 ->  | AF26: 4354577 | AG26: 4354577 | AH26: =IF(Weightings!G23>0,Weightings!G23,'Preliminary SO66'!AB20) -> 4646619 | AI26: 4354577 | AJ26: 4354577 | AK26: 4815400 | AL26: ='2017legmax.xls'!BM23 -> 0.3 | AM26: 1444620 | AN26: 1444620 | AO26: 1444620 | AQ26: 3605465 | AR26: 0 | AS26: 0 | AT26: 0 | AU26: 0 | AV26: 0 | AW26: 0 | AX26: 0 | AY26: 0 | AZ26: 0 | BA26: 14422 | BB26: 0 | BC26: 0 | BD26: 3591043 | BE26: ='2017legmax.xls'!F23 -> 507.8 | BF26: ='2017legmax.xls'!I23 -> 486.3 | BG26: ='2017legmax.xls'!K23 -> 473.5 | BH26: 489.2 | BI26: ='2017legmax.xls'!O23 -> 0 | BJ26: 489.2 | BK26: =IF(ISNA(VLOOKUP($CO26,'Audit Values'!$A$2:$AF$318,2,FALSE)),'Preliminary SO66'!T20,VLOOKUP($CO26,'Audit Values'!$A$2:$AF$318,20,FALSE)) -> 0 | BL26: 0 | BM26: =IF(ISNA(VLOOKUP($CO26,'Audit Values'!$A$2:$AF$318,2,FALSE)),'Preliminary SO66'!U20,VLOOKUP($CO26,'Audit Values'!$A$2:$AF$318,21,FALSE)) -> 0 | BN26: 0 | BO26: 0 | BP26: 0 | BQ26: 0 | BR26: ='2017legmax.xls'!AH23 -> 0 | BS26: 0 | BT26: 0 | BU26: ='2017legmax.xls'!CJ23 -> 0 | BV26: 0 | BW26: ='2017legmax.xls'!CI23 -> 0 | BX26: 0 | BY26: 0 | BZ26: 0 | CA26: 0 | CB26: 0 | CC26: 0 | CD26: 0 | CE26: 0 | CF26: 0 | CG26: 0 | CH26: 0 | CI26: 0 | CJ26: 0 | CK26: 0 | CO26: D0205
A27: 206 | B27: Butler | C27: Remington-Whitewater | D27: 3315045 | E27: 17727 | F27: 0 | G27: 0 | H27: 0 | I27: 495.7 | J27: 0 | K27: 0 | L27: =Weightings!K24 -> 0 | M27: 0 | N27: 0 | O27: 3332772 | P27: 0 | Q27: 516424 | R27: 265553 | S27: 265553 | U27: 4114749 | V27: 0 | W27: 1025 | X27: 0 | Y27: 0 | Z27: 0 | AA27: 0 | AB27: 4525 | AC27: ='2017legmax.xls'!AV24 -> 12 | AD27: ='2017legmax.xls'!AW24 -> A | AE27: ='2017legmax.xls'!AX24 ->  | AF27: 4120299 | AG27: 4120299 | AH27: =IF(Weightings!G24>0,Weightings!G24,'Preliminary SO66'!AB21) -> 4310367 | AI27: 4120299 | AJ27: 4120299 | AK27: 4463293 | AL27: ='2017legmax.xls'!BM24 -> 0.3 | AM27: 1338988 | AN27: 1338988 | AO27: 1338988 | AQ27: 3389220 | AR27: 15.8 | AS27: 60862 | AT27: 0 | AU27: 0 | AV27: 0 | AW27: 0 | AX27: 0 | AY27: 0 | AZ27: 0 | BA27: 13313 | BB27: 0 | BC27: 0 | BD27: 3315045 | BE27: ='2017legmax.xls'!F24 -> 473.4 | BF27: ='2017legmax.xls'!I24 -> 491.7 | BG27: ='2017legmax.xls'!K24 -> 487.9 | BH27: 491.7 | BI27: ='2017legmax.xls'!O24 -> 4 | BJ27: 495.7 | BK27: =IF(ISNA(VLOOKUP($CO27,'Audit Values'!$A$2:$AF$318,2,FALSE)),'Preliminary SO66'!T21,VLOOKUP($CO27,'Audit Values'!$A$2:$AF$318,20,FALSE)) -> 0 | BL27: 0 | BM27: =IF(ISNA(VLOOKUP($CO27,'Audit Values'!$A$2:$AF$318,2,FALSE)),'Preliminary SO66'!U21,VLOOKUP($CO27,'Audit Values'!$A$2:$AF$318,21,FALSE)) -> 0 | BN27: 0 | BO27: 19 | BP27: 17727 | BQ27: 17727 | BR27: ='2017legmax.xls'!AH24 -> 0 | BS27: 0 | BT27: 0 | BU27: ='2017legmax.xls'!CJ24 -> 0 | BV27: 0 | BW27: ='2017legmax.xls'!CI24 -> 0 | BX27: 0 | BY27: 0 | BZ27: 0 | CA27: 0 | CB27: 0 | CC27: 0 | CD27: 0 | CE27: 0 | CF27: 0 | CG27: 0 | CH27: 0 | CI27: 0 | CJ27: 0 | CK27: 0 | CO27: D0206
A28: 207 | B28: Leavenworth | C28: Ft Leavenworth | D28: 2714380 | E28: 0 | F28: 454536 | G28: 0 | H28: 1148963 | I28: 1634.5 | J28: 0 | K28: 319 | L28: =Weightings!K25 -> 0 | M28: 0 | N28: 0 | O28: 4317560 | P28: 0 | Q28: 1407944 | R28: 973073 | S28: 973073 | U28: 6698577 | V28: 319 | W28: 0 | X28: 4358620 | Y28: 0 | Z28: 0 | AA28: 0 | AB28: 0 | AC28: 22 | AD28: ='2017legmax.xls'!AW25 -> A | AE28: ='2017legmax.xls'!AX25 -> R | AF28: 11057516 | AG28: 11057516 | AH28: =IF(Weightings!G25>0,Weightings!G25,'Preliminary SO66'!AB22) -> 12135507 | AI28: 11057516 | AJ28: 11057516 | AK28: 10725503 | AL28: ='2017legmax.xls'!BM25 -> 0.33 | AM28: 3539416 | AN28: 3539416 | AO28: 3539416 | AQ28: 2725281 | AR28: 0 | AS28: 0 | AT28: 0 | AU28: 0 | AV28: 0 | AW28: 0 | AX28: 0 | AY28: 0 | AZ28: 0 | BA28: 10901 | BB28: 0 | BC28: 0 | BD28: 2714380 | BE28: ='2017legmax.xls'!F25 -> 1738.9 | BF28: ='2017legmax.xls'!I25 -> 1597.1 | BG28: ='2017legmax.xls'!K25 -> 1567.5 | BH28: 1634.5 | BI28: ='2017legmax.xls'!O25 -> 0 | BJ28: 1634.5 | BK28: =IF(ISNA(VLOOKUP($CO28,'Audit Values'!$A$2:$AF$318,2,FALSE)),'Preliminary SO66'!T22,VLOOKUP($CO28,'Audit Values'!$A$2:$AF$318,20,FALSE)) -> 0 | BL28: 0 | BM28: =IF(ISNA(VLOOKUP($CO28,'Audit Values'!$A$2:$AF$318,2,FALSE)),'Preliminary SO66'!U22,VLOOKUP($CO28,'Audit Values'!$A$2:$AF$318,21,FALSE)) -> 0 | BN28: 0 | BO28: 0 | BP28: 0 | BQ28: 0 | BR28: ='2017legmax.xls'!AH25 -> 118 | BS28: 454536 | BT28: 0 | BU28: ='2017legmax.xls'!CJ25 -> 0 | BV28: 0 | BW28: ='2017legmax.xls'!CI25 -> 0 | BX28: 0 | BY28: 0 | BZ28: 0 | CA28: 0 | CB28: 0 | CC28: 0 | CD28: 0 | CE28: 0 | CF28: 0 | CG28: =X28-130629 -> 4227991 | CH28: 5376954 | CI28: 0 | CJ28: 0 | CK28: 0 | CO28: D0207
A29: 208 | B29: Trego | C29: Wakeeney | D29: 2361202 | E29: 0 | F29: 0 | G29: 0 | H29: 0 | I29: 371.5 | J29: 0 | K29: 0 | L29: =Weightings!K26 -> 0 | M29: 0 | N29: 0 | O29: 2361202 | P29: 0 | Q29: 460714 | R29: 212856 | S29: 212856 | U29: 3034772 | V29: 0 | W29: 11858 | X29: 0 | Y29: 0 | Z29: 0 | AA29: 0 | AB29: 0 | AC29: ='2017legmax.xls'!AV26 -> 12 | AD29: ='2017legmax.xls'!AW26 -> A | AE29: ='2017legmax.xls'!AX26 ->  | AF29: 3046630 | AG29: 3046630 | AH29: =IF(Weightings!G26>0,Weightings!G26,'Preliminary SO66'!AB23) -> 3211683 | AI29: 3046630 | AJ29: 3046630 | AK29: 3340494 | AL29: ='2017legmax.xls'!BM26 -> 0.3 | AM29: 1002148 | AN29: 1002148 | AO29: 1002148 | AQ29: 2370685 | AR29: 0 | AS29: 0 | AT29: 0 | AU29: 0 | AV29: 0 | AW29: 0 | AX29: 0 | AY29: 0 | AZ29: 0 | BA29: 9483 | BB29: 0 | BC29: 0 | BD29: 2361202 | BE29: ='2017legmax.xls'!F26 -> 370.3 | BF29: ='2017legmax.xls'!I26 -> 367 | BG29: ='2017legmax.xls'!K26 -> 371.5 | BH29: 371.5 | BI29: ='2017legmax.xls'!O26 -> 0 | BJ29: 371.5 | BK29: =IF(ISNA(VLOOKUP($CO29,'Audit Values'!$A$2:$AF$318,2,FALSE)),'Preliminary SO66'!T23,VLOOKUP($CO29,'Audit Values'!$A$2:$AF$318,20,FALSE)) -> 0 | BL29: 0 | BM29: =IF(ISNA(VLOOKUP($CO29,'Audit Values'!$A$2:$AF$318,2,FALSE)),'Preliminary SO66'!U23,VLOOKUP($CO29,'Audit Values'!$A$2:$AF$318,21,FALSE)) -> 0 | BN29: 0 | BO29: 0 | BP29: 0 | BQ29: 0 | BR29: ='2017legmax.xls'!AH26 -> 0 | BS29: 0 | BT29: 0 | BU29: ='2017legmax.xls'!CJ26 -> 0 | BV29: 0 | BW29: ='2017legmax.xls'!CI26 -> 0 | BX29: 0 | BY29: 0 | BZ29: 0 | CA29: 0 | CB29: 0 | CC29: 0 | CD29: 0 | CE29: 0 | CF29: 0 | CG29: 0 | CH29: 0 | CI29: 0 | CJ29: 0 | CK29: 0 | CO29: D0208
A30: 209 | B30: Stevens | C30: Moscow Public Schools | D30: 1552491 | E30: 0 | F30: 0 | G30: 0 | H30: 0 | I30: 173 | J30: 0 | K30: 0 | L30: =Weightings!K27 -> 0 | M30: 0 | N30: 0 | O30: 1552491 | P30: 0 | Q30: 103887 | R30: 123865 | S30: 123865 | U30: 1780243 | V30: 6 | W30: 18124 | X30: 0 | Y30: 0 | Z30: 0 | AA30: 0 | AB30: 0 | AC30: ='2017legmax.xls'!AV27 -> 7 | AD30: ='2017legmax.xls'!AW27 -> A | AE30: ='2017legmax.xls'!AX27 ->  | AF30: 1798373 | AG30: 1798373 | AH30: =IF(Weightings!G27>0,Weightings!G27,'Preliminary SO66'!AB24) -> 1901317 | AI30: 1798373 | AJ30: 1798373 | AK30: 2042819 | AL30: ='2017legmax.xls'!BM27 -> 0.33 | AM30: 674130 | AN30: 674130 | AO30: 674130 | AQ30: 1558726 | AR30: 0 | AS30: 0 | AT30: 0 | AU30: 0 | AV30: 0 | AW30: 0 | AX30: 0 | AY30: 0 | AZ30: 0 | BA30: 6235 | BB30: 0 | BC30: 0 | BD30: 1552491 | BE30: ='2017legmax.xls'!F27 -> 185.7 | BF30: ='2017legmax.xls'!I27 -> 163.2 | BG30: ='2017legmax.xls'!K27 -> 164 | BH30: 171 | BI30: ='2017legmax.xls'!O27 -> 2 | BJ30: 173 | BK30: =IF(ISNA(VLOOKUP($CO30,'Audit Values'!$A$2:$AF$318,2,FALSE)),'Preliminary SO66'!T24,VLOOKUP($CO30,'Audit Values'!$A$2:$AF$318,20,FALSE)) -> 0 | BL30: 0 | BM30: =IF(ISNA(VLOOKUP($CO30,'Audit Values'!$A$2:$AF$318,2,FALSE)),'Preliminary SO66'!U24,VLOOKUP($CO30,'Audit Values'!$A$2:$AF$318,21,FALSE)) -> 0 | BN30: 0 | BO30: 0 | BP30: 0 | BQ30: 0 | BR30: ='2017legmax.xls'!AH27 -> 0 | BS30: 0 | BT30: 0 | BU30: ='2017legmax.xls'!CJ27 -> 0 | BV30: 0 | BW30: ='2017legmax.xls'!CI27 -> 0 | BX30: 0 | BY30: 0 | BZ30: 0 | CA30: 0 | CB30: 0 | CC30: 0 | CD30: 0 | CE30: 0 | CF30: 0 | CG30: 0 | CH30: 0 | CI30: 0 | CJ30: 0 | CK30: 0 | CO30: D0209
A31: 210 | B31: Stevens | C31: Hugoton Public Schools | D31: 6545164 | E31: 13062 | F31: 0 | G31: 0 | H31: 0 | I31: 1029.4 | J31: 0 | K31: 0 | L31: =Weightings!K28 -> 0 | M31: 0 | N31: 0 | O31: 6558226 | P31: 0 | Q31: 531463 | R31: 529204 | S31: 529204 | U31: 7618893 | V31: 0 | W31: 41382 | X31: 0 | Y31: 0 | Z31: 0 | AA31: 0 | AB31: 0 | AC31: ='2017legmax.xls'!AV28 -> 7 | AD31: ='2017legmax.xls'!AW28 -> A | AE31: ='2017legmax.xls'!AX28 ->  | AF31: 7660275 | AG31: 7660275 | AH31: =IF(Weightings!G28>0,Weightings!G28,'Preliminary SO66'!AB25) -> 8032343 | AI31: 7660275 | AJ31: 7660275 | AK31: 8515750 | AL31: ='2017legmax.xls'!BM28 -> 0.3 | AM31: 2554725 | AN31: 2554725 | AO31: 2554725 | AQ31: 6593792 | AR31: 5.8 | AS31: 22342 | AT31: 0 | AU31: 0 | AV31: 0 | AW31: 0 | AX31: 0 | AY31: 0 | AZ31: 0 | BA31: 26286 | BB31: 0 | BC31: 0 | BD31: 6545164 | BE31: ='2017legmax.xls'!F28 -> 1036.8 | BF31: ='2017legmax.xls'!I28 -> 1010.4 | BG31: ='2017legmax.xls'!K28 -> 950.1 | BH31: 1010.4 | BI31: ='2017legmax.xls'!O28 -> 19 | BJ31: 1029.4 | BK31: =IF(ISNA(VLOOKUP($CO31,'Audit Values'!$A$2:$AF$318,2,FALSE)),'Preliminary SO66'!T25,VLOOKUP($CO31,'Audit Values'!$A$2:$AF$318,20,FALSE)) -> 0 | BL31: 0 | BM31: =IF(ISNA(VLOOKUP($CO31,'Audit Values'!$A$2:$AF$318,2,FALSE)),'Preliminary SO66'!U25,VLOOKUP($CO31,'Audit Values'!$A$2:$AF$318,21,FALSE)) -> 0 | BN31: 0 | BO31: 14 | BP31: 13062 | BQ31: 13062 | BR31: ='2017legmax.xls'!AH28 -> 0 | BS31: 0 | BT31: 0 | BU31: ='2017legmax.xls'!CJ28 -> 0 | BV31: 0 | BW31: ='2017legmax.xls'!CI28 -> 0 | BX31: 0 | BY31: 0 | BZ31: 0 | CA31: 0 | CB31: 0 | CC31: 0 | CD31: 0 | CE31: 0 | CF31: 0 | CG31: 0 | CH31: 0 | CI31: 0 | CJ31: 0 | CK31: 0 | CO31: D0210
A32: 211 | B32: Norton | C32: Norton Community Schools | D32: 4238294 | E32: 0 | F32: 0 | G32: 0 | H32: 0 | I32: 677.7 | J32: 0 | K32: 0 | L32: =Weightings!K29 -> 0 | M32: -7326 | N32: -7326 | O32: 4230968 | P32: 0 | Q32: 827060 | R32: 331248 | S32: 331248 | U32: 5389276 | V32: 4 | W32: 1306 | X32: 11019 | Y32: 0 | Z32: 150000 | AA32: 2758 | AB32: 0 | AC32: 22 | AD32: ='2017legmax.xls'!AW29 -> A | AE32: ='2017legmax.xls'!AX29 ->  | AF32: 5404363 | AG32: 5554363 | AH32: =IF(Weightings!G29>0,Weightings!G29,'Preliminary SO66'!AB26) -> 5793267 | AI32: 5554363 | AJ32: 5554363 | AK32: 5863455 | AL32: ='2017legmax.xls'!BM29 -> 0.3 | AM32: 1759037 | AN32: 1759037 | AO32: 1759037 | AQ32: 4255315 | AR32: 0 | AS32: 0 | AT32: 0 | AU32: 0 | AV32: 0 | AW32: 0 | AX32: 0 | AY32: 0 | AZ32: 0 | BA32: 17021 | BB32: 0 | BC32: 0 | BD32: 4238294 | BE32: ='2017legmax.xls'!F29 -> 689.1 | BF32: ='2017legmax.xls'!I29 -> 677.7 | BG32: ='2017legmax.xls'!K29 -> 635.5 | BH32: 677.7 | BI32: ='2017legmax.xls'!O29 -> 0 | BJ32: 677.7 | BK32: =IF(ISNA(VLOOKUP($CO32,'Audit Values'!$A$2:$AF$318,2,FALSE)),'Preliminary SO66'!T26,VLOOKUP($CO32,'Audit Values'!$A$2:$AF$318,20,FALSE)) -> 0 | BL32: 0 | BM32: =IF(ISNA(VLOOKUP($CO32,'Audit Values'!$A$2:$AF$318,2,FALSE)),'Preliminary SO66'!U26,VLOOKUP($CO32,'Audit Values'!$A$2:$AF$318,21,FALSE)) -> 0 | BN32: 0 | BO32: 0 | BP32: 0 | BQ32: 0 | BR32: ='2017legmax.xls'!AH29 -> 0 | BS32: 0 | BT32: 0 | BU32: ='2017legmax.xls'!CJ29 -> 0 | BV32: 0 | BW32: ='2017legmax.xls'!CI29 -> 0 | BX32: 0 | BY32: 0 | BZ32: 0 | CA32: 0 | CB32: 0 | CC32: 0 | CD32: 0 | CE32: 0 | CF32: 0 | CG32: 11019 | CH32: 8072 | CI32: 0 | CJ32: 0 | CK32: 0 | CO32: D0211
A33: 212 | B33: Norton | C33: Northern Valley | D33: 1450240 | E33: 0 | F33: 0 | G33: 0 | H33: 0 | I33: 165.5 | J33: 0 | K33: 0 | L33: =Weightings!K30 -> 0 | M33: 0 | N33: 0 | O33: 1450240 | P33: 0 | Q33: 201789 | R33: 108455 | S33: 108455 | U33: 1760484 | V33: 1 | W33: 119 | X33: 0 | Y33: 0 | Z33: 0 | AA33: 152 | AB33: 0 | AC33: ='2017legmax.xls'!AV30 -> 3 | AD33: ='2017legmax.xls'!AW30 -> A | AE33: ='2017legmax.xls'!AX30 ->  | AF33: 1760756 | AG33: 1760756 | AH33: =IF(Weightings!G30>0,Weightings!G30,'Preliminary SO66'!AB27) -> 1844852 | AI33: 1760756 | AJ33: 1760756 | AK33: 1953300 | AL33: ='2017legmax.xls'!BM30 -> 0.3 | AM33: 585990 | AN33: 585990 | AO33: 585990 | AQ33: 1456064 | AR33: 0 | AS33: 0 | AT33: 0 | AU33: 0 | AV33: 0 | AW33: 0 | AX33: 0 | AY33: 0 | AZ33: 0 | BA33: 5824 | BB33: 0 | BC33: 0 | BD33: 1450240 | BE33: ='2017legmax.xls'!F30 -> 169.5 | BF33: ='2017legmax.xls'!I30 -> 163 | BG33: ='2017legmax.xls'!K30 -> 143 | BH33: 163 | BI33: ='2017legmax.xls'!O30 -> 2.5 | BJ33: 165.5 | BK33: =IF(ISNA(VLOOKUP($CO33,'Audit Values'!$A$2:$AF$318,2,FALSE)),'Preliminary SO66'!T27,VLOOKUP($CO33,'Audit Values'!$A$2:$AF$318,20,FALSE)) -> 0 | BL33: 0 | BM33: =IF(ISNA(VLOOKUP($CO33,'Audit Values'!$A$2:$AF$318,2,FALSE)),'Preliminary SO66'!U27,VLOOKUP($CO33,'Audit Values'!$A$2:$AF$318,21,FALSE)) -> 0 | BN33: 0 | BO33: 0 | BP33: 0 | BQ33: 0 | BR33: ='2017legmax.xls'!AH30 -> 0 | BS33: 0 | BT33: 0 | BU33: ='2017legmax.xls'!CJ30 -> 0 | BV33: 0 | BW33: ='2017legmax.xls'!CI30 -> 0 | BX33: 0 | BY33: 0 | BZ33: 0 | CA33: 0 | CB33: 0 | CC33: 0 | CD33: 0 | CE33: 0 | CF33: 0 | CG33: 0 | CH33: 0 | CI33: 0 | CJ33: 0 | CK33: 0 | CO33: D0212
A34: 214 | B34: Grant | C34: Ulysses | D34: 9364071 | E34: 77449 | F34: 0 | G34: 0 | H34: 0 | I34: 1647.5 | J34: 0 | K34: 0 | L34: =Weightings!K31 -> -49449 | M34: 0 | N34: -49449 | O34: 9392071 | P34: 0 | Q34: 866872 | R34: 764700 | S34: 764700 | U34: 11023643 | V34: 1733 | W34: 91485 | X34: 0 | Y34: 0 | Z34: 0 | AA34: 0 | AB34: 27569 | AC34: ='2017legmax.xls'!AV31 -> 7 | AD34: ='2017legmax.xls'!AW31 -> A | AE34: ='2017legmax.xls'!AX31 ->  | AF34: 11144430 | AG34: 11144430 | AH34: =IF(Weightings!G31>0,Weightings!G31,'Preliminary SO66'!AB28) -> 11665243 | AI34: 11144430 | AJ34: 11144430 | AK34: 12163554 | AL34: ='2017legmax.xls'!BM31 -> 0.3 | AM34: 3649066 | AN34: 3649066 | AO34: 3649066 | AQ34: 9465621 | AR34: 16.6 | AS34: 63943 | AT34: 0 | AU34: 0 | AV34: 0 | AW34: 0 | AX34: 0 | AY34: 0 | AZ34: 0 | BA34: 37607 | BB34: 0 | BC34: 0 | BD34: 9364071 | BE34: ='2017legmax.xls'!F31 -> 1670.3 | BF34: ='2017legmax.xls'!I31 -> 1626 | BG34: ='2017legmax.xls'!K31 -> 1575.5 | BH34: 1626 | BI34: ='2017legmax.xls'!O31 -> 21.5 | BJ34: 1647.5 | BK34: =IF(ISNA(VLOOKUP($CO34,'Audit Values'!$A$2:$AF$318,2,FALSE)),'Preliminary SO66'!T28,VLOOKUP($CO34,'Audit Values'!$A$2:$AF$318,20,FALSE)) -> 2 | BL34: 10000 | BM34: =IF(ISNA(VLOOKUP($CO34,'Audit Values'!$A$2:$AF$318,2,FALSE)),'Preliminary SO66'!U28,VLOOKUP($CO34,'Audit Values'!$A$2:$AF$318,21,FALSE)) -> 5.1 | BN34: 8670 | BO34: 63 | BP34: 58779 | BQ34: 77449 | BR34: ='2017legmax.xls'!AH31 -> 0 | BS34: 0 | BT34: 0 | BU34: ='2017legmax.xls'!CJ31 -> 0 | BV34: 0 | BW34: ='2017legmax.xls'!CI31 -> 0 | BX34: 0 | BY34: 0 | BZ34: 0 | CA34: 0 | CB34: 0 | CC34: 0 | CD34: 0 | CE34: 0 | CF34: 0 | CG34: 0 | CH34: 0 | CI34: 0 | CJ34: 0 | CK34: 0 | CO34: D0214
A35: 215 | B35: Kearny | C35: Lakin | D35: 4150214 | E35: 111960 | F35: 0 | G35: 0 | H35: 0 | I35: 612.4 | J35: 0 | K35: 0 | L35: =Weightings!K32 -> -10263 | M35: 0 | N35: -10263 | O35: 4251911 | P35: 0 | Q35: 320802 | R35: 330064 | S35: 330064 | U35: 4902777 | V35: 0 | W35: 44529 | X35: 0 | Y35: 0 | Z35: 0 | AA35: 0 | AB35: 0 | AC35: ='2017legmax.xls'!AV32 -> 3 | AD35: ='2017legmax.xls'!AW32 -> A | AE35: ='2017legmax.xls'!AX32 ->  | AF35: 4947306 | AG35: 4947306 | AH35: =IF(Weightings!G32>0,Weightings!G32,'Preliminary SO66'!AB29) -> 5224434 | AI35: 4947306 | AJ35: 4947306 | AK35: 5406942 | AL35: ='2017legmax.xls'!BM32 -> 0.3 | AM35: 1622083 | AN35: 1622083 | AO35: 1622083 | AQ35: 4166882 | AR35: 0 | AS35: 0 | AT35: 0 | AU35: 0 | AV35: 0 | AW35: 0 | AX35: 0 | AY35: 0 | AZ35: 0 | BA35: 16668 | BB35: 0 | BC35: 0 | BD35: 4150214 | BE35: ='2017legmax.xls'!F32 -> 635.6 | BF35: ='2017legmax.xls'!I32 -> 586 | BG35: ='2017legmax.xls'!K32 -> 596 | BH35: 605.9 | BI35: ='2017legmax.xls'!O32 -> 6.5 | BJ35: 612.4 | BK35: =IF(ISNA(VLOOKUP($CO35,'Audit Values'!$A$2:$AF$318,2,FALSE)),'Preliminary SO66'!T29,VLOOKUP($CO35,'Audit Values'!$A$2:$AF$318,20,FALSE)) -> 0 | BL35: 0 | BM35: =IF(ISNA(VLOOKUP($CO35,'Audit Values'!$A$2:$AF$318,2,FALSE)),'Preliminary SO66'!U29,VLOOKUP($CO35,'Audit Values'!$A$2:$AF$318,21,FALSE)) -> 0 | BN35: 0 | BO35: 120 | BP35: 111960 | BQ35: 111960 | BR35: ='2017legmax.xls'!AH32 -> 0 | BS35: 0 | BT35: 0 | BU35: ='2017legmax.xls'!CJ32 -> 0 | BV35: 0 | BW35: ='2017legmax.xls'!CI32 -> 0 | BX35: 0 | BY35: 0 | BZ35: 0 | CA35: 0 | CB35: 0 | CC35: 0 | CD35: 0 | CE35: 0 | CF35: 0 | CG35: 0 | CH35: 0 | CI35: 0 | CJ35: 0 | CK35: 0 | CO35: D0215
A36: 216 | B36: Kearny | C36: Deerfield | D36: 1886552 | E36: 0 | F36: 0 | G36: 0 | H36: 0 | I36: 195 | J36: 0 | K36: 0 | L36: =Weightings!K33 -> 0 | M36: 0 | N36: 0 | O36: 1886552 | P36: 0 | Q36: 121250 | R36: 168274 | S36: 168274 | U36: 2176076 | V36: 0 | W36: 14120 | X36: 0 | Y36: 0 | Z36: 0 | AA36: 15025 | AB36: 3888 | AC36: ='2017legmax.xls'!AV33 -> 14 | AD36: ='2017legmax.xls'!AW33 -> A | AE36: ='2017legmax.xls'!AX33 ->  | AF36: 2209109 | AG36: 2209109 | AH36: =IF(Weightings!G33>0,Weightings!G33,'Preliminary SO66'!AB30) -> 2319513 | AI36: 2209109 | AJ36: 2209109 | AK36: 2471992 | AL36: ='2017legmax.xls'!BM33 -> 0.3 | AM36: 741598 | AN36: 741598 | AO36: 741598 | AQ36: 1894129 | AR36: 0 | AS36: 0 | AT36: 0 | AU36: 0 | AV36: 0 | AW36: 0 | AX36: 0 | AY36: 0 | AZ36: 0 | BA36: 7577 | BB36: 0 | BC36: 0 | BD36: 1886552 | BE36: ='2017legmax.xls'!F33 -> 192 | BF36: ='2017legmax.xls'!I33 -> 184.5 | BG36: ='2017legmax.xls'!K33 -> 189 | BH36: 189 | BI36: ='2017legmax.xls'!O33 -> 6 | BJ36: 195 | BK36: =IF(ISNA(VLOOKUP($CO36,'Audit Values'!$A$2:$AF$318,2,FALSE)),'Preliminary SO66'!T30,VLOOKUP($CO36,'Audit Values'!$A$2:$AF$318,20,FALSE)) -> 0 | BL36: 0 | BM36: =IF(ISNA(VLOOKUP($CO36,'Audit Values'!$A$2:$AF$318,2,FALSE)),'Preliminary SO66'!U30,VLOOKUP($CO36,'Audit Values'!$A$2:$AF$318,21,FALSE)) -> 0 | BN36: 0 | BO36: 0 | BP36: 0 | BQ36: 0 | BR36: ='2017legmax.xls'!AH33 -> 0 | BS36: 0 | BT36: 0 | BU36: ='2017legmax.xls'!CJ33 -> 0 | BV36: 0 | BW36: ='2017legmax.xls'!CI33 -> 0 | BX36: 0 | BY36: 0 | BZ36: 0 | CA36: 0 | CB36: 0 | CC36: 0 | CD36: 0 | CE36: 0 | CF36: 0 | CG36: 0 | CH36: 0 | CI36: 0 | CJ36: 0 | CK36: 0 | CO36: D0216
A37: 217 | B37: Morton | C37: Rolla | D37: 1480382 | E37: 0 | F37: 0 | G37: 0 | H37: 0 | I37: 164 | J37: 0 | K37: 0 | L37: =Weightings!K34 -> 0 | M37: 0 | N37: 0 | O37: 1480382 | P37: 0 | Q37: 104369 | R37: 116858 | S37: 116858 | U37: 1701609 | V37: 7784 | W37: 11789 | X37: 0 | Y37: 0 | Z37: 0 | AA37: 0 | AB37: 251 | AC37: ='2017legmax.xls'!AV34 -> 11 | AD37: ='2017legmax.xls'!AW34 -> A | AE37: ='2017legmax.xls'!AX34 ->  | AF37: 1721433 | AG37: 1721433 | AH37: =IF(Weightings!G34>0,Weightings!G34,'Preliminary SO66'!AB31) -> 1818820 | AI37: 1721433 | AJ37: 1721433 | AK37: 1961198 | AL37: ='2017legmax.xls'!BM34 -> 0.3 | AM37: 588359 | AN37: 588359 | AO37: 588359 | AQ37: 1490564 | AR37: 1.1 | AS37: 4237 | AT37: 0 | AU37: 0 | AV37: 0 | AW37: 0 | AX37: 0 | AY37: 0 | AZ37: 0 | BA37: 5945 | BB37: 0 | BC37: 0 | BD37: 1480382 | BE37: ='2017legmax.xls'!F34 -> 183.6 | BF37: ='2017legmax.xls'!I34 -> 164 | BG37: ='2017legmax.xls'!K34 -> 131 | BH37: 164 | BI37: ='2017legmax.xls'!O34 -> 0 | BJ37: 164 | BK37: =IF(ISNA(VLOOKUP($CO37,'Audit Values'!$A$2:$AF$318,2,FALSE)),'Preliminary SO66'!T31,VLOOKUP($CO37,'Audit Values'!$A$2:$AF$318,20,FALSE)) -> 0 | BL37: 0 | BM37: =IF(ISNA(VLOOKUP($CO37,'Audit Values'!$A$2:$AF$318,2,FALSE)),'Preliminary SO66'!U31,VLOOKUP($CO37,'Audit Values'!$A$2:$AF$318,21,FALSE)) -> 0 | BN37: 0 | BO37: 0 | BP37: 0 | BQ37: 0 | BR37: ='2017legmax.xls'!AH34 -> 0 | BS37: 0 | BT37: 0 | BU37: ='2017legmax.xls'!CJ34 -> 0 | BV37: 0 | BW37: ='2017legmax.xls'!CI34 -> 0 | BX37: 0 | BY37: 0 | BZ37: 0 | CA37: 0 | CB37: 0 | CC37: 0 | CD37: 0 | CE37: 0 | CF37: 0 | CG37: 0 | CH37: 0 | CI37: 0 | CJ37: 0 | CK37: 0 | CO37: D0217
A38: 218 | B38: Morton | C38: Elkhart | D38: 3268327 | E38: 3237925 | F38: 0 | G38: 0 | H38: 0 | I38: 458.9 | J38: 0 | K38: 0 | L38: =Weightings!K35 -> 0 | M38: 0 | N38: 0 | O38: 6506252 | P38: 0 | Q38: 281868 | R38: 275495 | S38: 275495 | U38: 7063615 | V38: 0 | W38: 11830 | X38: 0 | Y38: 0 | Z38: 0 | AA38: 0 | AB38: 3503 | AC38: ='2017legmax.xls'!AV35 -> 14 | AD38: ='2017legmax.xls'!AW35 -> A | AE38: ='2017legmax.xls'!AX35 ->  | AF38: 7078948 | AG38: 7078948 | AH38: =IF(Weightings!G35>0,Weightings!G35,'Preliminary SO66'!AB32) -> 7445665 | AI38: 7078948 | AJ38: 7078948 | AK38: 4294395 | AL38: ='2017legmax.xls'!BM35 -> 0.3 | AM38: 1288319 | AN38: 1288319 | AO38: 1288319 | AQ38: 5341503 | AR38: 534.8 | AS38: 2060050 | AT38: 0 | AU38: 0 | AV38: 0 | AW38: 0 | AX38: 0 | AY38: 0 | AZ38: 0 | BA38: 13126 | BB38: 0 | BC38: 0 | BD38: 3268327 | BE38: ='2017legmax.xls'!F35 -> 469.8 | BF38: ='2017legmax.xls'!I35 -> 450.4 | BG38: ='2017legmax.xls'!K35 -> 430.9 | BH38: 450.4 | BI38: ='2017legmax.xls'!O35 -> 8.5 | BJ38: 458.9 | BK38: =IF(ISNA(VLOOKUP($CO38,'Audit Values'!$A$2:$AF$318,2,FALSE)),'Preliminary SO66'!T32,VLOOKUP($CO38,'Audit Values'!$A$2:$AF$318,20,FALSE)) -> 637 | BL38: 3185000 | BM38: =IF(ISNA(VLOOKUP($CO38,'Audit Values'!$A$2:$AF$318,2,FALSE)),'Preliminary SO66'!U32,VLOOKUP($CO38,'Audit Values'!$A$2:$AF$318,21,FALSE)) -> 22.9 | BN38: 38930 | BO38: 15 | BP38: 13995 | BQ38: 3237925 | BR38: ='2017legmax.xls'!AH35 -> 0 | BS38: 0 | BT38: 0 | BU38: ='2017legmax.xls'!CJ35 -> 0 | BV38: 0 | BW38: ='2017legmax.xls'!CI35 -> 0 | BX38: 0 | BY38: 0 | BZ38: 0 | CA38: 0 | CB38: 0 | CC38: 0 | CD38: 0 | CE38: 0 | CF38: 0 | CG38: 0 | CH38: 0 | CI38: 0 | CJ38: 0 | CK38: 0 | CO38: D0218
A39: 219 | B39: Clark | C39: Minneola | D39: 1835081 | E39: 0 | F39: 0 | G39: 0 | H39: 0 | I39: 239.2 | J39: 0 | K39: 47 | L39: =Weightings!K36 -> 0 | M39: 0 | N39: 0 | O39: 1835034 | P39: 0 | Q39: 185073 | R39: 145591 | S39: 145591 | U39: 2165698 | V39: 0 | W39: 1600 | X39: 0 | Y39: 0 | Z39: 0 | AA39: 0 | AB39: 0 | AC39: ='2017legmax.xls'!AV36 -> 3 | AD39: ='2017legmax.xls'!AW36 -> A | AE39: ='2017legmax.xls'!AX36 ->  | AF39: 2167298 | AG39: 2167298 | AH39: =IF(Weightings!G36>0,Weightings!G36,'Preliminary SO66'!AB33) -> 2279886 | AI39: 2167298 | AJ39: 2167298 | AK39: 2407064 | AL39: ='2017legmax.xls'!BM36 -> 0.3 | AM39: 722119 | AN39: 722119 | AO39: 722119 | AQ39: 1842451 | AR39: 0 | AS39: 0 | AT39: 0 | AU39: 0 | AV39: 0 | AW39: 0 | AX39: 0 | AY39: 0 | AZ39: 0 | BA39: 7370 | BB39: 0 | BC39: 0 | BD39: 1835081 | BE39: ='2017legmax.xls'!F36 -> 248.5 | BF39: ='2017legmax.xls'!I36 -> 233.7 | BG39: ='2017legmax.xls'!K36 -> 235.5 | BH39: 239.2 | BI39: ='2017legmax.xls'!O36 -> 0 | BJ39: 239.2 | BK39: =IF(ISNA(VLOOKUP($CO39,'Audit Values'!$A$2:$AF$318,2,FALSE)),'Preliminary SO66'!T33,VLOOKUP($CO39,'Audit Values'!$A$2:$AF$318,20,FALSE)) -> 0 | BL39: 0 | BM39: =IF(ISNA(VLOOKUP($CO39,'Audit Values'!$A$2:$AF$318,2,FALSE)),'Preliminary SO66'!U33,VLOOKUP($CO39,'Audit Values'!$A$2:$AF$318,21,FALSE)) -> 0 | BN39: 0 | BO39: 0 | BP39: 0 | BQ39: 0 | BR39: ='2017legmax.xls'!AH36 -> 0 | BS39: 0 | BT39: 0 | BU39: ='2017legmax.xls'!CJ36 -> 0 | BV39: 0 | BW39: ='2017legmax.xls'!CI36 -> 0 | BX39: 0 | BY39: 0 | BZ39: 0 | CA39: 0 | CB39: 0 | CC39: 0 | CD39: 0 | CE39: 0 | CF39: 0 | CG39: 0 | CH39: 0 | CI39: 0 | CJ39: 0 | CK39: 0 | CO39: D0219
A40: 220 | B40: Clark | C40: Ashland | D40: 1529574 | E40: 0 | F40: 0 | G40: 0 | H40: 0 | I40: 190.9 | J40: 0 | K40: 12 | L40: =Weightings!K37 -> 0 | M40: 0 | N40: 0 | O40: 1529562 | P40: 0 | Q40: 158408 | R40: 133440 | S40: 133440 | U40: 1821410 | V40: 0 | W40: 6927 | X40: 0 | Y40: 0 | Z40: 40258 | AA40: 0 | AB40: 4829 | AC40: ='2017legmax.xls'!AV37 -> 14 | AD40: ='2017legmax.xls'!AW37 -> A | AE40: ='2017legmax.xls'!AX37 ->  | AF40: 1833166 | AG40: 1873424 | AH40: =IF(Weightings!G37>0,Weightings!G37,'Preliminary SO66'!AB34) -> 1935381 | AI40: 1873424 | AJ40: 1873424 | AK40: 2020274 | AL40: ='2017legmax.xls'!BM37 -> 0.3 | AM40: 606082 | AN40: 606082 | AO40: 606082 | AQ40: 1535717 | AR40: 0 | AS40: 0 | AT40: 0 | AU40: 0 | AV40: 0 | AW40: 0 | AX40: 0 | AY40: 0 | AZ40: 0 | BA40: 6143 | BB40: 0 | BC40: 0 | BD40: 1529574 | BE40: ='2017legmax.xls'!F37 -> 192.6 | BF40: ='2017legmax.xls'!I37 -> 189.9 | BG40: ='2017legmax.xls'!K37 -> 184.1 | BH40: 189.9 | BI40: ='2017legmax.xls'!O37 -> 1 | BJ40: 190.9 | BK40: =IF(ISNA(VLOOKUP($CO40,'Audit Values'!$A$2:$AF$318,2,FALSE)),'Preliminary SO66'!T34,VLOOKUP($CO40,'Audit Values'!$A$2:$AF$318,20,FALSE)) -> 0 | BL40: 0 | BM40: =IF(ISNA(VLOOKUP($CO40,'Audit Values'!$A$2:$AF$318,2,FALSE)),'Preliminary SO66'!U34,VLOOKUP($CO40,'Audit Values'!$A$2:$AF$318,21,FALSE)) -> 0 | BN40: 0 | BO40: 0 | BP40: 0 | BQ40: 0 | BR40: ='2017legmax.xls'!AH37 -> 0 | BS40: 0 | BT40: 0 | BU40: ='2017legmax.xls'!CJ37 -> 0 | BV40: 0 | BW40: ='2017legmax.xls'!CI37 -> 0 | BX40: 0 | BY40: 0 | BZ40: 0 | CA40: 0 | CB40: 0 | CC40: 0 | CD40: 0 | CE40: 0 | CF40: 0 | CG40: 0 | CH40: 0 | CI40: 0 | CJ40: 0 | CK40: 0 | CO40: D0220
A41: 223 | B41: Washington | C41: Barnes | D41: 2506786 | E41: 0 | F41: 0 | G41: 0 | H41: 0 | I41: 354.4 | J41: 0 | K41: 72 | L41: =Weightings!K38 -> 0 | M41: 0 | N41: 0 | O41: 2506714 | P41: 0 | Q41: 441110 | R41: 194449 | S41: 194449 | U41: 3142273 | V41: 0 | W41: 0 | X41: 0 | Y41: 0 | Z41: 0 | AA41: 0 | AB41: 14362 | AC41: ='2017legmax.xls'!AV38 -> 2 | AD41: ='2017legmax.xls'!AW38 -> A | AE41: ='2017legmax.xls'!AX38 ->  | AF41: 3156635 | AG41: 3156635 | AH41: =IF(Weightings!G38>0,Weightings!G38,'Preliminary SO66'!AB35) -> 3276662 | AI41: 3156635 | AJ41: 3156635 | AK41: 3373070 | AL41: ='2017legmax.xls'!BM38 -> 0.3 | AM41: 1011921 | AN41: 1011921 | AO41: 1011921 | AQ41: 2521090 | AR41: 1.1 | AS41: 4237 | AT41: 0 | AU41: 0 | AV41: 0 | AW41: 0 | AX41: 0 | AY41: 0 | AZ41: 0 | BA41: 10067 | BB41: 0 | BC41: 0 | BD41: 2506786 | BE41: ='2017legmax.xls'!F38 -> 340 | BF41: ='2017legmax.xls'!I38 -> 347.4 | BG41: ='2017legmax.xls'!K38 -> 354.4 | BH41: 354.4 | BI41: ='2017legmax.xls'!O38 -> 0 | BJ41: 354.4 | BK41: =IF(ISNA(VLOOKUP($CO41,'Audit Values'!$A$2:$AF$318,2,FALSE)),'Preliminary SO66'!T35,VLOOKUP($CO41,'Audit Values'!$A$2:$AF$318,20,FALSE)) -> 0 | BL41: 0 | BM41: =IF(ISNA(VLOOKUP($CO41,'Audit Values'!$A$2:$AF$318,2,FALSE)),'Preliminary SO66'!U35,VLOOKUP($CO41,'Audit Values'!$A$2:$AF$318,21,FALSE)) -> 0 | BN41: 0 | BO41: 0 | BP41: 0 | BQ41: 0 | BR41: ='2017legmax.xls'!AH38 -> 0 | BS41: 0 | BT41: 0 | BU41: ='2017legmax.xls'!CJ38 -> 0 | BV41: 0 | BW41: ='2017legmax.xls'!CI38 -> 0 | BX41: 0 | BY41: 0 | BZ41: 0 | CA41: 0 | CB41: 0 | CC41: 0 | CD41: 0 | CE41: 0 | CF41: 0 | CG41: 0 | CH41: 0 | CI41: 0 | CJ41: 0 | CK41: 0 | CO41: D0223
A42: 224 | B42: Washington | C42: Clifton-Clyde | D42: 2140873 | E42: 0 | F42: 0 | G42: 0 | H42: 0 | I42: 309.5 | J42: 0 | K42: 0 | L42: =Weightings!K39 -> 0 | M42: 0 | N42: 0 | O42: 2140873 | P42: 0 | Q42: 275822 | R42: 164612 | S42: 164612 | U42: 2581307 | V42: 8346 | W42: 0 | X42: 0 | Y42: 0 | Z42: 0 | AA42: 0 | AB42: 9400 | AC42: ='2017legmax.xls'!AV39 -> 2 | AD42: ='2017legmax.xls'!AW39 -> A | AE42: ='2017legmax.xls'!AX39 ->  | AF42: 2599053 | AG42: 2599053 | AH42: =IF(Weightings!G39>0,Weightings!G39,'Preliminary SO66'!AB36) -> 2690683 | AI42: 2599053 | AJ42: 2599053 | AK42: 2854625 | AL42: ='2017legmax.xls'!BM39 -> 0.3 | AM42: 856388 | AN42: 856388 | AO42: 856388 | AQ42: 2149471 | AR42: 0 | AS42: 0 | AT42: 0 | AU42: 0 | AV42: 0 | AW42: 0 | AX42: 0 | AY42: 0 | AZ42: 0 | BA42: 8598 | BB42: 0 | BC42: 0 | BD42: 2140873 | BE42: ='2017legmax.xls'!F39 -> 311.5 | BF42: ='2017legmax.xls'!I39 -> 309 | BG42: ='2017legmax.xls'!K39 -> 305 | BH42: 309 | BI42: ='2017legmax.xls'!O39 -> 0.5 | BJ42: 309.5 | BK42: =IF(ISNA(VLOOKUP($CO42,'Audit Values'!$A$2:$AF$318,2,FALSE)),'Preliminary SO66'!T36,VLOOKUP($CO42,'Audit Values'!$A$2:$AF$318,20,FALSE)) -> 0 | BL42: 0 | BM42: =IF(ISNA(VLOOKUP($CO42,'Audit Values'!$A$2:$AF$318,2,FALSE)),'Preliminary SO66'!U36,VLOOKUP($CO42,'Audit Values'!$A$2:$AF$318,21,FALSE)) -> 0 | BN42: 0 | BO42: 0 | BP42: 0 | BQ42: 0 | BR42: ='2017legmax.xls'!AH39 -> 0 | BS42: 0 | BT42: 0 | BU42: ='2017legmax.xls'!CJ39 -> 0 | BV42: 0 | BW42: ='2017legmax.xls'!CI39 -> 0 | BX42: 0 | BY42: 0 | BZ42: 0 | CA42: 0 | CB42: 0 | CC42: 0 | CD42: 0 | CE42: 0 | CF42: 0 | CG42: 0 | CH42: 0 | CI42: 0 | CJ42: 0 | CK42: 0 | CO42: D0224
A43: 225 | B43: Meade | C43: Fowler | D43: 1363538 | E43: 0 | F43: 0 | G43: 0 | H43: 0 | I43: 145.2 | J43: 0 | K43: 0 | L43: =Weightings!K40 -> 0 | M43: 0 | N43: 0 | O43: 1363538 | P43: 0 | Q43: 110922 | R43: 99856 | S43: 99856 | U43: 1574316 | V43: 231 | W43: 841 | X43: 0 | Y43: 0 | Z43: 0 | AA43: 0 | AB43: 1790 | AC43: ='2017legmax.xls'!AV40 -> 3 | AD43: ='2017legmax.xls'!AW40 -> A | AE43: ='2017legmax.xls'!AX40 ->  | AF43: 1577178 | AG43: 1577178 | AH43: =IF(Weightings!G40>0,Weightings!G40,'Preliminary SO66'!AB37) -> 1636804 | AI43: 1577178 | AJ43: 1577178 | AK43: 1751227 | AL43: ='2017legmax.xls'!BM40 -> 0.33 | AM43: 577905 | AN43: 577905 | AO43: 577905 | AQ43: 1369014 | AR43: 0 | AS43: 0 | AT43: 0 | AU43: 0 | AV43: 0 | AW43: 0 | AX43: 0 | AY43: 0 | AZ43: 0 | BA43: 5476 | BB43: 0 | BC43: 0 | BD43: 1363538 | BE43: ='2017legmax.xls'!F40 -> 151 | BF43: ='2017legmax.xls'!I40 -> 133 | BG43: ='2017legmax.xls'!K40 -> 139.5 | BH43: 141.2 | BI43: ='2017legmax.xls'!O40 -> 4 | BJ43: 145.2 | BK43: =IF(ISNA(VLOOKUP($CO43,'Audit Values'!$A$2:$AF$318,2,FALSE)),'Preliminary SO66'!T37,VLOOKUP($CO43,'Audit Values'!$A$2:$AF$318,20,FALSE)) -> 0 | BL43: 0 | BM43: =IF(ISNA(VLOOKUP($CO43,'Audit Values'!$A$2:$AF$318,2,FALSE)),'Preliminary SO66'!U37,VLOOKUP($CO43,'Audit Values'!$A$2:$AF$318,21,FALSE)) -> 0 | BN43: 0 | BO43: 0 | BP43: 0 | BQ43: 0 | BR43: ='2017legmax.xls'!AH40 -> 0 | BS43: 0 | BT43: 0 | BU43: ='2017legmax.xls'!CJ40 -> 0 | BV43: 0 | BW43: ='2017legmax.xls'!CI40 -> 0 | BX43: 0 | BY43: 0 | BZ43: 0 | CA43: 0 | CB43: 0 | CC43: 0 | CD43: 0 | CE43: 0 | CF43: 0 | CG43: 0 | CH43: 0 | CI43: 0 | CJ43: 0 | CK43: 0 | CO43: D0225
A44: 226 | B44: Meade | C44: Meade | D44: 2585385 | E44: 0 | F44: 0 | G44: 0 | H44: 0 | I44: 384.2 | J44: 0 | K44: 0 | L44: =Weightings!K41 -> 0 | M44: 0 | N44: 0 | O44: 2585385 | P44: 0 | Q44: 296854 | R44: 221900 | S44: 221900 | U44: 3104139 | V44: 155 | W44: 6837 | X44: 0 | Y44: 0 | Z44: 0 | AA44: 0 | AB44: 11500 | AC44: ='2017legmax.xls'!AV41 -> 14 | AD44: ='2017legmax.xls'!AW41 -> A | AE44: ='2017legmax.xls'!AX41 ->  | AF44: 3122631 | AG44: 3122631 | AH44: =IF(Weightings!G41>0,Weightings!G41,'Preliminary SO66'!AB38) -> 3207375 | AI44: 3122631 | AJ44: 3122631 | AK44: 3449937 | AL44: ='2017legmax.xls'!BM41 -> 0.33 | AM44: 1138479 | AN44: 1138479 | AO44: 1138479 | AQ44: 2595768 | AR44: 0 | AS44: 0 | AT44: 0 | AU44: 0 | AV44: 0 | AW44: 0 | AX44: 0 | AY44: 0 | AZ44: 0 | BA44: 10383 | BB44: 0 | BC44: 0 | BD44: 2585385 | BE44: ='2017legmax.xls'!F41 -> 392.7 | BF44: ='2017legmax.xls'!I41 -> 372.5 | BG44: ='2017legmax.xls'!K41 -> 375.4 | BH44: 380.2 | BI44: ='2017legmax.xls'!O41 -> 4 | BJ44: 384.2 | BK44: =IF(ISNA(VLOOKUP($CO44,'Audit Values'!$A$2:$AF$318,2,FALSE)),'Preliminary SO66'!T38,VLOOKUP($CO44,'Audit Values'!$A$2:$AF$318,20,FALSE)) -> 0 | BL44: 0 | BM44: =IF(ISNA(VLOOKUP($CO44,'Audit Values'!$A$2:$AF$318,2,FALSE)),'Preliminary SO66'!U38,VLOOKUP($CO44,'Audit Values'!$A$2:$AF$318,21,FALSE)) -> 0 | BN44: 0 | BO44: 0 | BP44: 0 | BQ44: 0 | BR44: ='2017legmax.xls'!AH41 -> 0 | BS44: 0 | BT44: 0 | BU44: ='2017legmax.xls'!CJ41 -> 0 | BV44: 0 | BW44: ='2017legmax.xls'!CI41 -> 0 | BX44: 0 | BY44: 0 | BZ44: 0 | CA44: 0 | CB44: 0 | CC44: 0 | CD44: 0 | CE44: 0 | CF44: 0 | CG44: 0 | CH44: 0 | CI44: 0 | CJ44: 0 | CK44: 0 | CO44: D0226
A45: 227 | B45: Hodgeman | C45: Hodgeman County Schools | D45: 2062093 | E45: 0 | F45: 0 | G45: 0 | H45: 0 | I45: 286.5 | J45: 0 | K45: 838 | L45: =Weightings!K42 -> 0 | M45: 0 | N45: 0 | O45: 2061255 | P45: 0 | Q45: 207833 | R45: 150438 | S45: 150438 | U45: 2419526 | V45: 18318 | W45: 17132 | X45: 0 | Y45: 0 | Z45: 0 | AA45: 0 | AB45: 500 | AC45: ='2017legmax.xls'!AV42 -> 14 | AD45: ='2017legmax.xls'!AW42 -> A | AE45: ='2017legmax.xls'!AX42 ->  | AF45: 2455476 | AG45: 2455476 | AH45: =IF(Weightings!G42>0,Weightings!G42,'Preliminary SO66'!AB39) -> 2560695 | AI45: 2455476 | AJ45: 2455476 | AK45: 2734027 | AL45: ='2017legmax.xls'!BM42 -> 0.3 | AM45: 820208 | AN45: 820208 | AO45: 820208 | AQ45: 2070375 | AR45: 0 | AS45: 0 | AT45: 0 | AU45: 0 | AV45: 0 | AW45: 0 | AX45: 0 | AY45: 0 | AZ45: 0 | BA45: 8282 | BB45: 0 | BC45: 0 | BD45: 2062093 | BE45: ='2017legmax.xls'!F42 -> 287 | BF45: ='2017legmax.xls'!I42 -> 286.5 | BG45: ='2017legmax.xls'!K42 -> 276 | BH45: 286.5 | BI45: ='2017legmax.xls'!O42 -> 0 | BJ45: 286.5 | BK45: =IF(ISNA(VLOOKUP($CO45,'Audit Values'!$A$2:$AF$318,2,FALSE)),'Preliminary SO66'!T39,VLOOKUP($CO45,'Audit Values'!$A$2:$AF$318,20,FALSE)) -> 0 | BL45: 0 | BM45: =IF(ISNA(VLOOKUP($CO45,'Audit Values'!$A$2:$AF$318,2,FALSE)),'Preliminary SO66'!U39,VLOOKUP($CO45,'Audit Values'!$A$2:$AF$318,21,FALSE)) -> 0 | BN45: 0 | BO45: 0 | BP45: 0 | BQ45: 0 | BR45: ='2017legmax.xls'!AH42 -> 0 | BS45: 0 | BT45: 0 | BU45: ='2017legmax.xls'!CJ42 -> 0 | BV45: 0 | BW45: ='2017legmax.xls'!CI42 -> 0 | BX45: 0 | BY45: 0 | BZ45: 0 | CA45: 0 | CB45: 0 | CC45: 0 | CD45: 0 | CE45: 0 | CF45: 0 | CG45: 0 | CH45: 0 | CI45: 0 | CJ45: 0 | CK45: 0 | CO45: D0227
A46: 229 | B46: Johnson | C46: Blue Valley | D46: =BD46 -> 91207140 | E46: 32810 | F46: 0 | G46: =BX46+CB46+CF46 -> 17404355 | H46: 0 | I46: 21600.3 | J46: 0 | K46: 0 | L46: =Weightings!K43 -> 0 | M46: 0 | N46: 0 | O46: 108644305 | P46: 0 | Q46: 21220859 | R46: 11804180 | S46: 11804180 | U46: 141669344 | V46: 0 | W46: 0 | X46: 0 | Y46: 79444 | Z46: 174427 | AA46: 1313409 | AB46: 508182 | AC46: ='2017legmax.xls'!AV43 -> 14 | AD46: ='2017legmax.xls'!AW43 -> A | AE46: ='2017legmax.xls'!AX43 ->  | AF46: 136733694 | AG46: 143744806 | AH46: =IF(Weightings!G43>0,Weightings!G43,'Preliminary SO66'!AB40) -> 149477854 | AI46: 143744806 | AJ46: 143744806 | AK46: 147030173 | AL46: ='2017legmax.xls'!BM43 -> 0.33 | AM46: 48519957 | AN46: 48519957 | AO46: 48519957 | AQ46: 108317039 | AR46: 0 | AS46: 0 | AT46: 1595.8 | AU46: 6147022 | AV46: 0 | AW46: 0 | AX46: 2743.4 | AY46: 10567577 | AZ46: 16714599 | BA46: 366410 | BB46: 7.5 | BC46: 28890 | BD46: 91207140 | BE46: ='2017legmax.xls'!F43 -> 21375.1 | BF46: ='2017legmax.xls'!I43 -> 21563.7 | BG46: ='2017legmax.xls'!K43 -> 21600.3 | BH46: 21600.3 | BI46: ='2017legmax.xls'!O43 -> 0 | BJ46: 21600.3 | BK46: =IF(ISNA(VLOOKUP($CO46,'Audit Values'!$A$2:$AF$318,2,FALSE)),'Preliminary SO66'!T40,VLOOKUP($CO46,'Audit Values'!$A$2:$AF$318,20,FALSE)) -> 0 | BL46: 0 | BM46: =IF(ISNA(VLOOKUP($CO46,'Audit Values'!$A$2:$AF$318,2,FALSE)),'Preliminary SO66'!U40,VLOOKUP($CO46,'Audit Values'!$A$2:$AF$318,21,FALSE)) -> 19.3 | BN46: 32810 | BO46: 0 | BP46: 0 | BQ46: 32810 | BR46: ='2017legmax.xls'!AH43 -> 0 | BS46: 0 | BT46: 6277970 | BU46: ='2017legmax.xls'!CJ43 -> 0.05 | BV46: 6836685 | BW46: ='2017legmax.xls'!CI43 -> 7110787 | BX46: 6836685 | BY46: 0 | BZ46: 0 | CA46: 0 | CB46: 0 | CC46: 10567670 | CD46: 10567670 | CE46: 10567670 | CF46: 10567670 | CG46: 0 | CH46: 0 | CI46: 75294 | CJ46: 0 | CK46: 0 | CO46: D0229
A47: 230 | B47: Johnson | C47: Spring Hill | D47: 11019928 | E47: 5038839 | F47: 0 | G47: =BX47+CB47+CF47 -> 2528640 | H47: 0 | I47: 2630.1 | J47: 0 | K47: 0 | L47: =Weightings!K44 -> -7464 | M47: 0 | N47: -7464 | O47: 18579943 | P47: 0 | Q47: 2618967 | R47: 1469449 | S47: 1469449 | U47: 22668359 | V47: 0 | W47: 0 | X47: 0 | Y47: 0 | Z47: 0 | AA47: 0 | AB47: 0 | AC47: ='2017legmax.xls'!AV44 -> 12 | AD47: ='2017legmax.xls'!AW44 -> A | AE47: ='2017legmax.xls'!AX44 ->  | AF47: 22668359 | AG47: 22668359 | AH47: =IF(Weightings!G44>0,Weightings!G44,'Preliminary SO66'!AB41) -> 24746488 | AI47: 22668359 | AJ47: 22668359 | AK47: 17538189 | AL47: ='2017legmax.xls'!BM44 -> 0.3 | AM47: 5261457 | AN47: 5261457 | AO47: 5261457 | AQ47: 16235238 | AR47: 842.4 | AS47: 3244925 | AT47: 0 | AU47: 0 | AV47: 0 | AW47: 0 | AX47: 391.7 | AY47: 1508828 | AZ47: 1508828 | BA47: 45926 | BB47: 107.9 | BC47: 415631 | BD47: 11019928 | BE47: ='2017legmax.xls'!F44 -> 2365 | BF47: ='2017legmax.xls'!I44 -> 2490.4 | BG47: ='2017legmax.xls'!K44 -> 2622.1 | BH47: 2622.1 | BI47: ='2017legmax.xls'!O44 -> 8 | BJ47: 2630.1 | BK47: =IF(ISNA(VLOOKUP($CO47,'Audit Values'!$A$2:$AF$318,2,FALSE)),'Preliminary SO66'!T41,VLOOKUP($CO47,'Audit Values'!$A$2:$AF$318,20,FALSE)) -> 933 | BL47: 4665000 | BM47: =IF(ISNA(VLOOKUP($CO47,'Audit Values'!$A$2:$AF$318,2,FALSE)),'Preliminary SO66'!U41,VLOOKUP($CO47,'Audit Values'!$A$2:$AF$318,21,FALSE)) -> 59.1 | BN47: 100470 | BO47: 293 | BP47: 273369 | BQ47: 5038839 | BR47: ='2017legmax.xls'!AH44 -> 0 | BS47: 0 | BT47: 0 | BU47: ='2017legmax.xls'!CJ44 -> 0.0371 | BV47: 840996 | BW47: ='2017legmax.xls'!CI44 -> 0 | BX47: 0 | BY47: 0 | BZ47: 0 | CA47: 0 | CB47: 0 | CC47: 1508640 | CD47: 2528640 | CE47: 2528640 | CF47: 2528640 | CG47: 0 | CH47: 0 | CI47: 0 | CJ47: 0 | CK47: 0 | CO47: D0230
A48: 231 | B48: Johnson | C48: Gardner Edgerton | D48: 24684799 | E48: 0 | F48: 0 | G48: 1681878 | H48: 0 | I48: 5624.5 | J48: 0 | K48: 0 | L48: =Weightings!K45 -> 0 | M48: 0 | N48: 0 | O48: 26366677 | P48: 0 | Q48: 5889368 | R48: 3258519 | S48: 3258519 | U48: 35514564 | V48: 0 | W48: 0 | X48: 0 | Y48: 0 | Z48: 420000 | AA48: 0 | AB48: 46756 | AC48: ='2017legmax.xls'!AV45 -> 12 | AD48: ='2017legmax.xls'!AW45 -> A | AE48: ='2017legmax.xls'!AX45 ->  | AF48: 35419641 | AG48: 35981320 | AH48: =IF(Weightings!G45>0,Weightings!G45,'Preliminary SO66'!AB42) -> 37625675 | AI48: 35981320 | AJ48: 35981320 | AK48: 35123860 | AL48: ='2017legmax.xls'!BM45 -> 0.33 | AM48: 11590874 | AN48: 11590874 | AO48: 11590874 | AQ48: 25741134 | AR48: 0 | AS48: 0 | AT48: 0 | AU48: 0 | AV48: 0 | AW48: 0 | AX48: 0 | AY48: 0 | AZ48: 0 | BA48: 102965 | BB48: 247.5 | BC48: 953370 | BD48: 24684799 | BE48: ='2017legmax.xls'!F45 -> 5350.5 | BF48: ='2017legmax.xls'!I45 -> 5443.7 | BG48: ='2017legmax.xls'!K45 -> 5615.5 | BH48: 5615.5 | BI48: ='2017legmax.xls'!O45 -> 9 | BJ48: 5624.5 | BK48: =IF(ISNA(VLOOKUP($CO48,'Audit Values'!$A$2:$AF$318,2,FALSE)),'Preliminary SO66'!T42,VLOOKUP($CO48,'Audit Values'!$A$2:$AF$318,20,FALSE)) -> 0 | BL48: 0 | BM48: =IF(ISNA(VLOOKUP($CO48,'Audit Values'!$A$2:$AF$318,2,FALSE)),'Preliminary SO66'!U42,VLOOKUP($CO48,'Audit Values'!$A$2:$AF$318,21,FALSE)) -> 0 | BN48: 0 | BO48: 0 | BP48: 0 | BQ48: 0 | BR48: ='2017legmax.xls'!AH45 -> 0 | BS48: 0 | BT48: 0 | BU48: ='2017legmax.xls'!CJ45 -> 0.004 | BV48: 141679 | BW48: ='2017legmax.xls'!CI45 -> 148230 | BX48: 141679 | BY48: 0 | BZ48: 0 | CA48: 0 | CB48: 0 | CC48: 0 | CD48: 1540199 | CE48: 1540199 | CF48: 1540199 | CG48: 0 | CH48: 0 | CI48: 0 | CJ48: 0 | CK48: 0 | CO48: D0231
A49: 232 | B49: Johnson | C49: De Soto | D49: 29899687 | E49: 25270 | F49: 453380 | G49: 1931150 | H49: 0 | I49: 6861.1 | J49: 0 | K49: 0 | L49: =Weightings!K46 -> 0 | M49: 0 | N49: 0 | O49: 32309487 | P49: 0 | Q49: 4708736 | R49: 3212314 | S49: 3212314 | U49: 40230537 | V49: 0 | W49: 0 | X49: 0 | Y49: 0 | Z49: 0 | AA49: 0 | AB49: 101334 | AC49: ='2017legmax.xls'!AV46 -> 14 | AD49: ='2017legmax.xls'!AW46 -> A | AE49: ='2017legmax.xls'!AX46 ->  | AF49: 38411306 | AG49: 40331871 | AH49: =IF(Weightings!G46>0,Weightings!G46,'Preliminary SO66'!AB43) -> 41888316 | AI49: =MIN(AG49,AH49) -> 40331871 | AJ49: 40331871 | AK49: 41855069 | AL49: ='2017legmax.xls'!BM46 -> 0.33 | AM49: 13812173 | AN49: 13812173 | AO49: 13812173 | AQ49: 32100794 | AR49: 0 | AS49: 0 | AT49: 450 | AU49: 1733400 | AV49: 0 | AW49: 0 | AX49: 53.7 | AY49: 206852 | AZ49: 1940252 | BA49: 120642 | BB49: 36.4 | BC49: 140213 | BD49: 29899687 | BE49: ='2017legmax.xls'!F46 -> 6740.1 | BF49: ='2017legmax.xls'!I46 -> 6713.1 | BG49: ='2017legmax.xls'!K46 -> 6851.6 | BH49: 6851.6 | BI49: ='2017legmax.xls'!O46 -> 9.5 | BJ49: 6861.1 | BK49: =IF(ISNA(VLOOKUP($CO49,'Audit Values'!$A$2:$AF$318,2,FALSE)),'Preliminary SO66'!T43,VLOOKUP($CO49,'Audit Values'!$A$2:$AF$318,20,FALSE)) -> 4 | BL49: 20000 | BM49: =IF(ISNA(VLOOKUP($CO49,'Audit Values'!$A$2:$AF$318,2,FALSE)),'Preliminary SO66'!U43,VLOOKUP($CO49,'Audit Values'!$A$2:$AF$318,21,FALSE)) -> 3.1 | BN49: 5270 | BO49: 0 | BP49: 0 | BQ49: 25270 | BR49: ='2017legmax.xls'!AH46 -> 117.7 | BS49: 453380 | BT49: 1764255 | BU49: ='2017legmax.xls'!CJ46 -> 0.05 | BV49: 1920565 | BW49: ='2017legmax.xls'!CI46 -> 1994682 | BX49: 1920565 | BY49: 0 | BZ49: 0 | CA49: 0 | CB49: 0 | CC49: 206997 | CD49: 32244 | CE49: 10585 | CF49: 10585 | CG49: 0 | CH49: 0 | CI49: 0 | CJ49: 0 | CK49: 0 | CO49: D0232
A50: 233 | B50: Johnson | C50: Olathe | D50: 126879122 | E50: 0 | F50: 201460 | G50: 16816445 | H50: 0 | I50: 27850.7 | J50: 0 | K50: 0 | L50: =Weightings!K47 -> 0 | M50: 0 | N50: 0 | O50: 143897027 | P50: 0 | Q50: 26617578 | R50: 15546581 | S50: 15546581 | U50: 186061186 | V50: 0 | W50: 0 | X50: 0 | Y50: 0 | Z50: 4747054 | AA50: 0 | AB50: 375662 | AC50: ='2017legmax.xls'!AV47 -> 11 | AD50: ='2017legmax.xls'!AW47 -> A | AE50: ='2017legmax.xls'!AX47 ->  | AF50: 179128409 | AG50: 191183902 | AH50: =IF(Weightings!G47>0,Weightings!G47,'Preliminary SO66'!AB44) -> 194148830 | AI50: =MIN(AG50,AH50) -> 191183902 | AJ50: 191183902 | AK50: 194305467 | AL50: ='2017legmax.xls'!BM47 -> 0.33 | AM50: 64120804 | AN50: 64120804 | AO50: 64120804 | AQ50: 143083741 | AR50: 0 | AS50: 0 | AT50: 1500.4 | AU50: 5779541 | AV50: 0 | AW50: 0 | AX50: 2468.3 | AY50: 9507892 | AZ50: 15287433 | BA50: 511185 | BB50: 105.4 | BC50: 406001 | BD50: 126879122 | BE50: ='2017legmax.xls'!F47 -> 27571.4 | BF50: ='2017legmax.xls'!I47 -> 27799.1 | BG50: ='2017legmax.xls'!K47 -> 27820.7 | BH50: 27820.7 | BI50: ='2017legmax.xls'!O47 -> 30 | BJ50: 27850.7 | BK50: =IF(ISNA(VLOOKUP($CO50,'Audit Values'!$A$2:$AF$318,2,FALSE)),'Preliminary SO66'!T44,VLOOKUP($CO50,'Audit Values'!$A$2:$AF$318,20,FALSE)) -> 0 | BL50: 0 | BM50: =IF(ISNA(VLOOKUP($CO50,'Audit Values'!$A$2:$AF$318,2,FALSE)),'Preliminary SO66'!U44,VLOOKUP($CO50,'Audit Values'!$A$2:$AF$318,21,FALSE)) -> 0 | BN50: 0 | BO50: 0 | BP50: 0 | BQ50: 0 | BR50: ='2017legmax.xls'!AH47 -> 52.3 | BS50: 201460 | BT50: 5805141 | BU50: ='2017legmax.xls'!CJ47 -> 0.0408 | BV50: 7308439 | BW50: ='2017legmax.xls'!CI47 -> 7610754 | BX50: 7308439 | BY50: 0 | BZ50: 0 | CA50: 0 | CB50: 0 | CC50: 9508006 | CD50: 9508006 | CE50: 9508006 | CF50: 9508006 | CG50: 0 | CH50: 0 | CI50: 0 | CJ50: 0 | CK50: 0 | CO50: D0233
A51: 234 | B51: Bourbon | C51: Fort Scott | D51: 9974449 | E51: 26530 | F51: 0 | G51: 0 | H51: 0 | I51: 1815.1 | J51: 0 | K51: 0 | L51: =Weightings!K48 -> 0 | M51: 0 | N51: 0 | O51: 10000979 | P51: 0 | Q51: 1224520 | R51: 1002576 | S51: 1002576 | U51: 12228075 | V51: 604 | W51: 0 | X51: 0 | Y51: 0 | Z51: 0 | AA51: 1641 | AB51: 1836 | AC51: ='2017legmax.xls'!AV48 -> 1 | AD51: ='2017legmax.xls'!AW48 -> A | AE51: ='2017legmax.xls'!AX48 ->  | AF51: 12232156 | AG51: 12232156 | AH51: =IF(Weightings!G48>0,Weightings!G48,'Preliminary SO66'!AB45) -> 12638951 | AI51: 12232156 | AJ51: 12232156 | AK51: 12823929 | AL51: ='2017legmax.xls'!BM48 -> 0.3 | AM51: 3847179 | AN51: 3607179 | AO51: 3607179 | AQ51: 10014507 | AR51: 0 | AS51: 0 | AT51: 0 | AU51: 0 | AV51: 0 | AW51: 0 | AX51: 0 | AY51: 0 | AZ51: 0 | BA51: 40058 | BB51: 0 | BC51: 0 | BD51: 9974449 | BE51: ='2017legmax.xls'!F48 -> 1801.1 | BF51: ='2017legmax.xls'!I48 -> 1797.1 | BG51: ='2017legmax.xls'!K48 -> 1777.5 | BH51: 1797.1 | BI51: ='2017legmax.xls'!O48 -> 18 | BJ51: 1815.1 | BK51: =IF(ISNA(VLOOKUP($CO51,'Audit Values'!$A$2:$AF$318,2,FALSE)),'Preliminary SO66'!T45,VLOOKUP($CO51,'Audit Values'!$A$2:$AF$318,20,FALSE)) -> 5 | BL51: 25000 | BM51: =IF(ISNA(VLOOKUP($CO51,'Audit Values'!$A$2:$AF$318,2,FALSE)),'Preliminary SO66'!U45,VLOOKUP($CO51,'Audit Values'!$A$2:$AF$318,21,FALSE)) -> 0.9 | BN51: 1530 | BO51: 0 | BP51: 0 | BQ51: 26530 | BR51: ='2017legmax.xls'!AH48 -> 0 | BS51: 0 | BT51: 0 | BU51: ='2017legmax.xls'!CJ48 -> 0 | BV51: 0 | BW51: ='2017legmax.xls'!CI48 -> 0 | BX51: 0 | BY51: 0 | BZ51: 0 | CA51: 0 | CB51: 0 | CC51: 0 | CD51: 0 | CE51: 0 | CF51: 0 | CG51: 0 | CH51: 0 | CI51: 0 | CJ51: 0 | CK51: 0 | CO51: D0234
A52: 235 | B52: Bourbon | C52: Uniontown | D52: 3219026 | E52: 0 | F52: 0 | G52: 0 | H52: 0 | I52: 426.3 | J52: 0 | K52: 0 | L52: =Weightings!K49 -> 0 | M52: 0 | N52: 0 | O52: 3219026 | P52: 0 | Q52: 384979 | R52: 247042 | S52: 247042 | U52: 3851047 | V52: 0 | W52: 0 | X52: 0 | Y52: 0 | Z52: 0 | AA52: 0 | AB52: 1693 | AC52: ='2017legmax.xls'!AV49 -> 12 | AD52: ='2017legmax.xls'!AW49 -> A | AE52: ='2017legmax.xls'!AX49 ->  | AF52: 3852740 | AG52: 3852740 | AH52: =IF(Weightings!G49>0,Weightings!G49,'Preliminary SO66'!AB46) -> 4007433 | AI52: 3852740 | AJ52: 3852740 | AK52: 4155633 | AL52: ='2017legmax.xls'!BM49 -> 0.3 | AM52: 1246690 | AN52: 1246690 | AO52: 1246690 | AQ52: 3231954 | AR52: 0 | AS52: 0 | AT52: 0 | AU52: 0 | AV52: 0 | AW52: 0 | AX52: 0 | AY52: 0 | AZ52: 0 | BA52: 12928 | BB52: 0 | BC52: 0 | BD52: 3219026 | BE52: ='2017legmax.xls'!F49 -> 430 | BF52: ='2017legmax.xls'!I49 -> 420 | BG52: ='2017legmax.xls'!K49 -> 412.5 | BH52: 420.8 | BI52: ='2017legmax.xls'!O49 -> 5.5 | BJ52: 426.3 | BK52: =IF(ISNA(VLOOKUP($CO52,'Audit Values'!$A$2:$AF$318,2,FALSE)),'Preliminary SO66'!T46,VLOOKUP($CO52,'Audit Values'!$A$2:$AF$318,20,FALSE)) -> 0 | BL52: 0 | BM52: =IF(ISNA(VLOOKUP($CO52,'Audit Values'!$A$2:$AF$318,2,FALSE)),'Preliminary SO66'!U46,VLOOKUP($CO52,'Audit Values'!$A$2:$AF$318,21,FALSE)) -> 0 | BN52: 0 | BO52: 0 | BP52: 0 | BQ52: 0 | BR52: ='2017legmax.xls'!AH49 -> 0 | BS52: 0 | BT52: 0 | BU52: ='2017legmax.xls'!CJ49 -> 0 | BV52: 0 | BW52: ='2017legmax.xls'!CI49 -> 0 | BX52: 0 | BY52: 0 | BZ52: 0 | CA52: 0 | CB52: 0 | CC52: 0 | CD52: 0 | CE52: 0 | CF52: 0 | CG52: 0 | CH52: 0 | CI52: 0 | CJ52: 0 | CK52: 0 | CO52: D0235
A53: 237 | B53: Smith | C53: Smith Center | D53: 2635441 | E53: 5000 | F53: 0 | G53: 0 | H53: 0 | I53: 381.5 | J53: 0 | K53: 0 | L53: =Weightings!K50 -> 0 | M53: 0 | N53: 0 | O53: 2640441 | P53: 0 | Q53: 478331 | R53: 198675 | S53: 198675 | U53: 3317447 | V53: 0 | W53: 0 | X53: 0 | Y53: 0 | Z53: 0 | AA53: 38470 | AB53: 2213 | AC53: ='2017legmax.xls'!AV50 -> 3 | AD53: ='2017legmax.xls'!AW50 -> A | AE53: ='2017legmax.xls'!AX50 ->  | AF53: 3358130 | AG53: 3358130 | AH53: =IF(Weightings!G50>0,Weightings!G50,'Preliminary SO66'!AB47) -> 3482186 | AI53: 3358130 | AJ53: 3358130 | AK53: 3670216 | AL53: ='2017legmax.xls'!BM50 -> 0.33 | AM53: 1211171 | AN53: 1211171 | AO53: 1211171 | AQ53: 2686086 | AR53: 10.4 | AS53: 40061 | AT53: 0 | AU53: 0 | AV53: 0 | AW53: 0 | AX53: 0 | AY53: 0 | AZ53: 0 | BA53: 10584 | BB53: 0 | BC53: 0 | BD53: 2635441 | BE53: ='2017legmax.xls'!F50 -> 380.8 | BF53: ='2017legmax.xls'!I50 -> 369.5 | BG53: ='2017legmax.xls'!K50 -> 381.5 | BH53: 381.5 | BI53: ='2017legmax.xls'!O50 -> 0 | BJ53: 381.5 | BK53: =IF(ISNA(VLOOKUP($CO53,'Audit Values'!$A$2:$AF$318,2,FALSE)),'Preliminary SO66'!T47,VLOOKUP($CO53,'Audit Values'!$A$2:$AF$318,20,FALSE)) -> 1 | BL53: 5000 | BM53: =IF(ISNA(VLOOKUP($CO53,'Audit Values'!$A$2:$AF$318,2,FALSE)),'Preliminary SO66'!U47,VLOOKUP($CO53,'Audit Values'!$A$2:$AF$318,21,FALSE)) -> 0 | BN53: 0 | BO53: 0 | BP53: 0 | BQ53: 5000 | BR53: ='2017legmax.xls'!AH50 -> 0 | BS53: 0 | BT53: 0 | BU53: ='2017legmax.xls'!CJ50 -> 0 | BV53: 0 | BW53: ='2017legmax.xls'!CI50 -> 0 | BX53: 0 | BY53: 0 | BZ53: 0 | CA53: 0 | CB53: 0 | CC53: 0 | CD53: 0 | CE53: 0 | CF53: 0 | CG53: 0 | CH53: 0 | CI53: 0 | CJ53: 0 | CK53: 0 | CO53: D0237
A54: 239 | B54: Ottawa | C54: North Ottawa County | D54: 3853818 | E54: 0 | F54: 0 | G54: 0 | H54: 0 | I54: 599.9 | J54: 0 | K54: 0 | L54: =Weightings!K51 -> 0 | M54: 0 | N54: 0 | O54: 3853818 | P54: 0 | Q54: 649217 | R54: 309066 | S54: 309066 | U54: 4812101 | V54: 0 | W54: 0 | X54: 0 | Y54: 0 | Z54: 0 | AA54: 0 | AB54: 6112 | AC54: ='2017legmax.xls'!AV51 -> 5 | AD54: ='2017legmax.xls'!AW51 -> A | AE54: ='2017legmax.xls'!AX51 ->  | AF54: 4818213 | AG54: 4818213 | AH54: =IF(Weightings!G51>0,Weightings!G51,'Preliminary SO66'!AB48) -> 5031452 | AI54: 4818213 | AJ54: 4818213 | AK54: 5146980 | AL54: ='2017legmax.xls'!BM51 -> 0.33 | AM54: 1698503 | AN54: 1698503 | AO54: 1698503 | AQ54: 3877384 | AR54: 2.1 | AS54: 8089 | AT54: 0 | AU54: 0 | AV54: 0 | AW54: 0 | AX54: 0 | AY54: 0 | AZ54: 0 | BA54: 15477 | BB54: 0 | BC54: 0 | BD54: 3853818 | BE54: ='2017legmax.xls'!F51 -> 603.8 | BF54: ='2017legmax.xls'!I51 -> 599.9 | BG54: ='2017legmax.xls'!K51 -> 594.2 | BH54: 599.9 | BI54: ='2017legmax.xls'!O51 -> 0 | BJ54: 599.9 | BK54: =IF(ISNA(VLOOKUP($CO54,'Audit Values'!$A$2:$AF$318,2,FALSE)),'Preliminary SO66'!T48,VLOOKUP($CO54,'Audit Values'!$A$2:$AF$318,20,FALSE)) -> 0 | BL54: 0 | BM54: =IF(ISNA(VLOOKUP($CO54,'Audit Values'!$A$2:$AF$318,2,FALSE)),'Preliminary SO66'!U48,VLOOKUP($CO54,'Audit Values'!$A$2:$AF$318,21,FALSE)) -> 0 | BN54: 0 | BO54: 0 | BP54: 0 | BQ54: 0 | BR54: ='2017legmax.xls'!AH51 -> 0 | BS54: 0 | BT54: 0 | BU54: ='2017legmax.xls'!CJ51 -> 0 | BV54: 0 | BW54: ='2017legmax.xls'!CI51 -> 0 | BX54: 0 | BY54: 0 | BZ54: 0 | CA54: 0 | CB54: 0 | CC54: 0 | CD54: 0 | CE54: 0 | CF54: 0 | CG54: 0 | CH54: 0 | CI54: 0 | CJ54: 0 | CK54: 0 | CO54: D0239
A55: 240 | B55: Ottawa | C55: Twin Valley | D55: 3718935 | E55: 0 | F55: 0 | G55: 0 | H55: 0 | I55: 578.1 | J55: 0 | K55: 0 | L55: =Weightings!K52 -> 0 | M55: 0 | N55: 0 | O55: 3718935 | P55: 0 | Q55: 520343 | R55: 266507 | S55: 266507 | U55: 4505785 | V55: 0 | W55: 0 | X55: 0 | Y55: 0 | Z55: 0 | AA55: 0 | AB55: 0 | AC55: ='2017legmax.xls'!AV52 -> 3 | AD55: ='2017legmax.xls'!AW52 -> A | AE55: ='2017legmax.xls'!AX52 ->  | AF55: 4505785 | AG55: 4505785 | AH55: =IF(Weightings!G52>0,Weightings!G52,'Preliminary SO66'!AB49) -> 4699927 | AI55: 4505785 | AJ55: 4505785 | AK55: 4946241 | AL55: ='2017legmax.xls'!BM52 -> 0.33 | AM55: 1632260 | AN55: 1632260 | AO55: 1632260 | AQ55: 3796272 | AR55: 16.2 | AS55: 62402 | AT55: 0 | AU55: 0 | AV55: 0 | AW55: 0 | AX55: 0 | AY55: 0 | AZ55: 0 | BA55: 14935 | BB55: 0 | BC55: 0 | BD55: 3718935 | BE55: ='2017legmax.xls'!F52 -> 577 | BF55: ='2017legmax.xls'!I52 -> 562.7 | BG55: ='2017legmax.xls'!K52 -> 561.5 | BH55: 567.1 | BI55: ='2017legmax.xls'!O52 -> 11 | BJ55: 578.1 | BK55: =IF(ISNA(VLOOKUP($CO55,'Audit Values'!$A$2:$AF$318,2,FALSE)),'Preliminary SO66'!T49,VLOOKUP($CO55,'Audit Values'!$A$2:$AF$318,20,FALSE)) -> 0 | BL55: 0 | BM55: =IF(ISNA(VLOOKUP($CO55,'Audit Values'!$A$2:$AF$318,2,FALSE)),'Preliminary SO66'!U49,VLOOKUP($CO55,'Audit Values'!$A$2:$AF$318,21,FALSE)) -> 0 | BN55: 0 | BO55: 0 | BP55: 0 | BQ55: 0 | BR55: ='2017legmax.xls'!AH52 -> 0 | BS55: 0 | BT55: 0 | BU55: ='2017legmax.xls'!CJ52 -> 0 | BV55: 0 | BW55: ='2017legmax.xls'!CI52 -> 0 | BX55: 0 | BY55: 0 | BZ55: 0 | CA55: 0 | CB55: 0 | CC55: 0 | CD55: 0 | CE55: 0 | CF55: 0 | CG55: 0 | CH55: 0 | CI55: 0 | CJ55: 0 | CK55: 0 | CO55: D0240
A56: 241 | B56: Wallace | C56: Wallace County Schools | D56: 1470254 | E56: 0 | F56: 0 | G56: 0 | H56: 0 | I56: 193 | J56: 0 | K56: 0 | L56: =Weightings!K53 -> 0 | M56: 0 | N56: 0 | O56: 1470254 | P56: 0 | Q56: 146198 | R56: 126524 | S56: 126524 | U56: 1742976 | V56: 0 | W56: 3192 | X56: 0 | Y56: 0 | Z56: 0 | AA56: 0 | AB56: 0 | AC56: ='2017legmax.xls'!AV53 -> 12 | AD56: ='2017legmax.xls'!AW53 -> A | AE56: ='2017legmax.xls'!AX53 ->  | AF56: 1746168 | AG56: 1746168 | AH56: =IF(Weightings!G53>0,Weightings!G53,'Preliminary SO66'!AB50) -> 2059681 | AI56: 1746168 | AJ56: 1746168 | AK56: 1887220 | AL56: ='2017legmax.xls'!BM53 -> 0.3 | AM56: 566166 | AN56: 566166 | AO56: 566166 | AQ56: 1476159 | AR56: 0 | AS56: 0 | AT56: 0 | AU56: 0 | AV56: 0 | AW56: 0 | AX56: 0 | AY56: 0 | AZ56: 0 | BA56: 5905 | BB56: 0 | BC56: 0 | BD56: 1470254 | BE56: ='2017legmax.xls'!F53 -> 185.5 | BF56: ='2017legmax.xls'!I53 -> 172.5 | BG56: ='2017legmax.xls'!K53 -> 193 | BH56: 193 | BI56: ='2017legmax.xls'!O53 -> 0 | BJ56: 193 | BK56: =IF(ISNA(VLOOKUP($CO56,'Audit Values'!$A$2:$AF$318,2,FALSE)),'Preliminary SO66'!T50,VLOOKUP($CO56,'Audit Values'!$A$2:$AF$318,20,FALSE)) -> 0 | BL56: 0 | BM56: =IF(ISNA(VLOOKUP($CO56,'Audit Values'!$A$2:$AF$318,2,FALSE)),'Preliminary SO66'!U50,VLOOKUP($CO56,'Audit Values'!$A$2:$AF$318,21,FALSE)) -> 0 | BN56: 0 | BO56: 0 | BP56: 0 | BQ56: 0 | BR56: ='2017legmax.xls'!AH53 -> 0 | BS56: 0 | BT56: 0 | BU56: ='2017legmax.xls'!CJ53 -> 0 | BV56: 0 | BW56: ='2017legmax.xls'!CI53 -> 0 | BX56: 0 | BY56: 0 | BZ56: 0 | CA56: 0 | CB56: 0 | CC56: 0 | CD56: 0 | CE56: 0 | CF56: 0 | CG56: 0 | CH56: 0 | CI56: 0 | CJ56: 0 | CK56: 0 | CO56: D0241
A57: 242 | B57: Wallace | C57: Weskan | D57: 823991 | E57: 0 | F57: 0 | G57: 0 | H57: 0 | I57: 96.5 | J57: 0 | K57: 0 | L57: =Weightings!K54 -> 0 | M57: 0 | N57: 0 | O57: 823991 | P57: 0 | Q57: 108253 | R57: 55973 | S57: 55973 | U57: 988217 | V57: 0 | W57: 3308 | X57: 0 | Y57: 0 | Z57: 0 | AA57: 0 | AB57: 0 | AC57: ='2017legmax.xls'!AV54 -> 12 | AD57: ='2017legmax.xls'!AW54 -> A | AE57: ='2017legmax.xls'!AX54 ->  | AF57: 991525 | AG57: 991525 | AH57: =IF(Weightings!G54>0,Weightings!G54,'Preliminary SO66'!AB51) -> 1047421 | AI57: 991525 | AJ57: 991525 | AK57: 1084168 | AL57: ='2017legmax.xls'!BM54 -> 0.33 | AM57: 357775 | AN57: 357775 | AO57: 357775 | AQ57: 827300 | AR57: 0 | AS57: 0 | AT57: 0 | AU57: 0 | AV57: 0 | AW57: 0 | AX57: 0 | AY57: 0 | AZ57: 0 | BA57: 3309 | BB57: 0 | BC57: 0 | BD57: 823991 | BE57: ='2017legmax.xls'!F54 -> 95.7 | BF57: ='2017legmax.xls'!I54 -> 92.5 | BG57: ='2017legmax.xls'!K54 -> 96.5 | BH57: 96.5 | BI57: ='2017legmax.xls'!O54 -> 0 | BJ57: 96.5 | BK57: =IF(ISNA(VLOOKUP($CO57,'Audit Values'!$A$2:$AF$318,2,FALSE)),'Preliminary SO66'!T51,VLOOKUP($CO57,'Audit Values'!$A$2:$AF$318,20,FALSE)) -> 0 | BL57: 0 | BM57: =IF(ISNA(VLOOKUP($CO57,'Audit Values'!$A$2:$AF$318,2,FALSE)),'Preliminary SO66'!U51,VLOOKUP($CO57,'Audit Values'!$A$2:$AF$318,21,FALSE)) -> 0 | BN57: 0 | BO57: 0 | BP57: 0 | BQ57: 0 | BR57: ='2017legmax.xls'!AH54 -> 0 | BS57: 0 | BT57: 0 | BU57: ='2017legmax.xls'!CJ54 -> 0 | BV57: 0 | BW57: ='2017legmax.xls'!CI54 -> 0 | BX57: 0 | BY57: 0 | BZ57: 0 | CA57: 0 | CB57: 0 | CC57: 0 | CD57: 0 | CE57: 0 | CF57: 0 | CG57: 0 | CH57: 0 | CI57: 0 | CJ57: 0 | CK57: 0 | CO57: D0242
A58: 243 | B58: Coffey | C58: Lebo-Waverly | D58: 3092710 | E58: 0 | F58: 0 | G58: 0 | H58: 0 | I58: 424.7 | J58: 0 | K58: 0 | L58: =Weightings!K55 -> 0 | M58: 0 | N58: 0 | O58: 3092710 | P58: 0 | Q58: 456154 | R58: 217868 | S58: 217868 | U58: 3766732 | V58: 0 | W58: 9 | X58: 0 | Y58: 0 | Z58: 0 | AA58: 2486 | AB58: 1413 | AC58: ='2017legmax.xls'!AV55 -> 4 | AD58: ='2017legmax.xls'!AW55 -> A | AE58: ='2017legmax.xls'!AX55 ->  | AF58: 3770640 | AG58: 3770640 | AH58: =IF(Weightings!G55>0,Weightings!G55,'Preliminary SO66'!AB52) -> 3852454 | AI58: 3770640 | AJ58: 3770640 | AK58: 4269129 | AL58: ='2017legmax.xls'!BM55 -> 0.3 | AM58: 1280739 | AN58: 1280739 | AO58: 1280739 | AQ58: 3105131 | AR58: 0 | AS58: 0 | AT58: 0 | AU58: 0 | AV58: 0 | AW58: 0 | AX58: 0 | AY58: 0 | AZ58: 0 | BA58: 12421 | BB58: 0 | BC58: 0 | BD58: 3092710 | BE58: ='2017legmax.xls'!F55 -> 452.5 | BF58: ='2017legmax.xls'!I55 -> 414.7 | BG58: ='2017legmax.xls'!K55 -> 407 | BH58: 424.7 | BI58: ='2017legmax.xls'!O55 -> 0 | BJ58: 424.7 | BK58: =IF(ISNA(VLOOKUP($CO58,'Audit Values'!$A$2:$AF$318,2,FALSE)),'Preliminary SO66'!T52,VLOOKUP($CO58,'Audit Values'!$A$2:$AF$318,20,FALSE)) -> 0 | BL58: 0 | BM58: =IF(ISNA(VLOOKUP($CO58,'Audit Values'!$A$2:$AF$318,2,FALSE)),'Preliminary SO66'!U52,VLOOKUP($CO58,'Audit Values'!$A$2:$AF$318,21,FALSE)) -> 0 | BN58: 0 | BO58: 0 | BP58: 0 | BQ58: 0 | BR58: ='2017legmax.xls'!AH55 -> 0 | BS58: 0 | BT58: 0 | BU58: ='2017legmax.xls'!CJ55 -> 0 | BV58: 0 | BW58: ='2017legmax.xls'!CI55 -> 0 | BX58: 0 | BY58: 0 | BZ58: 0 | CA58: 0 | CB58: 0 | CC58: 0 | CD58: 0 | CE58: 0 | CF58: 0 | CG58: 0 | CH58: 0 | CI58: 0 | CJ58: 0 | CK58: 0 | CO58: D0243
A59: 244 | B59: Coffey | C59: Burlington | D59: 4796683 | E59: 0 | F59: 0 | G59: 0 | H59: 0 | I59: 828.5 | J59: 0 | K59: 0 | L59: =Weightings!K56 -> 0 | M59: 0 | N59: 0 | O59: 4796683 | P59: 0 | Q59: 1199928 | R59: 630759 | S59: 630759 | U59: 6627370 | V59: 0 | W59: 0 | X59: 20298 | Y59: 0 | Z59: 0 | AA59: 7504 | AB59: 26412 | AC59: ='2017legmax.xls'!AV56 -> 1 | AD59: ='2017legmax.xls'!AW56 -> A | AE59: ='2017legmax.xls'!AX56 ->  | AF59: 6681584 | AG59: 6681584 | AH59: =IF(Weightings!G56>0,Weightings!G56,'Preliminary SO66'!AB53) -> 7057432 | AI59: 6681584 | AJ59: 6681584 | AK59: 6937545 | AL59: ='2017legmax.xls'!BM56 -> 0.3 | AM59: 2081264 | AN59: 2081264 | AO59: 2081264 | AQ59: 4815947 | AR59: 0 | AS59: 0 | AT59: 0 | AU59: 0 | AV59: 0 | AW59: 0 | AX59: 0 | AY59: 0 | AZ59: 0 | BA59: 19264 | BB59: 0 | BC59: 0 | BD59: 4796683 | BE59: ='2017legmax.xls'!F56 -> 815 | BF59: ='2017legmax.xls'!I56 -> 815.5 | BG59: ='2017legmax.xls'!K56 -> 825.5 | BH59: 825.5 | BI59: ='2017legmax.xls'!O56 -> 3 | BJ59: 828.5 | BK59: =IF(ISNA(VLOOKUP($CO59,'Audit Values'!$A$2:$AF$318,2,FALSE)),'Preliminary SO66'!T53,VLOOKUP($CO59,'Audit Values'!$A$2:$AF$318,20,FALSE)) -> 0 | BL59: 0 | BM59: =IF(ISNA(VLOOKUP($CO59,'Audit Values'!$A$2:$AF$318,2,FALSE)),'Preliminary SO66'!U53,VLOOKUP($CO59,'Audit Values'!$A$2:$AF$318,21,FALSE)) -> 0 | BN59: 0 | BO59: 0 | BP59: 0 | BQ59: 0 | BR59: ='2017legmax.xls'!AH56 -> 0 | BS59: 0 | BT59: 0 | BU59: ='2017legmax.xls'!CJ56 -> 0 | BV59: 0 | BW59: ='2017legmax.xls'!CI56 -> 0 | BX59: 0 | BY59: 0 | BZ59: 0 | CA59: 0 | CB59: 0 | CC59: 0 | CD59: 0 | CE59: 0 | CF59: 0 | CG59: 20298 | CH59: 20036 | CI59: 0 | CJ59: 0 | CK59: 0 | CO59: D0244
A60: 245 | B60: Coffey | C60: LeRoy-Gridley | D60: 1721685 | E60: 0 | F60: 0 | G60: 0 | H60: 0 | I60: 206.5 | J60: 0 | K60: 0 | L60: =Weightings!K57 -> 0 | M60: 0 | N60: 0 | O60: 1721685 | P60: 0 | Q60: 231191 | R60: 108707 | S60: 108707 | U60: 2061583 | V60: 0 | W60: 0 | X60: 0 | Y60: 0 | Z60: 0 | AA60: 15169 | AB60: 13104 | AC60: ='2017legmax.xls'!AV57 -> 7 | AD60: ='2017legmax.xls'!AW57 -> A | AE60: ='2017legmax.xls'!AX57 ->  | AF60: 2089856 | AG60: 2089856 | AH60: =IF(Weightings!G57>0,Weightings!G57,'Preliminary SO66'!AB54) -> 2188911 | AI60: 2089856 | AJ60: 2089856 | AK60: 2317010 | AL60: ='2017legmax.xls'!BM57 -> 0.3 | AM60: 695103 | AN60: 695103 | AO60: 695103 | AQ60: 1728599 | AR60: 0 | AS60: 0 | AT60: 0 | AU60: 0 | AV60: 0 | AW60: 0 | AX60: 0 | AY60: 0 | AZ60: 0 | BA60: 6914 | BB60: 0 | BC60: 0 | BD60: 1721685 | BE60: ='2017legmax.xls'!F57 -> 214.1 | BF60: ='2017legmax.xls'!I57 -> 206.5 | BG60: ='2017legmax.xls'!K57 -> 195.5 | BH60: 206.5 | BI60: ='2017legmax.xls'!O57 -> 0 | BJ60: 206.5 | BK60: =IF(ISNA(VLOOKUP($CO60,'Audit Values'!$A$2:$AF$318,2,FALSE)),'Preliminary SO66'!T54,VLOOKUP($CO60,'Audit Values'!$A$2:$AF$318,20,FALSE)) -> 0 | BL60: 0 | BM60: =IF(ISNA(VLOOKUP($CO60,'Audit Values'!$A$2:$AF$318,2,FALSE)),'Preliminary SO66'!U54,VLOOKUP($CO60,'Audit Values'!$A$2:$AF$318,21,FALSE)) -> 0 | BN60: 0 | BO60: 0 | BP60: 0 | BQ60: 0 | BR60: ='2017legmax.xls'!AH57 -> 0 | BS60: 0 | BT60: 0 | BU60: ='2017legmax.xls'!CJ57 -> 0 | BV60: 0 | BW60: ='2017legmax.xls'!CI57 -> 0 | BX60: 0 | BY60: 0 | BZ60: 0 | CA60: 0 | CB60: 0 | CC60: 0 | CD60: 0 | CE60: 0 | CF60: 0 | CG60: 0 | CH60: 0 | CI60: 0 | CJ60: 0 | CK60: 0 | CO60: D0245
A61: 246 | B61: Crawford | C61: Northeast | D61: 3494458 | E61: 38995 | F61: 0 | G61: 0 | H61: 0 | I61: 466.9 | J61: 0 | K61: 0 | L61: =Weightings!K58 -> -933 | M61: 0 | N61: -933 | O61: 3532520 | P61: 0 | Q61: 492442 | R61: 286599 | S61: 286599 | U61: 4311561 | V61: 1720 | W61: 0 | X61: 0 | Y61: 0 | Z61: 0 | AA61: 3152 | AB61: 13041 | AC61: ='2017legmax.xls'!AV58 -> 11 | AD61: ='2017legmax.xls'!AW58 -> A | AE61: ='2017legmax.xls'!AX58 ->  | AF61: 4329474 | AG61: 4329474 | AH61: =IF(Weightings!G58>0,Weightings!G58,'Preliminary SO66'!AB55) -> 4632205 | AI61: 4329474 | AJ61: 4329474 | AK61: 4611386 | AL61: ='2017legmax.xls'!BM58 -> 0.3 | AM61: 1383416 | AN61: 1383416 | AO61: 1383416 | AQ61: 3508492 | AR61: 0 | AS61: 0 | AT61: 0 | AU61: 0 | AV61: 0 | AW61: 0 | AX61: 0 | AY61: 0 | AZ61: 0 | BA61: 14034 | BB61: 0 | BC61: 0 | BD61: 3494458 | BE61: ='2017legmax.xls'!F58 -> 480.5 | BF61: ='2017legmax.xls'!I58 -> 451.1 | BG61: ='2017legmax.xls'!K58 -> 451 | BH61: 460.9 | BI61: ='2017legmax.xls'!O58 -> 6 | BJ61: 466.9 | BK61: =IF(ISNA(VLOOKUP($CO61,'Audit Values'!$A$2:$AF$318,2,FALSE)),'Preliminary SO66'!T55,VLOOKUP($CO61,'Audit Values'!$A$2:$AF$318,20,FALSE)) -> 5 | BL61: 25000 | BM61: =IF(ISNA(VLOOKUP($CO61,'Audit Values'!$A$2:$AF$318,2,FALSE)),'Preliminary SO66'!U55,VLOOKUP($CO61,'Audit Values'!$A$2:$AF$318,21,FALSE)) -> 0 | BN61: 0 | BO61: 15 | BP61: 13995 | BQ61: 38995 | BR61: ='2017legmax.xls'!AH58 -> 0 | BS61: 0 | BT61: 0 | BU61: ='2017legmax.xls'!CJ58 -> 0 | BV61: 0 | BW61: ='2017legmax.xls'!CI58 -> 0 | BX61: 0 | BY61: 0 | BZ61: 0 | CA61: 0 | CB61: 0 | CC61: 0 | CD61: 0 | CE61: 0 | CF61: 0 | CG61: 0 | CH61: 0 | CI61: 0 | CJ61: 0 | CK61: 0 | CO61: D0246
A62: 247 | B62: Crawford | C62: Cherokee | D62: 4237194 | E62: 5000 | F62: 0 | G62: 0 | H62: 0 | I62: 512.7 | J62: 0 | K62: 212 | L62: =Weightings!K59 -> 0 | M62: 0 | N62: 0 | O62: 4241982 | P62: 0 | Q62: 605453 | R62: 339498 | S62: 339498 | U62: 5186933 | V62: 0 | W62: 26 | X62: 0 | Y62: 0 | Z62: 0 | AA62: 5000 | AB62: 1754 | AC62: ='2017legmax.xls'!AV59 -> 11 | AD62: ='2017legmax.xls'!AW59 -> A | AE62: ='2017legmax.xls'!AX59 ->  | AF62: 5193713 | AG62: 5193713 | AH62: =IF(Weightings!G59>0,Weightings!G59,'Preliminary SO66'!AB56) -> 5541873 | AI62: 5193713 | AJ62: 5193713 | AK62: 5615396 | AL62: ='2017legmax.xls'!BM59 -> 0.3 | AM62: 1684619 | AN62: 1684619 | AO62: 1684619 | AQ62: 4254211 | AR62: 0 | AS62: 0 | AT62: 0 | AU62: 0 | AV62: 0 | AW62: 0 | AX62: 0 | AY62: 0 | AZ62: 0 | BA62: 17017 | BB62: 0 | BC62: 0 | BD62: 4237194 | BE62: ='2017legmax.xls'!F59 -> 559.4 | BF62: ='2017legmax.xls'!I59 -> 503.1 | BG62: ='2017legmax.xls'!K59 -> 457.5 | BH62: 506.7 | BI62: ='2017legmax.xls'!O59 -> 6 | BJ62: 512.7 | BK62: =IF(ISNA(VLOOKUP($CO62,'Audit Values'!$A$2:$AF$318,2,FALSE)),'Preliminary SO66'!T56,VLOOKUP($CO62,'Audit Values'!$A$2:$AF$318,20,FALSE)) -> 1 | BL62: 5000 | BM62: =IF(ISNA(VLOOKUP($CO62,'Audit Values'!$A$2:$AF$318,2,FALSE)),'Preliminary SO66'!U56,VLOOKUP($CO62,'Audit Values'!$A$2:$AF$318,21,FALSE)) -> 0 | BN62: 0 | BO62: 0 | BP62: 0 | BQ62: 5000 | BR62: ='2017legmax.xls'!AH59 -> 0 | BS62: 0 | BT62: 0 | BU62: ='2017legmax.xls'!CJ59 -> 0 | BV62: 0 | BW62: ='2017legmax.xls'!CI59 -> 0 | BX62: 0 | BY62: 0 | BZ62: 0 | CA62: 0 | CB62: 0 | CC62: 0 | CD62: 0 | CE62: 0 | CF62: 0 | CG62: 0 | CH62: 0 | CI62: 0 | CJ62: 0 | CK62: 0 | CO62: D0247
A63: 248 | B63: Crawford | C63: Girard | D63: 5896008 | E63: 12550 | F63: 196452 | G63: 0 | H63: 0 | I63: 984.8 | J63: 0 | K63: 0 | L63: =Weightings!K60 -> 0 | M63: 0 | N63: 0 | O63: 6105010 | P63: 0 | Q63: 934338 | R63: 493273 | S63: 493273 | U63: 7532621 | V63: 0 | W63: 93 | X63: 0 | Y63: 0 | Z63: 0 | AA63: 14735 | AB63: 15921 | AC63: ='2017legmax.xls'!AV60 -> 1 | AD63: ='2017legmax.xls'!AW60 -> A | AE63: ='2017legmax.xls'!AX60 ->  | AF63: 7563370 | AG63: 7563370 | AH63: =IF(Weightings!G60>0,Weightings!G60,'Preliminary SO66'!AB57) -> 7935401 | AI63: 7563370 | AJ63: 7563370 | AK63: 7783582 | AL63: ='2017legmax.xls'!BM60 -> 0.3 | AM63: 2335075 | AN63: 2335075 | AO63: 2335075 | AQ63: 5919687 | AR63: 0 | AS63: 0 | AT63: 0 | AU63: 0 | AV63: 0 | AW63: 0 | AX63: 0 | AY63: 0 | AZ63: 0 | BA63: 23679 | BB63: 0 | BC63: 0 | BD63: 5896008 | BE63: ='2017legmax.xls'!F60 -> 973.5 | BF63: ='2017legmax.xls'!I60 -> 977.8 | BG63: ='2017legmax.xls'!K60 -> 961 | BH63: 977.8 | BI63: ='2017legmax.xls'!O60 -> 7 | BJ63: 984.8 | BK63: =IF(ISNA(VLOOKUP($CO63,'Audit Values'!$A$2:$AF$318,2,FALSE)),'Preliminary SO66'!T57,VLOOKUP($CO63,'Audit Values'!$A$2:$AF$318,20,FALSE)) -> 2 | BL63: 10000 | BM63: =IF(ISNA(VLOOKUP($CO63,'Audit Values'!$A$2:$AF$318,2,FALSE)),'Preliminary SO66'!U57,VLOOKUP($CO63,'Audit Values'!$A$2:$AF$318,21,FALSE)) -> 1.5 | BN63: 2550 | BO63: 0 | BP63: 0 | BQ63: 12550 | BR63: ='2017legmax.xls'!AH60 -> 51 | BS63: 196452 | BT63: 0 | BU63: ='2017legmax.xls'!CJ60 -> 0 | BV63: 0 | BW63: ='2017legmax.xls'!CI60 -> 0 | BX63: 0 | BY63: 0 | BZ63: 0 | CA63: 0 | CB63: 0 | CC63: 0 | CD63: 0 | CE63: 0 | CF63: 0 | CG63: 0 | CH63: 0 | CI63: 0 | CJ63: 0 | CK63: 0 | CO63: D0248
A64: 249 | B64: Crawford | C64: Frontenac Public Schools | D64: 5121478 | E64: 8732 | F64: 0 | G64: 0 | H64: 0 | I64: 896.5 | J64: 0 | K64: 0 | L64: =Weightings!K61 -> 0 | M64: 0 | N64: 0 | O64: 5130210 | P64: 0 | Q64: 829225 | R64: 396011 | S64: 396011 | U64: 6355446 | V64: 0 | W64: 0 | X64: 0 | Y64: 0 | Z64: 0 | AA64: 0 | AB64: 8700 | AC64: ='2017legmax.xls'!AV61 -> 2 | AD64: ='2017legmax.xls'!AW61 -> A | AE64: ='2017legmax.xls'!AX61 ->  | AF64: 6364146 | AG64: 6364146 | AH64: =IF(Weightings!G61>0,Weightings!G61,'Preliminary SO66'!AB58) -> 6606801 | AI64: 6364146 | AJ64: 6364146 | AK64: 6780652 | AL64: ='2017legmax.xls'!BM61 -> 0.3 | AM64: 2034196 | AN64: 2034196 | AO64: 2034196 | AQ64: 5142046 | AR64: 0 | AS64: 0 | AT64: 0 | AU64: 0 | AV64: 0 | AW64: 0 | AX64: 0 | AY64: 0 | AZ64: 0 | BA64: 20568 | BB64: 0 | BC64: 0 | BD64: 5121478 | BE64: ='2017legmax.xls'!F61 -> 868.5 | BF64: ='2017legmax.xls'!I61 -> 866.4 | BG64: ='2017legmax.xls'!K61 -> 892 | BH64: 892 | BI64: ='2017legmax.xls'!O61 -> 4.5 | BJ64: 896.5 | BK64: =IF(ISNA(VLOOKUP($CO64,'Audit Values'!$A$2:$AF$318,2,FALSE)),'Preliminary SO66'!T58,VLOOKUP($CO64,'Audit Values'!$A$2:$AF$318,20,FALSE)) -> 1 | BL64: 5000 | BM64: =IF(ISNA(VLOOKUP($CO64,'Audit Values'!$A$2:$AF$318,2,FALSE)),'Preliminary SO66'!U58,VLOOKUP($CO64,'Audit Values'!$A$2:$AF$318,21,FALSE)) -> 0 | BN64: 0 | BO64: 4 | BP64: 3732 | BQ64: 8732 | BR64: ='2017legmax.xls'!AH61 -> 0 | BS64: 0 | BT64: 0 | BU64: ='2017legmax.xls'!CJ61 -> 0 | BV64: 0 | BW64: ='2017legmax.xls'!CI61 -> 0 | BX64: 0 | BY64: 0 | BZ64: 0 | CA64: 0 | CB64: 0 | CC64: 0 | CD64: 0 | CE64: 0 | CF64: 0 | CG64: 0 | CH64: 0 | CI64: 0 | CJ64: 0 | CK64: 0 | CO64: D0249
A65: 250 | B65: Crawford | C65: Pittsburg | D65: 15796997 | E65: 187075 | F65: 0 | G65: 0 | H65: 0 | I65: 2889.3 | J65: 0 | K65: 1541 | L65: =Weightings!K62 -> -1400 | M65: 0 | N65: -1400 | O65: 15981131 | P65: 0 | Q65: 2638509 | R65: 1426914 | S65: 1426914 | U65: 20046554 | V65: 1541 | W65: 1 | X65: 0 | Y65: 0 | Z65: 0 | AA65: 0 | AB65: 10334 | AC65: ='2017legmax.xls'!AV62 -> 14 | AD65: ='2017legmax.xls'!AW62 -> A | AE65: ='2017legmax.xls'!AX62 ->  | AF65: 20058430 | AG65: 20058430 | AH65: =IF(Weightings!G62>0,Weightings!G62,'Preliminary SO66'!AB59) -> 21212695 | AI65: 20058430 | AJ65: 20058430 | AK65: 21215732 | AL65: ='2017legmax.xls'!BM62 -> 0.3 | AM65: 6364720 | AN65: 6364720 | AO65: 6364720 | AQ65: 15869299 | AR65: 2.3 | AS65: 8860 | AT65: 0 | AU65: 0 | AV65: 0 | AW65: 0 | AX65: 0 | AY65: 0 | AZ65: 0 | BA65: 63442 | BB65: 0 | BC65: 0 | BD65: 15796997 | BE65: ='2017legmax.xls'!F62 -> 2851 | BF65: ='2017legmax.xls'!I62 -> 2824.9 | BG65: ='2017legmax.xls'!K62 -> 2869.3 | BH65: 2869.3 | BI65: ='2017legmax.xls'!O62 -> 20 | BJ65: 2889.3 | BK65: =IF(ISNA(VLOOKUP($CO65,'Audit Values'!$A$2:$AF$318,2,FALSE)),'Preliminary SO66'!T59,VLOOKUP($CO65,'Audit Values'!$A$2:$AF$318,20,FALSE)) -> 30 | BL65: 150000 | BM65: =IF(ISNA(VLOOKUP($CO65,'Audit Values'!$A$2:$AF$318,2,FALSE)),'Preliminary SO66'!U59,VLOOKUP($CO65,'Audit Values'!$A$2:$AF$318,21,FALSE)) -> 2.6 | BN65: 4420 | BO65: 35 | BP65: 32655 | BQ65: 187075 | BR65: ='2017legmax.xls'!AH62 -> 0 | BS65: 0 | BT65: 0 | BU65: ='2017legmax.xls'!CJ62 -> 0 | BV65: 0 | BW65: ='2017legmax.xls'!CI62 -> 0 | BX65: 0 | BY65: 0 | BZ65: 0 | CA65: 0 | CB65: 0 | CC65: 0 | CD65: 0 | CE65: 0 | CF65: 0 | CG65: 0 | CH65: 0 | CI65: 0 | CJ65: 0 | CK65: 0 | CO65: D0250
A66: 251 | B66: Lyon | C66: North Lyon County | D66: 3072149 | E66: 850 | F66: 0 | G66: 0 | H66: 0 | I66: 415 | J66: 0 | K66: 0 | L66: =Weightings!K63 -> 0 | M66: 0 | N66: 0 | O66: 3072999 | P66: 0 | Q66: 423973 | R66: 226443 | S66: 226443 | U66: 3723415 | V66: 83 | W66: 35 | X66: 0 | Y66: 0 | Z66: 0 | AA66: 1344 | AB66: 20115 | AC66: 22 | AD66: ='2017legmax.xls'!AW63 -> A | AE66: ='2017legmax.xls'!AX63 ->  | AF66: 3744992 | AG66: 3744992 | AH66: =IF(Weightings!G63>0,Weightings!G63,'Preliminary SO66'!AB60) -> 3874898 | AI66: 3744992 | AJ66: 3744992 | AK66: 4037678 | AL66: ='2017legmax.xls'!BM63 -> 0.3 | AM66: 1211303 | AN66: 1211303 | AO66: 1211303 | AQ66: 3084487 | AR66: 0 | AS66: 0 | AT66: 0 | AU66: 0 | AV66: 0 | AW66: 0 | AX66: 0 | AY66: 0 | AZ66: 0 | BA66: 12338 | BB66: 0 | BC66: 0 | BD66: 3072149 | BE66: ='2017legmax.xls'!F63 -> 406.1 | BF66: ='2017legmax.xls'!I63 -> 415 | BG66: ='2017legmax.xls'!K63 -> 383 | BH66: 415 | BI66: ='2017legmax.xls'!O63 -> 0 | BJ66: 415 | BK66: =IF(ISNA(VLOOKUP($CO66,'Audit Values'!$A$2:$AF$318,2,FALSE)),'Preliminary SO66'!T60,VLOOKUP($CO66,'Audit Values'!$A$2:$AF$318,20,FALSE)) -> 0 | BL66: 0 | BM66: =IF(ISNA(VLOOKUP($CO66,'Audit Values'!$A$2:$AF$318,2,FALSE)),'Preliminary SO66'!U60,VLOOKUP($CO66,'Audit Values'!$A$2:$AF$318,21,FALSE)) -> 0.5 | BN66: 850 | BO66: 0 | BP66: 0 | BQ66: 850 | BR66: ='2017legmax.xls'!AH63 -> 0 | BS66: 0 | BT66: 0 | BU66: ='2017legmax.xls'!CJ63 -> 0 | BV66: 0 | BW66: ='2017legmax.xls'!CI63 -> 0 | BX66: 0 | BY66: 0 | BZ66: 0 | CA66: 0 | CB66: 0 | CC66: 0 | CD66: 0 | CE66: 0 | CF66: 0 | CG66: 0 | CH66: 0 | CI66: 0 | CJ66: 0 | CK66: 0 | CO66: D0251
A67: 252 | B67: Lyon | C67: Southern Lyon County | D67: 3383302 | E67: 0 | F67: 0 | G67: 0 | H67: 0 | I67: 496.5 | J67: 0 | K67: 0 | L67: =Weightings!K64 -> 0 | M67: 0 | N67: 0 | O67: 3383302 | P67: 0 | Q67: 511336 | R67: 269894 | S67: 269894 | U67: 4164532 | V67: 744 | W67: 2081 | X67: 0 | Y67: 0 | Z67: 0 | AA67: 0 | AB67: 16602 | AC67: ='2017legmax.xls'!AV64 -> 3 | AD67: ='2017legmax.xls'!AW64 -> A | AE67: ='2017legmax.xls'!AX64 ->  | AF67: 4183959 | AG67: 4183959 | AH67: =IF(Weightings!G64>0,Weightings!G64,'Preliminary SO66'!AB61) -> 4348794 | AI67: 4183959 | AJ67: 4183959 | AK67: 4500840 | AL67: ='2017legmax.xls'!BM64 -> 0.3 | AM67: 1350252 | AN67: 1350252 | AO67: 1350252 | AQ67: 3396890 | AR67: 0 | AS67: 0 | AT67: 0 | AU67: 0 | AV67: 0 | AW67: 0 | AX67: 0 | AY67: 0 | AZ67: 0 | BA67: 13588 | BB67: 0 | BC67: 0 | BD67: 3383302 | BE67: ='2017legmax.xls'!F64 -> 498 | BF67: ='2017legmax.xls'!I64 -> 488.5 | BG67: ='2017legmax.xls'!K64 -> 464.5 | BH67: 488.5 | BI67: ='2017legmax.xls'!O64 -> 8 | BJ67: 496.5 | BK67: =IF(ISNA(VLOOKUP($CO67,'Audit Values'!$A$2:$AF$318,2,FALSE)),'Preliminary SO66'!T61,VLOOKUP($CO67,'Audit Values'!$A$2:$AF$318,20,FALSE)) -> 0 | BL67: 0 | BM67: =IF(ISNA(VLOOKUP($CO67,'Audit Values'!$A$2:$AF$318,2,FALSE)),'Preliminary SO66'!U61,VLOOKUP($CO67,'Audit Values'!$A$2:$AF$318,21,FALSE)) -> 0 | BN67: 0 | BO67: 0 | BP67: 0 | BQ67: 0 | BR67: ='2017legmax.xls'!AH64 -> 0 | BS67: 0 | BT67: 0 | BU67: ='2017legmax.xls'!CJ64 -> 0 | BV67: 0 | BW67: ='2017legmax.xls'!CI64 -> 0 | BX67: 0 | BY67: 0 | BZ67: 0 | CA67: 0 | CB67: 0 | CC67: 0 | CD67: 0 | CE67: 0 | CF67: 0 | CG67: 0 | CH67: 0 | CI67: 0 | CJ67: 0 | CK67: 0 | CO67: D0252
A68: 253 | B68: Lyon | C68: Emporia | D68: 24572120 | E68: 14930 | F68: 0 | G68: 0 | H68: 0 | I68: 4379.7 | J68: 0 | K68: 0 | L68: =Weightings!K65 -> 0 | M68: 0 | N68: 0 | O68: 24587050 | P68: 0 | Q68: 3265828 | R68: 2808948 | S68: 2808948 | U68: 30661826 | V68: 0 | W68: 0 | X68: 0 | Y68: 0 | Z68: 0 | AA68: 0 | AB68: 34063 | AC68: ='2017legmax.xls'!AV65 -> 11 | AD68: ='2017legmax.xls'!AW65 -> A | AE68: ='2017legmax.xls'!AX65 ->  | AF68: 30695889 | AG68: 30695889 | AH68: =IF(Weightings!G65>0,Weightings!G65,'Preliminary SO66'!AB62) -> 32156640 | AI68: 30695889 | AJ68: 30695889 | AK68: 31860405 | AL68: ='2017legmax.xls'!BM65 -> 0.3 | AM68: 9558122 | AN68: 9558122 | AO68: 9558122 | AQ68: 24691219 | AR68: 5.3 | AS68: 20416 | AT68: 0 | AU68: 0 | AV68: 0 | AW68: 0 | AX68: 0 | AY68: 0 | AZ68: 0 | BA68: 98683 | BB68: 0 | BC68: 0 | BD68: 24572120 | BE68: ='2017legmax.xls'!F65 -> 4210.3 | BF68: ='2017legmax.xls'!I65 -> 4317.2 | BG68: ='2017legmax.xls'!K65 -> 4270.1 | BH68: 4317.2 | BI68: ='2017legmax.xls'!O65 -> 62.5 | BJ68: 4379.7 | BK68: =IF(ISNA(VLOOKUP($CO68,'Audit Values'!$A$2:$AF$318,2,FALSE)),'Preliminary SO66'!T62,VLOOKUP($CO68,'Audit Values'!$A$2:$AF$318,20,FALSE)) -> 2 | BL68: 10000 | BM68: =IF(ISNA(VLOOKUP($CO68,'Audit Values'!$A$2:$AF$318,2,FALSE)),'Preliminary SO66'!U62,VLOOKUP($CO68,'Audit Values'!$A$2:$AF$318,21,FALSE)) -> 2.9 | BN68: 4930 | BO68: 0 | BP68: 0 | BQ68: 14930 | BR68: ='2017legmax.xls'!AH65 -> 0 | BS68: 0 | BT68: 0 | BU68: ='2017legmax.xls'!CJ65 -> 0 | BV68: 0 | BW68: ='2017legmax.xls'!CI65 -> 0 | BX68: 0 | BY68: 0 | BZ68: 0 | CA68: 0 | CB68: 0 | CC68: 0 | CD68: 0 | CE68: 0 | CF68: 0 | CG68: 0 | CH68: 0 | CI68: 0 | CJ68: 0 | CK68: 0 | CO68: D0253
A69: 254 | B69: Barber | C69: Barber County North | D69: 2814659 | E69: 0 | F69: 0 | G69: 0 | H69: 0 | I69: 455.5 | J69: 0 | K69: 0 | L69: =Weightings!K66 -> 0 | M69: 0 | N69: 0 | O69: 2814659 | P69: 0 | Q69: 566432 | R69: 231002 | S69: 231002 | U69: 3612093 | V69: 0 | W69: 7100 | X69: 0 | Y69: 0 | Z69: 0 | AA69: 7179 | AB69: 3823 | AC69: ='2017legmax.xls'!AV66 -> 10 | AD69: ='2017legmax.xls'!AW66 -> A | AE69: ='2017legmax.xls'!AX66 ->  | AF69: 3630195 | AG69: 3630195 | AH69: =IF(Weightings!G66>0,Weightings!G66,'Preliminary SO66'!AB63) -> 3885374 | AI69: 3630195 | AJ69: 3630195 | AK69: 4025581 | AL69: ='2017legmax.xls'!BM66 -> 0.3 | AM69: 1207674 | AN69: 1207674 | AO69: 1207674 | AQ69: 2825963 | AR69: 0 | AS69: 0 | AT69: 0 | AU69: 0 | AV69: 0 | AW69: 0 | AX69: 0 | AY69: 0 | AZ69: 0 | BA69: 11304 | BB69: 0 | BC69: 0 | BD69: 2814659 | BE69: ='2017legmax.xls'!F66 -> 436.5 | BF69: ='2017legmax.xls'!I66 -> 437.5 | BG69: ='2017legmax.xls'!K66 -> 451 | BH69: 451 | BI69: ='2017legmax.xls'!O66 -> 4.5 | BJ69: 455.5 | BK69: =IF(ISNA(VLOOKUP($CO69,'Audit Values'!$A$2:$AF$318,2,FALSE)),'Preliminary SO66'!T63,VLOOKUP($CO69,'Audit Values'!$A$2:$AF$318,20,FALSE)) -> 0 | BL69: 0 | BM69: =IF(ISNA(VLOOKUP($CO69,'Audit Values'!$A$2:$AF$318,2,FALSE)),'Preliminary SO66'!U63,VLOOKUP($CO69,'Audit Values'!$A$2:$AF$318,21,FALSE)) -> 0 | BN69: 0 | BO69: 0 | BP69: 0 | BQ69: 0 | BR69: ='2017legmax.xls'!AH66 -> 0 | BS69: 0 | BT69: 0 | BU69: ='2017legmax.xls'!CJ66 -> 0 | BV69: 0 | BW69: ='2017legmax.xls'!CI66 -> 0 | BX69: 0 | BY69: 0 | BZ69: 0 | CA69: 0 | CB69: 0 | CC69: 0 | CD69: 0 | CE69: 0 | CF69: 0 | CG69: 0 | CH69: 0 | CI69: 0 | CJ69: 0 | CK69: 0 | CO69: D0254
A70: 255 | B70: Barber | C70: South Barber | D70: 1431826 | E70: 0 | F70: 0 | G70: 0 | H70: 0 | I70: 238 | J70: 0 | K70: 0 | L70: =Weightings!K67 -> 0 | M70: 0 | N70: 0 | O70: 1431826 | P70: 0 | Q70: 288030 | R70: 121612 | S70: 121612 | U70: 1841468 | V70: 0 | W70: 19641 | X70: 0 | Y70: 0 | Z70: 0 | AA70: 0 | AB70: 0 | AC70: ='2017legmax.xls'!AV67 -> 12 | AD70: ='2017legmax.xls'!AW67 -> A | AE70: ='2017legmax.xls'!AX67 ->  | AF70: 1861109 | AG70: 1861109 | AH70: =IF(Weightings!G67>0,Weightings!G67,'Preliminary SO66'!AB64) -> 2196952 | AI70: 1861109 | AJ70: 1861109 | AK70: 2292555 | AL70: ='2017legmax.xls'!BM67 -> 0.3 | AM70: 687767 | AN70: 687767 | AO70: 687767 | AQ70: 1437576 | AR70: 0 | AS70: 0 | AT70: 0 | AU70: 0 | AV70: 0 | AW70: 0 | AX70: 0 | AY70: 0 | AZ70: 0 | BA70: 5750 | BB70: 0 | BC70: 0 | BD70: 1431826 | BE70: ='2017legmax.xls'!F67 -> 223.5 | BF70: ='2017legmax.xls'!I67 -> 223.5 | BG70: ='2017legmax.xls'!K67 -> 235 | BH70: 235 | BI70: ='2017legmax.xls'!O67 -> 3 | BJ70: 238 | BK70: =IF(ISNA(VLOOKUP($CO70,'Audit Values'!$A$2:$AF$318,2,FALSE)),'Preliminary SO66'!T64,VLOOKUP($CO70,'Audit Values'!$A$2:$AF$318,20,FALSE)) -> 0 | BL70: 0 | BM70: =IF(ISNA(VLOOKUP($CO70,'Audit Values'!$A$2:$AF$318,2,FALSE)),'Preliminary SO66'!U64,VLOOKUP($CO70,'Audit Values'!$A$2:$AF$318,21,FALSE)) -> 0 | BN70: 0 | BO70: 0 | BP70: 0 | BQ70: 0 | BR70: ='2017legmax.xls'!AH67 -> 0 | BS70: 0 | BT70: 0 | BU70: ='2017legmax.xls'!CJ67 -> 0 | BV70: 0 | BW70: ='2017legmax.xls'!CI67 -> 0 | BX70: 0 | BY70: 0 | BZ70: 0 | CA70: 0 | CB70: 0 | CC70: 0 | CD70: 0 | CE70: 0 | CF70: 0 | CG70: 0 | CH70: 0 | CI70: 0 | CJ70: 0 | CK70: 0 | CO70: D0255
A71: 256 | B71: Allen | C71: Marmaton Valley | D71: 2095785 | E71: 0 | F71: 0 | G71: 0 | H71: 0 | I71: 276 | J71: 0 | K71: 0 | L71: =Weightings!K68 -> 0 | M71: 0 | N71: 0 | O71: 2095785 | P71: 0 | Q71: 360965 | R71: 133028 | S71: 133028 | U71: 2589778 | V71: 0 | W71: 93 | X71: 0 | Y71: 0 | Z71: 0 | AA71: 0 | AB71: 568 | AC71: ='2017legmax.xls'!AV68 -> 2 | AD71: ='2017legmax.xls'!AW68 -> A | AE71: ='2017legmax.xls'!AX68 ->  | AF71: 2590439 | AG71: 2590439 | AH71: =IF(Weightings!G68>0,Weightings!G68,'Preliminary SO66'!AB65) -> 2818679 | AI71: 2590439 | AJ71: 2590439 | AK71: 2897371 | AL71: ='2017legmax.xls'!BM68 -> 0.2979 | AM71: 863127 | AN71: 863127 | AO71: 863127 | AQ71: 2104202 | AR71: 0 | AS71: 0 | AT71: 0 | AU71: 0 | AV71: 0 | AW71: 0 | AX71: 0 | AY71: 0 | AZ71: 0 | BA71: 8417 | BB71: 0 | BC71: 0 | BD71: 2095785 | BE71: ='2017legmax.xls'!F68 -> 270.5 | BF71: ='2017legmax.xls'!I68 -> 272.5 | BG71: ='2017legmax.xls'!K68 -> 271.8 | BH71: 272.5 | BI71: ='2017legmax.xls'!O68 -> 3.5 | BJ71: 276 | BK71: =IF(ISNA(VLOOKUP($CO71,'Audit Values'!$A$2:$AF$318,2,FALSE)),'Preliminary SO66'!T65,VLOOKUP($CO71,'Audit Values'!$A$2:$AF$318,20,FALSE)) -> 0 | BL71: 0 | BM71: =IF(ISNA(VLOOKUP($CO71,'Audit Values'!$A$2:$AF$318,2,FALSE)),'Preliminary SO66'!U65,VLOOKUP($CO71,'Audit Values'!$A$2:$AF$318,21,FALSE)) -> 0 | BN71: 0 | BO71: 0 | BP71: 0 | BQ71: 0 | BR71: ='2017legmax.xls'!AH68 -> 0 | BS71: 0 | BT71: 0 | BU71: ='2017legmax.xls'!CJ68 -> 0 | BV71: 0 | BW71: ='2017legmax.xls'!CI68 -> 0 | BX71: 0 | BY71: 0 | BZ71: 0 | CA71: 0 | CB71: 0 | CC71: 0 | CD71: 0 | CE71: 0 | CF71: 0 | CG71: 0 | CH71: 0 | CI71: 0 | CJ71: 0 | CK71: 0 | CO71: D0256
A72: 257 | B72: Allen | C72: Iola | D72: 7475159 | E72: 135027 | F72: 0 | G72: 0 | H72: 0 | I72: 1232.8 | J72: 0 | K72: 0 | L72: =Weightings!K69 -> 0 | M72: 0 | N72: 0 | O72: 7610186 | P72: 0 | Q72: 1474568 | R72: 596262 | S72: 596262 | U72: 9681016 | V72: 14343 | W72: 156 | X72: 0 | Y72: 0 | Z72: 0 | AA72: 112663 | AB72: 18707 | AC72: ='2017legmax.xls'!AV69 -> 12 | AD72: ='2017legmax.xls'!AW69 -> A | AE72: ='2017legmax.xls'!AX69 ->  | AF72: 9826885 | AG72: 9826885 | AH72: =IF(Weightings!G69>0,Weightings!G69,'Preliminary SO66'!AB66) -> 10247086 | AI72: 9826885 | AJ72: 9826885 | AK72: 10502939 | AL72: ='2017legmax.xls'!BM69 -> 0.3 | AM72: 3150882 | AN72: 3150882 | AO72: 3150882 | AQ72: 7505180 | AR72: 0 | AS72: 0 | AT72: 0 | AU72: 0 | AV72: 0 | AW72: 0 | AX72: 0 | AY72: 0 | AZ72: 0 | BA72: 30021 | BB72: 0 | BC72: 0 | BD72: 7475159 | BE72: ='2017legmax.xls'!F69 -> 1251.3 | BF72: ='2017legmax.xls'!I69 -> 1220 | BG72: ='2017legmax.xls'!K69 -> 1195.5 | BH72: 1222.3 | BI72: ='2017legmax.xls'!O69 -> 10.5 | BJ72: 1232.8 | BK72: =IF(ISNA(VLOOKUP($CO72,'Audit Values'!$A$2:$AF$318,2,FALSE)),'Preliminary SO66'!T66,VLOOKUP($CO72,'Audit Values'!$A$2:$AF$318,20,FALSE)) -> 24 | BL72: 120000 | BM72: =IF(ISNA(VLOOKUP($CO72,'Audit Values'!$A$2:$AF$318,2,FALSE)),'Preliminary SO66'!U66,VLOOKUP($CO72,'Audit Values'!$A$2:$AF$318,21,FALSE)) -> 3.9 | BN72: 6630 | BO72: 9 | BP72: 8397 | BQ72: 135027 | BR72: ='2017legmax.xls'!AH69 -> 0 | BS72: 0 | BT72: 0 | BU72: ='2017legmax.xls'!CJ69 -> 0 | BV72: =AF72*BU72 -> 0 | BW72: ='2017legmax.xls'!CI69 -> 0 | BX72: 0 | BY72: 0 | BZ72: 0 | CA72: 0 | CB72: 0 | CC72: 0 | CD72: 0 | CE72: 0 | CF72: 0 | CG72: 0 | CH72: 0 | CI72: 0 | CJ72: 0 | CK72: 0 | CO72: D0257
A73: 258 | B73: Allen | C73: Humboldt | D73: =BD73 -> 3707928 | E73: =BQ73 -> 698571 | F73: =BS73 -> 0 | G73: 0 | H73: =IF((CH73-CG73)<0,0,CH73-CG73) -> 0 | I73: =BJ73 -> 590 | J73: =I73*$J$6 -> 0 | K73: 0 | L73: =Weightings!K70 -> -35454 | M73: 0 | N73: =L73+M73 -> -35454 | O73: =SUM(D73+E73+F73+G73+H73+J73)-K73+N73 -> 4371045 | P73: 0 | Q73: 680212 | R73: 315148 | S73: =R73 -> 315148 | U73: =O73+P73+Q73+R73+T73 -> 5366405 | V73: 0 | W73: 74 | X73: 0 | Y73: 0 | Z73: 0 | AA73: 752 | AB73: 18517 | AC73: 23 | AD73: ='2017legmax.xls'!AW70 -> A | AE73: ='2017legmax.xls'!AX70 ->  | AF73: =D73+E73+F73-K73+CB73+CF73+H73+J73+N73+P73+Q73+S73+T73+V73+W73+X73+Y73+AA73+AB73 -> 5385748 | AG73: =AF73+BX73-S73+R73+Z73 -> 5385748 | AH73: =IF(Weightings!G70>0,Weightings!G70,'Preliminary SO66'!AB67) -> 6209030 | AI73: 5385748 | AJ73: =MIN(AG73,AH73) -> 5385748 | AK73: 5050365 | AL73: ='2017legmax.xls'!BM70 -> 0.3 | AM73: =AK73*AL73 -> 1515110 | AN73: 1515110 | AO73: =MIN(AM73,AN73) -> 1515110 | AQ73: 4485130 | AR73: 197.9 | AS73: =AR73*$AS$6 -> 762311 | AT73: 0 | AU73: =AT73*$AU$6 -> 0 | AV73: 0 | AW73: =AV73*$AW$6 -> 0 | AX73: 0 | AY73: =AX73*$AY$6 -> 0 | AZ73: =AU73+AW73+AY73 -> 0 | BA73: =SUM(AQ73-AS73-AZ73)*$BA$6 -> 14891 | BB73: 0 | BC73: =BB73*$BC$6 -> 0 | BD73: =AQ73-AS73-AZ73-BA73-BC73 -> 3707928 | BE73: ='2017legmax.xls'!F70 -> 569 | BF73: ='2017legmax.xls'!I70 -> 584 | BG73: ='2017legmax.xls'!K70 -> 557 | BH73: =MAX(BG73,BF73, AVERAGE(BE73,BF73,BG73)) -> 584 | BI73: ='2017legmax.xls'!O70 -> 6 | BJ73: =BH73+BI73 -> 590 | BK73: =IF(ISNA(VLOOKUP($CO73,'Audit Values'!$A$2:$AF$318,2,FALSE)),'Preliminary SO66'!T67,VLOOKUP($CO73,'Audit Values'!$A$2:$AF$318,20,FALSE)) -> 58 | BL73: =BK73*$BL$6 -> 290000 | BM73: =IF(ISNA(VLOOKUP($CO73,'Audit Values'!$A$2:$AF$318,2,FALSE)),'Preliminary SO66'!U67,VLOOKUP($CO73,'Audit Values'!$A$2:$AF$318,21,FALSE)) -> 0.5 | BN73: =BM73*$BN$6 -> 850 | BO73: 437 | BP73: =BO73*$BP$6 -> 407721 | BQ73: =BL73+BN73+BP73 -> 698571 | BR73: ='2017legmax.xls'!AH70 -> 0 | BS73: =BR73*$BS$6 -> 0 | BT73: 0 | BU73: ='2017legmax.xls'!CJ70 -> 0 | BV73: 0 | BW73: ='2017legmax.xls'!CI70 -> 0 | BX73: =MIN(BV73,BW73) -> 0 | BY73: 0 | BZ73: 0 | CA73: 0 | CB73: =IF(CA73>MAX(BY73,BZ73), MAX(BY73,BZ73),CA73) -> 0 | CC73: 0 | CD73: 0 | CE73: 0 | CF73: =IF(CE73>MAX(CC73,CD73),MAX(CC73,CD73),CE73) -> 0 | CG73: =X73 -> 0 | CH73: 0 | CI73: 0 | CJ73: 0 | CK73: 0 | CO73: D0258
A74: 259 | B74: Sedgwick | C74: Wichita | D74: 277750247 | E74: 1468767 | F74: 2267287 | G74: 0 | H74: 0 | I74: 46959.7 | J74: 0 | K74: 232529 | L74: =Weightings!K71 -> -13529 | M74: 0 | N74: -13529 | O74: 281240243 | P74: 0 | Q74: 43088438 | R74: 27581510 | S74: 27581510 | U74: 351910191 | V74: 5520450 | W74: 577 | X74: 0 | Y74: 0 | Z74: 0 | AA74: 148478 | AB74: 382596 | AC74: ='2017legmax.xls'!AV71 -> 4 | AD74: ='2017legmax.xls'!AW71 -> A | AE74: ='2017legmax.xls'!AX71 ->  | AF74: 357962292 | AG74: 357962292 | AH74: =IF(Weightings!G71>0,Weightings!G71,'Preliminary SO66'!AB68) -> 372707457 | AI74: 357962292 | AJ74: 357962292 | AK74: 371231551 | AL74: ='2017legmax.xls'!BM71 -> 0.3 | AM74: 111369465 | AN74: 111369465 | AO74: 111369465 | AQ74: 280523697 | AR74: 199.8 | AS74: 769630 | AT74: 0 | AU74: 0 | AV74: 0 | AW74: 0 | AX74: 0 | AY74: 0 | AZ74: 0 | BA74: 1119016 | BB74: 229.7 | BC74: 884804 | BD74: 277750247 | BE74: ='2017legmax.xls'!F71 -> 46108.1 | BF74: ='2017legmax.xls'!I71 -> 46003.7 | BG74: ='2017legmax.xls'!K71 -> 45583.7 | BH74: 46003.7 | BI74: ='2017legmax.xls'!O71 -> 956 | BJ74: 46959.7 | BK74: =IF(ISNA(VLOOKUP($CO74,'Audit Values'!$A$2:$AF$318,2,FALSE)),'Preliminary SO66'!T68,VLOOKUP($CO74,'Audit Values'!$A$2:$AF$318,20,FALSE)) -> 244 | BL74: 1220000 | BM74: =IF(ISNA(VLOOKUP($CO74,'Audit Values'!$A$2:$AF$318,2,FALSE)),'Preliminary SO66'!U68,VLOOKUP($CO74,'Audit Values'!$A$2:$AF$318,21,FALSE)) -> 4.6 | BN74: 7820 | BO74: 258.25 | BP74: 240947 | BQ74: 1468767 | BR74: ='2017legmax.xls'!AH71 -> 588.6 | BS74: 2267287 | BT74: 0 | BU74: ='2017legmax.xls'!CJ71 -> 0 | BV74: 0 | BW74: ='2017legmax.xls'!CI71 -> 0 | BX74: 0 | BY74: 0 | BZ74: 0 | CA74: 0 | CB74: 0 | CC74: 0 | CD74: 0 | CE74: 0 | CF74: 0 | CG74: 0 | CH74: 0 | CI74: 0 | CJ74: 0 | CK74: 0 | CO74: D0259
A75: 260 | B75: Sedgwick | C75: Derby | D75: 31699379 | E75: 34080 | F75: 1078945 | G75: 0 | H75: 20128 | I75: 6472 | J75: 0 | K75: 0 | L75: =Weightings!K72 -> 0 | M75: 0 | N75: 0 | O75: 32832532 | P75: 0 | Q75: 5375363 | R75: 3376167 | S75: 3376167 | U75: 41584062 | V75: 2 | W75: 34 | X75: 111219 | Y75: 0 | Z75: 0 | AA75: 0 | AB75: 5485 | AC75: 22 | AD75: ='2017legmax.xls'!AW72 -> A | AE75: ='2017legmax.xls'!AX72 ->  | AF75: 41700802 | AG75: 41700802 | AH75: =IF(Weightings!G72>0,Weightings!G72,'Preliminary SO66'!AB69) -> 44152019 | AI75: 41700802 | AJ75: 41700802 | AK75: 42558625 | AL75: ='2017legmax.xls'!BM72 -> 0.3 | AM75: 12767588 | AN75: 12767588 | AO75: 12767588 | AQ75: 32081651 | AR75: 18.6 | AS75: 71647 | AT75: 0 | AU75: 0 | AV75: 0 | AW75: 0 | AX75: 0 | AY75: 0 | AZ75: 0 | BA75: 128040 | BB75: 47.4 | BC75: 182585 | BD75: 31699379 | BE75: ='2017legmax.xls'!F72 -> 6406.2 | BF75: ='2017legmax.xls'!I72 -> 6424.8 | BG75: ='2017legmax.xls'!K72 -> 6447.5 | BH75: 6447.5 | BI75: ='2017legmax.xls'!O72 -> 24.5 | BJ75: 6472 | BK75: =IF(ISNA(VLOOKUP($CO75,'Audit Values'!$A$2:$AF$318,2,FALSE)),'Preliminary SO66'!T69,VLOOKUP($CO75,'Audit Values'!$A$2:$AF$318,20,FALSE)) -> 6 | BL75: 30000 | BM75: =IF(ISNA(VLOOKUP($CO75,'Audit Values'!$A$2:$AF$318,2,FALSE)),'Preliminary SO66'!U69,VLOOKUP($CO75,'Audit Values'!$A$2:$AF$318,21,FALSE)) -> 2.4 | BN75: 4080 | BO75: 0 | BP75: 0 | BQ75: 34080 | BR75: ='2017legmax.xls'!AH72 -> 280.1 | BS75: 1078945 | BT75: 0 | BU75: ='2017legmax.xls'!CJ72 -> 0 | BV75: 0 | BW75: ='2017legmax.xls'!CI72 -> 0 | BX75: 0 | BY75: 0 | BZ75: 0 | CA75: 0 | CB75: 0 | CC75: 0 | CD75: 0 | CE75: 0 | CF75: 0 | CG75: 111219 | CH75: 131347 | CI75: 0 | CJ75: 0 | CK75: 0 | CO75: D0260
A76: 261 | B76: Sedgwick | C76: Haysville | D76: 27498882 | E76: 0 | F76: 0 | G76: 0 | H76: 0 | I76: 5337.1 | J76: 0 | K76: 0 | L76: =Weightings!K73 -> 0 | M76: 0 | N76: 0 | O76: 27498882 | P76: 0 | Q76: 5133913 | R76: 3025416 | S76: 3025416 | U76: 35658211 | V76: 0 | W76: 146 | X76: 0 | Y76: 0 | Z76: 938000 | AA76: 163146 | AB76: 10138 | AC76: ='2017legmax.xls'!AV73 -> 14 | AD76: ='2017legmax.xls'!AW73 -> A | AE76: ='2017legmax.xls'!AX73 ->  | AF76: 35831641 | AG76: 36769641 | AH76: =IF(Weightings!G73>0,Weightings!G73,'Preliminary SO66'!AB70) -> 37120185 | AI76: 36769641 | AJ76: 36769641 | AK76: 36918566 | AL76: ='2017legmax.xls'!BM73 -> 0.3 | AM76: 11075570 | AN76: 11075570 | AO76: 11075570 | AQ76: 27609319 | AR76: 0 | AS76: 0 | AT76: 0 | AU76: 0 | AV76: 0 | AW76: 0 | AX76: 0 | AY76: 0 | AZ76: 0 | BA76: 110437 | BB76: 0 | BC76: 0 | BD76: 27498882 | BE76: ='2017legmax.xls'!F73 -> 5122.4 | BF76: ='2017legmax.xls'!I73 -> 5164.9 | BG76: ='2017legmax.xls'!K73 -> 5262.1 | BH76: 5262.1 | BI76: ='2017legmax.xls'!O73 -> 75 | BJ76: 5337.1 | BK76: =IF(ISNA(VLOOKUP($CO76,'Audit Values'!$A$2:$AF$318,2,FALSE)),'Preliminary SO66'!T70,VLOOKUP($CO76,'Audit Values'!$A$2:$AF$318,20,FALSE)) -> 0 | BL76: 0 | BM76: =IF(ISNA(VLOOKUP($CO76,'Audit Values'!$A$2:$AF$318,2,FALSE)),'Preliminary SO66'!U70,VLOOKUP($CO76,'Audit Values'!$A$2:$AF$318,21,FALSE)) -> 0 | BN76: 0 | BO76: 0 | BP76: 0 | BQ76: 0 | BR76: ='2017legmax.xls'!AH73 -> 0 | BS76: 0 | BT76: 0 | BU76: ='2017legmax.xls'!CJ73 -> 0 | BV76: 0 | BW76: ='2017legmax.xls'!CI73 -> 0 | BX76: 0 | BY76: 0 | BZ76: 0 | CA76: 0 | CB76: 0 | CC76: 0 | CD76: 0 | CE76: 0 | CF76: 0 | CG76: 0 | CH76: 0 | CI76: 0 | CJ76: 0 | CK76: 0 | CO76: D0261
A77: 262 | B77: Sedgwick | C77: Valley Center Pub Sch | D77: 13038294 | E77: 229844 | F77: 0 | G77: 0 | H77: 0 | I77: 2695.7 | J77: 0 | K77: 0 | L77: 0 | M77: 0 | N77: 0 | O77: 13268138 | P77: 0 | Q77: 2549400 | R77: 1105151 | S77: 1105151 | U77: 16922689 | V77: 0 | W77: 1396 | X77: 0 | Y77: 0 | Z77: 0 | AA77: 4574 | AB77: 30841 | AC77: ='2017legmax.xls'!AV74 -> 4 | AD77: ='2017legmax.xls'!AW74 -> A | AE77: ='2017legmax.xls'!AX74 ->  | AF77: 16959500 | AG77: 16959500 | AH77: =IF(Weightings!G74>0,Weightings!G74,'Preliminary SO66'!AB71) -> 17714128 | AI77: 16959500 | AJ77: 16959500 | AK77: 17737805 | AL77: ='2017legmax.xls'!BM74 -> 0.3 | AM77: 5321342 | AN77: 5321342 | AO77: 5321342 | AQ77: 13362223 | AR77: 70.5 | AS77: 271566 | AT77: 0 | AU77: 0 | AV77: 0 | AW77: 0 | AX77: 0 | AY77: 0 | AZ77: 0 | BA77: 52363 | BB77: 0 | BC77: 0 | BD77: 13038294 | BE77: ='2017legmax.xls'!F74 -> 2624.4 | BF77: ='2017legmax.xls'!I74 -> 2665.4 | BG77: ='2017legmax.xls'!K74 -> 2678.7 | BH77: 2678.7 | BI77: ='2017legmax.xls'!O74 -> 17 | BJ77: 2695.7 | BK77: =IF(ISNA(VLOOKUP($CO77,'Audit Values'!$A$2:$AF$318,2,FALSE)),'Preliminary SO66'!T71,VLOOKUP($CO77,'Audit Values'!$A$2:$AF$318,20,FALSE)) -> 33 | BL77: 165000 | BM77: =IF(ISNA(VLOOKUP($CO77,'Audit Values'!$A$2:$AF$318,2,FALSE)),'Preliminary SO66'!U71,VLOOKUP($CO77,'Audit Values'!$A$2:$AF$318,21,FALSE)) -> 0 | BN77: 0 | BO77: 69.5 | BP77: 64844 | BQ77: 229844 | BR77: ='2017legmax.xls'!AH74 -> 0 | BS77: 0 | BT77: 0 | BU77: ='2017legmax.xls'!CJ74 -> 0 | BV77: 0 | BW77: ='2017legmax.xls'!CI74 -> 0 | BX77: 0 | BY77: 0 | BZ77: 0 | CA77: 0 | CB77: 0 | CC77: 0 | CD77: 0 | CE77: 0 | CF77: 0 | CG77: 0 | CH77: 0 | CI77: 0 | CJ77: 0 | CK77: 0 | CO77: D0262
A78: 263 | B78: Sedgwick | C78: Mulvane | D78: 8373038 | E78: 16328 | F78: 0 | G78: 0 | H78: 0 | I78: 1713.7 | J78: 0 | K78: 0 | L78: =Weightings!K75 -> 0 | M78: 0 | N78: 0 | O78: 8389366 | P78: 0 | Q78: 1548790 | R78: 915453 | S78: 915453 | U78: 10853609 | V78: 0 | W78: 301 | X78: 0 | Y78: 0 | Z78: 0 | AA78: 0 | AB78: 3196 | AC78: ='2017legmax.xls'!AV75 -> 11 | AD78: ='2017legmax.xls'!AW75 -> A | AE78: ='2017legmax.xls'!AX75 ->  | AF78: 10857106 | AG78: 10857106 | AH78: =IF(Weightings!G75>0,Weightings!G75,'Preliminary SO66'!AB72) -> 11357601 | AI78: 10857106 | AJ78: 10857106 | AK78: 11371787 | AL78: ='2017legmax.xls'!BM75 -> 0.3 | AM78: 3411536 | AN78: 3411536 | AO78: 3411536 | AQ78: 8494069 | AR78: 0 | AS78: 0 | AT78: 0 | AU78: 0 | AV78: 0 | AW78: 0 | AX78: 0 | AY78: 0 | AZ78: 0 | BA78: 33976 | BB78: 22.6 | BC78: 87055 | BD78: 8373038 | BE78: ='2017legmax.xls'!F75 -> 1732.9 | BF78: ='2017legmax.xls'!I75 -> 1679.3 | BG78: ='2017legmax.xls'!K75 -> 1683.8 | BH78: 1698.7 | BI78: ='2017legmax.xls'!O75 -> 15 | BJ78: 1713.7 | BK78: =IF(ISNA(VLOOKUP($CO78,'Audit Values'!$A$2:$AF$318,2,FALSE)),'Preliminary SO66'!T72,VLOOKUP($CO78,'Audit Values'!$A$2:$AF$318,20,FALSE)) -> 0 | BL78: 0 | BM78: =IF(ISNA(VLOOKUP($CO78,'Audit Values'!$A$2:$AF$318,2,FALSE)),'Preliminary SO66'!U72,VLOOKUP($CO78,'Audit Values'!$A$2:$AF$318,21,FALSE)) -> 0 | BN78: 0 | BO78: 17.5 | BP78: 16328 | BQ78: 16328 | BR78: ='2017legmax.xls'!AH75 -> 0 | BS78: 0 | BT78: 0 | BU78: ='2017legmax.xls'!CJ75 -> 0 | BV78: 0 | BW78: ='2017legmax.xls'!CI75 -> 0 | BX78: 0 | BY78: 0 | BZ78: 0 | CA78: 0 | CB78: 0 | CC78: 0 | CD78: 0 | CE78: 0 | CF78: 0 | CG78: 0 | CH78: 0 | CI78: 0 | CJ78: 0 | CK78: 0 | CO78: D0263
A79: 264 | B79: Sedgwick | C79: Clearwater | D79: 6094208 | E79: 55980 | F79: 0 | G79: 0 | H79: 0 | I79: 1097.6 | J79: 0 | K79: 0 | L79: =Weightings!K76 -> -1166 | M79: 0 | N79: -1166 | O79: 6149022 | P79: 0 | Q79: 1054783 | R79: 490750 | S79: 490750 | U79: 7694555 | V79: 0 | W79: 1766 | X79: 0 | Y79: 0 | Z79: 50000 | AA79: 0 | AB79: 13963 | AC79: ='2017legmax.xls'!AV76 -> 12 | AD79: ='2017legmax.xls'!AW76 -> A | AE79: ='2017legmax.xls'!AX76 ->  | AF79: 7710284 | AG79: 7760284 | AH79: =IF(Weightings!G76>0,Weightings!G76,'Preliminary SO66'!AB73) -> 8211972 | AI79: 7760284 | AJ79: 7760284 | AK79: 8239318 | AL79: ='2017legmax.xls'!BM76 -> 0.3 | AM79: 2471795 | AN79: 2471795 | AO79: 2471795 | AQ79: 6118683 | AR79: 0 | AS79: 0 | AT79: 0 | AU79: 0 | AV79: 0 | AW79: 0 | AX79: 0 | AY79: 0 | AZ79: 0 | BA79: 24475 | BB79: 0 | BC79: 0 | BD79: 6094208 | BE79: ='2017legmax.xls'!F76 -> 1129.8 | BF79: ='2017legmax.xls'!I76 -> 1079.5 | BG79: ='2017legmax.xls'!K76 -> 1074.5 | BH79: 1094.6 | BI79: ='2017legmax.xls'!O76 -> 3 | BJ79: 1097.6 | BK79: =IF(ISNA(VLOOKUP($CO79,'Audit Values'!$A$2:$AF$318,2,FALSE)),'Preliminary SO66'!T73,VLOOKUP($CO79,'Audit Values'!$A$2:$AF$318,20,FALSE)) -> 0 | BL79: 0 | BM79: =IF(ISNA(VLOOKUP($CO79,'Audit Values'!$A$2:$AF$318,2,FALSE)),'Preliminary SO66'!U73,VLOOKUP($CO79,'Audit Values'!$A$2:$AF$318,21,FALSE)) -> 0 | BN79: 0 | BO79: 60 | BP79: 55980 | BQ79: 55980 | BR79: ='2017legmax.xls'!AH76 -> 0 | BS79: 0 | BT79: 0 | BU79: ='2017legmax.xls'!CJ76 -> 0 | BV79: 0 | BW79: ='2017legmax.xls'!CI76 -> 0 | BX79: 0 | BY79: 0 | BZ79: 0 | CA79: 0 | CB79: 0 | CC79: 0 | CD79: 0 | CE79: 0 | CF79: 0 | CG79: 0 | CH79: 0 | CI79: 0 | CJ79: 0 | CK79: 0 | CO79: D0264
A80: 265 | B80: Sedgwick | C80: Goddard | D80: 25142969 | E80: 63915 | F80: 0 | G80: 0 | H80: 0 | I80: 5392.5 | J80: 0 | K80: 0 | L80: =Weightings!K77 -> 0 | M80: 0 | N80: 0 | O80: 25206884 | P80: 0 | Q80: 4569341 | R80: 2278407 | S80: 2278407 | U80: 32054632 | V80: 895 | W80: 223 | X80: 0 | Y80: 0 | Z80: 0 | AA80: 0 | AB80: 10500 | AC80: ='2017legmax.xls'!AV77 -> 14 | AD80: ='2017legmax.xls'!AW77 -> A | AE80: ='2017legmax.xls'!AX77 ->  | AF80: 32066250 | AG80: 32066250 | AH80: =IF(Weightings!G77>0,Weightings!G77,'Preliminary SO66'!AB74) -> 34215832 | AI80: 32066250 | AJ80: 32066250 | AK80: 33928336 | AL80: ='2017legmax.xls'!BM77 -> 0.3 | AM80: 10178501 | AN80: 10178501 | AO80: 10178501 | AQ80: 25321755 | AR80: 20.2 | AS80: 77810 | AT80: 0 | AU80: 0 | AV80: 0 | AW80: 0 | AX80: 0 | AY80: 0 | AZ80: 0 | BA80: 100976 | BB80: 0 | BC80: 0 | BD80: 25142969 | BE80: ='2017legmax.xls'!F77 -> 5174.9 | BF80: ='2017legmax.xls'!I77 -> 5259 | BG80: ='2017legmax.xls'!K77 -> 5367 | BH80: 5367 | BI80: ='2017legmax.xls'!O77 -> 25.5 | BJ80: 5392.5 | BK80: =IF(ISNA(VLOOKUP($CO80,'Audit Values'!$A$2:$AF$318,2,FALSE)),'Preliminary SO66'!T74,VLOOKUP($CO80,'Audit Values'!$A$2:$AF$318,20,FALSE)) -> 11 | BL80: 55000 | BM80: =IF(ISNA(VLOOKUP($CO80,'Audit Values'!$A$2:$AF$318,2,FALSE)),'Preliminary SO66'!U74,VLOOKUP($CO80,'Audit Values'!$A$2:$AF$318,21,FALSE)) -> 2.5 | BN80: 4250 | BO80: 5 | BP80: 4665 | BQ80: 63915 | BR80: ='2017legmax.xls'!AH77 -> 0 | BS80: 0 | BT80: 0 | BU80: ='2017legmax.xls'!CJ77 -> 0.0008 | BV80: 25653 | BW80: ='2017legmax.xls'!CI77 -> 0 | BX80: 0 | BY80: 0 | BZ80: 0 | CA80: 0 | CB80: 0 | CC80: 0 | CD80: 0 | CE80: 0 | CF80: 0 | CG80: 0 | CH80: 0 | CI80: 0 | CJ80: 0 | CK80: 0 | CO80: D0265
A81: 266 | B81: Sedgwick | C81: Maize | D81: 30665965 | E81: 1683420 | F81: 0 | G81: 0 | H81: 0 | I81: 6539.9 | J81: 0 | K81: 0 | L81: =Weightings!K78 -> 0 | M81: 0 | N81: 0 | O81: 32349385 | P81: 0 | Q81: 5991634 | R81: 2702612 | S81: 2702612 | U81: 41043631 | V81: 0 | W81: 0 | X81: 0 | Y81: 0 | Z81: 0 | AA81: 552329 | AB81: 0 | AC81: ='2017legmax.xls'!AV78 -> 16 | AD81: ='2017legmax.xls'!AW78 -> A | AE81: ='2017legmax.xls'!AX78 -> R | AF81: 41595960 | AG81: 41595960 | AH81: =IF(Weightings!G78>0,Weightings!G78,'Preliminary SO66'!AB75) -> 43107096 | AI81: 41595960 | AJ81: 41595960 | AK81: 41674866 | AL81: ='2017legmax.xls'!BM78 -> 0.3 | AM81: 12502460 | AN81: 12502460 | AO81: 12502460 | AQ81: 32235932 | AR81: 375.6 | AS81: 1446811 | AT81: 0 | AU81: 0 | AV81: 0 | AW81: 0 | AX81: 0 | AY81: 0 | AZ81: 0 | BA81: 123156 | BB81: 0 | BC81: 0 | BD81: 30665965 | BE81: ='2017legmax.xls'!F78 -> 6467.4 | BF81: ='2017legmax.xls'!I78 -> 6521.9 | BG81: ='2017legmax.xls'!K78 -> 6518.9 | BH81: 6521.9 | BI81: ='2017legmax.xls'!O78 -> 18 | BJ81: 6539.9 | BK81: =IF(ISNA(VLOOKUP($CO81,'Audit Values'!$A$2:$AF$318,2,FALSE)),'Preliminary SO66'!T75,VLOOKUP($CO81,'Audit Values'!$A$2:$AF$318,20,FALSE)) -> 329 | BL81: 1645000 | BM81: =IF(ISNA(VLOOKUP($CO81,'Audit Values'!$A$2:$AF$318,2,FALSE)),'Preliminary SO66'!U75,VLOOKUP($CO81,'Audit Values'!$A$2:$AF$318,21,FALSE)) -> 22.6 | BN81: 38420 | BO81: 0 | BP81: 0 | BQ81: 1683420 | BR81: ='2017legmax.xls'!AH78 -> 0 | BS81: 0 | BT81: 0 | BU81: ='2017legmax.xls'!CJ78 -> 0.0115 | BV81: 478354 | BW81: ='2017legmax.xls'!CI78 -> 0 | BX81: 0 | BY81: 0 | BZ81: 0 | CA81: 0 | CB81: 0 | CC81: 0 | CD81: 0 | CE81: 0 | CF81: 0 | CG81: 0 | CH81: 0 | CI81: 0 | CJ81: 0 | CK81: 0 | CO81: D0266
A82: 267 | B82: Sedgwick | C82: Renwick | D82: 8673435 | E82: 0 | F82: 0 | G82: 0 | H82: 0 | I82: 1829.3 | J82: 0 | K82: 0 | L82: =Weightings!K79 -> 0 | M82: 0 | N82: 0 | O82: 8673435 | P82: 0 | Q82: 1580922 | R82: 724941 | S82: 724941 | U82: 10979298 | V82: 10946 | W82: 124 | X82: 0 | Y82: 0 | Z82: 18000 | AA82: 5361 | AB82: 19500 | AC82: ='2017legmax.xls'!AV79 -> 11 | AD82: ='2017legmax.xls'!AW79 -> A | AE82: ='2017legmax.xls'!AX79 ->  | AF82: 11015229 | AG82: 11033229 | AH82: =IF(Weightings!G79>0,Weightings!G79,'Preliminary SO66'!AB76) -> 11874661 | AI82: 11033229 | AJ82: 11033229 | AK82: 11819518 | AL82: ='2017legmax.xls'!BM79 -> 0.33 | AM82: 3900441 | AN82: 3900441 | AO82: 3900441 | AQ82: 8708268 | AR82: 0 | AS82: 0 | AT82: 0 | AU82: 0 | AV82: 0 | AW82: 0 | AX82: 0 | AY82: 0 | AZ82: 0 | BA82: 34833 | BB82: 0 | BC82: 0 | BD82: 8673435 | BE82: ='2017legmax.xls'!F79 -> 1874 | BF82: ='2017legmax.xls'!I79 -> 1827 | BG82: ='2017legmax.xls'!K79 -> 1787 | BH82: 1829.3 | BI82: ='2017legmax.xls'!O79 -> 0 | BJ82: 1829.3 | BK82: =IF(ISNA(VLOOKUP($CO82,'Audit Values'!$A$2:$AF$318,2,FALSE)),'Preliminary SO66'!T76,VLOOKUP($CO82,'Audit Values'!$A$2:$AF$318,20,FALSE)) -> 0 | BL82: 0 | BM82: =IF(ISNA(VLOOKUP($CO82,'Audit Values'!$A$2:$AF$318,2,FALSE)),'Preliminary SO66'!U76,VLOOKUP($CO82,'Audit Values'!$A$2:$AF$318,21,FALSE)) -> 0 | BN82: 0 | BO82: 0 | BP82: 0 | BQ82: 0 | BR82: ='2017legmax.xls'!AH79 -> 0 | BS82: 0 | BT82: 0 | BU82: ='2017legmax.xls'!CJ79 -> 0 | BV82: 0 | BW82: ='2017legmax.xls'!CI79 -> 0 | BX82: 0 | BY82: 0 | BZ82: 0 | CA82: 0 | CB82: 0 | CC82: 0 | CD82: 0 | CE82: 0 | CF82: 0 | CG82: 0 | CH82: 0 | CI82: 0 | CJ82: 0 | CK82: 0 | CO82: D0267
A83: 268 | B83: Sedgwick | C83: Cheney | D83: 4418011 | E83: 0 | F83: 261936 | G83: 0 | H83: 0 | I83: 755.9 | J83: 0 | K83: 0 | L83: =Weightings!K80 -> 0 | M83: 0 | N83: 0 | O83: 4679947 | P83: 0 | Q83: 694380 | R83: 373191 | S83: 373191 | U83: 5747518 | V83: 0 | W83: 1487 | X83: 0 | Y83: 0 | Z83: 0 | AA83: 0 | AB83: 0 | AC83: ='2017legmax.xls'!AV80 -> 12 | AD83: ='2017legmax.xls'!AW80 -> A | AE83: ='2017legmax.xls'!AX80 ->  | AF83: 5749005 | AG83: 5749005 | AH83: =IF(Weightings!G80>0,Weightings!G80,'Preliminary SO66'!AB77) -> 6318809 | AI83: 5749005 | AJ83: 5749005 | AK83: 5871122 | AL83: ='2017legmax.xls'!BM80 -> 0.3 | AM83: 1761337 | AN83: 1761337 | AO83: 1761337 | AQ83: 4435754 | AR83: 0 | AS83: 0 | AT83: 0 | AU83: 0 | AV83: 0 | AW83: 0 | AX83: 0 | AY83: 0 | AZ83: 0 | BA83: 17743 | BB83: 0 | BC83: 0 | BD83: 4418011 | BE83: ='2017legmax.xls'!F80 -> 750.6 | BF83: ='2017legmax.xls'!I80 -> 727.7 | BG83: ='2017legmax.xls'!K80 -> 745.9 | BH83: 745.9 | BI83: ='2017legmax.xls'!O80 -> 10 | BJ83: 755.9 | BK83: =IF(ISNA(VLOOKUP($CO83,'Audit Values'!$A$2:$AF$318,2,FALSE)),'Preliminary SO66'!T77,VLOOKUP($CO83,'Audit Values'!$A$2:$AF$318,20,FALSE)) -> 0 | BL83: 0 | BM83: =IF(ISNA(VLOOKUP($CO83,'Audit Values'!$A$2:$AF$318,2,FALSE)),'Preliminary SO66'!U77,VLOOKUP($CO83,'Audit Values'!$A$2:$AF$318,21,FALSE)) -> 0 | BN83: 0 | BO83: 0 | BP83: 0 | BQ83: 0 | BR83: ='2017legmax.xls'!AH80 -> 68 | BS83: 261936 | BT83: 0 | BU83: ='2017legmax.xls'!CJ80 -> 0 | BV83: 0 | BW83: ='2017legmax.xls'!CI80 -> 0 | BX83: 0 | BY83: 0 | BZ83: 0 | CA83: 0 | CB83: 0 | CC83: 0 | CD83: 0 | CE83: 0 | CF83: 0 | CG83: 0 | CH83: 0 | CI83: 0 | CJ83: 0 | CK83: 0 | CO83: D0268
A84: 269 | B84: Rooks | C84: Palco | D84: 1063345 | E84: 0 | F84: 0 | G84: 0 | H84: 0 | I84: 106 | J84: 0 | K84: 4 | L84: =Weightings!K81 -> 0 | M84: 0 | N84: 0 | O84: 1063341 | P84: 0 | Q84: 121073 | R84: 62180 | S84: 62180 | U84: 1246594 | V84: 2 | W84: 10389 | X84: 0 | Y84: 0 | Z84: 0 | AA84: 0 | AB84: 0 | AC84: ='2017legmax.xls'!AV81 -> 7 | AD84: ='2017legmax.xls'!AW81 -> A | AE84: ='2017legmax.xls'!AX81 ->  | AF84: 1256985 | AG84: 1256985 | AH84: =IF(Weightings!G81>0,Weightings!G81,'Preliminary SO66'!AB78) -> 1282374 | AI84: 1256985 | AJ84: 1256985 | AK84: 1517118 | AL84: ='2017legmax.xls'!BM81 -> 0.3 | AM84: 455135 | AN84: 455135 | AO84: 455135 | AQ84: 1086105 | AR84: 4.8 | AS84: 18490 | AT84: 0 | AU84: 0 | AV84: 0 | AW84: 0 | AX84: 0 | AY84: 0 | AZ84: 0 | BA84: 4270 | BB84: 0 | BC84: 0 | BD84: 1063345 | BE84: ='2017legmax.xls'!F81 -> 101 | BF84: ='2017legmax.xls'!I81 -> 104 | BG84: ='2017legmax.xls'!K81 -> 88.5 | BH84: 104 | BI84: ='2017legmax.xls'!O81 -> 2 | BJ84: 106 | BK84: =IF(ISNA(VLOOKUP($CO84,'Audit Values'!$A$2:$AF$318,2,FALSE)),'Preliminary SO66'!T78,VLOOKUP($CO84,'Audit Values'!$A$2:$AF$318,20,FALSE)) -> 0 | BL84: 0 | BM84: =IF(ISNA(VLOOKUP($CO84,'Audit Values'!$A$2:$AF$318,2,FALSE)),'Preliminary SO66'!U78,VLOOKUP($CO84,'Audit Values'!$A$2:$AF$318,21,FALSE)) -> 0 | BN84: 0 | BO84: 0 | BP84: 0 | BQ84: 0 | BR84: ='2017legmax.xls'!AH81 -> 0 | BS84: 0 | BT84: 0 | BU84: ='2017legmax.xls'!CJ81 -> 0 | BV84: 0 | BW84: ='2017legmax.xls'!CI81 -> 0 | BX84: 0 | BY84: 0 | BZ84: 0 | CA84: 0 | CB84: 0 | CC84: 0 | CD84: 0 | CE84: 0 | CF84: 0 | CG84: 0 | CH84: 0 | CI84: 0 | CJ84: 0 | CK84: 0 | CO84: D0269
A85: 270 | B85: Rooks | C85: Plainville | D85: 2322474 | E85: 0 | F85: 0 | G85: 0 | H85: 0 | I85: 344.6 | J85: 0 | K85: 6057 | L85: =Weightings!K82 -> 0 | M85: 0 | N85: 0 | O85: 2316417 | P85: 0 | Q85: 440573 | R85: 187453 | S85: 187453 | U85: 2944443 | V85: 0 | W85: 17340 | X85: 0 | Y85: 0 | Z85: 0 | AA85: 0 | AB85: 4144 | AC85: ='2017legmax.xls'!AV82 -> 4 | AD85: ='2017legmax.xls'!AW82 -> A | AE85: ='2017legmax.xls'!AX82 ->  | AF85: 2965927 | AG85: 2965927 | AH85: =IF(Weightings!G82>0,Weightings!G82,'Preliminary SO66'!AB79) -> 3131576 | AI85: 2965927 | AJ85: 2965927 | AK85: 3206748 | AL85: ='2017legmax.xls'!BM82 -> 0.3 | AM85: 962024 | AN85: 962024 | AO85: 962024 | AQ85: 2331801 | AR85: 0 | AS85: 0 | AT85: 0 | AU85: 0 | AV85: 0 | AW85: 0 | AX85: 0 | AY85: 0 | AZ85: 0 | BA85: 9327 | BB85: 0 | BC85: 0 | BD85: 2322474 | BE85: ='2017legmax.xls'!F82 -> 369.5 | BF85: ='2017legmax.xls'!I82 -> 334.8 | BG85: ='2017legmax.xls'!K82 -> 329.5 | BH85: 344.6 | BI85: ='2017legmax.xls'!O82 -> 0 | BJ85: 344.6 | BK85: =IF(ISNA(VLOOKUP($CO85,'Audit Values'!$A$2:$AF$318,2,FALSE)),'Preliminary SO66'!T79,VLOOKUP($CO85,'Audit Values'!$A$2:$AF$318,20,FALSE)) -> 0 | BL85: 0 | BM85: =IF(ISNA(VLOOKUP($CO85,'Audit Values'!$A$2:$AF$318,2,FALSE)),'Preliminary SO66'!U79,VLOOKUP($CO85,'Audit Values'!$A$2:$AF$318,21,FALSE)) -> 0 | BN85: 0 | BO85: 0 | BP85: 0 | BQ85: 0 | BR85: ='2017legmax.xls'!AH82 -> 0 | BS85: 0 | BT85: 0 | BU85: ='2017legmax.xls'!CJ82 -> 0 | BV85: 0 | BW85: ='2017legmax.xls'!CI82 -> 0 | BX85: 0 | BY85: 0 | BZ85: 0 | CA85: 0 | CB85: 0 | CC85: 0 | CD85: 0 | CE85: 0 | CF85: 0 | CG85: 0 | CH85: 0 | CI85: 0 | CJ85: 0 | CK85: 0 | CO85: D0270
A86: 271 | B86: Rooks | C86: Stockton | D86: 2040381 | E86: 0 | F86: 0 | G86: 0 | H86: 0 | I86: 321.5 | J86: 0 | K86: 0 | L86: =Weightings!K83 -> 0 | M86: 0 | N86: 0 | O86: 2040381 | P86: 0 | Q86: 344723 | R86: 142726 | S86: 142726 | U86: 2527830 | V86: 0 | W86: 7029 | X86: 0 | Y86: 0 | Z86: 0 | AA86: 0 | AB86: 0 | AC86: ='2017legmax.xls'!AV83 -> 14 | AD86: ='2017legmax.xls'!AW83 -> A | AE86: ='2017legmax.xls'!AX83 ->  | AF86: 2534859 | AG86: 2534859 | AH86: =IF(Weightings!G83>0,Weightings!G83,'Preliminary SO66'!AB80) -> 2735386 | AI86: 2534859 | AJ86: 2534859 | AK86: 2781759 | AL86: ='2017legmax.xls'!BM83 -> 0.3 | AM86: 834528 | AN86: 834528 | AO86: 834528 | AQ86: 2048575 | AR86: 0 | AS86: 0 | AT86: 0 | AU86: 0 | AV86: 0 | AW86: 0 | AX86: 0 | AY86: 0 | AZ86: 0 | BA86: 8194 | BB86: 0 | BC86: 0 | BD86: 2040381 | BE86: ='2017legmax.xls'!F83 -> 289 | BF86: ='2017legmax.xls'!I83 -> 297.5 | BG86: ='2017legmax.xls'!K83 -> 318 | BH86: 318 | BI86: ='2017legmax.xls'!O83 -> 3.5 | BJ86: 321.5 | BK86: =IF(ISNA(VLOOKUP($CO86,'Audit Values'!$A$2:$AF$318,2,FALSE)),'Preliminary SO66'!T80,VLOOKUP($CO86,'Audit Values'!$A$2:$AF$318,20,FALSE)) -> 0 | BL86: 0 | BM86: =IF(ISNA(VLOOKUP($CO86,'Audit Values'!$A$2:$AF$318,2,FALSE)),'Preliminary SO66'!U80,VLOOKUP($CO86,'Audit Values'!$A$2:$AF$318,21,FALSE)) -> 0 | BN86: 0 | BO86: 0 | BP86: 0 | BQ86: 0 | BR86: ='2017legmax.xls'!AH83 -> 0 | BS86: 0 | BT86: 0 | BU86: ='2017legmax.xls'!CJ83 -> 0 | BV86: 0 | BW86: ='2017legmax.xls'!CI83 -> 0 | BX86: 0 | BY86: 0 | BZ86: 0 | CA86: 0 | CB86: 0 | CC86: 0 | CD86: 0 | CE86: 0 | CF86: 0 | CG86: 0 | CH86: 0 | CI86: 0 | CJ86: 0 | CK86: 0 | CO86: D0271
A87: 272 | B87: Mitchell | C87: Waconda | D87: 2114066 | E87: 0 | F87: 0 | G87: 0 | H87: 0 | I87: 302 | J87: 0 | K87: 0 | L87: =Weightings!K84 -> 0 | M87: -8949 | N87: -8949 | O87: 2105117 | P87: 0 | Q87: 354557 | R87: 110714 | S87: 110714 | U87: 2570388 | V87: 0 | W87: 0 | X87: 43626 | Y87: 0 | Z87: 0 | AA87: 0 | AB87: 6015 | AC87: 22 | AD87: ='2017legmax.xls'!AW84 -> A | AE87: ='2017legmax.xls'!AX84 ->  | AF87: 2620029 | AG87: 2620029 | AH87: =IF(Weightings!G84>0,Weightings!G84,'Preliminary SO66'!AB81) -> 2706578 | AI87: 2620029 | AJ87: 2620029 | AK87: 2896411 | AL87: ='2017legmax.xls'!BM84 -> 0.3 | AM87: 868923 | AN87: 868923 | AO87: 868923 | AQ87: 2122556 | AR87: 0 | AS87: 0 | AT87: 0 | AU87: 0 | AV87: 0 | AW87: 0 | AX87: 0 | AY87: 0 | AZ87: 0 | BA87: 8490 | BB87: 0 | BC87: 0 | BD87: 2114066 | BE87: ='2017legmax.xls'!F84 -> 294 | BF87: ='2017legmax.xls'!I84 -> 288 | BG87: ='2017legmax.xls'!K84 -> 295.5 | BH87: 295.5 | BI87: ='2017legmax.xls'!O84 -> 6.5 | BJ87: 302 | BK87: =IF(ISNA(VLOOKUP($CO87,'Audit Values'!$A$2:$AF$318,2,FALSE)),'Preliminary SO66'!T81,VLOOKUP($CO87,'Audit Values'!$A$2:$AF$318,20,FALSE)) -> 0 | BL87: 0 | BM87: =IF(ISNA(VLOOKUP($CO87,'Audit Values'!$A$2:$AF$318,2,FALSE)),'Preliminary SO66'!U81,VLOOKUP($CO87,'Audit Values'!$A$2:$AF$318,21,FALSE)) -> 0 | BN87: 0 | BO87: 0 | BP87: 0 | BQ87: 0 | BR87: ='2017legmax.xls'!AH84 -> 0 | BS87: 0 | BT87: 0 | BU87: ='2017legmax.xls'!CJ84 -> 0 | BV87: 0 | BW87: ='2017legmax.xls'!CI84 -> 0 | BX87: 0 | BY87: 0 | BZ87: 0 | CA87: 0 | CB87: 0 | CC87: 0 | CD87: 0 | CE87: 0 | CF87: 0 | CG87: 43626 | CH87: =38348+1 -> 38349 | CI87: 0 | CJ87: 0 | CK87: 0 | CO87: D0272
A88: 273 | B88: Mitchell | C88: Beloit | D88: 4513444 | E88: 0 | F88: 0 | G88: 0 | H88: 0 | I88: 768.5 | J88: 0 | K88: 401 | L88: =Weightings!K85 -> 0 | M88: 0 | N88: 0 | O88: 4513043 | P88: 0 | Q88: 978936 | R88: 686306 | S88: 686306 | U88: 6178285 | V88: 0 | W88: 0 | X88: 0 | Y88: 0 | Z88: 0 | AA88: 4681 | AB88: 0 | AC88: ='2017legmax.xls'!AV85 -> 1 | AD88: ='2017legmax.xls'!AW85 -> A | AE88: ='2017legmax.xls'!AX85 ->  | AF88: 6182966 | AG88: 6182966 | AH88: =IF(Weightings!G85>0,Weightings!G85,'Preliminary SO66'!AB82) -> 6627277 | AI88: 6182966 | AJ88: 6182966 | AK88: 6228386 | AL88: ='2017legmax.xls'!BM85 -> 0.3 | AM88: 1868516 | AN88: 1868516 | AO88: 1868516 | AQ88: 4547748 | AR88: 4.2 | AS88: 16178 | AT88: 0 | AU88: 0 | AV88: 0 | AW88: 0 | AX88: 0 | AY88: 0 | AZ88: 0 | BA88: 18126 | BB88: 0 | BC88: 0 | BD88: 4513444 | BE88: ='2017legmax.xls'!F85 -> 750 | BF88: ='2017legmax.xls'!I85 -> 754.5 | BG88: ='2017legmax.xls'!K85 -> 739.2 | BH88: 754.5 | BI88: ='2017legmax.xls'!O85 -> 14 | BJ88: 768.5 | BK88: =IF(ISNA(VLOOKUP($CO88,'Audit Values'!$A$2:$AF$318,2,FALSE)),'Preliminary SO66'!T82,VLOOKUP($CO88,'Audit Values'!$A$2:$AF$318,20,FALSE)) -> 0 | BL88: 0 | BM88: =IF(ISNA(VLOOKUP($CO88,'Audit Values'!$A$2:$AF$318,2,FALSE)),'Preliminary SO66'!U82,VLOOKUP($CO88,'Audit Values'!$A$2:$AF$318,21,FALSE)) -> 0 | BN88: 0 | BO88: 0 | BP88: 0 | BQ88: 0 | BR88: ='2017legmax.xls'!AH85 -> 0 | BS88: 0 | BT88: 0 | BU88: ='2017legmax.xls'!CJ85 -> 0 | BV88: 0 | BW88: ='2017legmax.xls'!CI85 -> 0 | BX88: 0 | BY88: 0 | BZ88: 0 | CA88: 0 | CB88: 0 | CC88: 0 | CD88: 0 | CE88: 0 | CF88: 0 | CG88: 0 | CH88: 0 | CI88: 0 | CJ88: 0 | CK88: 0 | CO88: D0273
A89: 274 | B89: Logan | C89: Oakley | D89: 2381462 | E89: 2799 | F89: 0 | G89: 0 | H89: 0 | I89: 390.6 | J89: 0 | K89: 66 | L89: =Weightings!K86 -> 0 | M89: 0 | N89: 0 | O89: 2384195 | P89: 0 | Q89: 414291 | R89: 187988 | S89: 187988 | U89: 2986474 | V89: 0 | W89: 26193 | X89: 0 | Y89: 0 | Z89: 0 | AA89: 1068 | AB89: 4821 | AC89: ='2017legmax.xls'!AV86 -> 4 | AD89: ='2017legmax.xls'!AW86 -> A | AE89: ='2017legmax.xls'!AX86 ->  | AF89: 3018556 | AG89: 3018556 | AH89: =IF(Weightings!G86>0,Weightings!G86,'Preliminary SO66'!AB83) -> 3190423 | AI89: 3018556 | AJ89: 3018556 | AK89: 3406469 | AL89: ='2017legmax.xls'!BM86 -> 0.3 | AM89: 1021941 | AN89: 1021941 | AO89: 1021941 | AQ89: 2391026 | AR89: 0 | AS89: 0 | AT89: 0 | AU89: 0 | AV89: 0 | AW89: 0 | AX89: 0 | AY89: 0 | AZ89: 0 | BA89: 9564 | BB89: 0 | BC89: 0 | BD89: 2381462 | BE89: ='2017legmax.xls'!F86 -> 366.1 | BF89: ='2017legmax.xls'!I86 -> 387.8 | BG89: ='2017legmax.xls'!K86 -> 390.6 | BH89: 390.6 | BI89: ='2017legmax.xls'!O86 -> 0 | BJ89: 390.6 | BK89: =IF(ISNA(VLOOKUP($CO89,'Audit Values'!$A$2:$AF$318,2,FALSE)),'Preliminary SO66'!T83,VLOOKUP($CO89,'Audit Values'!$A$2:$AF$318,20,FALSE)) -> 0 | BL89: 0 | BM89: =IF(ISNA(VLOOKUP($CO89,'Audit Values'!$A$2:$AF$318,2,FALSE)),'Preliminary SO66'!U83,VLOOKUP($CO89,'Audit Values'!$A$2:$AF$318,21,FALSE)) -> 0 | BN89: 0 | BO89: 3 | BP89: 2799 | BQ89: 2799 | BR89: ='2017legmax.xls'!AH86 -> 0 | BS89: 0 | BT89: 0 | BU89: ='2017legmax.xls'!CJ86 -> 0 | BV89: 0 | BW89: ='2017legmax.xls'!CI86 -> 0 | BX89: 0 | BY89: 0 | BZ89: 0 | CA89: 0 | CB89: 0 | CC89: 0 | CD89: 0 | CE89: 0 | CF89: 0 | CG89: 0 | CH89: 0 | CI89: 9625 | CJ89: 0 | CK89: 0 | CO89: D0274
A90: 275 | B90: Logan | C90: Triplains | D90: 644434 | E90: 0 | F90: 0 | G90: 0 | H90: 0 | I90: 69.5 | J90: 0 | K90: 0 | L90: =Weightings!K87 -> 0 | M90: 0 | N90: 0 | O90: 644434 | P90: 0 | Q90: 124829 | R90: 46753 | S90: 46753 | U90: 816016 | V90: 0 | W90: 22666 | X90: 0 | Y90: 0 | Z90: 0 | AA90: 0 | AB90: 1113 | AC90: ='2017legmax.xls'!AV87 -> 12 | AD90: ='2017legmax.xls'!AW87 -> A | AE90: ='2017legmax.xls'!AX87 ->  | AF90: 839795 | AG90: 839795 | AH90: =IF(Weightings!G87>0,Weightings!G87,'Preliminary SO66'!AB84) -> 908037 | AI90: 839795 | AJ90: 839795 | AK90: 981761 | AL90: ='2017legmax.xls'!BM87 -> 0.33 | AM90: 323981 | AN90: 323981 | AO90: 323981 | AQ90: 647022 | AR90: 0 | AS90: 0 | AT90: 0 | AU90: 0 | AV90: 0 | AW90: 0 | AX90: 0 | AY90: 0 | AZ90: 0 | BA90: 2588 | BB90: 0 | BC90: 0 | BD90: 644434 | BE90: ='2017legmax.xls'!F87 -> 68 | BF90: ='2017legmax.xls'!I87 -> 69.5 | BG90: ='2017legmax.xls'!K87 -> 63.5 | BH90: 69.5 | BI90: ='2017legmax.xls'!O87 -> 0 | BJ90: 69.5 | BK90: =IF(ISNA(VLOOKUP($CO90,'Audit Values'!$A$2:$AF$318,2,FALSE)),'Preliminary SO66'!T84,VLOOKUP($CO90,'Audit Values'!$A$2:$AF$318,20,FALSE)) -> 0 | BL90: 0 | BM90: =IF(ISNA(VLOOKUP($CO90,'Audit Values'!$A$2:$AF$318,2,FALSE)),'Preliminary SO66'!U84,VLOOKUP($CO90,'Audit Values'!$A$2:$AF$318,21,FALSE)) -> 0 | BN90: 0 | BO90: 0 | BP90: 0 | BQ90: 0 | BR90: ='2017legmax.xls'!AH87 -> 0 | BS90: 0 | BT90: 0 | BU90: ='2017legmax.xls'!CJ87 -> 0 | BV90: 0 | BW90: ='2017legmax.xls'!CI87 -> 0 | BX90: 0 | BY90: 0 | BZ90: 0 | CA90: 0 | CB90: 0 | CC90: 0 | CD90: 0 | CE90: 0 | CF90: 0 | CG90: 0 | CH90: 0 | CI90: 0 | CJ90: 0 | CK90: 0 | CO90: D0275
A91: 281 | B91: Graham | C91: Graham County | D91: 2438918 | E91: 0 | F91: 0 | G91: 0 | H91: 0 | I91: 359.8 | J91: 0 | K91: 0 | L91: =Weightings!K88 -> 0 | M91: 0 | N91: 0 | O91: 2438918 | P91: 0 | Q91: 298628 | R91: 198642 | S91: 198642 | U91: 2936188 | V91: 0 | W91: 0 | X91: 0 | Y91: 0 | Z91: 0 | AA91: 0 | AB91: 0 | AC91: ='2017legmax.xls'!AV88 -> 15 | AD91: ='2017legmax.xls'!AW88 -> A | AE91: ='2017legmax.xls'!AX88 -> R | AF91: 2936188 | AG91: 2936188 | AH91: =IF(Weightings!G88>0,Weightings!G88,'Preliminary SO66'!AB85) -> 3041042 | AI91: 2936188 | AJ91: 2936188 | AK91: 3350176 | AL91: ='2017legmax.xls'!BM88 -> 0.3 | AM91: 1005053 | AN91: 1005053 | AO91: 1005053 | AQ91: 2550406 | AR91: 26.4 | AS91: 101693 | AT91: 0 | AU91: 0 | AV91: 0 | AW91: 0 | AX91: 0 | AY91: 0 | AZ91: 0 | BA91: 9795 | BB91: 0 | BC91: 0 | BD91: 2438918 | BE91: ='2017legmax.xls'!F88 -> 366.1 | BF91: ='2017legmax.xls'!I88 -> 359.8 | BG91: ='2017legmax.xls'!K88 -> 352.5 | BH91: 359.8 | BI91: ='2017legmax.xls'!O88 -> 0 | BJ91: 359.8 | BK91: =IF(ISNA(VLOOKUP($CO91,'Audit Values'!$A$2:$AF$318,2,FALSE)),'Preliminary SO66'!T85,VLOOKUP($CO91,'Audit Values'!$A$2:$AF$318,20,FALSE)) -> 0 | BL91: 0 | BM91: =IF(ISNA(VLOOKUP($CO91,'Audit Values'!$A$2:$AF$318,2,FALSE)),'Preliminary SO66'!U85,VLOOKUP($CO91,'Audit Values'!$A$2:$AF$318,21,FALSE)) -> 0 | BN91: 0 | BO91: 0 | BP91: 0 | BQ91: 0 | BR91: ='2017legmax.xls'!AH88 -> 0 | BS91: 0 | BT91: 0 | BU91: ='2017legmax.xls'!CJ88 -> 0 | BV91: 0 | BW91: ='2017legmax.xls'!CI88 -> 0 | BX91: 0 | BY91: 0 | BZ91: 0 | CA91: 0 | CB91: 0 | CC91: 0 | CD91: 0 | CE91: 0 | CF91: 0 | CG91: 0 | CH91: 0 | CI91: 0 | CJ91: 0 | CK91: 0 | CO91: D0281
A92: 282 | B92: Elk | C92: West Elk | D92: 2426377 | E92: 0 | F92: 0 | G92: 0 | H92: 0 | I92: 331.5 | J92: 0 | K92: 0 | L92: =Weightings!K89 -> -1400 | M92: 0 | N92: -1400 | O92: 2424977 | P92: 0 | Q92: 559849 | R92: 297348 | S92: 297348 | U92: 3282174 | V92: 4307 | W92: 6298 | X92: 0 | Y92: 0 | Z92: 0 | AA92: 248 | AB92: 4307 | AC92: ='2017legmax.xls'!AV89 -> 12 | AD92: ='2017legmax.xls'!AW89 -> A | AE92: ='2017legmax.xls'!AX89 ->  | AF92: 3297334 | AG92: 3297334 | AH92: =IF(Weightings!G89>0,Weightings!G89,'Preliminary SO66'!AB86) -> 3592519 | AI92: 3297334 | AJ92: 3297334 | AK92: 3448000 | AL92: ='2017legmax.xls'!BM89 -> 0.3 | AM92: 1034400 | AN92: 1034400 | AO92: 1034400 | AQ92: 2436121 | AR92: 0 | AS92: 0 | AT92: 0 | AU92: 0 | AV92: 0 | AW92: 0 | AX92: 0 | AY92: 0 | AZ92: 0 | BA92: 9744 | BB92: 0 | BC92: 0 | BD92: 2426377 | BE92: ='2017legmax.xls'!F89 -> 311.5 | BF92: ='2017legmax.xls'!I89 -> 326.5 | BG92: ='2017legmax.xls'!K89 -> 327 | BH92: 327 | BI92: ='2017legmax.xls'!O89 -> 4.5 | BJ92: 331.5 | BK92: =IF(ISNA(VLOOKUP($CO92,'Audit Values'!$A$2:$AF$318,2,FALSE)),'Preliminary SO66'!T86,VLOOKUP($CO92,'Audit Values'!$A$2:$AF$318,20,FALSE)) -> 0 | BL92: 0 | BM92: =IF(ISNA(VLOOKUP($CO92,'Audit Values'!$A$2:$AF$318,2,FALSE)),'Preliminary SO66'!U86,VLOOKUP($CO92,'Audit Values'!$A$2:$AF$318,21,FALSE)) -> 0 | BN92: 0 | BO92: 0 | BP92: 0 | BQ92: 0 | BR92: ='2017legmax.xls'!AH89 -> 0 | BS92: 0 | BT92: 0 | BU92: ='2017legmax.xls'!CJ89 -> 0 | BV92: 0 | BW92: ='2017legmax.xls'!CI89 -> 0 | BX92: 0 | BY92: 0 | BZ92: 0 | CA92: 0 | CB92: 0 | CC92: 0 | CD92: 0 | CE92: 0 | CF92: 0 | CG92: 0 | CH92: 0 | CI92: 0 | CJ92: 0 | CK92: 0 | CO92: D0282
A93: 283 | B93: Elk | C93: Elk Valley | D93: 1374057 | E93: 933 | F93: 0 | G93: 0 | H93: 0 | I93: 119.7 | J93: 0 | K93: 0 | L93: =Weightings!K90 -> -933 | M93: 0 | N93: -933 | O93: 1374057 | P93: 0 | Q93: 229737 | R93: 66772 | S93: 66772 | U93: 1670566 | V93: 0 | W93: 309 | X93: 0 | Y93: 0 | Z93: 0 | AA93: 0 | AB93: 0 | AC93: ='2017legmax.xls'!AV90 -> 14 | AD93: ='2017legmax.xls'!AW90 -> A | AE93: ='2017legmax.xls'!AX90 ->  | AF93: 1670875 | AG93: 1670875 | AH93: =IF(Weightings!G90>0,Weightings!G90,'Preliminary SO66'!AB87) -> 1910902 | AI93: 1670875 | AJ93: 1670875 | AK93: 1909577 | AL93: ='2017legmax.xls'!BM90 -> 0.2777 | AM93: 530290 | AN93: 530290 | AO93: 530290 | AQ93: 1379575 | AR93: 0 | AS93: 0 | AT93: 0 | AU93: 0 | AV93: 0 | AW93: 0 | AX93: 0 | AY93: 0 | AZ93: 0 | BA93: 5518 | BB93: 0 | BC93: 0 | BD93: 1374057 | BE93: ='2017legmax.xls'!F90 -> 137 | BF93: ='2017legmax.xls'!I90 -> 107.5 | BG93: ='2017legmax.xls'!K90 -> 105.5 | BH93: 116.7 | BI93: ='2017legmax.xls'!O90 -> 3 | BJ93: 119.7 | BK93: =IF(ISNA(VLOOKUP($CO93,'Audit Values'!$A$2:$AF$318,2,FALSE)),'Preliminary SO66'!T87,VLOOKUP($CO93,'Audit Values'!$A$2:$AF$318,20,FALSE)) -> 0 | BL93: 0 | BM93: =IF(ISNA(VLOOKUP($CO93,'Audit Values'!$A$2:$AF$318,2,FALSE)),'Preliminary SO66'!U87,VLOOKUP($CO93,'Audit Values'!$A$2:$AF$318,21,FALSE)) -> 0 | BN93: 0 | BO93: 1 | BP93: 933 | BQ93: 933 | BR93: ='2017legmax.xls'!AH90 -> 0 | BS93: 0 | BT93: 0 | BU93: ='2017legmax.xls'!CJ90 -> 0 | BV93: 0 | BW93: ='2017legmax.xls'!CI90 -> 0 | BX93: 0 | BY93: 0 | BZ93: 0 | CA93: 0 | CB93: 0 | CC93: 0 | CD93: 0 | CE93: 0 | CF93: 0 | CG93: 0 | CH93: 0 | CI93: 0 | CJ93: 0 | CK93: 0 | CO93: D0283
A94: 284 | B94: Chase | C94: Chase County | D94: 2513109 | E94: 0 | F94: 0 | G94: 0 | H94: 0 | I94: 341.5 | J94: 0 | K94: 0 | L94: =Weightings!K91 -> 0 | M94: 0 | N94: 0 | O94: 2513109 | P94: 0 | Q94: 347429 | R94: 206448 | S94: 206448 | U94: 3066986 | V94: 0 | W94: 0 | X94: 0 | Y94: 0 | Z94: 0 | AA94: 0 | AB94: 4676 | AC94: ='2017legmax.xls'!AV91 -> 12 | AD94: ='2017legmax.xls'!AW91 -> A | AE94: ='2017legmax.xls'!AX91 ->  | AF94: 3071662 | AG94: 3071662 | AH94: =IF(Weightings!G91>0,Weightings!G91,'Preliminary SO66'!AB88) -> 3150495 | AI94: 3071662 | AJ94: 3071662 | AK94: 3384905 | AL94: ='2017legmax.xls'!BM91 -> 0.3 | AM94: 1015472 | AN94: 1015472 | AO94: 1015472 | AQ94: 2523202 | AR94: 0 | AS94: 0 | AT94: 0 | AU94: 0 | AV94: 0 | AW94: 0 | AX94: 0 | AY94: 0 | AZ94: 0 | BA94: 10093 | BB94: 0 | BC94: 0 | BD94: 2513109 | BE94: ='2017legmax.xls'!F91 -> 344.5 | BF94: ='2017legmax.xls'!I91 -> 341.5 | BG94: ='2017legmax.xls'!K91 -> 334.5 | BH94: 341.5 | BI94: ='2017legmax.xls'!O91 -> 0 | BJ94: 341.5 | BK94: =IF(ISNA(VLOOKUP($CO94,'Audit Values'!$A$2:$AF$318,2,FALSE)),'Preliminary SO66'!T88,VLOOKUP($CO94,'Audit Values'!$A$2:$AF$318,20,FALSE)) -> 0 | BL94: 0 | BM94: =IF(ISNA(VLOOKUP($CO94,'Audit Values'!$A$2:$AF$318,2,FALSE)),'Preliminary SO66'!U88,VLOOKUP($CO94,'Audit Values'!$A$2:$AF$318,21,FALSE)) -> 0 | BN94: 0 | BO94: 0 | BP94: 0 | BQ94: 0 | BR94: ='2017legmax.xls'!AH91 -> 0 | BS94: 0 | BT94: 0 | BU94: ='2017legmax.xls'!CJ91 -> 0 | BV94: 0 | BW94: ='2017legmax.xls'!CI91 -> 0 | BX94: 0 | BY94: 0 | BZ94: 0 | CA94: 0 | CB94: 0 | CC94: 0 | CD94: 0 | CE94: 0 | CF94: 0 | CG94: 0 | CH94: 0 | CI94: 0 | CJ94: 0 | CK94: 0 | CO94: D0284
A95: 285 | B95: Chautauqua | C95: Cedar Vale | D95: 1415122 | E95: 0 | F95: 0 | G95: 0 | H95: 0 | I95: 177.5 | J95: 0 | K95: 0 | L95: =Weightings!K92 -> 0 | M95: 0 | N95: 0 | O95: 1415122 | P95: 0 | Q95: 169311 | R95: 96247 | S95: 96247 | U95: 1680680 | V95: 0 | W95: 212 | X95: 0 | Y95: 0 | Z95: 0 | AA95: 0 | AB95: 2334 | AC95: ='2017legmax.xls'!AV92 -> 3 | AD95: ='2017legmax.xls'!AW92 -> A | AE95: ='2017legmax.xls'!AX92 ->  | AF95: 1683226 | AG95: 1683226 | AH95: =IF(Weightings!G92>0,Weightings!G92,'Preliminary SO66'!AB89) -> 1803938 | AI95: 1683226 | AJ95: 1683226 | AK95: 1826528 | AL95: ='2017legmax.xls'!BM92 -> 0.3 | AM95: 547958 | AN95: 395000 | AO95: 395000 | AQ95: 1420805 | AR95: 0 | AS95: 0 | AT95: 0 | AU95: 0 | AV95: 0 | AW95: 0 | AX95: 0 | AY95: 0 | AZ95: 0 | BA95: 5683 | BB95: 0 | BC95: 0 | BD95: 1415122 | BE95: ='2017legmax.xls'!F92 -> 163.6 | BF95: ='2017legmax.xls'!I92 -> 172 | BG95: ='2017legmax.xls'!K92 -> 177.5 | BH95: 177.5 | BI95: ='2017legmax.xls'!O92 -> 0 | BJ95: 177.5 | BK95: =IF(ISNA(VLOOKUP($CO95,'Audit Values'!$A$2:$AF$318,2,FALSE)),'Preliminary SO66'!T89,VLOOKUP($CO95,'Audit Values'!$A$2:$AF$318,20,FALSE)) -> 0 | BL95: 0 | BM95: =IF(ISNA(VLOOKUP($CO95,'Audit Values'!$A$2:$AF$318,2,FALSE)),'Preliminary SO66'!U89,VLOOKUP($CO95,'Audit Values'!$A$2:$AF$318,21,FALSE)) -> 0 | BN95: 0 | BO95: 0 | BP95: 0 | BQ95: 0 | BR95: ='2017legmax.xls'!AH92 -> 0 | BS95: 0 | BT95: 0 | BU95: ='2017legmax.xls'!CJ92 -> 0 | BV95: 0 | BW95: ='2017legmax.xls'!CI92 -> 0 | BX95: 0 | BY95: 0 | BZ95: 0 | CA95: 0 | CB95: 0 | CC95: 0 | CD95: 0 | CE95: 0 | CF95: 0 | CG95: 0 | CH95: 0 | CI95: 0 | CJ95: 0 | CK95: 0 | CO95: D0285
A96: 286 | B96: Chautauqua | C96: Chautauqua Co Community | D96: 2619638 | E96: 1020 | F96: 0 | G96: 0 | H96: 0 | I96: 364.4 | J96: 0 | K96: 0 | L96: =Weightings!K93 -> 0 | M96: 0 | N96: 0 | O96: 2620658 | P96: 0 | Q96: 377465 | R96: 175903 | S96: 175903 | U96: 3174026 | V96: 0 | W96: 0 | X96: 0 | Y96: 0 | Z96: 0 | AA96: 0 | AB96: 0 | AC96: ='2017legmax.xls'!AV93 -> 3 | AD96: ='2017legmax.xls'!AW93 -> A | AE96: ='2017legmax.xls'!AX93 ->  | AF96: 3174026 | AG96: 3174026 | AH96: =IF(Weightings!G93>0,Weightings!G93,'Preliminary SO66'!AB90) -> 3306968 | AI96: 3174026 | AJ96: 3174026 | AK96: 3574400 | AL96: ='2017legmax.xls'!BM93 -> 0.3 | AM96: 1072320 | AN96: 1072320 | AO96: 1072320 | AQ96: 2630159 | AR96: 0 | AS96: 0 | AT96: 0 | AU96: 0 | AV96: 0 | AW96: 0 | AX96: 0 | AY96: 0 | AZ96: 0 | BA96: 10521 | BB96: 0 | BC96: 0 | BD96: 2619638 | BE96: ='2017legmax.xls'!F93 -> 353.2 | BF96: ='2017legmax.xls'!I93 -> 360.9 | BG96: ='2017legmax.xls'!K93 -> 349.2 | BH96: 360.9 | BI96: ='2017legmax.xls'!O93 -> 3.5 | BJ96: 364.4 | BK96: =IF(ISNA(VLOOKUP($CO96,'Audit Values'!$A$2:$AF$318,2,FALSE)),'Preliminary SO66'!T90,VLOOKUP($CO96,'Audit Values'!$A$2:$AF$318,20,FALSE)) -> 0 | BL96: 0 | BM96: =IF(ISNA(VLOOKUP($CO96,'Audit Values'!$A$2:$AF$318,2,FALSE)),'Preliminary SO66'!U90,VLOOKUP($CO96,'Audit Values'!$A$2:$AF$318,21,FALSE)) -> 0.6 | BN96: 1020 | BO96: 0 | BP96: 0 | BQ96: 1020 | BR96: ='2017legmax.xls'!AH93 -> 0 | BS96: 0 | BT96: 0 | BU96: ='2017legmax.xls'!CJ93 -> 0 | BV96: 0 | BW96: ='2017legmax.xls'!CI93 -> 0 | BX96: 0 | BY96: 0 | BZ96: 0 | CA96: 0 | CB96: 0 | CC96: 0 | CD96: 0 | CE96: 0 | CF96: 0 | CG96: 0 | CH96: 0 | CI96: 0 | CJ96: 0 | CK96: 0 | CO96: D0286
A97: 287 | B97: Franklin | C97: West Franklin | D97: 4021901 | E97: 0 | F97: 0 | G97: 0 | H97: 0 | I97: 572.5 | J97: 0 | K97: 0 | L97: =Weightings!K94 -> 0 | M97: -8547 | N97: -8547 | O97: 4013354 | P97: 0 | Q97: 756301 | R97: 332418 | S97: 332418 | U97: 5102073 | V97: 0 | W97: 0 | X97: 8620 | Y97: 0 | Z97: 0 | AA97: 0 | AB97: 0 | AC97: 22 | AD97: ='2017legmax.xls'!AW94 -> A | AE97: ='2017legmax.xls'!AX94 ->  | AF97: 5110693 | AG97: 5110693 | AH97: =IF(Weightings!G94>0,Weightings!G94,'Preliminary SO66'!AB91) -> 5700258 | AI97: 5110693 | AJ97: 5110693 | AK97: 5646665 | AL97: ='2017legmax.xls'!BM94 -> 0.3 | AM97: 1694000 | AN97: 1694000 | AO97: 1694000 | AQ97: 4038053 | AR97: 0 | AS97: 0 | AT97: 0 | AU97: 0 | AV97: 0 | AW97: 0 | AX97: 0 | AY97: 0 | AZ97: 0 | BA97: 16152 | BB97: 0 | BC97: 0 | BD97: 4021901 | BE97: ='2017legmax.xls'!F94 -> 553.5 | BF97: ='2017legmax.xls'!I94 -> 566.5 | BG97: ='2017legmax.xls'!K94 -> 572.5 | BH97: 572.5 | BI97: ='2017legmax.xls'!O94 -> 0 | BJ97: 572.5 | BK97: =IF(ISNA(VLOOKUP($CO97,'Audit Values'!$A$2:$AF$318,2,FALSE)),'Preliminary SO66'!T91,VLOOKUP($CO97,'Audit Values'!$A$2:$AF$318,20,FALSE)) -> 0 | BL97: 0 | BM97: =IF(ISNA(VLOOKUP($CO97,'Audit Values'!$A$2:$AF$318,2,FALSE)),'Preliminary SO66'!U91,VLOOKUP($CO97,'Audit Values'!$A$2:$AF$318,21,FALSE)) -> 0 | BN97: 0 | BO97: 0 | BP97: 0 | BQ97: 0 | BR97: ='2017legmax.xls'!AH94 -> 0 | BS97: 0 | BT97: 0 | BU97: ='2017legmax.xls'!CJ94 -> 0 | BV97: 0 | BW97: ='2017legmax.xls'!CI94 -> 0 | BX97: 0 | BY97: 0 | BZ97: 0 | CA97: 0 | CB97: 0 | CC97: 0 | CD97: 0 | CE97: 0 | CF97: 0 | CG97: 8620 | CH97: 8550 | CI97: 0 | CJ97: 0 | CK97: 0 | CO97: D0287
A98: 288 | B98: Franklin | C98: Central Heights | D98: 4098341 | E98: 15859 | F98: 0 | G98: 0 | H98: 0 | I98: 541.5 | J98: 0 | K98: 0 | L98: =Weightings!K95 -> 0 | M98: 0 | N98: 0 | O98: 4114200 | P98: 0 | Q98: 358395 | R98: 279166 | S98: 279166 | U98: 4751761 | V98: 4483 | W98: 0 | X98: 0 | Y98: 0 | Z98: 0 | AA98: 18178 | AB98: 0 | AC98: ='2017legmax.xls'!AV95 -> 2 | AD98: ='2017legmax.xls'!AW95 -> A | AE98: ='2017legmax.xls'!AX95 ->  | AF98: 4774422 | AG98: 4774422 | AH98: =IF(Weightings!G95>0,Weightings!G95,'Preliminary SO66'!AB92) -> 4881390 | AI98: 4774422 | AJ98: 4774422 | AK98: 5309988 | AL98: ='2017legmax.xls'!BM95 -> 0.3 | AM98: 1592996 | AN98: 1592996 | AO98: 1592996 | AQ98: 4135298 | AR98: 0 | AS98: 0 | AT98: 0 | AU98: 0 | AV98: 0 | AW98: 0 | AX98: 0 | AY98: 0 | AZ98: 0 | BA98: 16541 | BB98: 5.3 | BC98: 20416 | BD98: 4098341 | BE98: ='2017legmax.xls'!F95 -> 555 | BF98: ='2017legmax.xls'!I95 -> 533 | BG98: ='2017legmax.xls'!K95 -> 521.6 | BH98: 536.5 | BI98: ='2017legmax.xls'!O95 -> 5 | BJ98: 541.5 | BK98: =IF(ISNA(VLOOKUP($CO98,'Audit Values'!$A$2:$AF$318,2,FALSE)),'Preliminary SO66'!T92,VLOOKUP($CO98,'Audit Values'!$A$2:$AF$318,20,FALSE)) -> 2 | BL98: 10000 | BM98: =IF(ISNA(VLOOKUP($CO98,'Audit Values'!$A$2:$AF$318,2,FALSE)),'Preliminary SO66'!U92,VLOOKUP($CO98,'Audit Values'!$A$2:$AF$318,21,FALSE)) -> 1.8 | BN98: 3060 | BO98: 3 | BP98: 2799 | BQ98: 15859 | BR98: ='2017legmax.xls'!AH95 -> 0 | BS98: 0 | BT98: 0 | BU98: ='2017legmax.xls'!CJ95 -> 0 | BV98: 0 | BW98: ='2017legmax.xls'!CI95 -> 0 | BX98: 0 | BY98: 0 | BZ98: 0 | CA98: 0 | CB98: 0 | CC98: 0 | CD98: 0 | CE98: 0 | CF98: 0 | CG98: 0 | CH98: 0 | CI98: 0 | CJ98: 0 | CK98: 0 | CO98: D0288
A99: 289 | B99: Franklin | C99: Wellsville | D99: 4541851 | E99: 0 | F99: 0 | G99: 0 | H99: 0 | I99: 757 | J99: 0 | K99: 263 | L99: =Weightings!K96 -> 0 | M99: 0 | N99: 0 | O99: 4541588 | P99: 0 | Q99: 736134 | R99: 355984 | S99: 355984 | U99: 5633706 | V99: 0 | W99: 4654 | X99: 0 | Y99: 0 | Z99: 0 | AA99: 2621 | AB99: 0 | AC99: ='2017legmax.xls'!AV96 -> 6 | AD99: ='2017legmax.xls'!AW96 -> A | AE99: ='2017legmax.xls'!AX96 ->  | AF99: 5640981 | AG99: 5640981 | AH99: =IF(Weightings!G96>0,Weightings!G96,'Preliminary SO66'!AB93) -> 5860401 | AI99: 5640981 | AJ99: 5640981 | AK99: 6112028 | AL99: ='2017legmax.xls'!BM96 -> 0.3 | AM99: 1833608 | AN99: 1833608 | AO99: 1833608 | AQ99: 4568180 | AR99: 2.1 | AS99: 8089 | AT99: 0 | AU99: 0 | AV99: 0 | AW99: 0 | AX99: 0 | AY99: 0 | AZ99: 0 | BA99: 18240 | BB99: 0 | BC99: 0 | BD99: 4541851 | BE99: ='2017legmax.xls'!F96 -> 765 | BF99: ='2017legmax.xls'!I96 -> 753 | BG99: ='2017legmax.xls'!K96 -> 753 | BH99: 757 | BI99: ='2017legmax.xls'!O96 -> 0 | BJ99: 757 | BK99: =IF(ISNA(VLOOKUP($CO99,'Audit Values'!$A$2:$AF$318,2,FALSE)),'Preliminary SO66'!T93,VLOOKUP($CO99,'Audit Values'!$A$2:$AF$318,20,FALSE)) -> 0 | BL99: 0 | BM99: =IF(ISNA(VLOOKUP($CO99,'Audit Values'!$A$2:$AF$318,2,FALSE)),'Preliminary SO66'!U93,VLOOKUP($CO99,'Audit Values'!$A$2:$AF$318,21,FALSE)) -> 0 | BN99: 0 | BO99: 0 | BP99: 0 | BQ99: 0 | BR99: ='2017legmax.xls'!AH96 -> 0 | BS99: 0 | BT99: 0 | BU99: ='2017legmax.xls'!CJ96 -> 0 | BV99: 0 | BW99: ='2017legmax.xls'!CI96 -> 0 | BX99: 0 | BY99: 0 | BZ99: 0 | CA99: 0 | CB99: 0 | CC99: 0 | CD99: 0 | CE99: 0 | CF99: 0 | CG99: 0 | CH99: 0 | CI99: 0 | CJ99: 0 | CK99: 0 | CO99: D0289
A100: 290 | B100: Franklin | C100: Ottawa | D100: 12679383 | E100: 115933 | F100: 0 | G100: 0 | H100: 0 | I100: 2344.7 | J100: 0 | K100: 0 | L100: =Weightings!K97 -> -8864 | M100: 0 | N100: -8864 | O100: 12786452 | P100: 0 | Q100: 2300719 | R100: 1300470 | S100: 1300470 | U100: 16387641 | V100: 44448 | W100: 0 | X100: 0 | Y100: 0 | Z100: 0 | AA100: 120000 | AB100: 45501 | AC100: ='2017legmax.xls'!AV97 -> 11 | AD100: ='2017legmax.xls'!AW97 -> A | AE100: ='2017legmax.xls'!AX97 ->  | AF100: 16597590 | AG100: 16597590 | AH100: =IF(Weightings!G97>0,Weightings!G97,'Preliminary SO66'!AB94) -> 17468617 | AI100: 16597590 | AJ100: 16597590 | AK100: 16898066 | AL100: ='2017legmax.xls'!BM97 -> 0.3 | AM100: 5069420 | AN100: 5069420 | AO100: 5069420 | AQ100: 12778839 | AR100: 12.6 | AS100: 48535 | AT100: 0 | AU100: 0 | AV100: 0 | AW100: 0 | AX100: 0 | AY100: 0 | AZ100: 0 | BA100: 50921 | BB100: 0 | BC100: 0 | BD100: 12679383 | BE100: ='2017legmax.xls'!F97 -> 2375.4 | BF100: ='2017legmax.xls'!I97 -> 2294.3 | BG100: ='2017legmax.xls'!K97 -> 2319.4 | BH100: 2329.7 | BI100: ='2017legmax.xls'!O97 -> 15 | BJ100: 2344.7 | BK100: =IF(ISNA(VLOOKUP($CO100,'Audit Values'!$A$2:$AF$318,2,FALSE)),'Preliminary SO66'!T94,VLOOKUP($CO100,'Audit Values'!$A$2:$AF$318,20,FALSE)) -> 23 | BL100: 115000 | BM100: =IF(ISNA(VLOOKUP($CO100,'Audit Values'!$A$2:$AF$318,2,FALSE)),'Preliminary SO66'!U94,VLOOKUP($CO100,'Audit Values'!$A$2:$AF$318,21,FALSE)) -> 0 | BN100: 0 | BO100: 1 | BP100: 933 | BQ100: 115933 | BR100: ='2017legmax.xls'!AH97 -> 0 | BS100: 0 | BT100: 0 | BU100: ='2017legmax.xls'!CJ97 -> 0 | BV100: 0 | BW100: ='2017legmax.xls'!CI97 -> 0 | BX100: 0 | BY100: 0 | BZ100: 0 | CA100: 0 | CB100: 0 | CC100: 0 | CD100: 0 | CE100: 0 | CF100: 0 | CG100: 0 | CH100: 0 | CI100: 0 | CJ100: 0 | CK100: 0 | CO100: D0290
A101: 291 | B101: Gove | C101: Grinnell Public Schools | D101: 786273 | E101: 0 | F101: 0 | G101: 0 | H101: 0 | I101: 86 | J101: 0 | K101: 0 | L101: =Weightings!K98 -> 0 | M101: 0 | N101: 0 | O101: 786273 | P101: 0 | Q101: 95527 | R101: 55733 | S101: 55733 | U101: 937533 | V101: 62 | W101: 3001 | X101: 0 | Y101: 0 | Z101: 0 | AA101: 0 | AB101: 2577 | AC101: ='2017legmax.xls'!AV98 -> 12 | AD101: ='2017legmax.xls'!AW98 -> A | AE101: ='2017legmax.xls'!AX98 ->  | AF101: 943173 | AG101: 943173 | AH101: =IF(Weightings!G98>0,Weightings!G98,'Preliminary SO66'!AB95) -> 976659 | AI101: 943173 | AJ101: 943173 | AK101: 1034902 | AL101: ='2017legmax.xls'!BM98 -> 0.2126 | AM101: 220020 | AN101: 220020 | AO101: 220020 | AQ101: 789431 | AR101: 0 | AS101: 0 | AT101: 0 | AU101: 0 | AV101: 0 | AW101: 0 | AX101: 0 | AY101: 0 | AZ101: 0 | BA101: 3158 | BB101: 0 | BC101: 0 | BD101: 786273 | BE101: ='2017legmax.xls'!F98 -> 82.5 | BF101: ='2017legmax.xls'!I98 -> 85.5 | BG101: ='2017legmax.xls'!K98 -> 76 | BH101: 85.5 | BI101: ='2017legmax.xls'!O98 -> 0.5 | BJ101: 86 | BK101: =IF(ISNA(VLOOKUP($CO101,'Audit Values'!$A$2:$AF$318,2,FALSE)),'Preliminary SO66'!T95,VLOOKUP($CO101,'Audit Values'!$A$2:$AF$318,20,FALSE)) -> 0 | BL101: 0 | BM101: =IF(ISNA(VLOOKUP($CO101,'Audit Values'!$A$2:$AF$318,2,FALSE)),'Preliminary SO66'!U95,VLOOKUP($CO101,'Audit Values'!$A$2:$AF$318,21,FALSE)) -> 0 | BN101: 0 | BO101: 0 | BP101: 0 | BQ101: 0 | BR101: ='2017legmax.xls'!AH98 -> 0 | BS101: 0 | BT101: 0 | BU101: ='2017legmax.xls'!CJ98 -> 0 | BV101: 0 | BW101: ='2017legmax.xls'!CI98 -> 0 | BX101: 0 | BY101: 0 | BZ101: 0 | CA101: 0 | CB101: 0 | CC101: 0 | CD101: 0 | CE101: 0 | CF101: 0 | CG101: 0 | CH101: 0 | CI101: 0 | CJ101: 0 | CK101: 0 | CO101: D0291
A102: 292 | B102: Gove | C102: Wheatland | D102: 978470 | E102: 0 | F102: 0 | G102: 0 | H102: 0 | I102: 109 | J102: 0 | K102: 0 | L102: =Weightings!K99 -> 0 | M102: 0 | N102: 0 | O102: 978470 | P102: 0 | Q102: 139327 | R102: 82722 | S102: 82722 | U102: 1200519 | V102: 51 | W102: 4176 | X102: 0 | Y102: 0 | Z102: 0 | AA102: 0 | AB102: 2148 | AC102: ='2017legmax.xls'!AV99 -> 12 | AD102: ='2017legmax.xls'!AW99 -> A | AE102: ='2017legmax.xls'!AX99 ->  | AF102: 1206894 | AG102: 1206894 | AH102: =IF(Weightings!G99>0,Weightings!G99,'Preliminary SO66'!AB96) -> 1258234 | AI102: 1206894 | AJ102: 1206894 | AK102: 1352742 | AL102: ='2017legmax.xls'!BM99 -> 0.3 | AM102: 405823 | AN102: 405823 | AO102: 405823 | AQ102: 982400 | AR102: 0 | AS102: 0 | AT102: 0 | AU102: 0 | AV102: 0 | AW102: 0 | AX102: 0 | AY102: 0 | AZ102: 0 | BA102: 3930 | BB102: 0 | BC102: 0 | BD102: 978470 | BE102: ='2017legmax.xls'!F99 -> 106.5 | BF102: ='2017legmax.xls'!I99 -> 102 | BG102: ='2017legmax.xls'!K99 -> 109 | BH102: 109 | BI102: ='2017legmax.xls'!O99 -> 0 | BJ102: 109 | BK102: =IF(ISNA(VLOOKUP($CO102,'Audit Values'!$A$2:$AF$318,2,FALSE)),'Preliminary SO66'!T96,VLOOKUP($CO102,'Audit Values'!$A$2:$AF$318,20,FALSE)) -> 0 | BL102: 0 | BM102: =IF(ISNA(VLOOKUP($CO102,'Audit Values'!$A$2:$AF$318,2,FALSE)),'Preliminary SO66'!U96,VLOOKUP($CO102,'Audit Values'!$A$2:$AF$318,21,FALSE)) -> 0 | BN102: 0 | BO102: 0 | BP102: 0 | BQ102: 0 | BR102: ='2017legmax.xls'!AH99 -> 0 | BS102: 0 | BT102: 0 | BU102: ='2017legmax.xls'!CJ99 -> 0 | BV102: 0 | BW102: ='2017legmax.xls'!CI99 -> 0 | BX102: 0 | BY102: 0 | BZ102: 0 | CA102: 0 | CB102: 0 | CC102: 0 | CD102: 0 | CE102: 0 | CF102: 0 | CG102: 0 | CH102: 0 | CI102: 0 | CJ102: 0 | CK102: 0 | CO102: D0292
A103: 293 | B103: Gove | C103: Quinter Public Schools | D103: 1894671 | E103: 0 | F103: 0 | G103: 0 | H103: 0 | I103: 289.5 | J103: 0 | K103: 0 | L103: =Weightings!K100 -> 0 | M103: 0 | N103: 0 | O103: 1894671 | P103: 0 | Q103: 342014 | R103: 145544 | S103: 145544 | U103: 2382229 | V103: 0 | W103: 6270 | X103: 0 | Y103: 0 | Z103: 0 | AA103: 2457 | AB103: 4027 | AC103: ='2017legmax.xls'!AV100 -> 6 | AD103: ='2017legmax.xls'!AW100 -> A | AE103: ='2017legmax.xls'!AX100 ->  | AF103: 2394983 | AG103: 2394983 | AH103: =IF(Weightings!G100>0,Weightings!G100,'Preliminary SO66'!AB97) -> 2544239 | AI103: 2394983 | AJ103: 2394983 | AK103: 2777304 | AL103: ='2017legmax.xls'!BM100 -> 0.31 | AM103: 860964 | AN103: 860964 | AO103: 860964 | AQ103: 1902280 | AR103: 0 | AS103: 0 | AT103: 0 | AU103: 0 | AV103: 0 | AW103: 0 | AX103: 0 | AY103: 0 | AZ103: 0 | BA103: 7609 | BB103: 0 | BC103: 0 | BD103: 1894671 | BE103: ='2017legmax.xls'!F100 -> 283.5 | BF103: ='2017legmax.xls'!I100 -> 269 | BG103: ='2017legmax.xls'!K100 -> 286.5 | BH103: 286.5 | BI103: ='2017legmax.xls'!O100 -> 3 | BJ103: 289.5 | BK103: =IF(ISNA(VLOOKUP($CO103,'Audit Values'!$A$2:$AF$318,2,FALSE)),'Preliminary SO66'!T97,VLOOKUP($CO103,'Audit Values'!$A$2:$AF$318,20,FALSE)) -> 0 | BL103: 0 | BM103: =IF(ISNA(VLOOKUP($CO103,'Audit Values'!$A$2:$AF$318,2,FALSE)),'Preliminary SO66'!U97,VLOOKUP($CO103,'Audit Values'!$A$2:$AF$318,21,FALSE)) -> 0 | BN103: 0 | BO103: 0 | BP103: 0 | BQ103: 0 | BR103: ='2017legmax.xls'!AH100 -> 0 | BS103: 0 | BT103: 0 | BU103: ='2017legmax.xls'!CJ100 -> 0 | BV103: 0 | BW103: ='2017legmax.xls'!CI100 -> 0 | BX103: 0 | BY103: 0 | BZ103: 0 | CA103: 0 | CB103: 0 | CC103: 0 | CD103: 0 | CE103: 0 | CF103: 0 | CG103: 0 | CH103: 0 | CI103: 0 | CJ103: 0 | CK103: 0 | CO103: D0293
A104: 294 | B104: Decatur | C104: Oberlin | D104: 2277094 | E104: 0 | F104: 0 | G104: 0 | H104: 0 | I104: 323 | J104: 0 | K104: 0 | L104: =Weightings!K101 -> 0 | M104: 0 | N104: 0 | O104: 2277094 | P104: 0 | Q104: 304489 | R104: 200024 | S104: 200024 | U104: 2781607 | V104: 0 | W104: 0 | X104: 0 | Y104: 0 | Z104: 0 | AA104: 0 | AB104: 0 | AC104: ='2017legmax.xls'!AV101 -> 4 | AD104: ='2017legmax.xls'!AW101 -> A | AE104: ='2017legmax.xls'!AX101 ->  | AF104: 2781607 | AG104: 2781607 | AH104: =IF(Weightings!G101>0,Weightings!G101,'Preliminary SO66'!AB98) -> 2957268 | AI104: 2781607 | AJ104: 2781607 | AK104: 3014309 | AL104: ='2017legmax.xls'!BM101 -> 0.3 | AM104: 904293 | AN104: 904293 | AO104: 904293 | AQ104: 2286239 | AR104: 0 | AS104: 0 | AT104: 0 | AU104: 0 | AV104: 0 | AW104: 0 | AX104: 0 | AY104: 0 | AZ104: 0 | BA104: 9145 | BB104: 0 | BC104: 0 | BD104: 2277094 | BE104: ='2017legmax.xls'!F101 -> 332 | BF104: ='2017legmax.xls'!I101 -> 310.5 | BG104: ='2017legmax.xls'!K101 -> 323 | BH104: 323 | BI104: ='2017legmax.xls'!O101 -> 0 | BJ104: 323 | BK104: =IF(ISNA(VLOOKUP($CO104,'Audit Values'!$A$2:$AF$318,2,FALSE)),'Preliminary SO66'!T98,VLOOKUP($CO104,'Audit Values'!$A$2:$AF$318,20,FALSE)) -> 0 | BL104: 0 | BM104: =IF(ISNA(VLOOKUP($CO104,'Audit Values'!$A$2:$AF$318,2,FALSE)),'Preliminary SO66'!U98,VLOOKUP($CO104,'Audit Values'!$A$2:$AF$318,21,FALSE)) -> 0 | BN104: 0 | BO104: 0 | BP104: 0 | BQ104: 0 | BR104: ='2017legmax.xls'!AH101 -> 0 | BS104: 0 | BT104: 0 | BU104: ='2017legmax.xls'!CJ101 -> 0 | BV104: 0 | BW104: ='2017legmax.xls'!CI101 -> 0 | BX104: 0 | BY104: 0 | BZ104: 0 | CA104: 0 | CB104: 0 | CC104: 0 | CD104: 0 | CE104: 0 | CF104: 0 | CG104: 0 | CH104: 0 | CI104: 0 | CJ104: 0 | CK104: 0 | CO104: D0294
A105: 297 | B105: Cheyenne | C105: St Francis Comm Sch | D105: 1919571 | E105: 0 | F105: 0 | G105: 0 | H105: 0 | I105: 272.8 | J105: 0 | K105: 0 | L105: =Weightings!K102 -> 0 | M105: 0 | N105: 0 | O105: 1919571 | P105: 0 | Q105: 195844 | R105: 148861 | S105: 148861 | U105: 2264276 | V105: 0 | W105: 0 | X105: 0 | Y105: 0 | Z105: 0 | AA105: 0 | AB105: 0 | AC105: ='2017legmax.xls'!AV102 -> 12 | AD105: ='2017legmax.xls'!AW102 -> A | AE105: ='2017legmax.xls'!AX102 ->  | AF105: 2264276 | AG105: 2264276 | AH105: =IF(Weightings!G102>0,Weightings!G102,'Preliminary SO66'!AB99) -> 2486078 | AI105: 2264276 | AJ105: 2264276 | AK105: 2498530 | AL105: ='2017legmax.xls'!BM102 -> 0.3 | AM105: 749559 | AN105: 749559 | AO105: 749559 | AQ105: 1927280 | AR105: 0 | AS105: 0 | AT105: 0 | AU105: 0 | AV105: 0 | AW105: 0 | AX105: 0 | AY105: 0 | AZ105: 0 | BA105: 7709 | BB105: 0 | BC105: 0 | BD105: 1919571 | BE105: ='2017legmax.xls'!F102 -> 277 | BF105: ='2017legmax.xls'!I102 -> 270 | BG105: ='2017legmax.xls'!K102 -> 271.5 | BH105: 272.8 | BI105: ='2017legmax.xls'!O102 -> 0 | BJ105: 272.8 | BK105: =IF(ISNA(VLOOKUP($CO105,'Audit Values'!$A$2:$AF$318,2,FALSE)),'Preliminary SO66'!T99,VLOOKUP($CO105,'Audit Values'!$A$2:$AF$318,20,FALSE)) -> 0 | BL105: 0 | BM105: =IF(ISNA(VLOOKUP($CO105,'Audit Values'!$A$2:$AF$318,2,FALSE)),'Preliminary SO66'!U99,VLOOKUP($CO105,'Audit Values'!$A$2:$AF$318,21,FALSE)) -> 0 | BN105: 0 | BO105: 0 | BP105: 0 | BQ105: 0 | BR105: ='2017legmax.xls'!AH102 -> 0 | BS105: 0 | BT105: 0 | BU105: ='2017legmax.xls'!CJ102 -> 0 | BV105: 0 | BW105: ='2017legmax.xls'!CI102 -> 0 | BX105: 0 | BY105: 0 | BZ105: 0 | CA105: 0 | CB105: 0 | CC105: 0 | CD105: 0 | CE105: 0 | CF105: 0 | CG105: 0 | CH105: 0 | CI105: 0 | CJ105: 0 | CK105: 0 | CO105: D0297
A106: 298 | B106: Lincoln | C106: Lincoln | D106: 2461029 | E106: 0 | F106: 0 | G106: 0 | H106: 0 | I106: 346 | J106: 0 | K106: 0 | L106: =Weightings!K103 -> 0 | M106: 0 | N106: 0 | O106: 2461029 | P106: 0 | Q106: 410869 | R106: 197132 | S106: 197132 | U106: 3069030 | V106: 92 | W106: 0 | X106: 0 | Y106: 0 | Z106: 0 | AA106: 606 | AB106: 4726 | AC106: ='2017legmax.xls'!AV103 -> 14 | AD106: ='2017legmax.xls'!AW103 -> A | AE106: ='2017legmax.xls'!AX103 ->  | AF106: 3074454 | AG106: 3074454 | AH106: =IF(Weightings!G103>0,Weightings!G103,'Preliminary SO66'!AB100) -> 3226554 | AI106: 3074454 | AJ106: 3074454 | AK106: 3320764 | AL106: ='2017legmax.xls'!BM103 -> 0.3 | AM106: 996229 | AN106: 996229 | AO106: 996229 | AQ106: 2470913 | AR106: 0 | AS106: 0 | AT106: 0 | AU106: 0 | AV106: 0 | AW106: 0 | AX106: 0 | AY106: 0 | AZ106: 0 | BA106: 9884 | BB106: 0 | BC106: 0 | BD106: 2461029 | BE106: ='2017legmax.xls'!F103 -> 326.6 | BF106: ='2017legmax.xls'!I103 -> 339.5 | BG106: ='2017legmax.xls'!K103 -> 322.5 | BH106: 339.5 | BI106: ='2017legmax.xls'!O103 -> 6.5 | BJ106: 346 | BK106: =IF(ISNA(VLOOKUP($CO106,'Audit Values'!$A$2:$AF$318,2,FALSE)),'Preliminary SO66'!T100,VLOOKUP($CO106,'Audit Values'!$A$2:$AF$318,20,FALSE)) -> 0 | BL106: 0 | BM106: =IF(ISNA(VLOOKUP($CO106,'Audit Values'!$A$2:$AF$318,2,FALSE)),'Preliminary SO66'!U100,VLOOKUP($CO106,'Audit Values'!$A$2:$AF$318,21,FALSE)) -> 0 | BN106: 0 | BO106: 0 | BP106: 0 | BQ106: 0 | BR106: ='2017legmax.xls'!AH103 -> 0 | BS106: 0 | BT106: 0 | BU106: ='2017legmax.xls'!CJ103 -> 0 | BV106: 0 | BW106: ='2017legmax.xls'!CI103 -> 0 | BX106: 0 | BY106: 0 | BZ106: 0 | CA106: 0 | CB106: 0 | CC106: 0 | CD106: 0 | CE106: 0 | CF106: 0 | CG106: 0 | CH106: 0 | CI106: 0 | CJ106: 0 | CK106: 0 | CO106: D0298
A107: 299 | B107: Lincoln | C107: Sylvan Grove | D107: 1843604 | E107: 0 | F107: 0 | G107: 0 | H107: 0 | I107: 234.8 | J107: 0 | K107: 4125 | L107: =Weightings!K104 -> 0 | M107: 0 | N107: 0 | O107: 1839479 | P107: 0 | Q107: 234306 | R107: 102089 | S107: 102089 | U107: 2175874 | V107: 7058 | W107: 0 | X107: 0 | Y107: 0 | Z107: 0 | AA107: 0 | AB107: 0 | AC107: ='2017legmax.xls'!AV104 -> 3 | AD107: ='2017legmax.xls'!AW104 -> A | AE107: ='2017legmax.xls'!AX104 ->  | AF107: 2182932 | AG107: 2182932 | AH107: =IF(Weightings!G104>0,Weightings!G104,'Preliminary SO66'!AB101) -> 2276742 | AI107: 2182932 | AJ107: 2182932 | AK107: 2394374 | AL107: ='2017legmax.xls'!BM104 -> 0.3 | AM107: 718312 | AN107: 500000 | AO107: 500000 | AQ107: 1851008 | AR107: 0 | AS107: 0 | AT107: 0 | AU107: 0 | AV107: 0 | AW107: 0 | AX107: 0 | AY107: 0 | AZ107: 0 | BA107: 7404 | BB107: 0 | BC107: 0 | BD107: 1843604 | BE107: ='2017legmax.xls'!F104 -> 217.8 | BF107: ='2017legmax.xls'!I104 -> 225.4 | BG107: ='2017legmax.xls'!K104 -> 231.8 | BH107: 231.8 | BI107: ='2017legmax.xls'!O104 -> 3 | BJ107: 234.8 | BK107: =IF(ISNA(VLOOKUP($CO107,'Audit Values'!$A$2:$AF$318,2,FALSE)),'Preliminary SO66'!T101,VLOOKUP($CO107,'Audit Values'!$A$2:$AF$318,20,FALSE)) -> 0 | BL107: 0 | BM107: =IF(ISNA(VLOOKUP($CO107,'Audit Values'!$A$2:$AF$318,2,FALSE)),'Preliminary SO66'!U101,VLOOKUP($CO107,'Audit Values'!$A$2:$AF$318,21,FALSE)) -> 0 | BN107: 0 | BO107: 0 | BP107: 0 | BQ107: 0 | BR107: ='2017legmax.xls'!AH104 -> 0 | BS107: 0 | BT107: 0 | BU107: ='2017legmax.xls'!CJ104 -> 0 | BV107: 0 | BW107: ='2017legmax.xls'!CI104 -> 0 | BX107: 0 | BY107: 0 | BZ107: 0 | CA107: 0 | CB107: 0 | CC107: 0 | CD107: 0 | CE107: 0 | CF107: 0 | CG107: 0 | CH107: 0 | CI107: 0 | CJ107: 0 | CK107: 0 | CO107: D0299
A108: 300 | B108: Comanche | C108: Comanche County | D108: 2166274 | E108: 0 | F108: 0 | G108: 0 | H108: 0 | I108: 313 | J108: 0 | K108: 5843 | L108: =Weightings!K105 -> 0 | M108: 0 | N108: 0 | O108: 2160431 | P108: 0 | Q108: 432973 | R108: 137725 | S108: 137725 | U108: 2731129 | V108: 7529 | W108: 30015 | X108: 0 | Y108: 0 | Z108: 0 | AA108: 8789 | AB108: 6737 | AC108: ='2017legmax.xls'!AV105 -> 10 | AD108: ='2017legmax.xls'!AW105 -> A | AE108: ='2017legmax.xls'!AX105 ->  | AF108: 2784199 | AG108: 2784199 | AH108: =IF(Weightings!G105>0,Weightings!G105,'Preliminary SO66'!AB102) -> 2972333 | AI108: 2784199 | AJ108: 2784199 | AK108: 3120944 | AL108: ='2017legmax.xls'!BM105 -> 0.3 | AM108: 936283 | AN108: 936283 | AO108: 936283 | AQ108: 2174974 | AR108: 0 | AS108: 0 | AT108: 0 | AU108: 0 | AV108: 0 | AW108: 0 | AX108: 0 | AY108: 0 | AZ108: 0 | BA108: 8700 | BB108: 0 | BC108: 0 | BD108: 2166274 | BE108: ='2017legmax.xls'!F105 -> 312 | BF108: ='2017legmax.xls'!I105 -> 313 | BG108: ='2017legmax.xls'!K105 -> 304 | BH108: 313 | BI108: ='2017legmax.xls'!O105 -> 0 | BJ108: 313 | BK108: =IF(ISNA(VLOOKUP($CO108,'Audit Values'!$A$2:$AF$318,2,FALSE)),'Preliminary SO66'!T102,VLOOKUP($CO108,'Audit Values'!$A$2:$AF$318,20,FALSE)) -> 0 | BL108: 0 | BM108: =IF(ISNA(VLOOKUP($CO108,'Audit Values'!$A$2:$AF$318,2,FALSE)),'Preliminary SO66'!U102,VLOOKUP($CO108,'Audit Values'!$A$2:$AF$318,21,FALSE)) -> 0 | BN108: 0 | BO108: 0 | BP108: 0 | BQ108: 0 | BR108: ='2017legmax.xls'!AH105 -> 0 | BS108: 0 | BT108: 0 | BU108: ='2017legmax.xls'!CJ105 -> 0 | BV108: 0 | BW108: ='2017legmax.xls'!CI105 -> 0 | BX108: 0 | BY108: 0 | BZ108: 0 | CA108: 0 | CB108: 0 | CC108: 0 | CD108: 0 | CE108: 0 | CF108: 0 | CG108: 0 | CH108: 0 | CI108: 0 | CJ108: 0 | CK108: 0 | CO108: D0300
A109: 303 | B109: Ness | C109: Ness City | D109: 1908230 | E109: 0 | F109: 0 | G109: 0 | H109: 0 | I109: 289.5 | J109: 0 | K109: 1 | L109: =Weightings!K106 -> 0 | M109: 0 | N109: 0 | O109: 1908229 | P109: 0 | Q109: 211626 | R109: 149640 | S109: 149640 | U109: 2269495 | V109: 2248 | W109: 25113 | X109: 0 | Y109: 0 | Z109: 0 | AA109: 0 | AB109: 1293 | AC109: ='2017legmax.xls'!AV106 -> 4 | AD109: ='2017legmax.xls'!AW106 -> A | AE109: ='2017legmax.xls'!AX106 ->  | AF109: 2298149 | AG109: 2298149 | AH109: =IF(Weightings!G106>0,Weightings!G106,'Preliminary SO66'!AB103) -> 2408340 | AI109: 2298149 | AJ109: 2298149 | AK109: 2572623 | AL109: ='2017legmax.xls'!BM106 -> 0.3 | AM109: 771787 | AN109: 771787 | AO109: 771787 | AQ109: 1915894 | AR109: 0 | AS109: 0 | AT109: 0 | AU109: 0 | AV109: 0 | AW109: 0 | AX109: 0 | AY109: 0 | AZ109: 0 | BA109: 7664 | BB109: 0 | BC109: 0 | BD109: 1908230 | BE109: ='2017legmax.xls'!F106 -> 293.9 | BF109: ='2017legmax.xls'!I106 -> 281.1 | BG109: ='2017legmax.xls'!K106 -> 289.5 | BH109: 289.5 | BI109: ='2017legmax.xls'!O106 -> 0 | BJ109: 289.5 | BK109: =IF(ISNA(VLOOKUP($CO109,'Audit Values'!$A$2:$AF$318,2,FALSE)),'Preliminary SO66'!T103,VLOOKUP($CO109,'Audit Values'!$A$2:$AF$318,20,FALSE)) -> 0 | BL109: 0 | BM109: =IF(ISNA(VLOOKUP($CO109,'Audit Values'!$A$2:$AF$318,2,FALSE)),'Preliminary SO66'!U103,VLOOKUP($CO109,'Audit Values'!$A$2:$AF$318,21,FALSE)) -> 0 | BN109: 0 | BO109: 0 | BP109: 0 | BQ109: 0 | BR109: ='2017legmax.xls'!AH106 -> 0 | BS109: 0 | BT109: 0 | BU109: ='2017legmax.xls'!CJ106 -> 0 | BV109: 0 | BW109: ='2017legmax.xls'!CI106 -> 0 | BX109: 0 | BY109: 0 | BZ109: 0 | CA109: 0 | CB109: 0 | CC109: 0 | CD109: 0 | CE109: 0 | CF109: 0 | CG109: 0 | CH109: 0 | CI109: 0 | CJ109: 0 | CK109: 0 | CO109: D0303
A110: 305 | B110: Saline | C110: Salina | D110: 36776011 | E110: 132035 | F110: 399452 | G110: 0 | H110: 0 | I110: 6909.7 | J110: 0 | K110: 0 | L110: =Weightings!K107 -> -11663 | M110: 0 | N110: -11663 | O110: 37295835 | P110: 0 | Q110: 6617978 | R110: 5086760 | S110: 5086760 | U110: 49000573 | V110: 0 | W110: 203 | X110: 0 | Y110: 0 | Z110: 0 | AA110: 176602 | AB110: 74145 | AC110: 22 | AD110: ='2017legmax.xls'!AW107 -> A | AE110: ='2017legmax.xls'!AX107 ->  | AF110: 49251523 | AG110: 49251523 | AH110: =IF(Weightings!G107>0,Weightings!G107,'Preliminary SO66'!AB104) -> 53146483 | AI110: 49251523 | AJ110: 49251523 | AK110: 50008299 | AL110: ='2017legmax.xls'!BM107 -> 0.3 | AM110: 15002490 | AN110: 15002490 | AO110: 15002490 | AQ110: 37140574 | AR110: 56.3 | AS110: 216868 | AT110: 0 | AU110: 0 | AV110: 0 | AW110: 0 | AX110: 0 | AY110: 0 | AZ110: 0 | BA110: 147695 | BB110: 0 | BC110: 0 | BD110: 36776011 | BE110: ='2017legmax.xls'!F107 -> 6920.7 | BF110: ='2017legmax.xls'!I107 -> 6883 | BG110: ='2017legmax.xls'!K107 -> 6847.4 | BH110: 6883.7 | BI110: ='2017legmax.xls'!O107 -> 26 | BJ110: 6909.7 | BK110: =IF(ISNA(VLOOKUP($CO110,'Audit Values'!$A$2:$AF$318,2,FALSE)),'Preliminary SO66'!T104,VLOOKUP($CO110,'Audit Values'!$A$2:$AF$318,20,FALSE)) -> 8 | BL110: 40000 | BM110: =IF(ISNA(VLOOKUP($CO110,'Audit Values'!$A$2:$AF$318,2,FALSE)),'Preliminary SO66'!U104,VLOOKUP($CO110,'Audit Values'!$A$2:$AF$318,21,FALSE)) -> 2 | BN110: 3400 | BO110: 95 | BP110: 88635 | BQ110: 132035 | BR110: ='2017legmax.xls'!AH107 -> 103.7 | BS110: 399452 | BT110: 0 | BU110: ='2017legmax.xls'!CJ107 -> 0 | BV110: 0 | BW110: ='2017legmax.xls'!CI107 -> 0 | BX110: 0 | BY110: 0 | BZ110: 0 | CA110: 0 | CB110: 0 | CC110: 0 | CD110: 0 | CE110: 0 | CF110: 0 | CG110: 0 | CH110: 0 | CI110: 0 | CJ110: 0 | CK110: 0 | CO110: D0305
A111: 306 | B111: Saline | C111: Southeast Of Saline | D111: 4341336 | E111: 10000 | F111: 0 | G111: =BX111+CB111+CF111 -> 0 | H111: 0 | I111: 677.6 | J111: 0 | K111: 79 | L111: =Weightings!K108 -> 0 | M111: 0 | N111: 0 | O111: 4351257 | P111: 0 | Q111: 602025 | R111: 354142 | S111: 354142 | U111: 5307424 | V111: 1 | W111: 448 | X111: 0 | Y111: 0 | Z111: 0 | AA111: 0 | AB111: 10025 | AC111: ='2017legmax.xls'!AV108 -> 4 | AD111: ='2017legmax.xls'!AW108 -> A | AE111: ='2017legmax.xls'!AX108 ->  | AF111: 5317898 | AG111: 5317898 | AH111: =IF(Weightings!G108>0,Weightings!G108,'Preliminary SO66'!AB105) -> 5513587 | AI111: 5317898 | AJ111: 5317898 | AK111: 5725372 | AL111: ='2017legmax.xls'!BM108 -> 0.3 | AM111: 1717612 | AN111: 1717612 | AO111: 1717612 | AQ111: 4379572 | AR111: 5.4 | AS111: 20801 | AT111: 0 | AU111: 0 | AV111: 0 | AW111: 0 | AX111: 0 | AY111: 0 | AZ111: 0 | BA111: 17435 | BB111: 0 | BC111: 0 | BD111: 4341336 | BE111: ='2017legmax.xls'!F108 -> 692.8 | BF111: ='2017legmax.xls'!I108 -> 670.5 | BG111: ='2017legmax.xls'!K108 -> 669.5 | BH111: 677.6 | BI111: ='2017legmax.xls'!O108 -> 0 | BJ111: 677.6 | BK111: =IF(ISNA(VLOOKUP($CO111,'Audit Values'!$A$2:$AF$318,2,FALSE)),'Preliminary SO66'!T105,VLOOKUP($CO111,'Audit Values'!$A$2:$AF$318,20,FALSE)) -> 2 | BL111: 10000 | BM111: =IF(ISNA(VLOOKUP($CO111,'Audit Values'!$A$2:$AF$318,2,FALSE)),'Preliminary SO66'!U105,VLOOKUP($CO111,'Audit Values'!$A$2:$AF$318,21,FALSE)) -> 0 | BN111: 0 | BO111: 0 | BP111: 0 | BQ111: 10000 | BR111: ='2017legmax.xls'!AH108 -> 0 | BS111: 0 | BT111: 0 | BU111: ='2017legmax.xls'!CJ108 -> 0 | BV111: 0 | BW111: ='2017legmax.xls'!CI108 -> 0 | BX111: 0 | BY111: 0 | BZ111: 0 | CA111: 0 | CB111: 0 | CC111: 0 | CD111: 0 | CE111: 0 | CF111: 0 | CG111: 0 | CH111: 0 | CI111: 0 | CJ111: 0 | CK111: 0 | CO111: D0306
A112: 307 | B112: Saline | C112: Ell-Saline | D112: 3113944 | E112: 5000 | F112: 0 | G112: 0 | H112: 0 | I112: 452.3 | J112: 0 | K112: 0 | L112: =Weightings!K109 -> 0 | M112: 0 | N112: 0 | O112: 3118944 | P112: 0 | Q112: 424556 | R112: 209062 | S112: 209062 | U112: 3752562 | V112: 0 | W112: 0 | X112: 21145 | Y112: 0 | Z112: 0 | AA112: 0 | AB112: 1506 | AC112: ='2017legmax.xls'!AV109 -> 3 | AD112: ='2017legmax.xls'!AW109 -> A | AE112: ='2017legmax.xls'!AX109 ->  | AF112: 3775213 | AG112: 3775213 | AH112: =IF(Weightings!G109>0,Weightings!G109,'Preliminary SO66'!AB106) -> 4078631 | AI112: 3775213 | AJ112: 3775213 | AK112: 4111125 | AL112: ='2017legmax.xls'!BM109 -> 0.3 | AM112: 1233338 | AN112: 1233338 | AO112: 1233338 | AQ112: 3157266 | AR112: 8 | AS112: 30816 | AT112: 0 | AU112: 0 | AV112: 0 | AW112: 0 | AX112: 0 | AY112: 0 | AZ112: 0 | BA112: 12506 | BB112: 0 | BC112: 0 | BD112: 3113944 | BE112: ='2017legmax.xls'!F109 -> 468.5 | BF112: ='2017legmax.xls'!I109 -> 445.5 | BG112: ='2017legmax.xls'!K109 -> 443 | BH112: 452.3 | BI112: ='2017legmax.xls'!O109 -> 0 | BJ112: 452.3 | BK112: =IF(ISNA(VLOOKUP($CO112,'Audit Values'!$A$2:$AF$318,2,FALSE)),'Preliminary SO66'!T106,VLOOKUP($CO112,'Audit Values'!$A$2:$AF$318,20,FALSE)) -> 1 | BL112: 5000 | BM112: =IF(ISNA(VLOOKUP($CO112,'Audit Values'!$A$2:$AF$318,2,FALSE)),'Preliminary SO66'!U106,VLOOKUP($CO112,'Audit Values'!$A$2:$AF$318,21,FALSE)) -> 0 | BN112: 0 | BO112: 0 | BP112: 0 | BQ112: 5000 | BR112: ='2017legmax.xls'!AH109 -> 0 | BS112: 0 | BT112: 0 | BU112: ='2017legmax.xls'!CJ109 -> 0 | BV112: 0 | BW112: ='2017legmax.xls'!CI109 -> 0 | BX112: 0 | BY112: 0 | BZ112: 0 | CA112: 0 | CB112: 0 | CC112: 0 | CD112: 0 | CE112: 0 | CF112: 0 | CG112: 21145 | CH112: 20883 | CI112: 0 | CJ112: 0 | CK112: 0 | CO112: D0307
A113: 308 | B113: Reno | C113: Hutchinson Public Schools | D113: 25947982 | E113: 8397 | F113: 0 | G113: 0 | H113: 0 | I113: 4705.7 | J113: 0 | K113: 11437 | L113: =Weightings!K110 -> -933 | M113: 0 | N113: -933 | O113: 25944009 | P113: 0 | Q113: 4072719 | R113: 2496580 | S113: 2496580 | U113: 32513308 | V113: 2630 | W113: 0 | X113: 0 | Y113: 0 | Z113: 380211 | AA113: 114688 | AB113: 81400 | AC113: ='2017legmax.xls'!AV110 -> 18 | AD113: ='2017legmax.xls'!AW110 -> A | AE113: ='2017legmax.xls'!AX110 ->  | AF113: 32712026 | AG113: 33092237 | AH113: =IF(Weightings!G110>0,Weightings!G110,'Preliminary SO66'!AB107) -> 34701582 | AI113: 33092237 | AJ113: 33092237 | AK113: 34553318 | AL113: ='2017legmax.xls'!BM110 -> 0.3 | AM113: 10365995 | AN113: 10287770 | AO113: 10287770 | AQ113: 26117290 | AR113: 16.9 | AS113: 65099 | AT113: 0 | AU113: 0 | AV113: 0 | AW113: 0 | AX113: 0 | AY113: 0 | AZ113: 0 | BA113: 104209 | BB113: 0 | BC113: 0 | BD113: 25947982 | BE113: ='2017legmax.xls'!F110 -> 4792.6 | BF113: ='2017legmax.xls'!I110 -> 4677.7 | BG113: ='2017legmax.xls'!K110 -> 4350.6 | BH113: 4677.7 | BI113: ='2017legmax.xls'!O110 -> 28 | BJ113: 4705.7 | BK113: =IF(ISNA(VLOOKUP($CO113,'Audit Values'!$A$2:$AF$318,2,FALSE)),'Preliminary SO66'!T107,VLOOKUP($CO113,'Audit Values'!$A$2:$AF$318,20,FALSE)) -> 0 | BL113: 0 | BM113: =IF(ISNA(VLOOKUP($CO113,'Audit Values'!$A$2:$AF$318,2,FALSE)),'Preliminary SO66'!U107,VLOOKUP($CO113,'Audit Values'!$A$2:$AF$318,21,FALSE)) -> 0 | BN113: 0 | BO113: 9 | BP113: 8397 | BQ113: 8397 | BR113: ='2017legmax.xls'!AH110 -> 0 | BS113: 0 | BT113: 0 | BU113: ='2017legmax.xls'!CJ110 -> 0 | BV113: 0 | BW113: ='2017legmax.xls'!CI110 -> 0 | BX113: 0 | BY113: 0 | BZ113: 0 | CA113: 0 | CB113: 0 | CC113: 0 | CD113: 0 | CE113: 0 | CF113: 0 | CG113: 0 | CH113: 0 | CI113: 0 | CJ113: 0 | CK113: 0 | CO113: D0308
A114: 309 | B114: Reno | C114: Nickerson | D114: 6792407 | E114: 38339 | F114: 0 | G114: 0 | H114: 0 | I114: 1075.1 | J114: 0 | K114: 0 | L114: =Weightings!K111 -> -3266 | M114: 0 | N114: -3266 | O114: 6827480 | P114: 0 | Q114: 1168745 | R114: 543696 | S114: 543696 | U114: 8539921 | V114: 0 | W114: 562 | X114: 0 | Y114: 0 | Z114: 0 | AA114: 38378 | AB114: 3080 | AC114: ='2017legmax.xls'!AV111 -> 13 | AD114: ='2017legmax.xls'!AW111 -> A | AE114: ='2017legmax.xls'!AX111 ->  | AF114: 8581941 | AG114: 8581941 | AH114: =IF(Weightings!G111>0,Weightings!G111,'Preliminary SO66'!AB108) -> 8853534 | AI114: =MIN(AG114,AH114) -> 8581941 | AJ114: 8581941 | AK114: 9232439 | AL114: ='2017legmax.xls'!BM111 -> 0.3 | AM114: 2769732 | AN114: 2769732 | AO114: 2769732 | AQ114: 6819686 | AR114: 0 | AS114: 0 | AT114: 0 | AU114: 0 | AV114: 0 | AW114: 0 | AX114: 0 | AY114: 0 | AZ114: 0 | BA114: 27279 | BB114: 0 | BC114: 0 | BD114: 6792407 | BE114: ='2017legmax.xls'!F111 -> 1106 | BF114: ='2017legmax.xls'!I111 -> 1064 | BG114: ='2017legmax.xls'!K111 -> 1055.3 | BH114: 1075.1 | BI114: ='2017legmax.xls'!O111 -> 0 | BJ114: 1075.1 | BK114: =IF(ISNA(VLOOKUP($CO114,'Audit Values'!$A$2:$AF$318,2,FALSE)),'Preliminary SO66'!T108,VLOOKUP($CO114,'Audit Values'!$A$2:$AF$318,20,FALSE)) -> 5 | BL114: 25000 | BM114: =IF(ISNA(VLOOKUP($CO114,'Audit Values'!$A$2:$AF$318,2,FALSE)),'Preliminary SO66'!U108,VLOOKUP($CO114,'Audit Values'!$A$2:$AF$318,21,FALSE)) -> 6.2 | BN114: 10540 | BO114: 3 | BP114: 2799 | BQ114: 38339 | BR114: ='2017legmax.xls'!AH111 -> 0 | BS114: 0 | BT114: 0 | BU114: ='2017legmax.xls'!CJ111 -> 0 | BV114: 0 | BW114: ='2017legmax.xls'!CI111 -> 0 | BX114: 0 | BY114: 0 | BZ114: 0 | CA114: 0 | CB114: 0 | CC114: 0 | CD114: 0 | CE114: 0 | CF114: 0 | CG114: 0 | CH114: 0 | CI114: 0 | CJ114: 0 | CK114: 0 | CO114: D0309
A115: 310 | B115: Reno | C115: Fairfield | D115: 2297937 | E115: 0 | F115: 0 | G115: 0 | H115: 0 | I115: 287 | J115: 0 | K115: 14214 | L115: =Weightings!K112 -> 0 | M115: 0 | N115: 0 | O115: 2283723 | P115: 0 | Q115: 319959 | R115: 192677 | S115: 192677 | U115: 2796359 | V115: 12988 | W115: 15820 | X115: 0 | Y115: 0 | Z115: 0 | AA115: 0 | AB115: 1634 | AC115: ='2017legmax.xls'!AV112 -> 6 | AD115: ='2017legmax.xls'!AW112 -> A | AE115: ='2017legmax.xls'!AX112 ->  | AF115: 2826801 | AG115: 2826801 | AH115: =IF(Weightings!G112>0,Weightings!G112,'Preliminary SO66'!AB109) -> 2979773 | AI115: 2826801 | AJ115: 2826801 | AK115: 3102360 | AL115: ='2017legmax.xls'!BM112 -> 0.3 | AM115: 930708 | AN115: 930708 | AO115: 930708 | AQ115: 2307166 | AR115: 0 | AS115: 0 | AT115: 0 | AU115: 0 | AV115: 0 | AW115: 0 | AX115: 0 | AY115: 0 | AZ115: 0 | BA115: 9229 | BB115: 0 | BC115: 0 | BD115: 2297937 | BE115: ='2017legmax.xls'!F112 -> 274.5 | BF115: ='2017legmax.xls'!I112 -> 287 | BG115: ='2017legmax.xls'!K112 -> 278 | BH115: 287 | BI115: ='2017legmax.xls'!O112 -> 0 | BJ115: 287 | BK115: =IF(ISNA(VLOOKUP($CO115,'Audit Values'!$A$2:$AF$318,2,FALSE)),'Preliminary SO66'!T109,VLOOKUP($CO115,'Audit Values'!$A$2:$AF$318,20,FALSE)) -> 0 | BL115: 0 | BM115: =IF(ISNA(VLOOKUP($CO115,'Audit Values'!$A$2:$AF$318,2,FALSE)),'Preliminary SO66'!U109,VLOOKUP($CO115,'Audit Values'!$A$2:$AF$318,21,FALSE)) -> 0 | BN115: 0 | BO115: 0 | BP115: 0 | BQ115: 0 | BR115: ='2017legmax.xls'!AH112 -> 0 | BS115: 0 | BT115: 0 | BU115: ='2017legmax.xls'!CJ112 -> 0 | BV115: 0 | BW115: ='2017legmax.xls'!CI112 -> 0 | BX115: 0 | BY115: 0 | BZ115: 0 | CA115: 0 | CB115: 0 | CC115: 0 | CD115: 0 | CE115: 0 | CF115: 0 | CG115: 0 | CH115: 0 | CI115: 0 | CJ115: 0 | CK115: 0 | CO115: D0310
A116: 311 | B116: Reno | C116: Pretty Prairie | D116: 1942304 | E116: 0 | F116: 0 | G116: 0 | H116: 0 | I116: 253.8 | J116: 0 | K116: 0 | L116: =Weightings!K113 -> 0 | M116: 0 | N116: 0 | O116: 1942304 | P116: 0 | Q116: 239206 | R116: 129426 | S116: 129426 | U116: 2310936 | V116: 0 | W116: 441 | X116: 0 | Y116: 0 | Z116: 0 | AA116: 3417 | AB116: 0 | AC116: ='2017legmax.xls'!AV113 -> 3 | AD116: ='2017legmax.xls'!AW113 -> A | AE116: ='2017legmax.xls'!AX113 ->  | AF116: 2314794 | AG116: 2314794 | AH116: =IF(Weightings!G113>0,Weightings!G113,'Preliminary SO66'!AB110) -> 2467318 | AI116: 2314794 | AJ116: 2314794 | AK116: 2550806 | AL116: ='2017legmax.xls'!BM113 -> 0.3 | AM116: 765242 | AN116: 765242 | AO116: 765242 | AQ116: 1950104 | AR116: 0 | AS116: 0 | AT116: 0 | AU116: 0 | AV116: 0 | AW116: 0 | AX116: 0 | AY116: 0 | AZ116: 0 | BA116: 7800 | BB116: 0 | BC116: 0 | BD116: 1942304 | BE116: ='2017legmax.xls'!F113 -> 272.4 | BF116: ='2017legmax.xls'!I113 -> 251.5 | BG116: ='2017legmax.xls'!K113 -> 237.5 | BH116: 253.8 | BI116: ='2017legmax.xls'!O113 -> 0 | BJ116: 253.8 | BK116: =IF(ISNA(VLOOKUP($CO116,'Audit Values'!$A$2:$AF$318,2,FALSE)),'Preliminary SO66'!T110,VLOOKUP($CO116,'Audit Values'!$A$2:$AF$318,20,FALSE)) -> 0 | BL116: 0 | BM116: =IF(ISNA(VLOOKUP($CO116,'Audit Values'!$A$2:$AF$318,2,FALSE)),'Preliminary SO66'!U110,VLOOKUP($CO116,'Audit Values'!$A$2:$AF$318,21,FALSE)) -> 0 | BN116: 0 | BO116: 0 | BP116: 0 | BQ116: 0 | BR116: ='2017legmax.xls'!AH113 -> 0 | BS116: 0 | BT116: 0 | BU116: ='2017legmax.xls'!CJ113 -> 0 | BV116: 0 | BW116: ='2017legmax.xls'!CI113 -> 0 | BX116: 0 | BY116: 0 | BZ116: 0 | CA116: 0 | CB116: 0 | CC116: 0 | CD116: 0 | CE116: 0 | CF116: 0 | CG116: 0 | CH116: 0 | CI116: 0 | CJ116: 0 | CK116: 0 | CO116: D0311
A117: 312 | B117: Reno | C117: Haven Public Schools | D117: 5301828 | E117: 321578 | F117: 0 | G117: 0 | H117: 0 | I117: 811.3 | J117: 0 | K117: 0 | L117: =Weightings!K114 -> 0 | M117: 0 | N117: 0 | O117: 5623406 | P117: 0 | Q117: 869569 | R117: 431062 | S117: 431062 | U117: 6924037 | V117: 0 | W117: 6547 | X117: 0 | Y117: 0 | Z117: 30000 | AA117: 2320 | AB117: 600 | AC117: 22 | AD117: ='2017legmax.xls'!AW114 -> A | AE117: ='2017legmax.xls'!AX114 ->  | AF117: 6933504 | AG117: 6963504 | AH117: =IF(Weightings!G114>0,Weightings!G114,'Preliminary SO66'!AB111) -> 7181873 | AI117: 6963504 | AJ117: 6963504 | AK117: 7254127 | AL117: ='2017legmax.xls'!BM114 -> 0.31 | AM117: 2248779 | AN117: 2248779 | AO117: 2248779 | AQ117: 5539217 | AR117: 56.1 | AS117: 216097 | AT117: 0 | AU117: 0 | AV117: 0 | AW117: 0 | AX117: 0 | AY117: 0 | AZ117: 0 | BA117: 21292 | BB117: 0 | BC117: 0 | BD117: 5301828 | BE117: ='2017legmax.xls'!F114 -> 850.5 | BF117: ='2017legmax.xls'!I114 -> 783.5 | BG117: ='2017legmax.xls'!K114 -> 786.5 | BH117: 806.8 | BI117: ='2017legmax.xls'!O114 -> 4.5 | BJ117: 811.3 | BK117: =IF(ISNA(VLOOKUP($CO117,'Audit Values'!$A$2:$AF$318,2,FALSE)),'Preliminary SO66'!T111,VLOOKUP($CO117,'Audit Values'!$A$2:$AF$318,20,FALSE)) -> 52 | BL117: 260000 | BM117: =IF(ISNA(VLOOKUP($CO117,'Audit Values'!$A$2:$AF$318,2,FALSE)),'Preliminary SO66'!U111,VLOOKUP($CO117,'Audit Values'!$A$2:$AF$318,21,FALSE)) -> 0 | BN117: 0 | BO117: 66 | BP117: 61578 | BQ117: 321578 | BR117: ='2017legmax.xls'!AH114 -> 0 | BS117: 0 | BT117: 0 | BU117: ='2017legmax.xls'!CJ114 -> 0 | BV117: 0 | BW117: ='2017legmax.xls'!CI114 -> 0 | BX117: 0 | BY117: 0 | BZ117: 0 | CA117: 0 | CB117: 0 | CC117: 0 | CD117: 0 | CE117: 0 | CF117: 0 | CG117: 0 | CH117: 0 | CI117: 0 | CJ117: 0 | CK117: 0 | CO117: D0312
A118: 313 | B118: Reno | C118: Buhler | D118: 10377709 | E118: 0 | F118: 0 | G118: 0 | H118: 0 | I118: 2207.6 | J118: 0 | K118: 0 | L118: =Weightings!K115 -> 0 | M118: 0 | N118: 0 | O118: 10377709 | P118: 0 | Q118: 2336330 | R118: 897138 | S118: 897138 | U118: 13611177 | V118: 20012 | W118: 16690 | X118: 0 | Y118: 0 | Z118: 100000 | AA118: 0 | AB118: 0 | AC118: ='2017legmax.xls'!AV115 -> 13 | AD118: ='2017legmax.xls'!AW115 -> A | AE118: ='2017legmax.xls'!AX115 ->  | AF118: 13647879 | AG118: 13747879 | AH118: =IF(Weightings!G115>0,Weightings!G115,'Preliminary SO66'!AB112) -> 14588161 | AI118: 13747879 | AJ118: 13747879 | AK118: 15391633 | AL118: ='2017legmax.xls'!BM115 -> 0.3 | AM118: 4617490 | AN118: 4617490 | AO118: 4617490 | AQ118: 11061387 | AR118: 0 | AS118: 0 | AT118: 0 | AU118: 0 | AV118: 0 | AW118: 0 | AX118: 0 | AY118: 0 | AZ118: 0 | BA118: 44246 | BB118: 166 | BC118: 639432 | BD118: 10377709 | BE118: ='2017legmax.xls'!F115 -> 2101.5 | BF118: ='2017legmax.xls'!I115 -> 2160.3 | BG118: ='2017legmax.xls'!K115 -> 2201.1 | BH118: 2201.1 | BI118: ='2017legmax.xls'!O115 -> 6.5 | BJ118: 2207.6 | BK118: =IF(ISNA(VLOOKUP($CO118,'Audit Values'!$A$2:$AF$318,2,FALSE)),'Preliminary SO66'!T112,VLOOKUP($CO118,'Audit Values'!$A$2:$AF$318,20,FALSE)) -> 0 | BL118: 0 | BM118: =IF(ISNA(VLOOKUP($CO118,'Audit Values'!$A$2:$AF$318,2,FALSE)),'Preliminary SO66'!U112,VLOOKUP($CO118,'Audit Values'!$A$2:$AF$318,21,FALSE)) -> 0 | BN118: 0 | BO118: 0 | BP118: 0 | BQ118: 0 | BR118: ='2017legmax.xls'!AH115 -> 0 | BS118: 0 | BT118: 0 | BU118: ='2017legmax.xls'!CJ115 -> 0 | BV118: 0 | BW118: ='2017legmax.xls'!CI115 -> 0 | BX118: 0 | BY118: 0 | BZ118: 0 | CA118: 0 | CB118: 0 | CC118: 0 | CD118: 0 | CE118: 0 | CF118: 0 | CG118: 0 | CH118: 0 | CI118: 0 | CJ118: 0 | CK118: 0 | CO118: D0313
A119: 314 | B119: Thomas | C119: Brewster | D119: 977030 | E119: 0 | F119: 0 | G119: 0 | H119: 0 | I119: 143 | J119: 0 | K119: 0 | L119: =Weightings!K116 -> 0 | M119: 0 | N119: 0 | O119: 977030 | P119: 0 | Q119: 135461 | R119: 69132 | S119: 69132 | U119: 1181623 | V119: 0 | W119: 767 | X119: 0 | Y119: 0 | Z119: 0 | AA119: 0 | AB119: 0 | AC119: ='2017legmax.xls'!AV116 -> 12 | AD119: ='2017legmax.xls'!AW116 -> A | AE119: ='2017legmax.xls'!AX116 ->  | AF119: 1182390 | AG119: 1182390 | AH119: =IF(Weightings!G116>0,Weightings!G116,'Preliminary SO66'!AB113) -> 1212320 | AI119: 1182390 | AJ119: 1182390 | AK119: 1276090 | AL119: ='2017legmax.xls'!BM116 -> 0.3 | AM119: 382827 | AN119: 382827 | AO119: 382827 | AQ119: 980954 | AR119: 0 | AS119: 0 | AT119: 0 | AU119: 0 | AV119: 0 | AW119: 0 | AX119: 0 | AY119: 0 | AZ119: 0 | BA119: 3924 | BB119: 0 | BC119: 0 | BD119: 977030 | BE119: ='2017legmax.xls'!F116 -> 111 | BF119: ='2017legmax.xls'!I116 -> 125.5 | BG119: ='2017legmax.xls'!K116 -> 143 | BH119: 143 | BI119: ='2017legmax.xls'!O116 -> 0 | BJ119: 143 | BK119: =IF(ISNA(VLOOKUP($CO119,'Audit Values'!$A$2:$AF$318,2,FALSE)),'Preliminary SO66'!T113,VLOOKUP($CO119,'Audit Values'!$A$2:$AF$318,20,FALSE)) -> 0 | BL119: 0 | BM119: =IF(ISNA(VLOOKUP($CO119,'Audit Values'!$A$2:$AF$318,2,FALSE)),'Preliminary SO66'!U113,VLOOKUP($CO119,'Audit Values'!$A$2:$AF$318,21,FALSE)) -> 0 | BN119: 0 | BO119: 0 | BP119: 0 | BQ119: 0 | BR119: ='2017legmax.xls'!AH116 -> 0 | BS119: 0 | BT119: 0 | BU119: ='2017legmax.xls'!CJ116 -> 0 | BV119: 0 | BW119: ='2017legmax.xls'!CI116 -> 0 | BX119: 0 | BY119: 0 | BZ119: 0 | CA119: 0 | CB119: 0 | CC119: 0 | CD119: 0 | CE119: 0 | CF119: 0 | CG119: 0 | CH119: 0 | CI119: 0 | CJ119: 0 | CK119: 0 | CO119: D0314
A120: 315 | B120: Thomas | C120: Colby Public Schools | D120: 5299466 | E120: 18660 | F120: 0 | G120: 0 | H120: 0 | I120: 868.9 | J120: 0 | K120: 0 | L120: =Weightings!K117 -> 0 | M120: 0 | N120: 0 | O120: 5318126 | P120: 0 | Q120: 584690 | R120: 359199 | S120: 359199 | U120: 6262015 | V120: 314 | W120: 1134 | X120: 0 | Y120: 0 | Z120: 0 | AA120: 0 | AB120: 4366 | AC120: ='2017legmax.xls'!AV117 -> 12 | AD120: ='2017legmax.xls'!AW117 -> A | AE120: ='2017legmax.xls'!AX117 ->  | AF120: 6267829 | AG120: 6267829 | AH120: =IF(Weightings!G117>0,Weightings!G117,'Preliminary SO66'!AB114) -> 6673374 | AI120: 6267829 | AJ120: 6267829 | AK120: 7254585 | AL120: ='2017legmax.xls'!BM117 -> 0.3 | AM120: 2176376 | AN120: 2176376 | AO120: 2176376 | AQ120: 5349254 | AR120: 7.4 | AS120: 28505 | AT120: 0 | AU120: 0 | AV120: 0 | AW120: 0 | AX120: 0 | AY120: 0 | AZ120: 0 | BA120: 21283 | BB120: 0 | BC120: 0 | BD120: 5299466 | BE120: ='2017legmax.xls'!F117 -> 895.7 | BF120: ='2017legmax.xls'!I117 -> 868.9 | BG120: ='2017legmax.xls'!K117 -> 826.1 | BH120: 868.9 | BI120: ='2017legmax.xls'!O117 -> 0 | BJ120: 868.9 | BK120: =IF(ISNA(VLOOKUP($CO120,'Audit Values'!$A$2:$AF$318,2,FALSE)),'Preliminary SO66'!T114,VLOOKUP($CO120,'Audit Values'!$A$2:$AF$318,20,FALSE)) -> 0 | BL120: 0 | BM120: =IF(ISNA(VLOOKUP($CO120,'Audit Values'!$A$2:$AF$318,2,FALSE)),'Preliminary SO66'!U114,VLOOKUP($CO120,'Audit Values'!$A$2:$AF$318,21,FALSE)) -> 0 | BN120: 0 | BO120: 20 | BP120: 18660 | BQ120: 18660 | BR120: ='2017legmax.xls'!AH117 -> 0 | BS120: 0 | BT120: 0 | BU120: ='2017legmax.xls'!CJ117 -> 0 | BV120: 0 | BW120: ='2017legmax.xls'!CI117 -> 0 | BX120: 0 | BY120: 0 | BZ120: 0 | CA120: 0 | CB120: 0 | CC120: 0 | CD120: 0 | CE120: 0 | CF120: 0 | CG120: 0 | CH120: 0 | CI120: 0 | CJ120: 0 | CK120: 0 | CO120: D0315
A121: 316 | B121: Thomas | C121: Golden Plains | D121: 1556899 | E121: 0 | F121: 0 | G121: 0 | H121: 0 | I121: 178.1 | J121: 0 | K121: 209 | L121: =Weightings!K118 -> 0 | M121: 0 | N121: 0 | O121: 1556690 | P121: 0 | Q121: 253280 | R121: 112712 | S121: 112712 | U121: 1922682 | V121: 0 | W121: 1090 | X121: 0 | Y121: 0 | Z121: 0 | AA121: 0 | AB121: 10053 | AC121: ='2017legmax.xls'!AV118 -> 3 | AD121: ='2017legmax.xls'!AW118 -> A | AE121: ='2017legmax.xls'!AX118 ->  | AF121: 1933825 | AG121: 1933825 | AH121: =IF(Weightings!G118>0,Weightings!G118,'Preliminary SO66'!AB115) -> 1964843 | AI121: 1933825 | AJ121: 1933825 | AK121: 2204762 | AL121: ='2017legmax.xls'!BM118 -> 0.3 | AM121: 661429 | AN121: 661429 | AO121: 661429 | AQ121: 1563152 | AR121: 0 | AS121: 0 | AT121: 0 | AU121: 0 | AV121: 0 | AW121: 0 | AX121: 0 | AY121: 0 | AZ121: 0 | BA121: 6253 | BB121: 0 | BC121: 0 | BD121: 1556899 | BE121: ='2017legmax.xls'!F118 -> 178.9 | BF121: ='2017legmax.xls'!I118 -> 177.6 | BG121: ='2017legmax.xls'!K118 -> 173 | BH121: 177.6 | BI121: ='2017legmax.xls'!O118 -> 0.5 | BJ121: 178.1 | BK121: =IF(ISNA(VLOOKUP($CO121,'Audit Values'!$A$2:$AF$318,2,FALSE)),'Preliminary SO66'!T115,VLOOKUP($CO121,'Audit Values'!$A$2:$AF$318,20,FALSE)) -> 0 | BL121: 0 | BM121: =IF(ISNA(VLOOKUP($CO121,'Audit Values'!$A$2:$AF$318,2,FALSE)),'Preliminary SO66'!U115,VLOOKUP($CO121,'Audit Values'!$A$2:$AF$318,21,FALSE)) -> 0 | BN121: 0 | BO121: 0 | BP121: 0 | BQ121: 0 | BR121: ='2017legmax.xls'!AH118 -> 0 | BS121: 0 | BT121: 0 | BU121: ='2017legmax.xls'!CJ118 -> 0 | BV121: 0 | BW121: ='2017legmax.xls'!CI118 -> 0 | BX121: 0 | BY121: 0 | BZ121: 0 | CA121: 0 | CB121: 0 | CC121: 0 | CD121: 0 | CE121: 0 | CF121: 0 | CG121: 0 | CH121: 0 | CI121: 0 | CJ121: 0 | CK121: 0 | CO121: D0316
A122: 320 | B122: Pottawatomie | C122: Wamego | D122: 7210394 | E122: 113529 | F122: 0 | G122: 0 | H122: 0 | I122: 1470.1 | J122: 0 | K122: 3719 | L122: =Weightings!K119 -> 0 | M122: 0 | N122: 0 | O122: 7320204 | P122: 0 | Q122: 1461950 | R122: 952049 | S122: 952049 | U122: 9734203 | V122: 0 | W122: 0 | X122: 0 | Y122: 0 | Z122: 0 | AA122: 33827 | AB122: 3124 | AC122: ='2017legmax.xls'!AV119 -> 7 | AD122: ='2017legmax.xls'!AW119 -> A | AE122: ='2017legmax.xls'!AX119 ->  | AF122: 9771154 | AG122: 9771154 | AH122: =IF(Weightings!G119>0,Weightings!G119,'Preliminary SO66'!AB116) -> 10313796 | AI122: 9771154 | AJ122: 9771154 | AK122: 10009502 | AL122: ='2017legmax.xls'!BM119 -> 0.3 | AM122: 3002851 | AN122: 3002851 | AO122: 3002851 | AQ122: 7239351 | AR122: 0 | AS122: 0 | AT122: 0 | AU122: 0 | AV122: 0 | AW122: 0 | AX122: 0 | AY122: 0 | AZ122: 0 | BA122: 28957 | BB122: 0 | BC122: 0 | BD122: 7210394 | BE122: ='2017legmax.xls'!F119 -> 1494.8 | BF122: ='2017legmax.xls'!I119 -> 1470.1 | BG122: ='2017legmax.xls'!K119 -> 1427.6 | BH122: 1470.1 | BI122: ='2017legmax.xls'!O119 -> 0 | BJ122: 1470.1 | BK122: =IF(ISNA(VLOOKUP($CO122,'Audit Values'!$A$2:$AF$318,2,FALSE)),'Preliminary SO66'!T116,VLOOKUP($CO122,'Audit Values'!$A$2:$AF$318,20,FALSE)) -> 20 | BL122: 100000 | BM122: =IF(ISNA(VLOOKUP($CO122,'Audit Values'!$A$2:$AF$318,2,FALSE)),'Preliminary SO66'!U116,VLOOKUP($CO122,'Audit Values'!$A$2:$AF$318,21,FALSE)) -> 0 | BN122: 0 | BO122: 14.5 | BP122: 13529 | BQ122: 113529 | BR122: ='2017legmax.xls'!AH119 -> 0 | BS122: 0 | BT122: 0 | BU122: ='2017legmax.xls'!CJ119 -> 0 | BV122: 0 | BW122: ='2017legmax.xls'!CI119 -> 0 | BX122: 0 | BY122: 0 | BZ122: 0 | CA122: 0 | CB122: 0 | CC122: 0 | CD122: 0 | CE122: 0 | CF122: 0 | CG122: 0 | CH122: 0 | CI122: 0 | CJ122: 0 | CK122: 0 | CO122: D0320
A123: 321 | B123: Pottawatomie | C123: Kaw Valley | D123: 6307052 | E123: 0 | F123: 0 | G123: 0 | H123: 0 | I123: 1126 | J123: 0 | K123: 0 | L123: =Weightings!K120 -> 0 | M123: 0 | N123: 0 | O123: 6307052 | P123: 0 | Q123: 1456350 | R123: 694045 | S123: 694045 | U123: 8457447 | V123: 0 | W123: 0 | X123: 0 | Y123: 0 | Z123: 0 | AA123: 0 | AB123: 10203 | AC123: ='2017legmax.xls'!AV120 -> 7 | AD123: ='2017legmax.xls'!AW120 -> A | AE123: ='2017legmax.xls'!AX120 ->  | AF123: 8467650 | AG123: 8467650 | AH123: =IF(Weightings!G120>0,Weightings!G120,'Preliminary SO66'!AB117) -> 8930197 | AI123: 8467650 | AJ123: 8467650 | AK123: 8782775 | AL123: ='2017legmax.xls'!BM120 -> 0.3 | AM123: 2634833 | AN123: 2634833 | AO123: 2634833 | AQ123: 6332382 | AR123: 0 | AS123: 0 | AT123: 0 | AU123: 0 | AV123: 0 | AW123: 0 | AX123: 0 | AY123: 0 | AZ123: 0 | BA123: 25330 | BB123: 0 | BC123: 0 | BD123: 6307052 | BE123: ='2017legmax.xls'!F120 -> 1112.9 | BF123: ='2017legmax.xls'!I120 -> 1097 | BG123: ='2017legmax.xls'!K120 -> 1117.5 | BH123: 1117.5 | BI123: ='2017legmax.xls'!O120 -> 8.5 | BJ123: 1126 | BK123: =IF(ISNA(VLOOKUP($CO123,'Audit Values'!$A$2:$AF$318,2,FALSE)),'Preliminary SO66'!T117,VLOOKUP($CO123,'Audit Values'!$A$2:$AF$318,20,FALSE)) -> 0 | BL123: 0 | BM123: =IF(ISNA(VLOOKUP($CO123,'Audit Values'!$A$2:$AF$318,2,FALSE)),'Preliminary SO66'!U117,VLOOKUP($CO123,'Audit Values'!$A$2:$AF$318,21,FALSE)) -> 0 | BN123: 0 | BO123: 0 | BP123: 0 | BQ123: 0 | BR123: ='2017legmax.xls'!AH120 -> 0 | BS123: 0 | BT123: 0 | BU123: ='2017legmax.xls'!CJ120 -> 0 | BV123: 0 | BW123: ='2017legmax.xls'!CI120 -> 0 | BX123: 0 | BY123: 0 | BZ123: 0 | CA123: 0 | CB123: 0 | CC123: 0 | CD123: 0 | CE123: 0 | CF123: 0 | CG123: 0 | CH123: 0 | CI123: 0 | CJ123: 0 | CK123: 0 | CO123: D0321
A124: 322 | B124: Pottawatomie | C124: Onaga-Havensville-Wheaton | D124: 2152153 | E124: 0 | F124: 0 | G124: 0 | H124: 0 | I124: 293.3 | J124: 0 | K124: 0 | L124: =Weightings!K121 -> 0 | M124: 0 | N124: 0 | O124: 2152153 | P124: 0 | Q124: 274065 | R124: 154048 | S124: 154048 | U124: 2580266 | V124: 0 | W124: 17 | X124: 0 | Y124: 0 | Z124: 0 | AA124: 0 | AB124: 473 | AC124: ='2017legmax.xls'!AV121 -> 6 | AD124: ='2017legmax.xls'!AW121 -> A | AE124: ='2017legmax.xls'!AX121 ->  | AF124: 2580756 | AG124: 2580756 | AH124: =IF(Weightings!G121>0,Weightings!G121,'Preliminary SO66'!AB118) -> 2699665 | AI124: 2580756 | AJ124: 2580756 | AK124: 2801799 | AL124: ='2017legmax.xls'!BM121 -> 0.3 | AM124: 840540 | AN124: 840540 | AO124: 840540 | AQ124: 2160796 | AR124: 0 | AS124: 0 | AT124: 0 | AU124: 0 | AV124: 0 | AW124: 0 | AX124: 0 | AY124: 0 | AZ124: 0 | BA124: 8643 | BB124: 0 | BC124: 0 | BD124: 2152153 | BE124: ='2017legmax.xls'!F121 -> 304.5 | BF124: ='2017legmax.xls'!I121 -> 289.5 | BG124: ='2017legmax.xls'!K121 -> 286 | BH124: 293.3 | BI124: ='2017legmax.xls'!O121 -> 0 | BJ124: 293.3 | BK124: =IF(ISNA(VLOOKUP($CO124,'Audit Values'!$A$2:$AF$318,2,FALSE)),'Preliminary SO66'!T118,VLOOKUP($CO124,'Audit Values'!$A$2:$AF$318,20,FALSE)) -> 0 | BL124: 0 | BM124: =IF(ISNA(VLOOKUP($CO124,'Audit Values'!$A$2:$AF$318,2,FALSE)),'Preliminary SO66'!U118,VLOOKUP($CO124,'Audit Values'!$A$2:$AF$318,21,FALSE)) -> 0 | BN124: 0 | BO124: 0 | BP124: 0 | BQ124: 0 | BR124: ='2017legmax.xls'!AH121 -> 0 | BS124: 0 | BT124: 0 | BU124: ='2017legmax.xls'!CJ121 -> 0 | BV124: 0 | BW124: ='2017legmax.xls'!CI121 -> 0 | BX124: 0 | BY124: 0 | BZ124: 0 | CA124: 0 | CB124: 0 | CC124: 0 | CD124: 0 | CE124: 0 | CF124: 0 | CG124: 0 | CH124: 0 | CI124: 0 | CJ124: 0 | CK124: 0 | CO124: D0322
A125: 323 | B125: Pottawatomie | C125: Rock Creek | D125: 5365487 | E125: 0 | F125: 0 | G125: 0 | H125: 0 | I125: 993.6 | J125: 0 | K125: 0 | L125: =Weightings!K122 -> 0 | M125: 0 | N125: 0 | O125: 5365487 | P125: 0 | Q125: 837721 | R125: 381679 | S125: 381679 | U125: 6584887 | V125: 0 | W125: 0 | X125: 0 | Y125: 0 | Z125: 0 | AA125: 23000 | AB125: 0 | AC125: ='2017legmax.xls'!AV122 -> 7 | AD125: ='2017legmax.xls'!AW122 -> A | AE125: ='2017legmax.xls'!AX122 ->  | AF125: 6607887 | AG125: 6607887 | AH125: =IF(Weightings!G122>0,Weightings!G122,'Preliminary SO66'!AB119) -> 7078679 | AI125: 6607887 | AJ125: 6607887 | AK125: 7377148 | AL125: ='2017legmax.xls'!BM122 -> 0.3 | AM125: 2213144 | AN125: 2213144 | AO125: 2213144 | AQ125: 5564552 | AR125: 0 | AS125: 0 | AT125: 0 | AU125: 0 | AV125: 0 | AW125: 0 | AX125: 0 | AY125: 0 | AZ125: 0 | BA125: 22258 | BB125: 45.9 | BC125: 176807 | BD125: 5365487 | BE125: ='2017legmax.xls'!F122 -> 902.1 | BF125: ='2017legmax.xls'!I122 -> 942.1 | BG125: ='2017legmax.xls'!K122 -> 993.6 | BH125: 993.6 | BI125: ='2017legmax.xls'!O122 -> 0 | BJ125: 993.6 | BK125: =IF(ISNA(VLOOKUP($CO125,'Audit Values'!$A$2:$AF$318,2,FALSE)),'Preliminary SO66'!T119,VLOOKUP($CO125,'Audit Values'!$A$2:$AF$318,20,FALSE)) -> 0 | BL125: 0 | BM125: =IF(ISNA(VLOOKUP($CO125,'Audit Values'!$A$2:$AF$318,2,FALSE)),'Preliminary SO66'!U119,VLOOKUP($CO125,'Audit Values'!$A$2:$AF$318,21,FALSE)) -> 0 | BN125: 0 | BO125: 0 | BP125: 0 | BQ125: 0 | BR125: ='2017legmax.xls'!AH122 -> 0 | BS125: 0 | BT125: 0 | BU125: ='2017legmax.xls'!CJ122 -> 0.0012 | BV125: 7929 | BW125: ='2017legmax.xls'!CI122 -> 0 | BX125: 0 | BY125: 0 | BZ125: 0 | CA125: 0 | CB125: 0 | CC125: 0 | CD125: 0 | CE125: 0 | CF125: 0 | CG125: 0 | CH125: 0 | CI125: 0 | CJ125: 0 | CK125: 0 | CO125: D0323
A126: 325 | B126: Phillips | C126: Phillipsburg | D126: 3698144 | E126: 0 | F126: 0 | G126: 0 | H126: 0 | I126: 607.5 | J126: 0 | K126: 0 | L126: =Weightings!K123 -> 0 | M126: 0 | N126: 0 | O126: 3698144 | P126: 0 | Q126: 705167 | R126: 261642 | S126: 261642 | U126: 4664953 | V126: 0 | W126: 0 | X126: 0 | Y126: 0 | Z126: 0 | AA126: 0 | AB126: 10675 | AC126: ='2017legmax.xls'!AV123 -> 3 | AD126: ='2017legmax.xls'!AW123 -> A | AE126: ='2017legmax.xls'!AX123 ->  | AF126: 4675628 | AG126: 4675628 | AH126: =IF(Weightings!G123>0,Weightings!G123,'Preliminary SO66'!AB120) -> 4864367 | AI126: 4675628 | AJ126: 4675628 | AK126: 5086297 | AL126: ='2017legmax.xls'!BM123 -> 0.3 | AM126: 1525889 | AN126: 1525889 | AO126: 1525889 | AQ126: 3712996 | AR126: 0 | AS126: 0 | AT126: 0 | AU126: 0 | AV126: 0 | AW126: 0 | AX126: 0 | AY126: 0 | AZ126: 0 | BA126: 14852 | BB126: 0 | BC126: 0 | BD126: 3698144 | BE126: ='2017legmax.xls'!F123 -> 591 | BF126: ='2017legmax.xls'!I123 -> 607.5 | BG126: ='2017legmax.xls'!K123 -> 596.2 | BH126: 607.5 | BI126: ='2017legmax.xls'!O123 -> 0 | BJ126: 607.5 | BK126: =IF(ISNA(VLOOKUP($CO126,'Audit Values'!$A$2:$AF$318,2,FALSE)),'Preliminary SO66'!T120,VLOOKUP($CO126,'Audit Values'!$A$2:$AF$318,20,FALSE)) -> 0 | BL126: 0 | BM126: =IF(ISNA(VLOOKUP($CO126,'Audit Values'!$A$2:$AF$318,2,FALSE)),'Preliminary SO66'!U120,VLOOKUP($CO126,'Audit Values'!$A$2:$AF$318,21,FALSE)) -> 0 | BN126: 0 | BO126: 0 | BP126: 0 | BQ126: 0 | BR126: ='2017legmax.xls'!AH123 -> 0 | BS126: 0 | BT126: 0 | BU126: ='2017legmax.xls'!CJ123 -> 0 | BV126: 0 | BW126: ='2017legmax.xls'!CI123 -> 0 | BX126: 0 | BY126: 0 | BZ126: 0 | CA126: 0 | CB126: 0 | CC126: 0 | CD126: 0 | CE126: 0 | CF126: 0 | CG126: 0 | CH126: 0 | CI126: 0 | CJ126: 0 | CK126: 0 | CO126: D0325
A127: 326 | B127: Phillips | C127: Logan | D127: 1417944 | E127: 0 | F127: 0 | G127: 0 | H127: 0 | I127: 145.8 | J127: 0 | K127: 0 | L127: =Weightings!K124 -> 0 | M127: 0 | N127: 0 | O127: 1417944 | P127: 0 | Q127: 178247 | R127: 98328 | S127: 98328 | U127: 1694519 | V127: 0 | W127: 1143 | X127: 0 | Y127: 0 | Z127: 0 | AA127: 0 | AB127: 1802 | AC127: ='2017legmax.xls'!AV124 -> 3 | AD127: ='2017legmax.xls'!AW124 -> A | AE127: ='2017legmax.xls'!AX124 ->  | AF127: 1697464 | AG127: 1697464 | AH127: =IF(Weightings!G124>0,Weightings!G124,'Preliminary SO66'!AB121) -> 1766599 | AI127: 1697464 | AJ127: 1697464 | AK127: 1885458 | AL127: ='2017legmax.xls'!BM124 -> 0.3 | AM127: 565637 | AN127: 565637 | AO127: 565637 | AQ127: 1423639 | AR127: 0 | AS127: 0 | AT127: 0 | AU127: 0 | AV127: 0 | AW127: 0 | AX127: 0 | AY127: 0 | AZ127: 0 | BA127: 5695 | BB127: 0 | BC127: 0 | BD127: 1417944 | BE127: ='2017legmax.xls'!F124 -> 149.5 | BF127: ='2017legmax.xls'!I124 -> 144.5 | BG127: ='2017legmax.xls'!K124 -> 142 | BH127: 145.3 | BI127: ='2017legmax.xls'!O124 -> 0.5 | BJ127: 145.8 | BK127: =IF(ISNA(VLOOKUP($CO127,'Audit Values'!$A$2:$AF$318,2,FALSE)),'Preliminary SO66'!T121,VLOOKUP($CO127,'Audit Values'!$A$2:$AF$318,20,FALSE)) -> 0 | BL127: 0 | BM127: =IF(ISNA(VLOOKUP($CO127,'Audit Values'!$A$2:$AF$318,2,FALSE)),'Preliminary SO66'!U121,VLOOKUP($CO127,'Audit Values'!$A$2:$AF$318,21,FALSE)) -> 0 | BN127: 0 | BO127: 0 | BP127: 0 | BQ127: 0 | BR127: ='2017legmax.xls'!AH124 -> 0 | BS127: 0 | BT127: 0 | BU127: ='2017legmax.xls'!CJ124 -> 0 | BV127: 0 | BW127: ='2017legmax.xls'!CI124 -> 0 | BX127: 0 | BY127: 0 | BZ127: 0 | CA127: 0 | CB127: 0 | CC127: 0 | CD127: 0 | CE127: 0 | CF127: 0 | CG127: 0 | CH127: 0 | CI127: 0 | CJ127: 0 | CK127: 0 | CO127: D0326
A128: 327 | B128: Ellsworth | C128: Ellsworth | D128: 3773132 | E128: 0 | F128: 0 | G128: 0 | H128: 0 | I128: 617.2 | J128: 0 | K128: 0 | L128: =Weightings!K125 -> 0 | M128: 0 | N128: 0 | O128: 3773132 | P128: 0 | Q128: 533669 | R128: 292650 | S128: 292650 | U128: 4599451 | V128: 0 | W128: 716 | X128: 0 | Y128: 0 | Z128: 0 | AA128: 0 | AB128: 7755 | AC128: ='2017legmax.xls'!AV125 -> 3 | AD128: ='2017legmax.xls'!AW125 -> A | AE128: ='2017legmax.xls'!AX125 ->  | AF128: 4607922 | AG128: 4607922 | AH128: =IF(Weightings!G125>0,Weightings!G125,'Preliminary SO66'!AB122) -> 4802728 | AI128: 4607922 | AJ128: 4607922 | AK128: 4939030 | AL128: ='2017legmax.xls'!BM125 -> 0.3 | AM128: 1481709 | AN128: 1481709 | AO128: 1481709 | AQ128: 3788285 | AR128: 0 | AS128: 0 | AT128: 0 | AU128: 0 | AV128: 0 | AW128: 0 | AX128: 0 | AY128: 0 | AZ128: 0 | BA128: 15153 | BB128: 0 | BC128: 0 | BD128: 3773132 | BE128: ='2017legmax.xls'!F125 -> 592 | BF128: ='2017legmax.xls'!I125 -> 602.6 | BG128: ='2017legmax.xls'!K125 -> 617.2 | BH128: 617.2 | BI128: ='2017legmax.xls'!O125 -> 0 | BJ128: 617.2 | BK128: =IF(ISNA(VLOOKUP($CO128,'Audit Values'!$A$2:$AF$318,2,FALSE)),'Preliminary SO66'!T122,VLOOKUP($CO128,'Audit Values'!$A$2:$AF$318,20,FALSE)) -> 0 | BL128: 0 | BM128: =IF(ISNA(VLOOKUP($CO128,'Audit Values'!$A$2:$AF$318,2,FALSE)),'Preliminary SO66'!U122,VLOOKUP($CO128,'Audit Values'!$A$2:$AF$318,21,FALSE)) -> 0 | BN128: 0 | BO128: 0 | BP128: 0 | BQ128: 0 | BR128: ='2017legmax.xls'!AH125 -> 0 | BS128: 0 | BT128: 0 | BU128: ='2017legmax.xls'!CJ125 -> 0 | BV128: 0 | BW128: ='2017legmax.xls'!CI125 -> 0 | BX128: 0 | BY128: 0 | BZ128: 0 | CA128: 0 | CB128: 0 | CC128: 0 | CD128: 0 | CE128: 0 | CF128: 0 | CG128: 0 | CH128: 0 | CI128: 0 | CJ128: 0 | CK128: 0 | CO128: D0327
A129: 329 | B129: Wabaunsee | C129: Mill Creek Valley | D129: 3158047 | E129: 0 | F129: 0 | G129: 0 | H129: 0 | I129: 434.8 | J129: 0 | K129: 0 | L129: =Weightings!K126 -> 0 | M129: 0 | N129: 0 | O129: 3158047 | P129: 0 | Q129: 446880 | R129: 256230 | S129: 256230 | U129: 3861157 | V129: 0 | W129: 391 | X129: 0 | Y129: 0 | Z129: 0 | AA129: 0 | AB129: 0 | AC129: ='2017legmax.xls'!AV126 -> 8 | AD129: ='2017legmax.xls'!AW126 -> A | AE129: ='2017legmax.xls'!AX126 ->  | AF129: 3861548 | AG129: 3861548 | AH129: =IF(Weightings!G126>0,Weightings!G126,'Preliminary SO66'!AB123) -> 4003919 | AI129: 3861548 | AJ129: 3861548 | AK129: 4231783 | AL129: ='2017legmax.xls'!BM126 -> 0.3 | AM129: 1269535 | AN129: 1269535 | AO129: 1269535 | AQ129: 3170730 | AR129: 0 | AS129: 0 | AT129: 0 | AU129: 0 | AV129: 0 | AW129: 0 | AX129: 0 | AY129: 0 | AZ129: 0 | BA129: 12683 | BB129: 0 | BC129: 0 | BD129: 3158047 | BE129: ='2017legmax.xls'!F126 -> 453.5 | BF129: ='2017legmax.xls'!I126 -> 422.4 | BG129: ='2017legmax.xls'!K126 -> 428.5 | BH129: 434.8 | BI129: ='2017legmax.xls'!O126 -> 0 | BJ129: 434.8 | BK129: =IF(ISNA(VLOOKUP($CO129,'Audit Values'!$A$2:$AF$318,2,FALSE)),'Preliminary SO66'!T123,VLOOKUP($CO129,'Audit Values'!$A$2:$AF$318,20,FALSE)) -> 0 | BL129: 0 | BM129: =IF(ISNA(VLOOKUP($CO129,'Audit Values'!$A$2:$AF$318,2,FALSE)),'Preliminary SO66'!U123,VLOOKUP($CO129,'Audit Values'!$A$2:$AF$318,21,FALSE)) -> 0 | BN129: 0 | BO129: 0 | BP129: 0 | BQ129: 0 | BR129: ='2017legmax.xls'!AH126 -> 0 | BS129: 0 | BT129: 0 | BU129: ='2017legmax.xls'!CJ126 -> 0 | BV129: 0 | BW129: ='2017legmax.xls'!CI126 -> 0 | BX129: 0 | BY129: 0 | BZ129: 0 | CA129: 0 | CB129: 0 | CC129: 0 | CD129: 0 | CE129: 0 | CF129: 0 | CG129: 0 | CH129: 0 | CI129: 0 | CJ129: 0 | CK129: 0 | CO129: D0329
A130: 330 | B130: Wabaunsee | C130: Mission Valley | D130: 3275912 | E130: 0 | F130: 0 | G130: 0 | H130: 0 | I130: 475.5 | J130: 0 | K130: 0 | L130: =Weightings!K127 -> 0 | M130: 0 | N130: 0 | O130: 3275912 | P130: 0 | Q130: 752570 | R130: 315471 | S130: 315471 | U130: 4343953 | V130: 0 | W130: 91 | X130: 0 | Y130: 0 | Z130: 0 | AA130: 0 | AB130: 0 | AC130: ='2017legmax.xls'!AV127 -> 8 | AD130: ='2017legmax.xls'!AW127 -> A | AE130: ='2017legmax.xls'!AX127 ->  | AF130: 4344044 | AG130: 4344044 | AH130: =IF(Weightings!G127>0,Weightings!G127,'Preliminary SO66'!AB124) -> 4485177 | AI130: 4344044 | AJ130: 4344044 | AK130: 4548470 | AL130: ='2017legmax.xls'!BM127 -> 0.3 | AM130: 1364541 | AN130: 1364541 | AO130: 1364541 | AQ130: 3289068 | AR130: 0 | AS130: 0 | AT130: 0 | AU130: 0 | AV130: 0 | AW130: 0 | AX130: 0 | AY130: 0 | AZ130: 0 | BA130: 13156 | BB130: 0 | BC130: 0 | BD130: 3275912 | BE130: ='2017legmax.xls'!F127 -> 454 | BF130: ='2017legmax.xls'!I127 -> 462.2 | BG130: ='2017legmax.xls'!K127 -> 475.5 | BH130: 475.5 | BI130: ='2017legmax.xls'!O127 -> 0 | BJ130: 475.5 | BK130: =IF(ISNA(VLOOKUP($CO130,'Audit Values'!$A$2:$AF$318,2,FALSE)),'Preliminary SO66'!T124,VLOOKUP($CO130,'Audit Values'!$A$2:$AF$318,20,FALSE)) -> 0 | BL130: 0 | BM130: =IF(ISNA(VLOOKUP($CO130,'Audit Values'!$A$2:$AF$318,2,FALSE)),'Preliminary SO66'!U124,VLOOKUP($CO130,'Audit Values'!$A$2:$AF$318,21,FALSE)) -> 0 | BN130: 0 | BO130: 0 | BP130: 0 | BQ130: 0 | BR130: ='2017legmax.xls'!AH127 -> 0 | BS130: 0 | BT130: 0 | BU130: ='2017legmax.xls'!CJ127 -> 0 | BV130: 0 | BW130: ='2017legmax.xls'!CI127 -> 0 | BX130: 0 | BY130: 0 | BZ130: 0 | CA130: 0 | CB130: 0 | CC130: 0 | CD130: 0 | CE130: 0 | CF130: 0 | CG130: 0 | CH130: 0 | CI130: 0 | CJ130: 0 | CK130: 0 | CO130: D0330
A131: 331 | B131: Kingman | C131: Kingman - Norwich | D131: 5641894 | E131: 111184 | F131: 0 | G131: 0 | H131: 0 | I131: 902.3 | J131: 0 | K131: 0 | L131: =Weightings!K128 -> 0 | M131: 0 | N131: 0 | O131: 5753078 | P131: 0 | Q131: 1213416 | R131: 427262 | S131: 427262 | U131: 7393756 | V131: 0 | W131: 8395 | X131: 0 | Y131: 0 | Z131: 0 | AA131: 0 | AB131: 0 | AC131: ='2017legmax.xls'!AV128 -> 12 | AD131: ='2017legmax.xls'!AW128 -> A | AE131: ='2017legmax.xls'!AX128 ->  | AF131: 7402151 | AG131: 7402151 | AH131: =IF(Weightings!G128>0,Weightings!G128,'Preliminary SO66'!AB125) -> 7723843 | AI131: 7402151 | AJ131: 7402151 | AK131: 7832394 | AL131: ='2017legmax.xls'!BM128 -> 0.3 | AM131: 2349718 | AN131: 2349718 | AO131: 2349718 | AQ131: 5696524 | AR131: 8.3 | AS131: 31972 | AT131: 0 | AU131: 0 | AV131: 0 | AW131: 0 | AX131: 0 | AY131: 0 | AZ131: 0 | BA131: 22658 | BB131: 0 | BC131: 0 | BD131: 5641894 | BE131: ='2017legmax.xls'!F128 -> 929.8 | BF131: ='2017legmax.xls'!I128 -> 891.5 | BG131: ='2017legmax.xls'!K128 -> 885.5 | BH131: 902.3 | BI131: ='2017legmax.xls'!O128 -> 0 | BJ131: 902.3 | BK131: =IF(ISNA(VLOOKUP($CO131,'Audit Values'!$A$2:$AF$318,2,FALSE)),'Preliminary SO66'!T125,VLOOKUP($CO131,'Audit Values'!$A$2:$AF$318,20,FALSE)) -> 13 | BL131: 65000 | BM131: =IF(ISNA(VLOOKUP($CO131,'Audit Values'!$A$2:$AF$318,2,FALSE)),'Preliminary SO66'!U125,VLOOKUP($CO131,'Audit Values'!$A$2:$AF$318,21,FALSE)) -> 0 | BN131: 0 | BO131: 49.5 | BP131: 46184 | BQ131: 111184 | BR131: ='2017legmax.xls'!AH128 -> 0 | BS131: 0 | BT131: 0 | BU131: ='2017legmax.xls'!CJ128 -> 0 | BV131: 0 | BW131: ='2017legmax.xls'!CI128 -> 0 | BX131: 0 | BY131: 0 | BZ131: 0 | CA131: 0 | CB131: 0 | CC131: 0 | CD131: 0 | CE131: 0 | CF131: 0 | CG131: 0 | CH131: 0 | CI131: 0 | CJ131: 0 | CK131: 0 | CO131: D0331
A132: 332 | B132: Kingman | C132: Cunningham | D132: 1282793 | E132: 0 | F132: 0 | G132: 0 | H132: 0 | I132: 152.5 | J132: 0 | K132: 0 | L132: =Weightings!K129 -> 0 | M132: 0 | N132: 0 | O132: 1282793 | P132: 0 | Q132: 254323 | R132: 111535 | S132: 111535 | U132: 1648651 | V132: 136 | W132: 9817 | X132: 0 | Y132: 0 | Z132: 0 | AA132: 0 | AB132: 1089 | AC132: ='2017legmax.xls'!AV129 -> 12 | AD132: ='2017legmax.xls'!AW129 -> A | AE132: ='2017legmax.xls'!AX129 ->  | AF132: 1659693 | AG132: 1659693 | AH132: =IF(Weightings!G129>0,Weightings!G129,'Preliminary SO66'!AB126) -> 1709455 | AI132: 1659693 | AJ132: 1659693 | AK132: 1790519 | AL132: ='2017legmax.xls'!BM129 -> 0.3 | AM132: 537156 | AN132: 537156 | AO132: 537156 | AQ132: 1287945 | AR132: 0 | AS132: 0 | AT132: 0 | AU132: 0 | AV132: 0 | AW132: 0 | AX132: 0 | AY132: 0 | AZ132: 0 | BA132: 5152 | BB132: 0 | BC132: 0 | BD132: 1282793 | BE132: ='2017legmax.xls'!F129 -> 157.8 | BF132: ='2017legmax.xls'!I129 -> 145.5 | BG132: ='2017legmax.xls'!K129 -> 152.5 | BH132: 152.5 | BI132: ='2017legmax.xls'!O129 -> 0 | BJ132: 152.5 | BK132: =IF(ISNA(VLOOKUP($CO132,'Audit Values'!$A$2:$AF$318,2,FALSE)),'Preliminary SO66'!T126,VLOOKUP($CO132,'Audit Values'!$A$2:$AF$318,20,FALSE)) -> 0 | BL132: 0 | BM132: =IF(ISNA(VLOOKUP($CO132,'Audit Values'!$A$2:$AF$318,2,FALSE)),'Preliminary SO66'!U126,VLOOKUP($CO132,'Audit Values'!$A$2:$AF$318,21,FALSE)) -> 0 | BN132: 0 | BO132: 0 | BP132: 0 | BQ132: 0 | BR132: ='2017legmax.xls'!AH129 -> 0 | BS132: 0 | BT132: 0 | BU132: ='2017legmax.xls'!CJ129 -> 0 | BV132: 0 | BW132: ='2017legmax.xls'!CI129 -> 0 | BX132: 0 | BY132: 0 | BZ132: 0 | CA132: 0 | CB132: 0 | CC132: 0 | CD132: 0 | CE132: 0 | CF132: 0 | CG132: 0 | CH132: 0 | CI132: 0 | CJ132: 0 | CK132: 0 | CO132: D0332
A133: 333 | B133: Cloud | C133: Concordia | D133: 5811928 | E133: 0 | F133: 56624 | G133: 0 | H133: 0 | I133: 1027 | J133: 0 | K133: 0 | L133: =Weightings!K130 -> 0 | M133: 0 | N133: 0 | O133: 5868552 | P133: 0 | Q133: 875449 | R133: 625802 | S133: 625802 | U133: 7369803 | V133: 0 | W133: 0 | X133: 0 | Y133: 0 | Z133: 0 | AA133: 51 | AB133: 0 | AC133: ='2017legmax.xls'!AV130 -> 12 | AD133: ='2017legmax.xls'!AW130 -> A | AE133: ='2017legmax.xls'!AX130 ->  | AF133: 7369854 | AG133: 7369854 | AH133: =IF(Weightings!G130>0,Weightings!G130,'Preliminary SO66'!AB127) -> 8053504 | AI133: 7369854 | AJ133: 7369854 | AK133: 7976691 | AL133: ='2017legmax.xls'!BM130 -> 0.3 | AM133: 2393007 | AN133: 2393007 | AO133: 2393007 | AQ133: 5855685 | AR133: 5.3 | AS133: 20416 | AT133: 0 | AU133: 0 | AV133: 0 | AW133: 0 | AX133: 0 | AY133: 0 | AZ133: 0 | BA133: 23341 | BB133: 0 | BC133: 0 | BD133: 5811928 | BE133: ='2017legmax.xls'!F130 -> 1001.5 | BF133: ='2017legmax.xls'!I130 -> 994.2 | BG133: ='2017legmax.xls'!K130 -> 1015 | BH133: 1015 | BI133: ='2017legmax.xls'!O130 -> 12 | BJ133: 1027 | BK133: =IF(ISNA(VLOOKUP($CO133,'Audit Values'!$A$2:$AF$318,2,FALSE)),'Preliminary SO66'!T127,VLOOKUP($CO133,'Audit Values'!$A$2:$AF$318,20,FALSE)) -> 0 | BL133: 0 | BM133: =IF(ISNA(VLOOKUP($CO133,'Audit Values'!$A$2:$AF$318,2,FALSE)),'Preliminary SO66'!U127,VLOOKUP($CO133,'Audit Values'!$A$2:$AF$318,21,FALSE)) -> 0 | BN133: 0 | BO133: 0 | BP133: 0 | BQ133: 0 | BR133: ='2017legmax.xls'!AH130 -> 14.7 | BS133: 56624 | BT133: 0 | BU133: ='2017legmax.xls'!CJ130 -> 0 | BV133: 0 | BW133: ='2017legmax.xls'!CI130 -> 0 | BX133: 0 | BY133: 0 | BZ133: 0 | CA133: 0 | CB133: 0 | CC133: 0 | CD133: 0 | CE133: 0 | CF133: 0 | CG133: 0 | CH133: 0 | CI133: 0 | CJ133: 0 | CK133: 0 | CO133: D0333
A134: 334 | B134: Cloud | C134: Southern Cloud | D134: 1751582 | E134: 37859 | F134: 0 | G134: 0 | H134: 0 | I134: 185.3 | J134: 0 | K134: 1 | L134: =Weightings!K131 -> 0 | M134: -857 | N134: -857 | O134: 1788583 | P134: 0 | Q134: 270390 | R134: 144779 | S134: 144779 | U134: 2203752 | V134: 0 | W134: 0 | X134: 0 | Y134: 0 | Z134: 0 | AA134: 0 | AB134: 3869 | AC134: ='2017legmax.xls'!AV131 -> 13 | AD134: ='2017legmax.xls'!AW131 -> A | AE134: ='2017legmax.xls'!AX131 ->  | AF134: 2207621 | AG134: 2207621 | AH134: =IF(Weightings!G131>0,Weightings!G131,'Preliminary SO66'!AB128) -> 2346290 | AI134: 2207621 | AJ134: 2207621 | AK134: 2377374 | AL134: ='2017legmax.xls'!BM131 -> 0.3 | AM134: 713212 | AN134: 713212 | AO134: 713212 | AQ134: 1892280 | AR134: 34.7 | AS134: 133664 | AT134: 0 | AU134: 0 | AV134: 0 | AW134: 0 | AX134: 0 | AY134: 0 | AZ134: 0 | BA134: 7034 | BB134: 0 | BC134: 0 | BD134: 1751582 | BE134: ='2017legmax.xls'!F131 -> 199 | BF134: ='2017legmax.xls'!I131 -> 182 | BG134: ='2017legmax.xls'!K131 -> 175 | BH134: 185.3 | BI134: ='2017legmax.xls'!O131 -> 0 | BJ134: 185.3 | BK134: =IF(ISNA(VLOOKUP($CO134,'Audit Values'!$A$2:$AF$318,2,FALSE)),'Preliminary SO66'!T128,VLOOKUP($CO134,'Audit Values'!$A$2:$AF$318,20,FALSE)) -> 3 | BL134: 15000 | BM134: =IF(ISNA(VLOOKUP($CO134,'Audit Values'!$A$2:$AF$318,2,FALSE)),'Preliminary SO66'!U128,VLOOKUP($CO134,'Audit Values'!$A$2:$AF$318,21,FALSE)) -> 0 | BN134: 0 | BO134: 24.5 | BP134: 22859 | BQ134: 37859 | BR134: ='2017legmax.xls'!AH131 -> 0 | BS134: 0 | BT134: 0 | BU134: ='2017legmax.xls'!CJ131 -> 0 | BV134: 0 | BW134: ='2017legmax.xls'!CI131 -> 0 | BX134: 0 | BY134: 0 | BZ134: 0 | CA134: 0 | CB134: 0 | CC134: 0 | CD134: 0 | CE134: 0 | CF134: 0 | CG134: 0 | CH134: 0 | CI134: 0 | CJ134: 0 | CK134: 0 | CO134: D0334
A135: 335 | B135: Jackson | C135: North Jackson | D135: 2683019 | E135: 0 | F135: 0 | G135: 0 | H135: 0 | I135: 362.3 | J135: 0 | K135: 0 | L135: =Weightings!K132 -> 0 | M135: 0 | N135: 0 | O135: 2683019 | P135: 0 | Q135: 300300 | R135: 178221 | S135: 178221 | U135: 3161540 | V135: 0 | W135: 0 | X135: 0 | Y135: 0 | Z135: 0 | AA135: 15810 | AB135: 5004 | AC135: ='2017legmax.xls'!AV132 -> 2 | AD135: ='2017legmax.xls'!AW132 -> A | AE135: ='2017legmax.xls'!AX132 ->  | AF135: 3182354 | AG135: 3182354 | AH135: =IF(Weightings!G132>0,Weightings!G132,'Preliminary SO66'!AB129) -> 3298581 | AI135: 3182354 | AJ135: 3182354 | AK135: 3451351 | AL135: ='2017legmax.xls'!BM132 -> 0.3 | AM135: 1035405 | AN135: 1035405 | AO135: 1035405 | AQ135: 2693794 | AR135: 0 | AS135: 0 | AT135: 0 | AU135: 0 | AV135: 0 | AW135: 0 | AX135: 0 | AY135: 0 | AZ135: 0 | BA135: 10775 | BB135: 0 | BC135: 0 | BD135: 2683019 | BE135: ='2017legmax.xls'!F132 -> 376 | BF135: ='2017legmax.xls'!I132 -> 361.5 | BG135: ='2017legmax.xls'!K132 -> 349.5 | BH135: 362.3 | BI135: ='2017legmax.xls'!O132 -> 0 | BJ135: 362.3 | BK135: =IF(ISNA(VLOOKUP($CO135,'Audit Values'!$A$2:$AF$318,2,FALSE)),'Preliminary SO66'!T129,VLOOKUP($CO135,'Audit Values'!$A$2:$AF$318,20,FALSE)) -> 0 | BL135: 0 | BM135: =IF(ISNA(VLOOKUP($CO135,'Audit Values'!$A$2:$AF$318,2,FALSE)),'Preliminary SO66'!U129,VLOOKUP($CO135,'Audit Values'!$A$2:$AF$318,21,FALSE)) -> 0 | BN135: 0 | BO135: 0 | BP135: 0 | BQ135: 0 | BR135: ='2017legmax.xls'!AH132 -> 0 | BS135: 0 | BT135: 0 | BU135: ='2017legmax.xls'!CJ132 -> 0 | BV135: 0 | BW135: ='2017legmax.xls'!CI132 -> 0 | BX135: 0 | BY135: 0 | BZ135: 0 | CA135: 0 | CB135: 0 | CC135: 0 | CD135: 0 | CE135: 0 | CF135: 0 | CG135: 0 | CH135: 0 | CI135: 0 | CJ135: 0 | CK135: 0 | CO135: D0335
A136: 336 | B136: Jackson | C136: Holton | D136: 6426128 | E136: 206074 | F136: 467633 | G136: 0 | H136: 0 | I136: 1058 | J136: 0 | K136: 0 | L136: =Weightings!K133 -> -1866 | M136: 0 | N136: -1866 | O136: 7097969 | P136: 0 | Q136: 877894 | R136: 909487 | S136: 909487 | U136: 8885350 | V136: 0 | W136: 0 | X136: 0 | Y136: 0 | Z136: 0 | AA136: 0 | AB136: 0 | AC136: ='2017legmax.xls'!AV133 -> 2 | AD136: ='2017legmax.xls'!AW133 -> A | AE136: ='2017legmax.xls'!AX133 ->  | AF136: 8885350 | AG136: 8885350 | AH136: =IF(Weightings!G133>0,Weightings!G133,'Preliminary SO66'!AB130) -> 9469387 | AI136: 8885350 | AJ136: 8885350 | AK136: 8513744 | AL136: ='2017legmax.xls'!BM133 -> 0.3 | AM136: 2554123 | AN136: 2554123 | AO136: 2554123 | AQ136: 6451936 | AR136: 0 | AS136: 0 | AT136: 0 | AU136: 0 | AV136: 0 | AW136: 0 | AX136: 0 | AY136: 0 | AZ136: 0 | BA136: 25808 | BB136: 0 | BC136: 0 | BD136: 6426128 | BE136: ='2017legmax.xls'!F133 -> 1118.5 | BF136: ='2017legmax.xls'!I133 -> 1026.5 | BG136: ='2017legmax.xls'!K133 -> 1029 | BH136: 1058 | BI136: ='2017legmax.xls'!O133 -> 0 | BJ136: 1058 | BK136: =IF(ISNA(VLOOKUP($CO136,'Audit Values'!$A$2:$AF$318,2,FALSE)),'Preliminary SO66'!T130,VLOOKUP($CO136,'Audit Values'!$A$2:$AF$318,20,FALSE)) -> 8 | BL136: 40000 | BM136: =IF(ISNA(VLOOKUP($CO136,'Audit Values'!$A$2:$AF$318,2,FALSE)),'Preliminary SO66'!U130,VLOOKUP($CO136,'Audit Values'!$A$2:$AF$318,21,FALSE)) -> 0 | BN136: 0 | BO136: 178 | BP136: 166074 | BQ136: 206074 | BR136: ='2017legmax.xls'!AH133 -> 121.4 | BS136: 467633 | BT136: 0 | BU136: ='2017legmax.xls'!CJ133 -> 0 | BV136: =AF136*BU136 -> 0 | BW136: ='2017legmax.xls'!CI133 -> 0 | BX136: 0 | BY136: 0 | BZ136: 0 | CA136: 0 | CB136: 0 | CC136: 0 | CD136: 0 | CE136: 0 | CF136: 0 | CG136: 0 | CH136: 0 | CI136: 0 | CJ136: 0 | CK136: 0 | CO136: D0336
A137: 337 | B137: Jackson | C137: Royal Valley | D137: =BD137 -> 5470433 | E137: =BQ137 -> 0 | F137: =BS137 -> 0 | G137: 0 | H137: =IF((CH137-CG137)<0,0,CH137-CG137) -> 11060 | I137: =BJ137 -> 829.6 | J137: =I137*$J$6 -> 0 | K137: 0 | L137: =Weightings!K134 -> 0 | M137: 0 | N137: =L137+M137 -> 0 | O137: =SUM(D137+E137+F137+G137+H137+J137)-K137+N137 -> 5481493 | P137: 0 | Q137: 843285 | R137: 480471 | S137: =R137 -> 480471 | U137: =O137+P137+Q137+R137+T137 -> 6805249 | V137: 138139 | W137: 0 | X137: 231507 | Y137: 0 | Z137: 0 | AA137: 27968 | AB137: 7414 | AC137: 22 | AD137: ='2017legmax.xls'!AW134 -> A | AE137: ='2017legmax.xls'!AX134 ->  | AF137: =D137+E137+F137-K137+CB137+CF137+H137+J137+N137+P137+Q137+S137+T137+V137+W137+X137+Y137+AA137+AB137 -> 7210277 | AG137: =AF137+BX137-S137+R137+Z137 -> 7210277 | AH137: =IF(Weightings!G134>0,Weightings!G134,'Preliminary SO66'!AB131) -> 7575216 | AI137: 7210277 | AJ137: =MIN(AG137,AH137) -> 7210277 | AK137: 7625007 | AL137: ='2017legmax.xls'!BM134 -> 0.3 | AM137: =AK137*AL137 -> 2287502 | AN137: 2287502 | AO137: =MIN(AM137,AN137) -> 2287502 | AQ137: 5492403 | AR137: 0 | AS137: =AR137*$AS$6 -> 0 | AT137: 0 | AU137: =AT137*$AU$6 -> 0 | AV137: 0 | AW137: =AV137*$AW$6 -> 0 | AX137: 0 | AY137: =AX137*$AY$6 -> 0 | AZ137: =AU137+AW137+AY137 -> 0 | BA137: =SUM(AQ137-AS137-AZ137)*$BA$6 -> 21970 | BB137: 0 | BC137: =BB137*$BC$6 -> 0 | BD137: =AQ137-AS137-AZ137-BA137-BC137 -> 5470433 | BE137: ='2017legmax.xls'!F134 -> 871.5 | BF137: ='2017legmax.xls'!I134 -> 810.1 | BG137: ='2017legmax.xls'!K134 -> 807.1 | BH137: =MAX(BG137,BF137, AVERAGE(BE137,BF137,BG137)) -> 829.6 | BI137: ='2017legmax.xls'!O134 -> 0 | BJ137: =BH137+BI137 -> 829.6 | BK137: =IF(ISNA(VLOOKUP($CO137,'Audit Values'!$A$2:$AF$318,2,FALSE)),'Preliminary SO66'!T131,VLOOKUP($CO137,'Audit Values'!$A$2:$AF$318,20,FALSE)) -> 0 | BL137: =BK137*$BL$6 -> 0 | BM137: =IF(ISNA(VLOOKUP($CO137,'Audit Values'!$A$2:$AF$318,2,FALSE)),'Preliminary SO66'!U131,VLOOKUP($CO137,'Audit Values'!$A$2:$AF$318,21,FALSE)) -> 0 | BN137: =BM137*$BN$6 -> 0 | BO137: 0 | BP137: =BO137*$BP$6 -> 0 | BQ137: =BL137+BN137+BP137 -> 0 | BR137: ='2017legmax.xls'!AH134 -> 0 | BS137: =BR137*$BS$6 -> 0 | BT137: 0 | BU137: ='2017legmax.xls'!CJ134 -> 0 | BV137: 0 | BW137: ='2017legmax.xls'!CI134 -> 0 | BX137: =MIN(BV137,BW137) -> 0 | BY137: 0 | BZ137: 0 | CA137: 0 | CB137: =IF(CA137>MAX(BY137,BZ137), MAX(BY137,BZ137),CA137) -> 0 | CC137: 0 | CD137: 0 | CE137: 0 | CF137: =IF(CE137>MAX(CC137,CD137),MAX(CC137,CD137),CE137) -> 0 | CG137: =X137 -> 231507 | CH137: 242567 | CI137: 0 | CJ137: 0 | CK137: 0 | CO137: D0337
A138: 338 | B138: Jefferson | C138: Valley Falls | D138: 2603388 | E138: 0 | F138: 0 | G138: 0 | H138: 0 | I138: 368.8 | J138: 0 | K138: 0 | L138: =Weightings!K135 -> 0 | M138: 0 | N138: 0 | O138: 2603388 | P138: 0 | Q138: 545098 | R138: 185306 | S138: 185306 | U138: 3333792 | V138: 0 | W138: 0 | X138: 0 | Y138: 0 | Z138: 0 | AA138: 6101 | AB138: 1176 | AC138: ='2017legmax.xls'!AV135 -> 4 | AD138: ='2017legmax.xls'!AW135 -> A | AE138: ='2017legmax.xls'!AX135 ->  | AF138: 3341069 | AG138: 3341069 | AH138: =IF(Weightings!G135>0,Weightings!G135,'Preliminary SO66'!AB132) -> 3518685 | AI138: 3341069 | AJ138: 3341069 | AK138: 3521475 | AL138: ='2017legmax.xls'!BM135 -> 0.3 | AM138: 1056443 | AN138: 1056443 | AO138: 1056443 | AQ138: 2613843 | AR138: 0 | AS138: 0 | AT138: 0 | AU138: 0 | AV138: 0 | AW138: 0 | AX138: 0 | AY138: 0 | AZ138: 0 | BA138: 10455 | BB138: 0 | BC138: 0 | BD138: 2603388 | BE138: ='2017legmax.xls'!F135 -> 380 | BF138: ='2017legmax.xls'!I135 -> 358.5 | BG138: ='2017legmax.xls'!K135 -> 357.5 | BH138: 365.3 | BI138: ='2017legmax.xls'!O135 -> 3.5 | BJ138: 368.8 | BK138: =IF(ISNA(VLOOKUP($CO138,'Audit Values'!$A$2:$AF$318,2,FALSE)),'Preliminary SO66'!T132,VLOOKUP($CO138,'Audit Values'!$A$2:$AF$318,20,FALSE)) -> 0 | BL138: 0 | BM138: =IF(ISNA(VLOOKUP($CO138,'Audit Values'!$A$2:$AF$318,2,FALSE)),'Preliminary SO66'!U132,VLOOKUP($CO138,'Audit Values'!$A$2:$AF$318,21,FALSE)) -> 0 | BN138: 0 | BO138: 0 | BP138: 0 | BQ138: 0 | BR138: ='2017legmax.xls'!AH135 -> 0 | BS138: 0 | BT138: 0 | BU138: ='2017legmax.xls'!CJ135 -> 0 | BV138: 0 | BW138: ='2017legmax.xls'!CI135 -> 0 | BX138: 0 | BY138: 0 | BZ138: 0 | CA138: 0 | CB138: 0 | CC138: 0 | CD138: 0 | CE138: 0 | CF138: 0 | CG138: 0 | CH138: 0 | CI138: 0 | CJ138: 0 | CK138: 0 | CO138: D0338
A139: 339 | B139: Jefferson | C139: Jefferson County North | D139: 2819231 | E139: 0 | F139: 0 | G139: 0 | H139: 0 | I139: 437.5 | J139: 0 | K139: 0 | L139: =Weightings!K136 -> 0 | M139: 0 | N139: 0 | O139: 2819231 | P139: 0 | Q139: 649323 | R139: 206107 | S139: 206107 | U139: 3674661 | V139: 1079 | W139: 8 | X139: 0 | Y139: 0 | Z139: 0 | AA139: 0 | AB139: 1093 | AC139: ='2017legmax.xls'!AV136 -> 12 | AD139: ='2017legmax.xls'!AW136 -> A | AE139: ='2017legmax.xls'!AX136 ->  | AF139: 3676841 | AG139: 3676841 | AH139: =IF(Weightings!G136>0,Weightings!G136,'Preliminary SO66'!AB133) -> 3814780 | AI139: 3676841 | AJ139: 3676841 | AK139: 3904895 | AL139: ='2017legmax.xls'!BM136 -> 0.3 | AM139: 1171469 | AN139: 1171469 | AO139: 1171469 | AQ139: 2836741 | AR139: 0 | AS139: 0 | AT139: 0 | AU139: 0 | AV139: 0 | AW139: 0 | AX139: 0 | AY139: 0 | AZ139: 0 | BA139: 11347 | BB139: 1.6 | BC139: 6163 | BD139: 2819231 | BE139: ='2017legmax.xls'!F136 -> 415 | BF139: ='2017legmax.xls'!I136 -> 420 | BG139: ='2017legmax.xls'!K136 -> 432.5 | BH139: 432.5 | BI139: ='2017legmax.xls'!O136 -> 5 | BJ139: 437.5 | BK139: =IF(ISNA(VLOOKUP($CO139,'Audit Values'!$A$2:$AF$318,2,FALSE)),'Preliminary SO66'!T133,VLOOKUP($CO139,'Audit Values'!$A$2:$AF$318,20,FALSE)) -> 0 | BL139: 0 | BM139: =IF(ISNA(VLOOKUP($CO139,'Audit Values'!$A$2:$AF$318,2,FALSE)),'Preliminary SO66'!U133,VLOOKUP($CO139,'Audit Values'!$A$2:$AF$318,21,FALSE)) -> 0 | BN139: 0 | BO139: 0 | BP139: 0 | BQ139: 0 | BR139: ='2017legmax.xls'!AH136 -> 0 | BS139: 0 | BT139: 0 | BU139: ='2017legmax.xls'!CJ136 -> 0 | BV139: 0 | BW139: ='2017legmax.xls'!CI136 -> 0 | BX139: 0 | BY139: 0 | BZ139: 0 | CA139: 0 | CB139: 0 | CC139: 0 | CD139: 0 | CE139: 0 | CF139: 0 | CG139: 0 | CH139: 0 | CI139: 0 | CJ139: 0 | CK139: 0 | CO139: D0339
A140: 340 | B140: Jefferson | C140: Jefferson West | D140: 4963894 | E140: 0 | F140: 0 | G140: 0 | H140: 0 | I140: 835 | J140: 0 | K140: 0 | L140: =Weightings!K137 -> 0 | M140: 0 | N140: 0 | O140: 4963894 | P140: 0 | Q140: 1098305 | R140: 360133 | S140: 360133 | U140: 6422332 | V140: 0 | W140: 0 | X140: 28965 | Y140: 0 | Z140: 0 | AA140: 7096 | AB140: 2737 | AC140: ='2017legmax.xls'!AV137 -> 2 | AD140: ='2017legmax.xls'!AW137 -> A | AE140: ='2017legmax.xls'!AX137 ->  | AF140: 6461130 | AG140: 6461130 | AH140: =IF(Weightings!G137>0,Weightings!G137,'Preliminary SO66'!AB134) -> 6709540 | AI140: 6461130 | AJ140: 6461130 | AK140: 6784735 | AL140: ='2017legmax.xls'!BM137 -> 0.3 | AM140: 2035421 | AN140: 2035421 | AO140: 2035421 | AQ140: 4983829 | AR140: 0 | AS140: 0 | AT140: 0 | AU140: 0 | AV140: 0 | AW140: 0 | AX140: 0 | AY140: 0 | AZ140: 0 | BA140: 19935 | BB140: 0 | BC140: 0 | BD140: 4963894 | BE140: ='2017legmax.xls'!F137 -> 822 | BF140: ='2017legmax.xls'!I137 -> 835 | BG140: ='2017legmax.xls'!K137 -> 830.5 | BH140: 835 | BI140: ='2017legmax.xls'!O137 -> 0 | BJ140: 835 | BK140: =IF(ISNA(VLOOKUP($CO140,'Audit Values'!$A$2:$AF$318,2,FALSE)),'Preliminary SO66'!T134,VLOOKUP($CO140,'Audit Values'!$A$2:$AF$318,20,FALSE)) -> 0 | BL140: 0 | BM140: =IF(ISNA(VLOOKUP($CO140,'Audit Values'!$A$2:$AF$318,2,FALSE)),'Preliminary SO66'!U134,VLOOKUP($CO140,'Audit Values'!$A$2:$AF$318,21,FALSE)) -> 0 | BN140: 0 | BO140: 0 | BP140: 0 | BQ140: 0 | BR140: ='2017legmax.xls'!AH137 -> 0 | BS140: 0 | BT140: 0 | BU140: ='2017legmax.xls'!CJ137 -> 0 | BV140: 0 | BW140: ='2017legmax.xls'!CI137 -> 0 | BX140: 0 | BY140: 0 | BZ140: 0 | CA140: 0 | CB140: 0 | CC140: 0 | CD140: 0 | CE140: 0 | CF140: 0 | CG140: 28965 | CH140: 26368 | CI140: 0 | CJ140: 0 | CK140: 0 | CO140: D0340
A141: 341 | B141: Jefferson | C141: Oskaloosa Public Schools | D141: 3756027 | E141: 0 | F141: 0 | G141: 0 | H141: 0 | I141: 577.5 | J141: 0 | K141: 0 | L141: =Weightings!K138 -> 0 | M141: 0 | N141: 0 | O141: 3756027 | P141: 0 | Q141: 941470 | R141: 294670 | S141: 294670 | U141: 4992167 | V141: 0 | W141: 0 | X141: 42153 | Y141: 0 | Z141: 0 | AA141: 0 | AB141: 3761 | AC141: 23 | AD141: ='2017legmax.xls'!AW138 -> A | AE141: ='2017legmax.xls'!AX138 ->  | AF141: 5038081 | AG141: 5038081 | AH141: =IF(Weightings!G138>0,Weightings!G138,'Preliminary SO66'!AB135) -> 5293501 | AI141: 5038081 | AJ141: 5038081 | AK141: 5305419 | AL141: ='2017legmax.xls'!BM138 -> 0.3 | AM141: 1591626 | AN141: 1591626 | AO141: 1591626 | AQ141: 3771111 | AR141: 0 | AS141: 0 | AT141: 0 | AU141: 0 | AV141: 0 | AW141: 0 | AX141: 0 | AY141: 0 | AZ141: 0 | BA141: 15084 | BB141: 0 | BC141: 0 | BD141: 3756027 | BE141: ='2017legmax.xls'!F138 -> 519.5 | BF141: ='2017legmax.xls'!I138 -> 528.8 | BG141: ='2017legmax.xls'!K138 -> 565 | BH141: 565 | BI141: ='2017legmax.xls'!O138 -> 12.5 | BJ141: 577.5 | BK141: =IF(ISNA(VLOOKUP($CO141,'Audit Values'!$A$2:$AF$318,2,FALSE)),'Preliminary SO66'!T135,VLOOKUP($CO141,'Audit Values'!$A$2:$AF$318,20,FALSE)) -> 0 | BL141: 0 | BM141: =IF(ISNA(VLOOKUP($CO141,'Audit Values'!$A$2:$AF$318,2,FALSE)),'Preliminary SO66'!U135,VLOOKUP($CO141,'Audit Values'!$A$2:$AF$318,21,FALSE)) -> 0 | BN141: 0 | BO141: 0 | BP141: 0 | BQ141: 0 | BR141: ='2017legmax.xls'!AH138 -> 0 | BS141: 0 | BT141: 0 | BU141: ='2017legmax.xls'!CJ138 -> 0 | BV141: 0 | BW141: ='2017legmax.xls'!CI138 -> 0 | BX141: 0 | BY141: 0 | BZ141: 0 | CA141: 0 | CB141: 0 | CC141: 0 | CD141: 0 | CE141: 0 | CF141: 0 | CG141: 42153 | CH141: 39893 | CI141: 0 | CJ141: 0 | CK141: 0 | CO141: D0341
A142: 342 | B142: Jefferson | C142: McLouth | D142: 3258647 | E142: 0 | F142: 0 | G142: 0 | H142: 0 | I142: 472.8 | J142: 0 | K142: 0 | L142: =Weightings!K139 -> 0 | M142: 0 | N142: 0 | O142: 3258647 | P142: 0 | Q142: 739681 | R142: 226709 | S142: 226709 | U142: 4225037 | V142: 0 | W142: 167 | X142: 0 | Y142: 0 | Z142: 0 | AA142: 0 | AB142: 4273 | AC142: ='2017legmax.xls'!AV139 -> 2 | AD142: ='2017legmax.xls'!AW139 -> A | AE142: ='2017legmax.xls'!AX139 ->  | AF142: 4229477 | AG142: 4229477 | AH142: =IF(Weightings!G139>0,Weightings!G139,'Preliminary SO66'!AB136) -> 4379904 | AI142: 4229477 | AJ142: 4229477 | AK142: 4466834 | AL142: ='2017legmax.xls'!BM139 -> 0.3 | AM142: 1340050 | AN142: 1340050 | AO142: 1340050 | AQ142: 3271734 | AR142: 0 | AS142: 0 | AT142: 0 | AU142: 0 | AV142: 0 | AW142: 0 | AX142: 0 | AY142: 0 | AZ142: 0 | BA142: 13087 | BB142: 0 | BC142: 0 | BD142: 3258647 | BE142: ='2017legmax.xls'!F139 -> 484.1 | BF142: ='2017legmax.xls'!I139 -> 451 | BG142: ='2017legmax.xls'!K139 -> 447.3 | BH142: 460.8 | BI142: ='2017legmax.xls'!O139 -> 12 | BJ142: 472.8 | BK142: =IF(ISNA(VLOOKUP($CO142,'Audit Values'!$A$2:$AF$318,2,FALSE)),'Preliminary SO66'!T136,VLOOKUP($CO142,'Audit Values'!$A$2:$AF$318,20,FALSE)) -> 0 | BL142: 0 | BM142: =IF(ISNA(VLOOKUP($CO142,'Audit Values'!$A$2:$AF$318,2,FALSE)),'Preliminary SO66'!U136,VLOOKUP($CO142,'Audit Values'!$A$2:$AF$318,21,FALSE)) -> 0 | BN142: 0 | BO142: 0 | BP142: 0 | BQ142: 0 | BR142: ='2017legmax.xls'!AH139 -> 0 | BS142: 0 | BT142: 0 | BU142: ='2017legmax.xls'!CJ139 -> 0 | BV142: 0 | BW142: ='2017legmax.xls'!CI139 -> 0 | BX142: 0 | BY142: 0 | BZ142: 0 | CA142: 0 | CB142: 0 | CC142: 0 | CD142: 0 | CE142: 0 | CF142: 0 | CG142: 0 | CH142: 0 | CI142: 0 | CJ142: 0 | CK142: 0 | CO142: D0342
A143: 343 | B143: Jefferson | C143: Perry Public Schools | D143: 4928562 | E143: 0 | F143: 0 | G143: 0 | H143: 0 | I143: 741 | J143: 0 | K143: 0 | L143: =Weightings!K140 -> 0 | M143: 0 | N143: 0 | O143: 4928562 | P143: 0 | Q143: 1034021 | R143: 349922 | S143: 349922 | U143: 6312505 | V143: 48564 | W143: 0 | X143: 0 | Y143: 0 | Z143: 40000 | AA143: 66069 | AB143: 17706 | AC143: 23 | AD143: ='2017legmax.xls'!AW140 -> A | AE143: ='2017legmax.xls'!AX140 ->  | AF143: 6444844 | AG143: 6484844 | AH143: =IF(Weightings!G140>0,Weightings!G140,'Preliminary SO66'!AB137) -> 6565468 | AI143: 6484844 | AJ143: 6484844 | AK143: 6747606 | AL143: ='2017legmax.xls'!BM140 -> 0.3 | AM143: 2024282 | AN143: 2024282 | AO143: 2024282 | AQ143: 4948355 | AR143: 0 | AS143: 0 | AT143: 0 | AU143: 0 | AV143: 0 | AW143: 0 | AX143: 0 | AY143: 0 | AZ143: 0 | BA143: 19793 | BB143: 0 | BC143: 0 | BD143: 4928562 | BE143: ='2017legmax.xls'!F140 -> 753.6 | BF143: ='2017legmax.xls'!I140 -> 736 | BG143: ='2017legmax.xls'!K140 -> 712.5 | BH143: 736 | BI143: ='2017legmax.xls'!O140 -> 5 | BJ143: 741 | BK143: =IF(ISNA(VLOOKUP($CO143,'Audit Values'!$A$2:$AF$318,2,FALSE)),'Preliminary SO66'!T137,VLOOKUP($CO143,'Audit Values'!$A$2:$AF$318,20,FALSE)) -> 0 | BL143: 0 | BM143: =IF(ISNA(VLOOKUP($CO143,'Audit Values'!$A$2:$AF$318,2,FALSE)),'Preliminary SO66'!U137,VLOOKUP($CO143,'Audit Values'!$A$2:$AF$318,21,FALSE)) -> 0 | BN143: 0 | BO143: 0 | BP143: 0 | BQ143: 0 | BR143: ='2017legmax.xls'!AH140 -> 0 | BS143: 0 | BT143: 0 | BU143: ='2017legmax.xls'!CJ140 -> 0 | BV143: 0 | BW143: ='2017legmax.xls'!CI140 -> 0 | BX143: 0 | BY143: 0 | BZ143: 0 | CA143: 0 | CB143: 0 | CC143: 0 | CD143: 0 | CE143: 0 | CF143: 0 | CG143: 0 | CH143: 0 | CI143: 0 | CJ143: 0 | CK143: 0 | CO143: D0343
A144: 344 | B144: Linn | C144: Pleasanton | D144: 2622655 | E144: 0 | F144: 0 | G144: 0 | H144: 0 | I144: 344 | J144: 0 | K144: 0 | L144: =Weightings!K141 -> -467 | M144: -8962 | N144: -9429 | O144: 2613226 | P144: 0 | Q144: 242532 | R144: 207076 | S144: 207076 | U144: 3062834 | V144: 3248 | W144: 0 | X144: 0 | Y144: 0 | Z144: 0 | AA144: 0 | AB144: 0 | AC144: ='2017legmax.xls'!AV141 -> 12 | AD144: ='2017legmax.xls'!AW141 -> A | AE144: ='2017legmax.xls'!AX141 ->  | AF144: 3066082 | AG144: 3066082 | AH144: =IF(Weightings!G141>0,Weightings!G141,'Preliminary SO66'!AB138) -> 3195110 | AI144: 3066082 | AJ144: 3066082 | AK144: 3292396 | AL144: ='2017legmax.xls'!BM141 -> 0.3 | AM144: 987719 | AN144: 987719 | AO144: 987719 | AQ144: 2633188 | AR144: 0 | AS144: 0 | AT144: 0 | AU144: 0 | AV144: 0 | AW144: 0 | AX144: 0 | AY144: 0 | AZ144: 0 | BA144: 10533 | BB144: 0 | BC144: 0 | BD144: 2622655 | BE144: ='2017legmax.xls'!F141 -> 353 | BF144: ='2017legmax.xls'!I141 -> 327.5 | BG144: ='2017legmax.xls'!K141 -> 330.5 | BH144: 337 | BI144: ='2017legmax.xls'!O141 -> 7 | BJ144: 344 | BK144: =IF(ISNA(VLOOKUP($CO144,'Audit Values'!$A$2:$AF$318,2,FALSE)),'Preliminary SO66'!T138,VLOOKUP($CO144,'Audit Values'!$A$2:$AF$318,20,FALSE)) -> 0 | BL144: 0 | BM144: =IF(ISNA(VLOOKUP($CO144,'Audit Values'!$A$2:$AF$318,2,FALSE)),'Preliminary SO66'!U138,VLOOKUP($CO144,'Audit Values'!$A$2:$AF$318,21,FALSE)) -> 0 | BN144: 0 | BO144: 0 | BP144: 0 | BQ144: 0 | BR144: ='2017legmax.xls'!AH141 -> 0 | BS144: 0 | BT144: 0 | BU144: ='2017legmax.xls'!CJ141 -> 0 | BV144: 0 | BW144: ='2017legmax.xls'!CI141 -> 0 | BX144: 0 | BY144: 0 | BZ144: 0 | CA144: 0 | CB144: 0 | CC144: 0 | CD144: 0 | CE144: 0 | CF144: 0 | CG144: 0 | CH144: 0 | CI144: 0 | CJ144: 0 | CK144: 0 | CO144: D0344
A145: 345 | B145: Shawnee | C145: Seaman | D145: 18140572 | E145: 15861 | F145: 1046203 | G145: 0 | H145: 0 | I145: 3678.6 | J145: 0 | K145: 0 | L145: =Weightings!K142 -> -16328 | M145: 0 | N145: -16328 | O145: =SUM(D145+E145+F145+G145+H145+J145)-K145+N145 -> 19186308 | P145: 0 | Q145: 4070764 | R145: 2011429 | S145: 2011429 | U145: 25268501 | V145: 2058 | W145: 0 | X145: 0 | Y145: 0 | Z145: 0 | AA145: 0 | AB145: 0 | AC145: ='2017legmax.xls'!AV142 -> 14 | AD145: ='2017legmax.xls'!AW142 -> A | AE145: ='2017legmax.xls'!AX142 ->  | AF145: 25270559 | AG145: 25270559 | AH145: =IF(Weightings!G142>0,Weightings!G142,'Preliminary SO66'!AB139) -> 26172652 | AI145: 25270559 | AJ145: 25270559 | AK145: 24919631 | AL145: ='2017legmax.xls'!BM142 -> 0.3 | AM145: 7475889 | AN145: 7475889 | AO145: 7475889 | AQ145: 18288540 | AR145: 19.5 | AS145: 75114 | AT145: 0 | AU145: 0 | AV145: 0 | AW145: 0 | AX145: 0 | AY145: 0 | AZ145: 0 | BA145: 72854 | BB145: 0 | BC145: 0 | BD145: 18140572 | BE145: ='2017legmax.xls'!F142 -> 3728.2 | BF145: ='2017legmax.xls'!I142 -> 3619 | BG145: ='2017legmax.xls'!K142 -> 3628.5 | BH145: 3658.6 | BI145: ='2017legmax.xls'!O142 -> 20 | BJ145: 3678.6 | BK145: =IF(ISNA(VLOOKUP($CO145,'Audit Values'!$A$2:$AF$318,2,FALSE)),'Preliminary SO66'!T139,VLOOKUP($CO145,'Audit Values'!$A$2:$AF$318,20,FALSE)) -> 0 | BL145: 0 | BM145: =IF(ISNA(VLOOKUP($CO145,'Audit Values'!$A$2:$AF$318,2,FALSE)),'Preliminary SO66'!U139,VLOOKUP($CO145,'Audit Values'!$A$2:$AF$318,21,FALSE)) -> 0 | BN145: 0 | BO145: 17 | BP145: 15861 | BQ145: 15861 | BR145: ='2017legmax.xls'!AH142 -> 271.6 | BS145: 1046203 | BT145: 0 | BU145: ='2017legmax.xls'!CJ142 -> 0 | BV145: 0 | BW145: ='2017legmax.xls'!CI142 -> 0 | BX145: 0 | BY145: 0 | BZ145: 0 | CA145: 0 | CB145: 0 | CC145: 0 | CD145: 0 | CE145: 0 | CF145: 0 | CG145: 0 | CH145: 0 | CI145: 0 | CJ145: 0 | CK145: 0 | CO145: D0345
A146: 346 | B146: Linn | C146: Jayhawk | D146: 3728307 | E146: 16783 | F146: 0 | G146: 0 | H146: 0 | I146: 546 | J146: 0 | K146: 0 | L146: =Weightings!K143 -> 0 | M146: 0 | N146: 0 | O146: 3745090 | P146: 0 | Q146: 589354 | R146: 263152 | S146: 263152 | U146: 4597596 | V146: 875 | W146: 36 | X146: 0 | Y146: 0 | Z146: 0 | AA146: 0 | AB146: 15312 | AC146: ='2017legmax.xls'!AV143 -> 11 | AD146: ='2017legmax.xls'!AW143 -> A | AE146: ='2017legmax.xls'!AX143 ->  | AF146: 4613819 | AG146: 4613819 | AH146: =IF(Weightings!G143>0,Weightings!G143,'Preliminary SO66'!AB140) -> 4750332 | AI146: 4613819 | AJ146: 4613819 | AK146: 5115321 | AL146: ='2017legmax.xls'!BM143 -> 0.3 | AM146: 1534596 | AN146: 1534596 | AO146: 1534596 | AQ146: 3974151 | AR146: 1.1 | AS146: 4237 | AT146: 0 | AU146: 0 | AV146: 0 | AW146: 0 | AX146: 0 | AY146: 0 | AZ146: 0 | BA146: 15880 | BB146: 58.6 | BC146: 225727 | BD146: 3728307 | BE146: ='2017legmax.xls'!F143 -> 503.5 | BF146: ='2017legmax.xls'!I143 -> 530.5 | BG146: ='2017legmax.xls'!K143 -> 536 | BH146: 536 | BI146: ='2017legmax.xls'!O143 -> 10 | BJ146: 546 | BK146: =IF(ISNA(VLOOKUP($CO146,'Audit Values'!$A$2:$AF$318,2,FALSE)),'Preliminary SO66'!T140,VLOOKUP($CO146,'Audit Values'!$A$2:$AF$318,20,FALSE)) -> 3 | BL146: 15000 | BM146: =IF(ISNA(VLOOKUP($CO146,'Audit Values'!$A$2:$AF$318,2,FALSE)),'Preliminary SO66'!U140,VLOOKUP($CO146,'Audit Values'!$A$2:$AF$318,21,FALSE)) -> 0.5 | BN146: 850 | BO146: 1 | BP146: 933 | BQ146: 16783 | BR146: ='2017legmax.xls'!AH143 -> 0 | BS146: 0 | BT146: 0 | BU146: ='2017legmax.xls'!CJ143 -> 0 | BV146: 0 | BW146: ='2017legmax.xls'!CI143 -> 0 | BX146: 0 | BY146: 0 | BZ146: 0 | CA146: 0 | CB146: 0 | CC146: 0 | CD146: 0 | CE146: 0 | CF146: 0 | CG146: 0 | CH146: 0 | CI146: 0 | CJ146: 0 | CK146: 0 | CO146: D0346
A147: 347 | B147: Edwards | C147: Kinsley-Offerle | D147: 2588180 | E147: 0 | F147: 74344 | G147: 0 | H147: 0 | I147: 327.5 | J147: 0 | K147: 0 | L147: =Weightings!K144 -> 0 | M147: 0 | N147: 0 | O147: 2662524 | P147: 0 | Q147: 352466 | R147: 184888 | S147: 184888 | U147: 3199878 | V147: 0 | W147: 3224 | X147: 0 | Y147: 0 | Z147: 0 | AA147: 17911 | AB147: 4420 | AC147: ='2017legmax.xls'!AV144 -> 11 | AD147: ='2017legmax.xls'!AW144 -> A | AE147: ='2017legmax.xls'!AX144 ->  | AF147: 3225433 | AG147: 3225433 | AH147: =IF(Weightings!G144>0,Weightings!G144,'Preliminary SO66'!AB141) -> 3497309 | AI147: 3225433 | AJ147: 3225433 | AK147: 3443326 | AL147: ='2017legmax.xls'!BM144 -> 0.3 | AM147: 1032998 | AN147: 1032998 | AO147: 1032998 | AQ147: 2598574 | AR147: 0 | AS147: 0 | AT147: 0 | AU147: 0 | AV147: 0 | AW147: 0 | AX147: 0 | AY147: 0 | AZ147: 0 | BA147: 10394 | BB147: 0 | BC147: 0 | BD147: 2588180 | BE147: ='2017legmax.xls'!F144 -> 329 | BF147: ='2017legmax.xls'!I144 -> 319 | BG147: ='2017legmax.xls'!K144 -> 321 | BH147: 323 | BI147: ='2017legmax.xls'!O144 -> 4.5 | BJ147: 327.5 | BK147: =IF(ISNA(VLOOKUP($CO147,'Audit Values'!$A$2:$AF$318,2,FALSE)),'Preliminary SO66'!T141,VLOOKUP($CO147,'Audit Values'!$A$2:$AF$318,20,FALSE)) -> 0 | BL147: 0 | BM147: =IF(ISNA(VLOOKUP($CO147,'Audit Values'!$A$2:$AF$318,2,FALSE)),'Preliminary SO66'!U141,VLOOKUP($CO147,'Audit Values'!$A$2:$AF$318,21,FALSE)) -> 0 | BN147: 0 | BO147: 0 | BP147: 0 | BQ147: 0 | BR147: ='2017legmax.xls'!AH144 -> 19.3 | BS147: 74344 | BT147: 0 | BU147: ='2017legmax.xls'!CJ144 -> 0 | BV147: 0 | BW147: ='2017legmax.xls'!CI144 -> 0 | BX147: 0 | BY147: 0 | BZ147: 0 | CA147: 0 | CB147: 0 | CC147: 0 | CD147: 0 | CE147: 0 | CF147: 0 | CG147: 0 | CH147: 0 | CI147: 0 | CJ147: 0 | CK147: 0 | CO147: D0347
A148: 348 | B148: Douglas | C148: Baldwin City | D148: 6910324 | E148: 12040 | F148: 0 | G148: 0 | H148: 0 | I148: 1358.7 | J148: 0 | K148: 0 | L148: =Weightings!K145 -> 0 | M148: 0 | N148: 0 | O148: 6922364 | P148: 0 | Q148: 1326512 | R148: 536274 | S148: 536274 | U148: 8785150 | V148: 0 | W148: 0 | X148: 0 | Y148: 0 | Z148: 0 | AA148: 5317 | AB148: 13020 | AC148: ='2017legmax.xls'!AV145 -> 7 | AD148: ='2017legmax.xls'!AW145 -> A | AE148: ='2017legmax.xls'!AX145 ->  | AF148: 8803487 | AG148: 8803487 | AH148: =IF(Weightings!G145>0,Weightings!G145,'Preliminary SO66'!AB142) -> 9135008 | AI148: 8803487 | AJ148: 8803487 | AK148: 9416475 | AL148: ='2017legmax.xls'!BM145 -> 0.3 | AM148: 2824943 | AN148: 2824943 | AO148: 2824943 | AQ148: 6946165 | AR148: 2.1 | AS148: 8089 | AT148: 0 | AU148: 0 | AV148: 0 | AW148: 0 | AX148: 0 | AY148: 0 | AZ148: 0 | BA148: 27752 | BB148: 0 | BC148: 0 | BD148: 6910324 | BE148: ='2017legmax.xls'!F145 -> 1316.7 | BF148: ='2017legmax.xls'!I145 -> 1298.2 | BG148: ='2017legmax.xls'!K145 -> 1345.7 | BH148: 1345.7 | BI148: ='2017legmax.xls'!O145 -> 13 | BJ148: 1358.7 | BK148: =IF(ISNA(VLOOKUP($CO148,'Audit Values'!$A$2:$AF$318,2,FALSE)),'Preliminary SO66'!T142,VLOOKUP($CO148,'Audit Values'!$A$2:$AF$318,20,FALSE)) -> 2 | BL148: 10000 | BM148: =IF(ISNA(VLOOKUP($CO148,'Audit Values'!$A$2:$AF$318,2,FALSE)),'Preliminary SO66'!U142,VLOOKUP($CO148,'Audit Values'!$A$2:$AF$318,21,FALSE)) -> 1.2 | BN148: 2040 | BO148: 0 | BP148: 0 | BQ148: 12040 | BR148: ='2017legmax.xls'!AH145 -> 0 | BS148: 0 | BT148: 0 | BU148: ='2017legmax.xls'!CJ145 -> 0.0088 | BV148: 77471 | BW148: ='2017legmax.xls'!CI145 -> 0 | BX148: 0 | BY148: 0 | BZ148: 0 | CA148: 0 | CB148: 0 | CC148: 0 | CD148: 0 | CE148: 0 | CF148: 0 | CG148: 0 | CH148: 0 | CI148: 0 | CJ148: 0 | CK148: 0 | CO148: D0348
A149: 349 | B149: Stafford | C149: Stafford | D149: 1859260 | E149: 0 | F149: 0 | G149: 0 | H149: 0 | I149: 243.4 | J149: 0 | K149: 5000 | L149: =Weightings!K146 -> 0 | M149: 0 | N149: 0 | O149: 1854260 | P149: 0 | Q149: 313243 | R149: 135625 | S149: 135625 | U149: 2303128 | V149: 8755 | W149: 2679 | X149: 0 | Y149: 0 | Z149: 0 | AA149: 0 | AB149: 11585 | AC149: ='2017legmax.xls'!AV146 -> 12 | AD149: ='2017legmax.xls'!AW146 -> A | AE149: ='2017legmax.xls'!AX146 ->  | AF149: 2326147 | AG149: 2326147 | AH149: =IF(Weightings!G146>0,Weightings!G146,'Preliminary SO66'!AB143) -> 2389294 | AI149: 2326147 | AJ149: 2326147 | AK149: 2469966 | AL149: ='2017legmax.xls'!BM146 -> 0.3 | AM149: 740990 | AN149: 740990 | AO149: 740990 | AQ149: 1866727 | AR149: 0 | AS149: 0 | AT149: 0 | AU149: 0 | AV149: 0 | AW149: 0 | AX149: 0 | AY149: 0 | AZ149: 0 | BA149: 7467 | BB149: 0 | BC149: 0 | BD149: 1859260 | BE149: ='2017legmax.xls'!F146 -> 262.9 | BF149: ='2017legmax.xls'!I146 -> 243.4 | BG149: ='2017legmax.xls'!K146 -> 199.1 | BH149: 243.4 | BI149: ='2017legmax.xls'!O146 -> 0 | BJ149: 243.4 | BK149: =IF(ISNA(VLOOKUP($CO149,'Audit Values'!$A$2:$AF$318,2,FALSE)),'Preliminary SO66'!T143,VLOOKUP($CO149,'Audit Values'!$A$2:$AF$318,20,FALSE)) -> 0 | BL149: 0 | BM149: =IF(ISNA(VLOOKUP($CO149,'Audit Values'!$A$2:$AF$318,2,FALSE)),'Preliminary SO66'!U143,VLOOKUP($CO149,'Audit Values'!$A$2:$AF$318,21,FALSE)) -> 0 | BN149: 0 | BO149: 0 | BP149: 0 | BQ149: 0 | BR149: ='2017legmax.xls'!AH146 -> 0 | BS149: 0 | BT149: 0 | BU149: ='2017legmax.xls'!CJ146 -> 0 | BV149: 0 | BW149: ='2017legmax.xls'!CI146 -> 0 | BX149: 0 | BY149: 0 | BZ149: 0 | CA149: 0 | CB149: 0 | CC149: 0 | CD149: 0 | CE149: 0 | CF149: 0 | CG149: 0 | CH149: 0 | CI149: 0 | CJ149: 0 | CK149: 0 | CO149: D0349
A150: 350 | B150: Stafford | C150: St John-Hudson | D150: 2330085 | E150: 0 | F150: 0 | G150: 0 | H150: 0 | I150: 329.5 | J150: 0 | K150: 0 | L150: =Weightings!K147 -> 0 | M150: 0 | N150: 0 | O150: 2330085 | P150: 0 | Q150: 419368 | R150: 178532 | S150: 178532 | U150: 2927985 | V150: 842 | W150: 10426 | X150: 0 | Y150: 0 | Z150: 0 | AA150: 0 | AB150: 1100 | AC150: 22 | AD150: ='2017legmax.xls'!AW147 -> A | AE150: ='2017legmax.xls'!AX147 ->  | AF150: 2940353 | AG150: 2940353 | AH150: =IF(Weightings!G147>0,Weightings!G147,'Preliminary SO66'!AB144) -> 3127578 | AI150: 2940353 | AJ150: 2940353 | AK150: 3167014 | AL150: ='2017legmax.xls'!BM147 -> 0.31 | AM150: 981774 | AN150: 981774 | AO150: 981774 | AQ150: 2339443 | AR150: 0 | AS150: 0 | AT150: 0 | AU150: 0 | AV150: 0 | AW150: 0 | AX150: 0 | AY150: 0 | AZ150: 0 | BA150: 9358 | BB150: 0 | BC150: 0 | BD150: 2330085 | BE150: ='2017legmax.xls'!F147 -> 345 | BF150: ='2017legmax.xls'!I147 -> 327.4 | BG150: ='2017legmax.xls'!K147 -> 316 | BH150: 329.5 | BI150: ='2017legmax.xls'!O147 -> 0 | BJ150: 329.5 | BK150: =IF(ISNA(VLOOKUP($CO150,'Audit Values'!$A$2:$AF$318,2,FALSE)),'Preliminary SO66'!T144,VLOOKUP($CO150,'Audit Values'!$A$2:$AF$318,20,FALSE)) -> 0 | BL150: 0 | BM150: =IF(ISNA(VLOOKUP($CO150,'Audit Values'!$A$2:$AF$318,2,FALSE)),'Preliminary SO66'!U144,VLOOKUP($CO150,'Audit Values'!$A$2:$AF$318,21,FALSE)) -> 0 | BN150: 0 | BO150: 0 | BP150: 0 | BQ150: 0 | BR150: ='2017legmax.xls'!AH147 -> 0 | BS150: 0 | BT150: 0 | BU150: ='2017legmax.xls'!CJ147 -> 0 | BV150: 0 | BW150: ='2017legmax.xls'!CI147 -> 0 | BX150: 0 | BY150: 0 | BZ150: 0 | CA150: 0 | CB150: 0 | CC150: 0 | CD150: 0 | CE150: 0 | CF150: 0 | CG150: 0 | CH150: 0 | CI150: 0 | CJ150: 0 | CK150: 0 | CO150: D0350
A151: 351 | B151: Stafford | C151: Macksville | D151: 2001125 | E151: 0 | F151: 0 | G151: 0 | H151: 0 | I151: 225.6 | J151: 0 | K151: 677 | L151: =Weightings!K148 -> 0 | M151: 0 | N151: 0 | O151: 2000448 | P151: 0 | Q151: 318065 | R151: 163706 | S151: 163706 | U151: 2482219 | V151: 0 | W151: 6783 | X151: 0 | Y151: 0 | Z151: 0 | AA151: 0 | AB151: 6271 | AC151: ='2017legmax.xls'!AV148 -> 8 | AD151: ='2017legmax.xls'!AW148 -> A | AE151: ='2017legmax.xls'!AX148 ->  | AF151: 2495273 | AG151: 2495273 | AH151: =IF(Weightings!G148>0,Weightings!G148,'Preliminary SO66'!AB145) -> 2651606 | AI151: 2495273 | AJ151: 2495273 | AK151: 2678157 | AL151: ='2017legmax.xls'!BM148 -> 0.3 | AM151: 803447 | AN151: 803447 | AO151: 803447 | AQ151: 2009162 | AR151: 0 | AS151: 0 | AT151: 0 | AU151: 0 | AV151: 0 | AW151: 0 | AX151: 0 | AY151: 0 | AZ151: 0 | BA151: 8037 | BB151: 0 | BC151: 0 | BD151: 2001125 | BE151: ='2017legmax.xls'!F148 -> 235.9 | BF151: ='2017legmax.xls'!I148 -> 212.5 | BG151: ='2017legmax.xls'!K148 -> 222.5 | BH151: 223.6 | BI151: ='2017legmax.xls'!O148 -> 2 | BJ151: 225.6 | BK151: =IF(ISNA(VLOOKUP($CO151,'Audit Values'!$A$2:$AF$318,2,FALSE)),'Preliminary SO66'!T145,VLOOKUP($CO151,'Audit Values'!$A$2:$AF$318,20,FALSE)) -> 0 | BL151: 0 | BM151: =IF(ISNA(VLOOKUP($CO151,'Audit Values'!$A$2:$AF$318,2,FALSE)),'Preliminary SO66'!U145,VLOOKUP($CO151,'Audit Values'!$A$2:$AF$318,21,FALSE)) -> 0 | BN151: 0 | BO151: 0 | BP151: 0 | BQ151: 0 | BR151: ='2017legmax.xls'!AH148 -> 0 | BS151: 0 | BT151: 0 | BU151: ='2017legmax.xls'!CJ148 -> 0 | BV151: 0 | BW151: ='2017legmax.xls'!CI148 -> 0 | BX151: 0 | BY151: 0 | BZ151: 0 | CA151: 0 | CB151: 0 | CC151: 0 | CD151: 0 | CE151: 0 | CF151: 0 | CG151: 0 | CH151: 0 | CI151: 0 | CJ151: 0 | CK151: 0 | CO151: D0351
A152: 352 | B152: Sherman | C152: Goodland | D152: 5992865 | E152: 38062 | F152: 0 | G152: 0 | H152: 0 | I152: 933.5 | J152: 0 | K152: 0 | L152: =Weightings!K149 -> -7464 | M152: 0 | N152: -7464 | O152: 6023463 | P152: 0 | Q152: 906714 | R152: 478788 | S152: 478788 | U152: 7408965 | V152: 216 | W152: 606 | X152: 0 | Y152: 0 | Z152: 0 | AA152: 0 | AB152: 5106 | AC152: ='2017legmax.xls'!AV149 -> 12 | AD152: ='2017legmax.xls'!AW149 -> A | AE152: ='2017legmax.xls'!AX149 ->  | AF152: 7414893 | AG152: 7414893 | AH152: =IF(Weightings!G149>0,Weightings!G149,'Preliminary SO66'!AB146) -> 7771232 | AI152: 7414893 | AJ152: 7414893 | AK152: 8026827 | AL152: ='2017legmax.xls'!BM149 -> 0.3 | AM152: 2408048 | AN152: 2408048 | AO152: 2408048 | AQ152: 6156467 | AR152: 5.3 | AS152: 20416 | AT152: 0 | AU152: 0 | AV152: 0 | AW152: 0 | AX152: 0 | AY152: 0 | AZ152: 0 | BA152: 24544 | BB152: 30.8 | BC152: 118642 | BD152: 5992865 | BE152: ='2017legmax.xls'!F149 -> 1041.5 | BF152: ='2017legmax.xls'!I149 -> 879.7 | BG152: ='2017legmax.xls'!K149 -> 879.4 | BH152: 933.5 | BI152: ='2017legmax.xls'!O149 -> 0 | BJ152: 933.5 | BK152: =IF(ISNA(VLOOKUP($CO152,'Audit Values'!$A$2:$AF$318,2,FALSE)),'Preliminary SO66'!T146,VLOOKUP($CO152,'Audit Values'!$A$2:$AF$318,20,FALSE)) -> 5 | BL152: 25000 | BM152: =IF(ISNA(VLOOKUP($CO152,'Audit Values'!$A$2:$AF$318,2,FALSE)),'Preliminary SO66'!U146,VLOOKUP($CO152,'Audit Values'!$A$2:$AF$318,21,FALSE)) -> 0 | BN152: 0 | BO152: 14 | BP152: 13062 | BQ152: 38062 | BR152: ='2017legmax.xls'!AH149 -> 0 | BS152: 0 | BT152: 0 | BU152: ='2017legmax.xls'!CJ149 -> 0 | BV152: 0 | BW152: ='2017legmax.xls'!CI149 -> 0 | BX152: 0 | BY152: 0 | BZ152: 0 | CA152: 0 | CB152: 0 | CC152: 0 | CD152: 0 | CE152: 0 | CF152: 0 | CG152: 0 | CH152: 0 | CI152: 0 | CJ152: 0 | CK152: 0 | CO152: D0352
A153: 353 | B153: Sumner | C153: Wellington | D153: 8163733 | E153: 0 | F153: 263862 | G153: 0 | H153: 0 | I153: 1547.7 | J153: 0 | K153: 0 | L153: =Weightings!K150 -> 0 | M153: 0 | N153: 0 | O153: 8427595 | P153: 0 | Q153: 2047065 | R153: 773895 | S153: 773895 | U153: 11248555 | V153: 4747 | W153: 3910 | X153: 0 | Y153: 0 | Z153: 0 | AA153: 0 | AB153: 67904 | AC153: ='2017legmax.xls'!AV150 -> 16 | AD153: ='2017legmax.xls'!AW150 -> A | AE153: ='2017legmax.xls'!AX150 -> R | AF153: 11325116 | AG153: 11325116 | AH153: =IF(Weightings!G150>0,Weightings!G150,'Preliminary SO66'!AB147) -> 11628888 | AI153: 11325116 | AJ153: 11325116 | AK153: 11572640 | AL153: ='2017legmax.xls'!BM150 -> 0.3 | AM153: 3471792 | AN153: 3471792 | AO153: 3471792 | AQ153: 8196519 | AR153: 0 | AS153: 0 | AT153: 0 | AU153: 0 | AV153: 0 | AW153: 0 | AX153: 0 | AY153: 0 | AZ153: 0 | BA153: 32786 | BB153: 0 | BC153: 0 | BD153: 8163733 | BE153: ='2017legmax.xls'!F150 -> 1551.5 | BF153: ='2017legmax.xls'!I150 -> 1534.5 | BG153: ='2017legmax.xls'!K150 -> 1536 | BH153: 1540.7 | BI153: ='2017legmax.xls'!O150 -> 7 | BJ153: 1547.7 | BK153: =IF(ISNA(VLOOKUP($CO153,'Audit Values'!$A$2:$AF$318,2,FALSE)),'Preliminary SO66'!T147,VLOOKUP($CO153,'Audit Values'!$A$2:$AF$318,20,FALSE)) -> 0 | BL153: 0 | BM153: =IF(ISNA(VLOOKUP($CO153,'Audit Values'!$A$2:$AF$318,2,FALSE)),'Preliminary SO66'!U147,VLOOKUP($CO153,'Audit Values'!$A$2:$AF$318,21,FALSE)) -> 0 | BN153: 0 | BO153: 0 | BP153: 0 | BQ153: 0 | BR153: ='2017legmax.xls'!AH150 -> 68.5 | BS153: 263862 | BT153: 0 | BU153: ='2017legmax.xls'!CJ150 -> 0 | BV153: 0 | BW153: ='2017legmax.xls'!CI150 -> 0 | BX153: 0 | BY153: 0 | BZ153: 0 | CA153: 0 | CB153: 0 | CC153: 0 | CD153: 0 | CE153: 0 | CF153: 0 | CG153: 0 | CH153: 0 | CI153: 0 | CJ153: 0 | CK153: 0 | CO153: D0353
A154: 355 | B154: Barton | C154: Ellinwood Public Schools | D154: 2713588 | E154: 0 | F154: 0 | G154: 0 | H154: 0 | I154: 424.3 | J154: 0 | K154: 0 | L154: =Weightings!K151 -> 0 | M154: 0 | N154: 0 | O154: 2713588 | P154: 0 | Q154: 474795 | R154: 238860 | S154: 238860 | U154: 3427243 | V154: 0 | W154: 7904 | X154: 0 | Y154: 0 | Z154: 0 | AA154: 0 | AB154: 0 | AC154: ='2017legmax.xls'!AV151 -> 8 | AD154: ='2017legmax.xls'!AW151 -> A | AE154: ='2017legmax.xls'!AX151 ->  | AF154: 3435147 | AG154: 3435147 | AH154: =IF(Weightings!G151>0,Weightings!G151,'Preliminary SO66'!AB148) -> 3785027 | AI154: 3435147 | AJ154: 3435147 | AK154: 3637310 | AL154: ='2017legmax.xls'!BM151 -> 0.3 | AM154: 1091193 | AN154: 1091193 | AO154: 1091193 | AQ154: 2724486 | AR154: 0 | AS154: 0 | AT154: 0 | AU154: 0 | AV154: 0 | AW154: 0 | AX154: 0 | AY154: 0 | AZ154: 0 | BA154: 10898 | BB154: 0 | BC154: 0 | BD154: 2713588 | BE154: ='2017legmax.xls'!F151 -> 414.2 | BF154: ='2017legmax.xls'!I151 -> 424.3 | BG154: ='2017legmax.xls'!K151 -> 423.4 | BH154: 424.3 | BI154: ='2017legmax.xls'!O151 -> 0 | BJ154: 424.3 | BK154: =IF(ISNA(VLOOKUP($CO154,'Audit Values'!$A$2:$AF$318,2,FALSE)),'Preliminary SO66'!T148,VLOOKUP($CO154,'Audit Values'!$A$2:$AF$318,20,FALSE)) -> 0 | BL154: 0 | BM154: =IF(ISNA(VLOOKUP($CO154,'Audit Values'!$A$2:$AF$318,2,FALSE)),'Preliminary SO66'!U148,VLOOKUP($CO154,'Audit Values'!$A$2:$AF$318,21,FALSE)) -> 0 | BN154: 0 | BO154: 0 | BP154: 0 | BQ154: 0 | BR154: ='2017legmax.xls'!AH151 -> 0 | BS154: 0 | BT154: 0 | BU154: ='2017legmax.xls'!CJ151 -> 0 | BV154: 0 | BW154: ='2017legmax.xls'!CI151 -> 0 | BX154: 0 | BY154: 0 | BZ154: 0 | CA154: 0 | CB154: 0 | CC154: 0 | CD154: 0 | CE154: 0 | CF154: 0 | CG154: 0 | CH154: 0 | CI154: 0 | CJ154: 0 | CK154: 0 | CO154: D0355
A155: 356 | B155: Sumner | C155: Conway Springs | D155: 3114498 | E155: 0 | F155: 0 | G155: 0 | H155: 0 | I155: 470.3 | J155: 0 | K155: 0 | L155: =Weightings!K152 -> 0 | M155: 0 | N155: 0 | O155: 3114498 | P155: 0 | Q155: 451735 | R155: 252098 | S155: 252098 | U155: 3818331 | V155: 0 | W155: 1191 | X155: 0 | Y155: 0 | Z155: 0 | AA155: 0 | AB155: 7022 | AC155: ='2017legmax.xls'!AV152 -> 12 | AD155: ='2017legmax.xls'!AW152 -> A | AE155: ='2017legmax.xls'!AX152 ->  | AF155: 3826544 | AG155: 3826544 | AH155: =IF(Weightings!G152>0,Weightings!G152,'Preliminary SO66'!AB149) -> 4066676 | AI155: 3826544 | AJ155: 3826544 | AK155: 4162101 | AL155: ='2017legmax.xls'!BM152 -> 0.3 | AM155: 1248630 | AN155: 1248630 | AO155: 1248630 | AQ155: 3127006 | AR155: 0 | AS155: 0 | AT155: 0 | AU155: 0 | AV155: 0 | AW155: 0 | AX155: 0 | AY155: 0 | AZ155: 0 | BA155: 12508 | BB155: 0 | BC155: 0 | BD155: 3114498 | BE155: ='2017legmax.xls'!F152 -> 480.5 | BF155: ='2017legmax.xls'!I152 -> 470.3 | BG155: ='2017legmax.xls'!K152 -> 444.3 | BH155: 470.3 | BI155: ='2017legmax.xls'!O152 -> 0 | BJ155: 470.3 | BK155: =IF(ISNA(VLOOKUP($CO155,'Audit Values'!$A$2:$AF$318,2,FALSE)),'Preliminary SO66'!T149,VLOOKUP($CO155,'Audit Values'!$A$2:$AF$318,20,FALSE)) -> 0 | BL155: 0 | BM155: =IF(ISNA(VLOOKUP($CO155,'Audit Values'!$A$2:$AF$318,2,FALSE)),'Preliminary SO66'!U149,VLOOKUP($CO155,'Audit Values'!$A$2:$AF$318,21,FALSE)) -> 0 | BN155: 0 | BO155: 0 | BP155: 0 | BQ155: 0 | BR155: ='2017legmax.xls'!AH152 -> 0 | BS155: 0 | BT155: 0 | BU155: ='2017legmax.xls'!CJ152 -> 0 | BV155: 0 | BW155: ='2017legmax.xls'!CI152 -> 0 | BX155: 0 | BY155: 0 | BZ155: 0 | CA155: 0 | CB155: 0 | CC155: 0 | CD155: 0 | CE155: 0 | CF155: 0 | CG155: 0 | CH155: 0 | CI155: 0 | CJ155: 0 | CK155: 0 | CO155: D0356
A156: 357 | B156: Sumner | C156: Belle Plaine | D156: 3716421 | E156: 56913 | F156: 0 | G156: 0 | H156: 0 | I156: 588.3 | J156: 0 | K156: 0 | L156: =Weightings!K153 -> 0 | M156: 0 | N156: 0 | O156: 3773334 | P156: 0 | Q156: 711635 | R156: 300236 | S156: 300236 | U156: 4785205 | V156: 0 | W156: 233 | X156: 0 | Y156: 0 | Z156: 0 | AA156: 0 | AB156: 5144 | AC156: ='2017legmax.xls'!AV153 -> 14 | AD156: ='2017legmax.xls'!AW153 -> A | AE156: ='2017legmax.xls'!AX153 ->  | AF156: 4790582 | AG156: 4790582 | AH156: =IF(Weightings!G153>0,Weightings!G153,'Preliminary SO66'!AB150) -> 5248490 | AI156: 4790582 | AJ156: 4790582 | AK156: 5296014 | AL156: ='2017legmax.xls'!BM153 -> 0.3 | AM156: 1588804 | AN156: 1588804 | AO156: 1588804 | AQ156: 3731346 | AR156: 0 | AS156: 0 | AT156: 0 | AU156: 0 | AV156: 0 | AW156: 0 | AX156: 0 | AY156: 0 | AZ156: 0 | BA156: 14925 | BB156: 0 | BC156: 0 | BD156: 3716421 | BE156: ='2017legmax.xls'!F153 -> 592.3 | BF156: ='2017legmax.xls'!I153 -> 574.5 | BG156: ='2017legmax.xls'!K153 -> 569.5 | BH156: 578.8 | BI156: ='2017legmax.xls'!O153 -> 9.5 | BJ156: 588.3 | BK156: =IF(ISNA(VLOOKUP($CO156,'Audit Values'!$A$2:$AF$318,2,FALSE)),'Preliminary SO66'!T150,VLOOKUP($CO156,'Audit Values'!$A$2:$AF$318,20,FALSE)) -> 0 | BL156: 0 | BM156: =IF(ISNA(VLOOKUP($CO156,'Audit Values'!$A$2:$AF$318,2,FALSE)),'Preliminary SO66'!U150,VLOOKUP($CO156,'Audit Values'!$A$2:$AF$318,21,FALSE)) -> 0 | BN156: 0 | BO156: 61 | BP156: 56913 | BQ156: 56913 | BR156: ='2017legmax.xls'!AH153 -> 0 | BS156: 0 | BT156: 0 | BU156: ='2017legmax.xls'!CJ153 -> 0 | BV156: 0 | BW156: ='2017legmax.xls'!CI153 -> 0 | BX156: 0 | BY156: 0 | BZ156: 0 | CA156: 0 | CB156: 0 | CC156: 0 | CD156: 0 | CE156: 0 | CF156: 0 | CG156: 0 | CH156: 0 | CI156: 0 | CJ156: 0 | CK156: 0 | CO156: D0357
A157: 358 | B157: Sumner | C157: Oxford | D157: 2199874 | E157: 437215 | F157: 0 | G157: 0 | H157: 0 | I157: 298.9 | J157: 0 | K157: 0 | L157: =Weightings!K154 -> -1166 | M157: 0 | N157: -1166 | O157: 2635923 | P157: 0 | Q157: 397746 | R157: 180180 | S157: 180180 | U157: 3213849 | V157: 0 | W157: 2888 | X157: 0 | Y157: 0 | Z157: 0 | AA157: 48916 | AB157: 0 | AC157: 22 | AD157: ='2017legmax.xls'!AW154 -> A | AE157: ='2017legmax.xls'!AX154 ->  | AF157: 3265653 | AG157: 3265653 | AH157: =IF(Weightings!G154>0,Weightings!G154,'Preliminary SO66'!AB151) -> 3500250 | AI157: 3265653 | AJ157: 3265653 | AK157: 3085096 | AL157: ='2017legmax.xls'!BM154 -> 0.3 | AM157: 925529 | AN157: 925529 | AO157: 925529 | AQ157: 2352003 | AR157: 37.2 | AS157: 143294 | AT157: 0 | AU157: 0 | AV157: 0 | AW157: 0 | AX157: 0 | AY157: 0 | AZ157: 0 | BA157: 8835 | BB157: 0 | BC157: 0 | BD157: 2199874 | BE157: ='2017legmax.xls'!F154 -> 315.6 | BF157: ='2017legmax.xls'!I154 -> 287 | BG157: ='2017legmax.xls'!K154 -> 289.5 | BH157: 297.4 | BI157: ='2017legmax.xls'!O154 -> 1.5 | BJ157: 298.9 | BK157: =IF(ISNA(VLOOKUP($CO157,'Audit Values'!$A$2:$AF$318,2,FALSE)),'Preliminary SO66'!T151,VLOOKUP($CO157,'Audit Values'!$A$2:$AF$318,20,FALSE)) -> 48 | BL157: 240000 | BM157: =IF(ISNA(VLOOKUP($CO157,'Audit Values'!$A$2:$AF$318,2,FALSE)),'Preliminary SO66'!U151,VLOOKUP($CO157,'Audit Values'!$A$2:$AF$318,21,FALSE)) -> 3.5 | BN157: 5950 | BO157: 205 | BP157: 191265 | BQ157: 437215 | BR157: ='2017legmax.xls'!AH154 -> 0 | BS157: 0 | BT157: 0 | BU157: ='2017legmax.xls'!CJ154 -> 0 | BV157: 0 | BW157: ='2017legmax.xls'!CI154 -> 0 | BX157: 0 | BY157: 0 | BZ157: 0 | CA157: 0 | CB157: 0 | CC157: 0 | CD157: 0 | CE157: 0 | CF157: 0 | CG157: 0 | CH157: 0 | CI157: 0 | CJ157: 0 | CK157: 0 | CO157: D0358
A158: 359 | B158: Sumner | C158: Argonia Public Schools | D158: 1340395 | E158: 0 | F158: 0 | G158: 0 | H158: 0 | I158: 182 | J158: 0 | K158: 0 | L158: =Weightings!K155 -> 0 | M158: 0 | N158: 0 | O158: 1340395 | P158: 0 | Q158: 207218 | R158: 104504 | S158: 104504 | U158: 1652117 | V158: 0 | W158: 3294 | X158: 0 | Y158: 0 | Z158: 0 | AA158: 0 | AB158: 2931 | AC158: ='2017legmax.xls'!AV155 -> 3 | AD158: ='2017legmax.xls'!AW155 -> A | AE158: ='2017legmax.xls'!AX155 ->  | AF158: 1658342 | AG158: 1658342 | AH158: =IF(Weightings!G155>0,Weightings!G155,'Preliminary SO66'!AB152) -> 1771172 | AI158: 1658342 | AJ158: 1658342 | AK158: 1821451 | AL158: ='2017legmax.xls'!BM155 -> 0.3 | AM158: 546435 | AN158: 502720 | AO158: 502720 | AQ158: 1345778 | AR158: 0 | AS158: 0 | AT158: 0 | AU158: 0 | AV158: 0 | AW158: 0 | AX158: 0 | AY158: 0 | AZ158: 0 | BA158: 5383 | BB158: 0 | BC158: 0 | BD158: 1340395 | BE158: ='2017legmax.xls'!F155 -> 163.9 | BF158: ='2017legmax.xls'!I155 -> 155 | BG158: ='2017legmax.xls'!K155 -> 180.5 | BH158: 180.5 | BI158: ='2017legmax.xls'!O155 -> 1.5 | BJ158: 182 | BK158: =IF(ISNA(VLOOKUP($CO158,'Audit Values'!$A$2:$AF$318,2,FALSE)),'Preliminary SO66'!T152,VLOOKUP($CO158,'Audit Values'!$A$2:$AF$318,20,FALSE)) -> 0 | BL158: 0 | BM158: =IF(ISNA(VLOOKUP($CO158,'Audit Values'!$A$2:$AF$318,2,FALSE)),'Preliminary SO66'!U152,VLOOKUP($CO158,'Audit Values'!$A$2:$AF$318,21,FALSE)) -> 0 | BN158: 0 | BO158: 0 | BP158: 0 | BQ158: 0 | BR158: ='2017legmax.xls'!AH155 -> 0 | BS158: 0 | BT158: 0 | BU158: ='2017legmax.xls'!CJ155 -> 0 | BV158: 0 | BW158: ='2017legmax.xls'!CI155 -> 0 | BX158: 0 | BY158: 0 | BZ158: 0 | CA158: 0 | CB158: 0 | CC158: 0 | CD158: 0 | CE158: 0 | CF158: 0 | CG158: 0 | CH158: 0 | CI158: 0 | CJ158: 0 | CK158: 0 | CO158: D0359
A159: 360 | B159: Sumner | C159: Caldwell | D159: 1808343 | E159: 18397 | F159: 0 | G159: 0 | H159: 0 | I159: 230.7 | J159: 0 | K159: 0 | L159: =Weightings!K156 -> 0 | M159: 0 | N159: 0 | O159: 1826740 | P159: 0 | Q159: 278749 | R159: 138264 | S159: 138264 | U159: 2243753 | V159: 246 | W159: 2116 | X159: 0 | Y159: 0 | Z159: 0 | AA159: 0 | AB159: 4375 | AC159: ='2017legmax.xls'!AV156 -> 12 | AD159: ='2017legmax.xls'!AW156 -> A | AE159: ='2017legmax.xls'!AX156 ->  | AF159: 2250490 | AG159: 2250490 | AH159: =IF(Weightings!G156>0,Weightings!G156,'Preliminary SO66'!AB153) -> 2366239 | AI159: 2250490 | AJ159: 2250490 | AK159: 2443091 | AL159: ='2017legmax.xls'!BM156 -> 0.33 | AM159: 806220 | AN159: 806220 | AO159: 806220 | AQ159: 1815605 | AR159: 0 | AS159: 0 | AT159: 0 | AU159: 0 | AV159: 0 | AW159: 0 | AX159: 0 | AY159: 0 | AZ159: 0 | BA159: 7262 | BB159: 0 | BC159: 0 | BD159: 1808343 | BE159: ='2017legmax.xls'!F156 -> 243.5 | BF159: ='2017legmax.xls'!I156 -> 222 | BG159: ='2017legmax.xls'!K156 -> 214.5 | BH159: 226.7 | BI159: ='2017legmax.xls'!O156 -> 4 | BJ159: 230.7 | BK159: =IF(ISNA(VLOOKUP($CO159,'Audit Values'!$A$2:$AF$318,2,FALSE)),'Preliminary SO66'!T153,VLOOKUP($CO159,'Audit Values'!$A$2:$AF$318,20,FALSE)) -> 2 | BL159: 10000 | BM159: =IF(ISNA(VLOOKUP($CO159,'Audit Values'!$A$2:$AF$318,2,FALSE)),'Preliminary SO66'!U153,VLOOKUP($CO159,'Audit Values'!$A$2:$AF$318,21,FALSE)) -> 0 | BN159: 0 | BO159: 9 | BP159: 8397 | BQ159: 18397 | BR159: ='2017legmax.xls'!AH156 -> 0 | BS159: 0 | BT159: 0 | BU159: ='2017legmax.xls'!CJ156 -> 0 | BV159: 0 | BW159: ='2017legmax.xls'!CI156 -> 0 | BX159: 0 | BY159: 0 | BZ159: 0 | CA159: 0 | CB159: 0 | CC159: 0 | CD159: 0 | CE159: 0 | CF159: 0 | CG159: 0 | CH159: 0 | CI159: 0 | CJ159: 0 | CK159: 0 | CO159: D0360
A160: 361 | B160: Harper | C160: Chaparral Schools | D160: 5148810 | E160: 52655 | F160: 0 | G160: 0 | H160: 0 | I160: 804.3 | J160: 0 | K160: 19780 | L160: =Weightings!K157 -> -933 | M160: 0 | N160: -933 | O160: 5180752 | P160: 0 | Q160: 1131349 | R160: 409986 | S160: 409986 | U160: 6722087 | V160: 48645 | W160: 219957 | X160: 0 | Y160: 0 | Z160: 0 | AA160: 0 | AB160: 0 | AC160: ='2017legmax.xls'!AV157 -> 2 | AD160: ='2017legmax.xls'!AW157 -> A | AE160: ='2017legmax.xls'!AX157 ->  | AF160: 6990689 | AG160: 6990689 | AH160: =IF(Weightings!G157>0,Weightings!G157,'Preliminary SO66'!AB154) -> 7113390 | AI160: 6990689 | AJ160: 6990689 | AK160: 7720712 | AL160: ='2017legmax.xls'!BM157 -> 0.2937 | AM160: 2267573 | AN160: 2316214 | AO160: 2267573 | AQ160: 5169488 | AR160: 0 | AS160: 0 | AT160: 0 | AU160: 0 | AV160: 0 | AW160: 0 | AX160: 0 | AY160: 0 | AZ160: 0 | BA160: 20678 | BB160: 0 | BC160: 0 | BD160: 5148810 | BE160: ='2017legmax.xls'!F157 -> 839.8 | BF160: ='2017legmax.xls'!I157 -> 788.5 | BG160: ='2017legmax.xls'!K157 -> 768.1 | BH160: 798.8 | BI160: ='2017legmax.xls'!O157 -> 5.5 | BJ160: 804.3 | BK160: =IF(ISNA(VLOOKUP($CO160,'Audit Values'!$A$2:$AF$318,2,FALSE)),'Preliminary SO66'!T154,VLOOKUP($CO160,'Audit Values'!$A$2:$AF$318,20,FALSE)) -> 4 | BL160: 20000 | BM160: =IF(ISNA(VLOOKUP($CO160,'Audit Values'!$A$2:$AF$318,2,FALSE)),'Preliminary SO66'!U154,VLOOKUP($CO160,'Audit Values'!$A$2:$AF$318,21,FALSE)) -> 0 | BN160: 0 | BO160: 35 | BP160: 32655 | BQ160: 52655 | BR160: ='2017legmax.xls'!AH157 -> 0 | BS160: 0 | BT160: 0 | BU160: ='2017legmax.xls'!CJ157 -> 0 | BV160: 0 | BW160: ='2017legmax.xls'!CI157 -> 0 | BX160: 0 | BY160: 0 | BZ160: 0 | CA160: 0 | CB160: 0 | CC160: 0 | CD160: 0 | CE160: 0 | CF160: 0 | CG160: 0 | CH160: 0 | CI160: 0 | CJ160: 0 | CK160: 0 | CO160: D0361
A161: 362 | B161: Linn | C161: Prairie View | D161: 5738890 | E161: 0 | F161: 0 | G161: 0 | H161: 0 | I161: 881.4 | J161: 0 | K161: 282 | L161: =Weightings!K158 -> 0 | M161: 0 | N161: 0 | O161: 5738608 | P161: 0 | Q161: 1280883 | R161: 536865 | S161: 536865 | U161: 7556356 | V161: 857 | W161: 48 | X161: 0 | Y161: 0 | Z161: 0 | AA161: 73650 | AB161: 39662 | AC161: 22 | AD161: ='2017legmax.xls'!AW158 -> A | AE161: ='2017legmax.xls'!AX158 ->  | AF161: 7670573 | AG161: 7670573 | AH161: =IF(Weightings!G158>0,Weightings!G158,'Preliminary SO66'!AB155) -> 8147624 | AI161: 7670573 | AJ161: 7670573 | AK161: 8198831 | AL161: ='2017legmax.xls'!BM158 -> 0.3 | AM161: 2459649 | AN161: 2459649 | AO161: 2459649 | AQ161: 5834975 | AR161: 3.7 | AS161: 14252 | AT161: 0 | AU161: 0 | AV161: 0 | AW161: 0 | AX161: 0 | AY161: 0 | AZ161: 0 | BA161: 23283 | BB161: 15.2 | BC161: 58550 | BD161: 5738890 | BE161: ='2017legmax.xls'!F158 -> 864.6 | BF161: ='2017legmax.xls'!I158 -> 852.1 | BG161: ='2017legmax.xls'!K158 -> 881.4 | BH161: 881.4 | BI161: ='2017legmax.xls'!O158 -> 0 | BJ161: 881.4 | BK161: =IF(ISNA(VLOOKUP($CO161,'Audit Values'!$A$2:$AF$318,2,FALSE)),'Preliminary SO66'!T155,VLOOKUP($CO161,'Audit Values'!$A$2:$AF$318,20,FALSE)) -> 0 | BL161: 0 | BM161: =IF(ISNA(VLOOKUP($CO161,'Audit Values'!$A$2:$AF$318,2,FALSE)),'Preliminary SO66'!U155,VLOOKUP($CO161,'Audit Values'!$A$2:$AF$318,21,FALSE)) -> 0 | BN161: 0 | BO161: 0 | BP161: 0 | BQ161: 0 | BR161: ='2017legmax.xls'!AH158 -> 0 | BS161: 0 | BT161: 0 | BU161: ='2017legmax.xls'!CJ158 -> 0 | BV161: 0 | BW161: ='2017legmax.xls'!CI158 -> 0 | BX161: 0 | BY161: 0 | BZ161: 0 | CA161: 0 | CB161: 0 | CC161: 0 | CD161: 0 | CE161: 0 | CF161: 0 | CG161: 0 | CH161: 0 | CI161: 0 | CJ161: 0 | CK161: 0 | CO161: D0362
A162: 363 | B162: Finney | C162: Holcomb | D162: 5639316 | E162: 7799 | F162: 0 | G162: 0 | H162: 0 | I162: 958 | J162: 0 | K162: 0 | L162: =Weightings!K159 -> -1866 | M162: 0 | N162: -1866 | O162: 5645249 | P162: 0 | Q162: 514072 | R162: 452946 | S162: 452946 | U162: 6612267 | V162: 0 | W162: 48385 | X162: 0 | Y162: 0 | Z162: 0 | AA162: 32007 | AB162: 5600 | AC162: ='2017legmax.xls'!AV159 -> 14 | AD162: ='2017legmax.xls'!AW159 -> A | AE162: ='2017legmax.xls'!AX159 ->  | AF162: 6698259 | AG162: 6698259 | AH162: =IF(Weightings!G159>0,Weightings!G159,'Preliminary SO66'!AB156) -> 7106349 | AI162: 6698259 | AJ162: 6698259 | AK162: 7377175 | AL162: ='2017legmax.xls'!BM159 -> 0.3 | AM162: 2213153 | AN162: 2150000 | AO162: 2150000 | AQ162: 5677372 | AR162: 4 | AS162: 15408 | AT162: 0 | AU162: 0 | AV162: 0 | AW162: 0 | AX162: 0 | AY162: 0 | AZ162: 0 | BA162: 22648 | BB162: 0 | BC162: 0 | BD162: 5639316 | BE162: ='2017legmax.xls'!F159 -> 937.3 | BF162: ='2017legmax.xls'!I159 -> 946.5 | BG162: ='2017legmax.xls'!K159 -> 937.5 | BH162: 946.5 | BI162: ='2017legmax.xls'!O159 -> 11.5 | BJ162: 958 | BK162: =IF(ISNA(VLOOKUP($CO162,'Audit Values'!$A$2:$AF$318,2,FALSE)),'Preliminary SO66'!T156,VLOOKUP($CO162,'Audit Values'!$A$2:$AF$318,20,FALSE)) -> 1 | BL162: 5000 | BM162: =IF(ISNA(VLOOKUP($CO162,'Audit Values'!$A$2:$AF$318,2,FALSE)),'Preliminary SO66'!U156,VLOOKUP($CO162,'Audit Values'!$A$2:$AF$318,21,FALSE)) -> 0 | BN162: 0 | BO162: 3 | BP162: 2799 | BQ162: 7799 | BR162: ='2017legmax.xls'!AH159 -> 0 | BS162: 0 | BT162: 0 | BU162: ='2017legmax.xls'!CJ159 -> 0 | BV162: 0 | BW162: ='2017legmax.xls'!CI159 -> 0 | BX162: 0 | BY162: 0 | BZ162: 0 | CA162: 0 | CB162: 0 | CC162: 0 | CD162: 0 | CE162: 0 | CF162: 0 | CG162: 0 | CH162: 0 | CI162: 0 | CJ162: 0 | CK162: 0 | CO162: D0363
A163: 364 | B163: Marshall | C163: Marysville | D163: 4399630 | E163: 0 | F163: 0 | G163: 0 | H163: 0 | I163: 701.9 | J163: 0 | K163: 0 | L163: =Weightings!K160 -> 0 | M163: 0 | N163: 0 | O163: 4399630 | P163: 0 | Q163: 656886 | R163: 462063 | S163: 462063 | U163: 5518579 | V163: 0 | W163: 0 | X163: 0 | Y163: 0 | Z163: 0 | AA163: 50000 | AB163: 10000 | AC163: ='2017legmax.xls'!AV160 -> 12 | AD163: ='2017legmax.xls'!AW160 -> A | AE163: ='2017legmax.xls'!AX160 ->  | AF163: 5578579 | AG163: 5578579 | AH163: =IF(Weightings!G160>0,Weightings!G160,'Preliminary SO66'!AB157) -> 5807862 | AI163: 5578579 | AJ163: 5578579 | AK163: 6012683 | AL163: ='2017legmax.xls'!BM160 -> 0.3 | AM163: 1803805 | AN163: 1803805 | AO163: 1803805 | AQ163: 4417299 | AR163: 0 | AS163: 0 | AT163: 0 | AU163: 0 | AV163: 0 | AW163: 0 | AX163: 0 | AY163: 0 | AZ163: 0 | BA163: 17669 | BB163: 0 | BC163: 0 | BD163: 4399630 | BE163: ='2017legmax.xls'!F160 -> 701.8 | BF163: ='2017legmax.xls'!I160 -> 689.5 | BG163: ='2017legmax.xls'!K160 -> 687.5 | BH163: 692.9 | BI163: ='2017legmax.xls'!O160 -> 9 | BJ163: 701.9 | BK163: =IF(ISNA(VLOOKUP($CO163,'Audit Values'!$A$2:$AF$318,2,FALSE)),'Preliminary SO66'!T157,VLOOKUP($CO163,'Audit Values'!$A$2:$AF$318,20,FALSE)) -> 0 | BL163: 0 | BM163: =IF(ISNA(VLOOKUP($CO163,'Audit Values'!$A$2:$AF$318,2,FALSE)),'Preliminary SO66'!U157,VLOOKUP($CO163,'Audit Values'!$A$2:$AF$318,21,FALSE)) -> 0 | BN163: 0 | BO163: 0 | BP163: 0 | BQ163: 0 | BR163: ='2017legmax.xls'!AH160 -> 0 | BS163: 0 | BT163: 0 | BU163: ='2017legmax.xls'!CJ160 -> 0 | BV163: 0 | BW163: ='2017legmax.xls'!CI160 -> 0 | BX163: 0 | BY163: 0 | BZ163: 0 | CA163: 0 | CB163: 0 | CC163: 0 | CD163: 0 | CE163: 0 | CF163: 0 | CG163: 0 | CH163: 0 | CI163: 0 | CJ163: 0 | CK163: 0 | CO163: D0364
A164: 365 | B164: Anderson | C164: Garnett | D164: 6233209 | E164: 0 | F164: 0 | G164: 0 | H164: 0 | I164: 988 | J164: 0 | K164: 0 | L164: =Weightings!K161 -> 0 | M164: 0 | N164: 0 | O164: 6233209 | P164: 0 | Q164: 838972 | R164: 505844 | S164: 505844 | U164: 7578025 | V164: 0 | W164: 0 | X164: 0 | Y164: 0 | Z164: 0 | AA164: 62 | AB164: 12598 | AC164: ='2017legmax.xls'!AV161 -> 11 | AD164: ='2017legmax.xls'!AW161 -> A | AE164: ='2017legmax.xls'!AX161 ->  | AF164: 7590685 | AG164: 7590685 | AH164: =IF(Weightings!G161>0,Weightings!G161,'Preliminary SO66'!AB158) -> 7891717 | AI164: 7590685 | AJ164: 7590685 | AK164: 8281363 | AL164: ='2017legmax.xls'!BM161 -> 0.3 | AM164: 2484409 | AN164: 2484409 | AO164: 2484409 | AQ164: 6258242 | AR164: 0 | AS164: 0 | AT164: 0 | AU164: 0 | AV164: 0 | AW164: 0 | AX164: 0 | AY164: 0 | AZ164: 0 | BA164: 25033 | BB164: 0 | BC164: 0 | BD164: 6233209 | BE164: ='2017legmax.xls'!F161 -> 1022 | BF164: ='2017legmax.xls'!I161 -> 988 | BG164: ='2017legmax.xls'!K161 -> 953.1 | BH164: 988 | BI164: ='2017legmax.xls'!O161 -> 0 | BJ164: 988 | BK164: =IF(ISNA(VLOOKUP($CO164,'Audit Values'!$A$2:$AF$318,2,FALSE)),'Preliminary SO66'!T158,VLOOKUP($CO164,'Audit Values'!$A$2:$AF$318,20,FALSE)) -> 0 | BL164: 0 | BM164: =IF(ISNA(VLOOKUP($CO164,'Audit Values'!$A$2:$AF$318,2,FALSE)),'Preliminary SO66'!U158,VLOOKUP($CO164,'Audit Values'!$A$2:$AF$318,21,FALSE)) -> 0 | BN164: 0 | BO164: 0 | BP164: 0 | BQ164: 0 | BR164: ='2017legmax.xls'!AH161 -> 0 | BS164: 0 | BT164: 0 | BU164: ='2017legmax.xls'!CJ161 -> 0 | BV164: 0 | BW164: ='2017legmax.xls'!CI161 -> 0 | BX164: 0 | BY164: 0 | BZ164: 0 | CA164: 0 | CB164: 0 | CC164: 0 | CD164: 0 | CE164: 0 | CF164: 0 | CG164: 0 | CH164: 0 | CI164: 0 | CJ164: 0 | CK164: 0 | CO164: D0365
A165: 366 | B165: Woodson | C165: Woodson | D165: 3106922 | E165: 20000 | F165: 0 | G165: 0 | H165: 0 | I165: 432.5 | J165: 0 | K165: 1549 | L165: =Weightings!K162 -> 0 | M165: 0 | N165: 0 | O165: 3125373 | P165: 0 | Q165: 519804 | R165: 240624 | S165: 240624 | U165: 3885801 | V165: 1 | W165: 0 | X165: 0 | Y165: 0 | Z165: 0 | AA165: 18978 | AB165: 1146 | AC165: ='2017legmax.xls'!AV162 -> 15 | AD165: ='2017legmax.xls'!AW162 -> A | AE165: ='2017legmax.xls'!AX162 -> R | AF165: 3905926 | AG165: 3905926 | AH165: =IF(Weightings!G162>0,Weightings!G162,'Preliminary SO66'!AB159) -> 4037427 | AI165: 3905926 | AJ165: 3905926 | AK165: 4203789 | AL165: ='2017legmax.xls'!BM162 -> 0.3 | AM165: 1261137 | AN165: 1261137 | AO165: 1261137 | AQ165: 3119400 | AR165: 0 | AS165: 0 | AT165: 0 | AU165: 0 | AV165: 0 | AW165: 0 | AX165: 0 | AY165: 0 | AZ165: 0 | BA165: 12478 | BB165: 0 | BC165: 0 | BD165: 3106922 | BE165: ='2017legmax.xls'!F162 -> 425.6 | BF165: ='2017legmax.xls'!I162 -> 421.5 | BG165: ='2017legmax.xls'!K162 -> 427 | BH165: 427 | BI165: ='2017legmax.xls'!O162 -> 5.5 | BJ165: 432.5 | BK165: =IF(ISNA(VLOOKUP($CO165,'Audit Values'!$A$2:$AF$318,2,FALSE)),'Preliminary SO66'!T159,VLOOKUP($CO165,'Audit Values'!$A$2:$AF$318,20,FALSE)) -> 4 | BL165: 20000 | BM165: =IF(ISNA(VLOOKUP($CO165,'Audit Values'!$A$2:$AF$318,2,FALSE)),'Preliminary SO66'!U159,VLOOKUP($CO165,'Audit Values'!$A$2:$AF$318,21,FALSE)) -> 0 | BN165: 0 | BO165: 0 | BP165: 0 | BQ165: 20000 | BR165: ='2017legmax.xls'!AH162 -> 0 | BS165: 0 | BT165: 0 | BU165: ='2017legmax.xls'!CJ162 -> 0 | BV165: 0 | BW165: ='2017legmax.xls'!CI162 -> 0 | BX165: 0 | BY165: 0 | BZ165: 0 | CA165: 0 | CB165: 0 | CC165: 0 | CD165: 0 | CE165: 0 | CF165: 0 | CG165: 0 | CH165: 0 | CI165: 0 | CJ165: 0 | CK165: 0 | CO165: D0366
A166: 367 | B166: Miami | C166: Osawatomie | D166: 7146514 | E166: 0 | F166: 0 | G166: 0 | H166: 0 | I166: 1131.7 | J166: 0 | K166: 0 | L166: =Weightings!K163 -> 0 | M166: 0 | N166: 0 | O166: 7146514 | P166: 0 | Q166: 1975627 | R166: 583604 | S166: 583604 | U166: 9705745 | V166: 0 | W166: 0 | X166: 0 | Y166: 0 | Z166: 0 | AA166: 0 | AB166: 33 | AC166: ='2017legmax.xls'!AV163 -> 11 | AD166: ='2017legmax.xls'!AW163 -> A | AE166: ='2017legmax.xls'!AX163 ->  | AF166: 9705778 | AG166: 9705778 | AH166: =IF(Weightings!G163>0,Weightings!G163,'Preliminary SO66'!AB160) -> 10102390 | AI166: 9705778 | AJ166: 9705778 | AK166: 10093058 | AL166: ='2017legmax.xls'!BM163 -> 0.3 | AM166: 3027917 | AN166: 3027917 | AO166: 3027917 | AQ166: 7213116 | AR166: 0 | AS166: 0 | AT166: 0 | AU166: 0 | AV166: 0 | AW166: 0 | AX166: 0 | AY166: 0 | AZ166: 0 | BA166: 28852 | BB166: 9.8 | BC166: 37750 | BD166: 7146514 | BE166: ='2017legmax.xls'!F163 -> 1159.5 | BF166: ='2017legmax.xls'!I163 -> 1119 | BG166: ='2017legmax.xls'!K163 -> 1092.5 | BH166: 1123.7 | BI166: ='2017legmax.xls'!O163 -> 8 | BJ166: 1131.7 | BK166: =IF(ISNA(VLOOKUP($CO166,'Audit Values'!$A$2:$AF$318,2,FALSE)),'Preliminary SO66'!T160,VLOOKUP($CO166,'Audit Values'!$A$2:$AF$318,20,FALSE)) -> 0 | BL166: 0 | BM166: =IF(ISNA(VLOOKUP($CO166,'Audit Values'!$A$2:$AF$318,2,FALSE)),'Preliminary SO66'!U160,VLOOKUP($CO166,'Audit Values'!$A$2:$AF$318,21,FALSE)) -> 0 | BN166: 0 | BO166: 0 | BP166: 0 | BQ166: 0 | BR166: ='2017legmax.xls'!AH163 -> 0 | BS166: 0 | BT166: 0 | BU166: ='2017legmax.xls'!CJ163 -> 0 | BV166: 0 | BW166: ='2017legmax.xls'!CI163 -> 0 | BX166: 0 | BY166: 0 | BZ166: 0 | CA166: 0 | CB166: 0 | CC166: 0 | CD166: 0 | CE166: 0 | CF166: 0 | CG166: 0 | CH166: 0 | CI166: 0 | CJ166: 0 | CK166: 0 | CO166: D0367
A167: 368 | B167: Miami | C167: Paola | D167: 9528282 | E167: 15000 | F167: 126731 | G167: 0 | H167: 0 | I167: 1952 | J167: 0 | K167: 0 | L167: =Weightings!K164 -> 0 | M167: 0 | N167: 0 | O167: 9670013 | P167: 0 | Q167: 1818261 | R167: 1622915 | S167: 1622915 | U167: 13111189 | V167: 0 | W167: 0 | X167: 0 | Y167: 0 | Z167: 0 | AA167: 0 | AB167: 67217 | AC167: ='2017legmax.xls'!AV164 -> 11 | AD167: ='2017legmax.xls'!AW164 -> A | AE167: ='2017legmax.xls'!AX164 ->  | AF167: 13178406 | AG167: 13178406 | AH167: =IF(Weightings!G164>0,Weightings!G164,'Preliminary SO66'!AB161) -> 14334082 | AI167: 13178406 | AJ167: 13178406 | AK167: 13052753 | AL167: ='2017legmax.xls'!BM164 -> 0.33 | AM167: 4307408 | AN167: 4307408 | AO167: 4307408 | AQ167: 9566548 | AR167: 0 | AS167: 0 | AT167: 0 | AU167: 0 | AV167: 0 | AW167: 0 | AX167: 0 | AY167: 0 | AZ167: 0 | BA167: 38266 | BB167: 0 | BC167: 0 | BD167: 9528282 | BE167: ='2017legmax.xls'!F164 -> 1931 | BF167: ='2017legmax.xls'!I164 -> 1936.1 | BG167: ='2017legmax.xls'!K164 -> 1952 | BH167: 1952 | BI167: ='2017legmax.xls'!O164 -> 0 | BJ167: 1952 | BK167: =IF(ISNA(VLOOKUP($CO167,'Audit Values'!$A$2:$AF$318,2,FALSE)),'Preliminary SO66'!T161,VLOOKUP($CO167,'Audit Values'!$A$2:$AF$318,20,FALSE)) -> 3 | BL167: 15000 | BM167: =IF(ISNA(VLOOKUP($CO167,'Audit Values'!$A$2:$AF$318,2,FALSE)),'Preliminary SO66'!U161,VLOOKUP($CO167,'Audit Values'!$A$2:$AF$318,21,FALSE)) -> 0 | BN167: 0 | BO167: 0 | BP167: 0 | BQ167: 15000 | BR167: ='2017legmax.xls'!AH164 -> 32.9 | BS167: 126731 | BT167: 0 | BU167: ='2017legmax.xls'!CJ164 -> 0.0013 | BV167: 17132 | BW167: ='2017legmax.xls'!CI164 -> 0 | BX167: 0 | BY167: 0 | BZ167: 0 | CA167: 0 | CB167: 0 | CC167: 0 | CD167: 0 | CE167: 0 | CF167: 0 | CG167: 0 | CH167: 0 | CI167: 0 | CJ167: 0 | CK167: 0 | CO167: D0368
A168: 369 | B168: Harvey | C168: Burrton | D168: 1762421 | E168: 0 | F168: 0 | G168: 0 | H168: 0 | I168: 242 | J168: 0 | K168: 29 | L168: =Weightings!K165 -> 0 | M168: 0 | N168: 0 | O168: 1762392 | P168: 0 | Q168: 230605 | R168: 136526 | S168: 136526 | U168: 2129523 | V168: 29 | W168: 7020 | X168: 0 | Y168: 0 | Z168: 0 | AA168: 0 | AB168: 0 | AC168: ='2017legmax.xls'!AV165 -> 3 | AD168: ='2017legmax.xls'!AW165 -> A | AE168: ='2017legmax.xls'!AX165 ->  | AF168: 2136572 | AG168: 2136572 | AH168: =IF(Weightings!G165>0,Weightings!G165,'Preliminary SO66'!AB162) -> 2323021 | AI168: 2136572 | AJ168: 2136572 | AK168: 2321673 | AL168: ='2017legmax.xls'!BM165 -> 0.3 | AM168: 696502 | AN168: 696502 | AO168: 696502 | AQ168: 1769499 | AR168: 0 | AS168: 0 | AT168: 0 | AU168: 0 | AV168: 0 | AW168: 0 | AX168: 0 | AY168: 0 | AZ168: 0 | BA168: 7078 | BB168: 0 | BC168: 0 | BD168: 1762421 | BE168: ='2017legmax.xls'!F165 -> 220.5 | BF168: ='2017legmax.xls'!I165 -> 237 | BG168: ='2017legmax.xls'!K165 -> 227.5 | BH168: 237 | BI168: ='2017legmax.xls'!O165 -> 5 | BJ168: 242 | BK168: =IF(ISNA(VLOOKUP($CO168,'Audit Values'!$A$2:$AF$318,2,FALSE)),'Preliminary SO66'!T162,VLOOKUP($CO168,'Audit Values'!$A$2:$AF$318,20,FALSE)) -> 0 | BL168: 0 | BM168: =IF(ISNA(VLOOKUP($CO168,'Audit Values'!$A$2:$AF$318,2,FALSE)),'Preliminary SO66'!U162,VLOOKUP($CO168,'Audit Values'!$A$2:$AF$318,21,FALSE)) -> 0 | BN168: 0 | BO168: 0 | BP168: 0 | BQ168: 0 | BR168: ='2017legmax.xls'!AH165 -> 0 | BS168: 0 | BT168: 0 | BU168: ='2017legmax.xls'!CJ165 -> 0 | BV168: 0 | BW168: ='2017legmax.xls'!CI165 -> 0 | BX168: 0 | BY168: 0 | BZ168: 0 | CA168: 0 | CB168: 0 | CC168: 0 | CD168: 0 | CE168: 0 | CF168: 0 | CG168: 0 | CH168: 0 | CI168: 0 | CJ168: 0 | CK168: 0 | CO168: D0369
A169: 371 | B169: Gray | C169: Montezuma | D169: 1832349 | E169: 48457 | F169: 0 | G169: 0 | H169: 0 | I169: 214.9 | J169: 0 | K169: 23 | L169: =Weightings!K166 -> -4665 | M169: 0 | N169: -4665 | O169: 1876118 | P169: 0 | Q169: 131303 | R169: 139134 | S169: 139134 | U169: 2146555 | V169: 0 | W169: 1289 | X169: 0 | Y169: 0 | Z169: 0 | AA169: 22871 | AB169: 11965 | AC169: ='2017legmax.xls'!AV166 -> 12 | AD169: ='2017legmax.xls'!AW166 -> A | AE169: ='2017legmax.xls'!AX166 ->  | AF169: 2182680 | AG169: 2182680 | AH169: =IF(Weightings!G166>0,Weightings!G166,'Preliminary SO66'!AB163) -> 2350644 | AI169: 2182680 | AJ169: 2182680 | AK169: 2304851 | AL169: ='2017legmax.xls'!BM166 -> 0.3 | AM169: 691455 | AN169: 691455 | AO169: 691455 | AQ169: 1839708 | AR169: 0 | AS169: 0 | AT169: 0 | AU169: 0 | AV169: 0 | AW169: 0 | AX169: 0 | AY169: 0 | AZ169: 0 | BA169: 7359 | BB169: 0 | BC169: 0 | BD169: 1832349 | BE169: ='2017legmax.xls'!F166 -> 238.8 | BF169: ='2017legmax.xls'!I166 -> 206.5 | BG169: ='2017legmax.xls'!K166 -> 192 | BH169: 212.4 | BI169: ='2017legmax.xls'!O166 -> 2.5 | BJ169: 214.9 | BK169: =IF(ISNA(VLOOKUP($CO169,'Audit Values'!$A$2:$AF$318,2,FALSE)),'Preliminary SO66'!T163,VLOOKUP($CO169,'Audit Values'!$A$2:$AF$318,20,FALSE)) -> 4 | BL169: 20000 | BM169: =IF(ISNA(VLOOKUP($CO169,'Audit Values'!$A$2:$AF$318,2,FALSE)),'Preliminary SO66'!U163,VLOOKUP($CO169,'Audit Values'!$A$2:$AF$318,21,FALSE)) -> 0 | BN169: 0 | BO169: 30.5 | BP169: 28457 | BQ169: 48457 | BR169: ='2017legmax.xls'!AH166 -> 0 | BS169: 0 | BT169: 0 | BU169: ='2017legmax.xls'!CJ166 -> 0 | BV169: 0 | BW169: ='2017legmax.xls'!CI166 -> 0 | BX169: 0 | BY169: 0 | BZ169: 0 | CA169: 0 | CB169: 0 | CC169: 0 | CD169: 0 | CE169: 0 | CF169: 0 | CG169: 0 | CH169: 0 | CI169: 0 | CJ169: 0 | CK169: 0 | CO169: D0371
A170: 372 | B170: Shawnee | C170: Silver Lake | D170: 4005747 | E170: 933 | F170: 0 | G170: 0 | H170: 0 | I170: 674.5 | J170: 0 | K170: 0 | L170: =Weightings!K167 -> 0 | M170: 0 | N170: 0 | O170: 4006680 | P170: 0 | Q170: 546952 | R170: 394972 | S170: 394972 | U170: 4948604 | V170: 0 | W170: 0 | X170: 0 | Y170: 0 | Z170: 0 | AA170: 0 | AB170: 0 | AC170: ='2017legmax.xls'!AV167 -> 6 | AD170: ='2017legmax.xls'!AW167 -> A | AE170: ='2017legmax.xls'!AX167 ->  | AF170: 4948604 | AG170: 4948604 | AH170: =IF(Weightings!G167>0,Weightings!G167,'Preliminary SO66'!AB164) -> 5219072 | AI170: 4948604 | AJ170: 4948604 | AK170: 5308230 | AL170: ='2017legmax.xls'!BM167 -> 0.3 | AM170: 1592469 | AN170: 1592469 | AO170: 1592469 | AQ170: 4021834 | AR170: 0 | AS170: 0 | AT170: 0 | AU170: 0 | AV170: 0 | AW170: 0 | AX170: 0 | AY170: 0 | AZ170: 0 | BA170: 16087 | BB170: 0 | BC170: 0 | BD170: 4005747 | BE170: ='2017legmax.xls'!F167 -> 681 | BF170: ='2017legmax.xls'!I167 -> 656 | BG170: ='2017legmax.xls'!K167 -> 662.5 | BH170: 666.5 | BI170: ='2017legmax.xls'!O167 -> 8 | BJ170: 674.5 | BK170: =IF(ISNA(VLOOKUP($CO170,'Audit Values'!$A$2:$AF$318,2,FALSE)),'Preliminary SO66'!T164,VLOOKUP($CO170,'Audit Values'!$A$2:$AF$318,20,FALSE)) -> 0 | BL170: 0 | BM170: =IF(ISNA(VLOOKUP($CO170,'Audit Values'!$A$2:$AF$318,2,FALSE)),'Preliminary SO66'!U164,VLOOKUP($CO170,'Audit Values'!$A$2:$AF$318,21,FALSE)) -> 0 | BN170: 0 | BO170: 1 | BP170: 933 | BQ170: 933 | BR170: ='2017legmax.xls'!AH167 -> 0 | BS170: 0 | BT170: 0 | BU170: ='2017legmax.xls'!CJ167 -> 0 | BV170: 0 | BW170: ='2017legmax.xls'!CI167 -> 0 | BX170: 0 | BY170: 0 | BZ170: 0 | CA170: 0 | CB170: 0 | CC170: 0 | CD170: 0 | CE170: 0 | CF170: 0 | CG170: 0 | CH170: 0 | CI170: 0 | CJ170: 0 | CK170: 0 | CO170: D0372
A171: 373 | B171: Harvey | C171: Newton | D171: 17096261 | E171: 51970 | F171: 0 | G171: 0 | H171: 0 | I171: 3317.3 | J171: 0 | K171: 0 | L171: =Weightings!K168 -> -467 | M171: 0 | N171: -467 | O171: 17147764 | P171: 0 | Q171: 2797669 | R171: 2001653 | S171: 2001653 | U171: 21947086 | V171: 0 | W171: 0 | X171: 0 | Y171: 0 | Z171: 312166 | AA171: 230364 | AB171: 43072 | AC171: 22 | AD171: ='2017legmax.xls'!AW168 -> A | AE171: ='2017legmax.xls'!AX168 ->  | AF171: 22220522 | AG171: 22532688 | AH171: =IF(Weightings!G168>0,Weightings!G168,'Preliminary SO66'!AB165) -> 23312966 | AI171: 22532688 | AJ171: 22532688 | AK171: 23038662 | AL171: ='2017legmax.xls'!BM168 -> 0.3 | AM171: 6911599 | AN171: 6911599 | AO171: 6911599 | AQ171: 17319386 | AR171: 40.1 | AS171: 154465 | AT171: 0 | AU171: 0 | AV171: 0 | AW171: 0 | AX171: 0 | AY171: 0 | AZ171: 0 | BA171: 68660 | BB171: 0 | BC171: 0 | BD171: 17096261 | BE171: ='2017legmax.xls'!F168 -> 3329.1 | BF171: ='2017legmax.xls'!I168 -> 3289.3 | BG171: ='2017legmax.xls'!K168 -> 3208.8 | BH171: 3289.3 | BI171: ='2017legmax.xls'!O168 -> 28 | BJ171: 3317.3 | BK171: =IF(ISNA(VLOOKUP($CO171,'Audit Values'!$A$2:$AF$318,2,FALSE)),'Preliminary SO66'!T165,VLOOKUP($CO171,'Audit Values'!$A$2:$AF$318,20,FALSE)) -> 9 | BL171: 45000 | BM171: =IF(ISNA(VLOOKUP($CO171,'Audit Values'!$A$2:$AF$318,2,FALSE)),'Preliminary SO66'!U165,VLOOKUP($CO171,'Audit Values'!$A$2:$AF$318,21,FALSE)) -> 4.1 | BN171: 6970 | BO171: 0 | BP171: 0 | BQ171: 51970 | BR171: ='2017legmax.xls'!AH168 -> 0 | BS171: 0 | BT171: 0 | BU171: ='2017legmax.xls'!CJ168 -> 0 | BV171: 0 | BW171: ='2017legmax.xls'!CI168 -> 0 | BX171: 0 | BY171: 0 | BZ171: 0 | CA171: 0 | CB171: 0 | CC171: 0 | CD171: 0 | CE171: 0 | CF171: 0 | CG171: 0 | CH171: 0 | CI171: 0 | CJ171: 0 | CK171: 0 | CO171: D0373
A172: 374 | B172: Haskell | C172: Sublette | D172: 3458910 | E172: 3266 | F172: 0 | G172: 0 | H172: 0 | I172: 452.9 | J172: 0 | K172: 0 | L172: =Weightings!K169 -> -2799 | M172: 0 | N172: -2799 | O172: 3459377 | P172: 0 | Q172: 242885 | R172: 320169 | S172: 320169 | U172: 4022431 | V172: 0 | W172: 39539 | X172: 0 | Y172: 0 | Z172: 0 | AA172: 0 | AB172: 3249 | AC172: ='2017legmax.xls'!AV169 -> 11 | AD172: ='2017legmax.xls'!AW169 -> A | AE172: ='2017legmax.xls'!AX169 ->  | AF172: 4065219 | AG172: 4065219 | AH172: =IF(Weightings!G169>0,Weightings!G169,'Preliminary SO66'!AB166) -> 4347837 | AI172: 4065219 | AJ172: 4065219 | AK172: 4509641 | AL172: ='2017legmax.xls'!BM169 -> 0.3 | AM172: 1352892 | AN172: 1277892 | AO172: 1277892 | AQ172: 3490135 | AR172: 4.5 | AS172: 17334 | AT172: 0 | AU172: 0 | AV172: 0 | AW172: 0 | AX172: 0 | AY172: 0 | AZ172: 0 | BA172: 13891 | BB172: 0 | BC172: 0 | BD172: 3458910 | BE172: ='2017legmax.xls'!F169 -> 476.4 | BF172: ='2017legmax.xls'!I169 -> 432.7 | BG172: ='2017legmax.xls'!K169 -> 419.7 | BH172: 442.9 | BI172: ='2017legmax.xls'!O169 -> 10 | BJ172: 452.9 | BK172: =IF(ISNA(VLOOKUP($CO172,'Audit Values'!$A$2:$AF$318,2,FALSE)),'Preliminary SO66'!T166,VLOOKUP($CO172,'Audit Values'!$A$2:$AF$318,20,FALSE)) -> 0 | BL172: 0 | BM172: =IF(ISNA(VLOOKUP($CO172,'Audit Values'!$A$2:$AF$318,2,FALSE)),'Preliminary SO66'!U166,VLOOKUP($CO172,'Audit Values'!$A$2:$AF$318,21,FALSE)) -> 0 | BN172: 0 | BO172: 3.5 | BP172: 3266 | BQ172: 3266 | BR172: ='2017legmax.xls'!AH169 -> 0 | BS172: 0 | BT172: 0 | BU172: ='2017legmax.xls'!CJ169 -> 0 | BV172: 0 | BW172: ='2017legmax.xls'!CI169 -> 0 | BX172: 0 | BY172: 0 | BZ172: 0 | CA172: 0 | CB172: 0 | CC172: 0 | CD172: 0 | CE172: 0 | CF172: 0 | CG172: 0 | CH172: 0 | CI172: 0 | CJ172: 0 | CK172: 0 | CO172: D0374
A173: 375 | B173: Butler | C173: Circle | D173: 8752643 | E173: 222591 | F173: 451840 | G173: 0 | H173: 0 | I173: 1860.8 | J173: 0 | K173: 13006 | L173: =Weightings!K170 -> 0 | M173: 0 | N173: 0 | O173: 9414068 | P173: 0 | Q173: 1357772 | R173: 840056 | S173: 840056 | U173: 11611896 | V173: 11217 | W173: 3294 | X173: 0 | Y173: 0 | Z173: 0 | AA173: 0 | AB173: 0 | AC173: ='2017legmax.xls'!AV170 -> 12 | AD173: ='2017legmax.xls'!AW170 -> A | AE173: ='2017legmax.xls'!AX170 ->  | AF173: 11626407 | AG173: 11626407 | AH173: =IF(Weightings!G170>0,Weightings!G170,'Preliminary SO66'!AB167) -> 12296407 | AI173: 11626407 | AJ173: 11626407 | AK173: 11856358 | AL173: ='2017legmax.xls'!BM170 -> 0.3 | AM173: 3556907 | AN173: 3556907 | AO173: 3556907 | AQ173: 9025965 | AR173: 29.2 | AS173: 112478 | AT173: 0 | AU173: 0 | AV173: 0 | AW173: 0 | AX173: 0 | AY173: 0 | AZ173: 0 | BA173: 35654 | BB173: 32.5 | BC173: 125190 | BD173: 8752643 | BE173: ='2017legmax.xls'!F170 -> 1854.8 | BF173: ='2017legmax.xls'!I170 -> 1860.8 | BG173: ='2017legmax.xls'!K170 -> 1813.4 | BH173: 1860.8 | BI173: ='2017legmax.xls'!O170 -> 0 | BJ173: 1860.8 | BK173: =IF(ISNA(VLOOKUP($CO173,'Audit Values'!$A$2:$AF$318,2,FALSE)),'Preliminary SO66'!T167,VLOOKUP($CO173,'Audit Values'!$A$2:$AF$318,20,FALSE)) -> 24 | BL173: 120000 | BM173: =IF(ISNA(VLOOKUP($CO173,'Audit Values'!$A$2:$AF$318,2,FALSE)),'Preliminary SO66'!U167,VLOOKUP($CO173,'Audit Values'!$A$2:$AF$318,21,FALSE)) -> 0.8 | BN173: 1360 | BO173: 108.5 | BP173: 101231 | BQ173: 222591 | BR173: ='2017legmax.xls'!AH170 -> 117.3 | BS173: 451840 | BT173: 0 | BU173: ='2017legmax.xls'!CJ170 -> 0 | BV173: 0 | BW173: ='2017legmax.xls'!CI170 -> 0 | BX173: 0 | BY173: 0 | BZ173: 0 | CA173: 0 | CB173: 0 | CC173: 0 | CD173: 0 | CE173: 0 | CF173: 0 | CG173: 0 | CH173: 0 | CI173: 0 | CJ173: 0 | CK173: 0 | CO173: D0375
A174: 376 | B174: Rice | C174: Sterling | D174: 3284505 | E174: 0 | F174: 0 | G174: 0 | H174: 0 | I174: 507.7 | J174: 0 | K174: 0 | L174: =Weightings!K171 -> 0 | M174: 0 | N174: 0 | O174: 3284505 | P174: 0 | Q174: 572002 | R174: 281046 | S174: 281046 | U174: 4137553 | V174: 0 | W174: 1397 | X174: 0 | Y174: 0 | Z174: 0 | AA174: 0 | AB174: 0 | AC174: ='2017legmax.xls'!AV171 -> 12 | AD174: ='2017legmax.xls'!AW171 -> A | AE174: ='2017legmax.xls'!AX171 ->  | AF174: 4138950 | AG174: 4138950 | AH174: =IF(Weightings!G171>0,Weightings!G171,'Preliminary SO66'!AB168) -> 4381448 | AI174: 4138950 | AJ174: 4138950 | AK174: 4458500 | AL174: ='2017legmax.xls'!BM171 -> 0.3 | AM174: 1337550 | AN174: 1337550 | AO174: 1337550 | AQ174: 3297696 | AR174: 0 | AS174: 0 | AT174: 0 | AU174: 0 | AV174: 0 | AW174: 0 | AX174: 0 | AY174: 0 | AZ174: 0 | BA174: 13191 | BB174: 0 | BC174: 0 | BD174: 3284505 | BE174: ='2017legmax.xls'!F171 -> 514.4 | BF174: ='2017legmax.xls'!I171 -> 505.2 | BG174: ='2017legmax.xls'!K171 -> 487.6 | BH174: 505.2 | BI174: ='2017legmax.xls'!O171 -> 2.5 | BJ174: 507.7 | BK174: =IF(ISNA(VLOOKUP($CO174,'Audit Values'!$A$2:$AF$318,2,FALSE)),'Preliminary SO66'!T168,VLOOKUP($CO174,'Audit Values'!$A$2:$AF$318,20,FALSE)) -> 0 | BL174: 0 | BM174: =IF(ISNA(VLOOKUP($CO174,'Audit Values'!$A$2:$AF$318,2,FALSE)),'Preliminary SO66'!U168,VLOOKUP($CO174,'Audit Values'!$A$2:$AF$318,21,FALSE)) -> 0 | BN174: 0 | BO174: 0 | BP174: 0 | BQ174: 0 | BR174: ='2017legmax.xls'!AH171 -> 0 | BS174: 0 | BT174: 0 | BU174: ='2017legmax.xls'!CJ171 -> 0 | BV174: 0 | BW174: ='2017legmax.xls'!CI171 -> 0 | BX174: 0 | BY174: 0 | BZ174: 0 | CA174: 0 | CB174: 0 | CC174: 0 | CD174: 0 | CE174: 0 | CF174: 0 | CG174: 0 | CH174: 0 | CI174: 0 | CJ174: 0 | CK174: 0 | CO174: D0376
A175: 377 | B175: Atchison | C175: Atchison Co Comm Schools | D175: 4062625 | E175: 5000 | F175: 0 | G175: =BX175+CB175+CF175 -> 0 | H175: 0 | I175: 556.5 | J175: 0 | K175: 0 | L175: =Weightings!K172 -> 0 | M175: 0 | N175: 0 | O175: 4067625 | P175: 0 | Q175: 815546 | R175: 285795 | S175: 285795 | U175: 5168966 | V175: 0 | W175: 0 | X175: 0 | Y175: 0 | Z175: 0 | AA175: 0 | AB175: 5360 | AC175: ='2017legmax.xls'!AV172 -> 10 | AD175: ='2017legmax.xls'!AW172 -> A | AE175: ='2017legmax.xls'!AX172 ->  | AF175: 5174326 | AG175: 5174326 | AH175: =IF(Weightings!G172>0,Weightings!G172,'Preliminary SO66'!AB169) -> 5365855 | AI175: 5174326 | AJ175: 5174326 | AK175: 5626460 | AL175: ='2017legmax.xls'!BM172 -> 0.3 | AM175: 1687938 | AN175: 1687938 | AO175: 1687938 | AQ175: 4078941 | AR175: 0 | AS175: 0 | AT175: 0 | AU175: 0 | AV175: 0 | AW175: 0 | AX175: 0 | AY175: 0 | AZ175: 0 | BA175: 16316 | BB175: 0 | BC175: 0 | BD175: 4062625 | BE175: ='2017legmax.xls'!F172 -> 574 | BF175: ='2017legmax.xls'!I172 -> 550 | BG175: ='2017legmax.xls'!K172 -> 498 | BH175: 550 | BI175: ='2017legmax.xls'!O172 -> 6.5 | BJ175: 556.5 | BK175: =IF(ISNA(VLOOKUP($CO175,'Audit Values'!$A$2:$AF$318,2,FALSE)),'Preliminary SO66'!T169,VLOOKUP($CO175,'Audit Values'!$A$2:$AF$318,20,FALSE)) -> 1 | BL175: 5000 | BM175: =IF(ISNA(VLOOKUP($CO175,'Audit Values'!$A$2:$AF$318,2,FALSE)),'Preliminary SO66'!U169,VLOOKUP($CO175,'Audit Values'!$A$2:$AF$318,21,FALSE)) -> 0 | BN175: 0 | BO175: 0 | BP175: 0 | BQ175: 5000 | BR175: ='2017legmax.xls'!AH172 -> 0 | BS175: 0 | BT175: 0 | BU175: ='2017legmax.xls'!CJ172 -> 0 | BV175: 0 | BW175: ='2017legmax.xls'!CI172 -> 0 | BX175: 0 | BY175: 0 | BZ175: 0 | CA175: 0 | CB175: 0 | CC175: 0 | CD175: 0 | CE175: 0 | CF175: 0 | CG175: 0 | CH175: 0 | CI175: 0 | CJ175: 0 | CK175: 0 | CO175: D0377
